Workbook

Sheet Cover list
C2: AVANGARDCO IPL DATA BOOK * | I2: LAST PRICE | J2: ='Share price'!L8 -> 0.505
H3: >> FULL CONTENT
B4: >> Corporate Site | D4: >> IR Calendar | F4: >> Ask an IR Specialist | H4: >> Investment Analysts
B6: *IMPORTANT NOTE: For correct functioning of the Data Book, please let your Excel run macroses, execute external links, and update queries
B7: AGGREGATED CONTENT (updated: 26.06.2017)
B10: >> Ukrainian Macroeconomic Indicators | D10: >> Subsidiaries Structure | F10: >> CAPEX | H10: >> Debt | I10: >> GDRs Information
B11: >> Ukrainian Egg Industry Indicators | D11: >> Charter Capital Structure | F11: >> Depreciation and Amortization | H11: >> Financials FY07 - FY2016 | I11: >> Notes price
B12: >> Taxes | D12: >> Operational Results | F12: >> EBITDA | H12: >> Financials 1H09 - 1H17 | I12: >> GDRs and Eurobonds Prices Archive

Sheet Full Content
B2: FULL CONTENT
B3: >> Cover List
B7: >> Macro Indicators of Ukraine | C7: >> Consolidated Statement of Changes in Equity (Full Years)
B8: >> Industry Indicators | C8: >> Consolidated Statement of Cash Flows (Full Years)
B9: >> Taxes | C9: >> Notes to the Consolidated Financial Statements (Full Years)
B10: >> AVANGARDCO Investment Public Limitited' Sibsidiaries Structure | C10: >> Exchange Rates (Interim)
B11: >> AVANGARDCO Investment Public Limitited' Ownership Structure | C11: >> Consolidated Statement of Financial Position (Interim)
B12: >> Exchange Rates (Full Years) | C12: >> Consolidated Statement of Comprehensive Income (Interim)
B13: >> Operational Results and Cost of Sales | C13: >> Consolidated Statement of Changes in Equity (Interim)
B14: >> EBITDA Calculation | C14: >> Consolidated Statement of Cash Flows (Interim)
B15: >> Depreciation and Amortization | C15: >> AVANGARDCO GDRs and Comparable Stocks - Prices Archive
B16: >> Capital Expenditures | C16: >> Avangardco GDRs Information for Last Six Months
B17: >> Debt | C17: >> AVANGARDCO Eurobonds and Comparable Eurobonds of Ukraine - Prices Archive
B18: >> Consolidated Statement of Financial Position (Full Years) | C18: >> Eurobond Price and Yield to Maturity for Last Six Months
B19: >> Consolidated Statement of Comprehensive Income (Full Years)

Sheet Exchange Rates (Full Years)
B2: Exchange Rates (Full Years)
B4: >> Content | C4: >> List of Notes
B7: The exchange rates used for the preparation of the consolidated financial statements
B9: As at year ended 31 December 2016
B10: Currency | C10: 31 December 2016 | D10: Weighted average for the year ended 31 December 2016
B11: USD to UAH | C11: 27.1909 | D11: 25.5458
B12: EURO | C12: 0.9567 | D12: 0.9023
B16: As at year ended 31 December 2015
B17: Currency | C17: 31 December 2015 | D17: Weighted average for the year ended 31 December 2015
B18: USD to UAH | C18: 24.0007 | D18: 21.829
B19: EURO | C19: 0.9152 | D19: 0.9018
B23: As at year ended 31 December 2014
B24: Currency | C24: 31 December 2014 | D24: Weighted average for the year ended 31 December 2014
B25: USD to UAH | C25: 15.7686 | D25: 11. 9095
B26: EURO | C26: 0.8199 | D26: 0.7566
B30: As at year ended 31 December 2013
B31: Currency | C31: 31 December 2013 | D31: Weighted average for the year ended 31 December 2013
B32: USD to UAH | C32: 7.993 | D32: 7. 9930
B33: EURO | C33: 0.7239 | D33: -
B37: As at year ended 31 December 2012
B38: Currency | C38: 31 December 2012 | D38: Weighted average for the year ended 31 December 2012
B39: USD to UAH | C39: 7.9925 | D39: 7.9908
B40: EURO | C40: - | D40: -
B44: As at year ended 31 December 2011
B45: Currency | C45: 31 December 2011 | D45: Weighted average for the year ended 31 December 2011
B46: USD to UAH | C46: 7.9898 | D46: 7.9677
B47: EURO | C47: - | D47: -
B50: As at year ended 31 December 2010
B51: Currency | C51: 31 December 2010 | D51: Weighted average for the year ended 31 December 2010
B52: USD to UAH | C52: 7.9617 | D52: 7.9353
B53: EURO | C53: - | D53: -
B56: As at year ended 31 December 2009
B57: Currency | C57: 31 December 2009 | D57: Weighted average for the year ended 31 December 2009
B58: USD to UAH | C58: 7.99 | D58: 7.79
B59: EURO | C59: - | D59: -
B62: As at year ended 31 December 2008
B63: Currency | C63: 31 December 2008 | D63: Weighted average for the year ended 31 December 2008
B64: USD to UAH | C64: 7.7 | D64: 5.17
B65: EURO | C65: - | D65: -
B68: За год, завершившийся 31 декабря 2007
B69: Currency | C69: 31 December 2007 | D69: Weighted average for the year ended 31 December 2007
B70: USD to UAH | C70: 5.05 | D70: -
B71: EURO | C71: - | D71: -

Sheet BS FY07-FY16
B2: Consolidated Statement of Financial Position as at 31 December 2007, 2008, 2009, 2010, 2011, 2012, 2013, 2014, 2015 and 2016
B3: (in USD thousand, unless otherwise stated)
B4: >> Content | E4: >> List of Notes
D6: Note | E6: 2007 | F6: 2008 | G6: 2009 | H6: 2010 | I6: 2011 | J6: 2012 | K6: 2013 | L6: 2014 | M6: 2015 | N6: 2016 | P6: 2007 Structure, % | Q6: 2008 Structure, % | R6: 2009 Structure, % | S6: 2010 Structure, % | T6: 2011 Structure, % | U6: 2012 Structure, % | V6: 2013 Structure, % | W6: 2014 Structure, % | X6: 2015 Structure, % | Y6: 2016 Structure, %
B7: ASSETS
B8: Non-current assets
B9: Property, plant and equipment | D9: 5 | E9: 213529 | F9: 368264 | G9: 375426 | H9: 396236 | I9: 512697 | J9: 920072 | K9: 1103630 | L9: 579922 | M9: 404930 | N9: 357821 | P9: =E9/$E$26 -> 0.3126055907 | Q9: =F9/$F$26 -> 0.361285411 | R9: =G9/$G$26 -> 0.4447406017 | S9: =H9/$H$26 -> 0.367215339 | T9: =I9/$I$26 -> 0.3926744758 | U9: =J9/$J$26 -> 0.582940935 | V9: =K9/$K$26 -> 0.6067518273 | W9: =L9/$L$26 -> 0.5585157662 | X9: =M9/$M$26 -> 0.6487485 | Y9: =N9/$N$26 -> 0.6757829689
B10: Held to maturity financial assets | D10: 7 | E10: 29766 | F10: 41 | G10: 40 | H10: 295 | I10: 0 | J10: 0 | K10: 0 | L10: 17959 | M10: 9257 | N10: 5700 | P10: =E10/$E$26 -> 0.04357730338 | Q10: =F10/$F$26 -> 4.022305154e-05 | R10: =G10/$G$26 -> 4.738516797e-05 | S10: =H10/$H$26 -> 0.0002733939496 | T10: =I10/$I$26 -> 0 | U10: =J10/$J$26 -> 0 | V10: n/a | W10: =L10/$L$26 -> 0.01729609266 | X10: =M10/$M$26 -> 0.01483087167 | Y10: =N10/$N$26 -> 0.0107650555
B11: Non-current biological assets | D11: 6 | E11: 21343 | F11: 9185 | G11: 21546 | H11: 59078 | I11: 44304 | J11: 46724 | K11: 76678 | L11: 21637 | M11: 13403 | N11: 14273 | P11: 0.03124606551 | Q11: 0.009010944594 | R11: 0.02552402073 | S11: 0.05475107713 | T11: 0.03393242007 | U11: 0.02960347912 | V11: =K11/$K$26 -> 0.04215590063 | W11: 0.02083832935 | X11: 0.02147328216 | Y11: 0.02695607668
B12: Long-term bank deposits | E12: 107627 | F12: 49351 | G12: 504 | H12: 0 | I12: 0 | J12: 0 | K12: 0 | L12: 0 | M12: 0 | N12: 0 | P12: 0.1575654919 | Q12: 0.0484158004 | R12: 0.0005970531164 | S12: 0 | T12: 0 | U12: 0 | V12: n/a | W12: n/a | X12: 0 | Y12: 0
B13: Deferred income tax assets | D13: 19 | E13: 0 | F13: 180 | G13: 0 | H13: 0 | I13: 1922 | J13: 1966 | K13: 3059 | L13: 2489 | M13: 2761 | N13: 5663 | P13: 0 | Q13: =F13/$F$26 -> 0.0001765890067 | R13: =G13/$G$26 -> 0 | S13: 0 | T13: 0.001472059213 | U13: 0.001245621949 | V13: =K13/$K$26 -> 0.001681771826 | W13: 0.002397125376 | X13: 0.004423467287 | Y13: 0.01069517707
B14: Other non-current assets | E14: 110288 | F14: 55368 | G14: 16630 | H14: 60428 | I14: 93041 | J14: 391 | K14: 373 | L14: 28 | M14: 6 | N14: 5 | P14: 0.1614611851 | Q14: 0.05431877847 | R14: 0.01970038358 | S14: 0.05600220198 | T14: 0.0712600735 | U14: 0.0002477305098 | V14: =K14/$K$26 -> 0.0002050673066 | W14: 2.696645662e-05 | X14: 9.612750352e-06 | Y14: 9.443031137e-06
B15: Total non-current assets | E15: 482553 | F15: 482389 | G15: 414146 | H15: 516037 | I15: 651964 | J15: 969153 | K15: 1183740 | L15: 622035 | M15: 430357 | N15: 383462 | P15: 0.7064556365 | Q15: 0.4732477465 | R15: 0.4906094443 | S15: 0.478242012 | T15: 0.4993390286 | U15: 0.6140377665 | V15: =K15/$K$26 -> 0.6507945671 | W15: 0.5990742801 | X15: 0.6894857339 | Y15: 0.7242087212
B16: Currents assets | X16: 0 | Y16: 0
B17: Inventories | D17: 9 | E17: 12688 | F17: 47076 | G17: 92757 | H17: 185624 | I17: 202279 | J17: 177886 | K17: 193382 | L17: 115896 | M17: 58149 | N17: 62144 | P17: 0.01857518058 | Q17: 0.04618391156 | R17: 0.1098826506 | S17: 0.1720287407 | T17: =I17/$I$26 -> 0.1549254243 | U17: =J17/$J$26 -> 0.1127053439 | V17: =K17/$K$26 -> 0.1063172276 | W17: 0.1116180163 | X17: 0.09316197004 | Y17: 0.1173655454
B18: Current biological assets | D18: 6 | E18: 18075 | F18: 47935 | G18: 44910 | H18: 44705 | I18: 58916 | J18: 56889 | K18: 60648 | L18: 28228 | M18: 13736 | N18: 7755 | P18: 0.02646172675 | Q18: 0.04702663355 | R18: 0.05320169734 | S18: 0.04143076785 | T18: =I18/$I$26 -> 0.04512374641 | U18: =J18/$J$26 -> 0.0360438388 | V18: 0.03334295445 | W18: 0.02718604062 | X18: 0.02200678981 | Y18: 0.01464614129
B19: Trade accounts receivable | D19: 10 | E19: 47953 | F19: 15593 | G19: 47320 | H19: 54678 | I19: 51437 | J19: 55551 | K19: 88972 | L19: 79221 | M19: 56665 | N19: 40628 | P19: 0.07020299768 | Q19: 0.01529751323 | R19: 0.05605665371 | S19: 0.05067333686 | T19: 0.0393955826 | U19: 0.03519610626 | V19: 0.04891487508 | W19: 0.07629677356 | X19: 0.09078441645 | Y19: 0.07673029381
B20: Prepaid income tax | D20: 19 | E20: 0 | F20: 5 | G20: 35 | H20: 7 | I20: 0 | J20: 18 | K20: 85 | L20: 48 | M20: 72 | N20: 41 | P20: 0 | Q20: 4.905250187e-06 | R20: 4.146202197e-05 | S20: 6.487314057e-06 | T20: 0 | U20: 1.140447359e-05 | V20: 4.673115566e-05 | W20: 4.622821134e-05 | X20: 0.0001153530042 | Y20: 7.743285533e-05
B21: Prepayments and other current assets | D21: 11 | E21: 38744 | F21: 133111 | G21: 58626 | H21: 41829 | I21: 26946 | J21: 11966 | K21: 30845 | L21: 29094 | M21: 21027 | N21: 14412 | P21: 0.056721059 | Q21: 0.1305885515 | R21: 0.06945007143 | S21: 0.03876540853 | T21: 0.02063793317 | U21: 0.007581440613 | V21: 0.01695791172 | W21: 0.0280200746 | X21: 0.03368788361 | Y21: 0.02721859295
B22: Taxes recoverable and prepaid | D22: 8 | E22: 47953 | F22: 54058 | G22: 28708 | H22: 53084 | I22: 76298 | J22: 102567 | K22: 104439 | L22: 45949 | M22: 12858 | N22: 8479 | P22: 0.07020299768 | Q22: 0.05303360293 | R22: 0.03400833505 | S22: 0.04919608277 | T22: 0.05843661491 | U22: 0.06498459129 | V22: 0.05741829607 | W22: 0.0442529184 | X22: 0.020600124 | Y22: 0.0160134922
B23: Short-term bank deposits | E23: 37363 | F23: 233271 | G23: 155917 | H23: 0 | I23: 0 | J23: 0 | K23: 0 | L23: 0 | M23: 0 | N23: 0 | P23: 0.05469928059 | Q23: 0.2288505233 | R23: 0.1847038309 | S23: 0 | T23: 0 | U23: 0 | V23: n/a | W23: n/a | X23: 0 | Y23: 0
B24: Cash and cash equivalents | D24: 12 | E24: 4460 | F24: 5878 | G24: 1727 | H24: 183065 | I24: 237814 | J24: 204298 | K24: 156804 | L24: 117856 | M24: 31307 | N24: 12570 | P24: 0.006529421927 | Q24: 0.00576661212 | R24: 0.002045854627 | S24: 0.169657164 | T24: 0.18214167 | U24: 0.1294395081 | V24: =K24/$K$26 -> 0.08620743685 | W24: 0.1135056683 | X24: 0.05015772921 | Y24: 0.02373978028
B25: Total current assets | E25: 200509 | F25: 536927 | G25: 430000 | H25: 562992 | I25: 653690 | J25: 609175 | K25: 635175 | L25: 416292 | M25: 193814 | N25: 146029 | P25: 0.2935443635 | Q25: 0.5267522535 | R25: 0.5093905557 | S25: 0.521757988 | T25: 0.5006609714 | U25: 0.3859622335 | V25: =K25/$K$26 -> 0.3492054329 | W25: 0.4009257199 | X25: =M25/$M$26 -> 0.3105142661 | Y25: 0.2757912788
B26: TOTAL ASSETS | E26: 683062 | F26: 1019316 | G26: 844146 | H26: 1079029 | I26: 1305654 | J26: 1578328 | K26: 1818915 | L26: 1038327 | M26: 624171 | N26: 529491 | P26: 1 | Q26: 1 | R26: 1 | S26: 1 | T26: 1 | U26: 1 | V26: =K26/$K$26 -> 1 | W26: 1 | X26: =M26/$M$26 -> 1 | Y26: 1
B28: EQUITY AND LIABILITIES
B29: EQUITY
B30: Share capital | D30: 13 | E30: 3 | F30: 644 | G30: 644 | H30: 836 | I30: 836 | J30: 836 | K30: 836 | L30: 836 | M30: 836 | N30: 836 | P30: 4.391987843e-06 | Q30: 0.0006317962241 | R30: =G30/$G$26 -> 0.0007629012043 | S30: 0.0007747706503 | T30: =I30/$I$26 -> 0.0006402921448 | U30: =J30/$J$26 -> 0.0005296744403 | V30: =K30/$K$26 -> 0.0004596146604 | W30: =L30/$L$26 -> 0.0008051413476 | X30: =M30/$M$26 -> 0.001339376549 | Y30: 0.001578874806
B31: Share premium | D31: 13 | E31: 0 | F31: 0 | G31: 0 | H31: 201164 | I31: 201164 | J31: 201164 | K31: 201164 | L31: 201164 | M31: 201164 | N31: 201164 | P31: 0 | Q31: 0 | R31: 0 | S31: 0.1864305779 | T31: =I31/$I$26 -> 0.1540714462 | U31: 0.1274538626 | V31: 0.1105956023 | W31: =L31/$L$26 -> 0.1937385814 | X31: =M31/$M$26 -> 0.3222898853 | Y31: 0.3799195831
B32: Capital contribution reserve | F32: 0 | G32: 115858 | H32: 115858 | I32: 115858 | J32: 115858 | K32: 115858 | L32: 115858 | M32: 115858 | N32: 115858 | P32: 0 | Q32: 0 | R32: 0.1372487698 | S32: 0.1073724617 | T32: 0.08873560683 | U32: 0.07340552788 | V32: 0.0636962145 | W32: 0.111581419 | X32: 0.185619005 | Y32: 0.2188101403
B33: Retained earnings | E33: 74109 | F33: 168151 | G33: 300107 | H33: 482328 | I33: 673909 | J33: 899357 | K33: 1132803 | L33: 1077158 | M33: 921435 | N33: 864457 | P33: 0.1084952757 | Q33: 0.1649645449 | R33: 0.3555155151 | S33: 0.4470018878 | T33: 0.5161466974 | U33: 0.5698162866 | V33: 0.6227905097 | W33: 1.03739766 | X33: 1.476254103 | Y33: 1.632618874
B34: Currency translation reserve | E34: 0 | F34: -56698 | G34: -64137 | H34: -64587 | I34: -67761 | J34: -68135 | K34: -68194 | L34: -776404 | M34: -1018085 | N34: -1053923 | P34: 0 | Q34: -0.05562357502 | R34: -0.07597856295 | S34: -0.05985659329 | T34: -0.05189812921 | U34: -0.04316910047 | V34: -0.03749158152 | W34: -0.7477451708 | X34: -1.63109949 | Y34: -1.990445541
B35: Equity attributable to owners of the Company | E35: 74112 | F35: 112097 | G35: 352472 | H35: 735559 | I35: 924006 | J35: 1149080 | K35: 1382467 | L35: 618612 | M35: 221208 | N35: 128392 | P35: 0.1084996677 | Q35: 0.1099727661 | R35: 0.4175486231 | S35: 0.6816860344 | T35: 0.7076959133 | U35: 0.728036251 | V35: 0.7600503597 | W35: 0.5957776307 | X35: 0.35440288 | Y35: 0.2424819308
B36: Non-controling interests | E36: 17680 | F36: 6406 | G36: 8083 | H36: 10620 | I36: 15333 | J36: 18115 | K36: 64631 | L36: 27276 | M36: 13847 | N36: 10418 | P36: 0.02588344835 | Q36: 0.00628460654 | R36: 0.009575357817 | S36: 0.009842182184 | T36: 0.01174354002 | U36: 0.01147733551 | V36: 0.03553272143 | W36: 0.0262691811 | X36: =M36/$M$26 -> 0.02218462569 | Y36: 0.01967549968
B37: TOTAL EQUITY | E37: 91792 | F37: 118503 | G37: 360555 | H37: 746219 | I37: 939339 | J37: 1167195 | K37: 1147098 | L37: 645888 | M37: 235055 | N37: 138810 | P37: 0.134383116 | Q37: 0.1162573726 | R37: 0.4271239809 | S37: 0.6915652869 | T37: 0.7194394533 | U37: 0.7395135865 | V37: 0.6306495906 | W37: 0.6220468118 | X37: 0.3765875057 | Y37: 0.2621574304
B38: LIABILITIES
B39: Non-current liabilities
B40: Long-term loans | D40: 14 | E40: 189340 | F40: 192518 | G40: 85975 | H40: 30999 | I40: 15384 | J40: 3969 | K40: 61495 | L40: 79844 | M40: 64423 | N40: 93924 | P40: =E40/$E$26 -> 0.2771929927 | Q40: =F40/$F$26 -> 0.1888697911 | R40: 0.1018484954 | S40: 0.02872860692 | T40: =I40/$I$26 -> 0.0117826009 | U40: =J40/$J$26 -> 0.002514686428 | V40: =K40/$K$26 -> 0.03380861668 | W40: =L40/$L$26 -> 0.07689677722 | X40: =M40/$M$26 -> 0.1032137027 | Y40: 0.1773854513
B41: Long-term bond liabilities | D41: 15 | F41: 0 | G41: 0 | H41: 193471 | I41: 194563 | J41: 195779 | K41: 197131 | L41: - | M41: 202871 | N41: 219014 | P41: 0 | Q41: 0 | R41: 0 | S41: 0.1793010197 | T41: 0.1490157423 | U41: 0.1240420242 | V41: 0.1083783464 | W41: n/a | X41: =M41/$M$26 -> 0.3250247128 | Y41: 0.4136312043
B42: Deferred income tax liabilities | D42: 19 | E42: 1201 | F42: 0 | G42: 943 | H42: 1110 | I42: 86 | J42: 72 | K42: 44 | L42: 26 | M42: 410 | N42: 351 | P42: 0.001758259133 | Q42: 0 | R42: 0.001117105335 | S42: 0.001028702658 | T42: 6.586737375e-05 | U42: 4.561789438e-05 | V42: 2.419024528e-05 | W42: =L42/$L$26 -> 2.504028114e-05 | X42: =M42/$M$26 -> 0.0006568712741 | Y42: 0.0006629007858
B43: Deferred income (non-current portion) | E43: 10136 | F43: 6499 | G43: 5963 | H43: 5676 | I43: 5351 | J43: 5047 | K43: 4743 | L43: 2245 | M43: 1384 | N43: 1123 | P43: =E43/$E$26 -> 0.01483906293 | Q43: =F43/$F$26 -> 0.006375844194 | R43: 0.007063943915 | S43: 0.005260284941 | T43: 0.004098329266 | U43: 0.00319768768 | V43: 0.002607598486 | W43: =L43/$L$26 -> 0.002162131968 | X43: =M43/$M$26 -> 0.002217341081 | Y43: 0.002120904793
B44: Dividends payable | E44: 0 | F44: 0 | G44: 0 | H44: 0 | I44: 0 | J44: 0 | K44: 0 | L44: 0 | M44: 29542 | N44: 29542 | P44: n/a | Q44: n/a | R44: n/a | S44: n/a | T44: n/a | U44: n/a | V44: n/a | W44: n/a | X44: n/a | Y44: 0.05579320517
B45: Long-term finance leases | E45: 0 | F45: 8502 | G45: 6142 | H45: 6372 | I45: 3830 | J45: 1283 | K45: 1 | L45: 63 | M45: 28 | N45: 3 | P45: 0 | Q45: 0.008340887419 | R45: 0.007275992542 | S45: 0.005905309311 | T45: 0.002933395831 | U45: 0.0008128855346 | V45: 5.497783019e-07 | W45: =L45/$L$26 -> 6.067452739e-05 | X45: =M45/$M$26 -> 4.485950164e-05 | Y45: 5.665818682e-06
B46: Total non-current liabilities | E46: 200677 | F46: 207519 | G46: 99023 | H46: 237628 | I46: 219214 | J46: 206150 | K46: 263414 | L46: 82178 | M46: 298658 | N46: 343957 | P46: 0.2937903148 | Q46: 0.2035865227 | R46: 0.1173055372 | S46: 0.2202239235 | T46: 0.1678959357 | U46: 0.1306129018 | V46: 0.1448193016 | W46: =L46/$L$26 -> 0.079144624 | X46: =M46/$M$26 -> 0.4784874658 | Y46: 0.6495993322
B47: Current liabilities
B48: Current liabilities for bonds | E48: 0 | F48: 25843 | G48: 24249 | H48: 25120 | I48: 25013 | J48: 25023 | K48: 0 | L48: 198635 | M48: - | N48: 0 | P48: 0 | Q48: 0.02535327612 | R48: 0.02872607345 | S48: 0.02328018987 | T48: =I48/$I$26 -> 0.01915744906 | U48: =J48/$J$26 -> 0.01585411904 | V48: n/a | W48: =L48/$L$26 -> 0.1913029325 | X48: n/a | Y48: 0
B49: Current portion of non-current financial liabilities | D49: 18 | E49: 10816 | F49: 3415 | G49: 115975 | H49: 4319 | I49: 26565 | J49: 32114 | K49: 14504 | L49: 15368 | M49: 19125 | N49: 31224 | P49: 0.01583458017 | Q49: 0.003350285878 | R49: 0.1373873714 | S49: 0.004002672773 | T49: =I49/$I$26 -> 0.02034612539 | U49: =J49/$J$26 -> 0.02034684806 | V49: =K49/$K$26 -> 0.007973984491 | W49: =L49/$L$26 -> 0.01480073233 | X49: =M49/$M$26 -> 0.03064064175 | Y49: 0.05896984085
B50: Short-term loans | D50: 16 | E50: 213867 | F50: 280176 | G50: 33001 | H50: 1036 | I50: 53063 | J50: 94368 | K50: 50000 | L50: 50000 | M50: 50000 | N50: 0 | P50: 0.3131004213 | Q50: 0.2748666753 | R50: 0.0390939482 | S50: 0.0009601224805 | T50: 0.0406409355 | U50: 0.05978985357 | V50: =K50/$K$26 -> 0.02748891509 | W50: 0.04815438682 | X50: 0.08010625293 | Y50: 0
B51: Trade accounts payable | D51: 20 | E51: 43134 | F51: 20529 | G51: 68019 | H51: 23191 | I51: 17894 | J51: 24435 | K51: 15084 | L51: 6907 | M51: 3375 | N51: 3062 | P51: 0.06314800121 | Q51: 0.02013997622 | R51: 0.0805772935 | S51: 0.02149247147 | T51: 0.01370500914 | U51: 0.0154815729 | V51: =K51/$K$26 -> 0.008292855906 | W51: 0.006652046995 | X51: =M51/$M$26 -> 0.005407172073 | Y51: 0.005782912269
B52: Current income tax liabilities | E52: 6 | F52: 0 | G52: 7 | H52: 6 | I52: 0 | J52: 0 | K52: 0 | L52: 0 | M52: 0 | N52: 0 | P52: 8.783975686e-06 | Q52: 0 | R52: 8.292404395e-06 | S52: 5.560554906e-06 | T52: 0 | U52: 0 | V52: n/a | W52: n/a | X52: 0 | Y52: 0
B53: Accrued expenses | E53: 722 | F53: 1004 | G53: 1278 | H53: 1308 | I53: 1601 | J53: - | K53: 0 | L53: 0 | M53: 0 | N53: 0 | P53: 0.001057005074 | Q53: 0.0009849742376 | R53: 0.001513956117 | S53: 0.00121220097 | T53: 0.001226205411 | U53: n/a | V53: n/a | W53: n/a | X53: 0 | Y53: 0
B54: Other payables | D54: 21 | E54: 122048 | F54: 362327 | G54: 142039 | H54: 40202 | I54: 22965 | J54: 29043 | K54: 28815 | L54: 39351 | M54: 17958 | N54: 12438 | P54: 0.1786777774 | Q54: 0.3554609169 | R54: 0.1682635468 | S54: 0.03725757139 | T54: 0.01758888649 | U54: 0.01840111815 | V54: =K54/$K$26 -> 0.01584186177 | W54: 0.03789846551 | X54: 0.0287709618 | Y54: 0.02349048426
B55: Total current liabilities | E55: 390593 | F55: 693294 | G55: 384568 | H55: 95182 | I55: 147101 | J55: 204983 | K55: 108403 | L55: 310261 | M55: 90458 | N55: 46724 | P55: 0.5718265692 | Q55: 0.6801561047 | R55: 0.4555704819 | S55: 0.08821078952 | T55: 0.112664611 | U55: 0.1298735117 | V55: =K55/$K$26 -> 0.05959761726 | W55: 0.2988085642 | X55: 0.1449250286 | Y55: 0.08824323737
B56: TOTAL LIABILITIES | E56: 591270 | F56: 900813 | G56: 483591 | H56: 332810 | I56: 366315 | J56: 411133 | K56: 371817 | L56: 392439 | M56: 389116 | N56: 390681 | P56: 0.865616884 | Q56: 0.8837426274 | R56: 0.5728760191 | S56: 0.3084347131 | T56: 0.2805605467 | U56: 0.2604864135 | V56: =K56/$K$26 -> 0.2044169189 | W56: 0.3779531882 | X56: 0.6234124943 | Y56: 0.7378425696
B57: TOTAL LIABILITIES AND EQUITY | E57: 683062 | F57: 1019316 | G57: 844146 | H57: 1079029 | I57: 1305654 | J57: 1578328 | K57: 1818915 | L57: 1038327 | M57: 624171 | N57: 529491 | P57: 1 | Q57: 1 | R57: =G57/$G$26 -> 1 | S57: 1 | T57: 1 | U57: 1 | V57: =K57/$K$26 -> 1 | W57: 1 | X57: 1 | Y57: 1

Sheet PL FY07-FY16
B2: Consolidated Statement of Comprehensive Income for the Years Ended 31 December 2007, 2008, 2009, 2010, 2011, 2012 ,2013 , 2014, 2015 and 2016
B3: (in USD thousand, unless otherwise stated)
B4: >> Content | E4: >> List of Notes
D6: Note | E6: 2007 | F6: 2008 | G6: 2009 | H6: 2010 | I6: 2011 | J6: 2012 | K6: 2013 | L6: 2014 | M6: 2015 | N6: 2016 | P6: 08-07 Y-o-Y, % | Q6: 09-08 Y-o-Y, % | R6: 10-09 Y-o-Y, % | S6: 11-10 Y-o-Y, % | T6: 12-11 Y-o-Y, % | U6: 13-12 Y-o-Y, % | V6: 14-13 Y-o-Y, % | W6: 15-14 Y-o-Y, % | X6: 16-15 Y-o-Y, %
B7: REVENUE | D7: 23 | E7: 127788 | F7: 302292 | G7: 319855 | H7: 439703 | I7: 553310 | J7: 629306 | K7: 661202 | L7: 419618 | M7: 229924 | N7: 191304 | P7: =F7/E7-1 -> 1.365574232 | Q7: =G7/F7-1 -> 0.05809945351 | R7: 0.3746947836 | S7: 0.2583721285 | T7: 0.1373479605 | U7: 0.05068440473 | V7: -0.3653709456 | W7: =M7/L7-1 -> -0.4520635435 | X7: =N7/M7-1 -> -0.1679685461
B8: Income from revaluation of biological assets at fair value | D8: 6 | E8: 6467 | F8: 12690 | G8: 7695 | H8: 26187 | I8: 23697 | J8: 26191 | K8: 35158 | L8: 15364 | M8: 1391 | N8: -2232 | P8: 0.9622699861 | Q8: -0.3936170213 | R8: 2.403118908 | S8: -0.09508534769 | T8: 0.1052453897 | U8: =K8/J8-1 -> 0.3423695162 | V8: -0.5630013084 | W8: =M8/L8-1 -> -0.9094636813 | X8: =N8/M8-1 -> -2.604601006
B9: Cost of sales | D9: 24 | E9: -114689 | F9: -232975 | G9: -220407 | H9: -308144 | I9: -353232 | J9: -396960 | K9: -429695 | L9: -314001 | M9: -209190 | N9: -175875 | P9: 1.031363078 | Q9: -0.05394570233 | R9: 0.3980681194 | S9: 0.1463212005 | T9: 0.1237939937 | U9: =K9/J9-1 -> 0.08246422813 | V9: -0.2692467913 | W9: -0.3337919306 | X9: -0.1592571347
B10: GROSS PROFIT | E10: 19566 | F10: 82007 | G10: 107143 | H10: 157746 | I10: 223775 | J10: 258537 | K10: 266665 | L10: 120981 | M10: 22125 | N10: 13197 | P10: 3.191301237 | Q10: 0.3065104198 | R10: 0.4722940369 | S10: 0.4185779671 | T10: 0.155343537 | U10: =K10/J10-1 -> 0.03143844015 | V10: -0.5463184145 | W10: -0.8171200436 | X10: =N10/M10-1 -> -0.4035254237
B11: Gross profit margin | E11: =E10/E7 -> 0.1531129684 | F11: =F10/F7 -> 0.2712840565 | G11: 0.3349736599 | H11: 0.3587557965 | I11: 0.4044297049 | J11: 0.4108287542 | K11: 0.4033033778 | L11: =L10/L7 -> 0.2883122268 | M11: =M10/M7 -> 0.09622744907 | N11: =N10/N7 -> 0.06898444361
B12: General administrative expenses | D12: 26 | E12: -4986 | F12: -7932 | G12: -4933 | H12: -7168 | I12: -13161 | J12: -22559 | K12: -16746 | L12: -10772 | M12: -7195 | N12: -7886 | P12: 0.5908543923 | Q12: -0.3780887544 | R12: 0.4530711535 | S12: 0.8360770089 | T12: 0.7140794772 | U12: =K12/J12-1 -> -0.2576798617 | V12: -0.3567419085 | W12: -0.332064612 | X12: 0.09603891591
B13: Distribution expenses | D13: 27 | E13: -4005 | F13: -4429 | G13: -3086 | H13: -5058 | I13: -10035 | J13: -20056 | K13: -25630 | L13: -20532 | M13: -10773 | N13: -8558 | P13: 0.1058676654 | Q13: -0.3032287198 | R13: 0.639014906 | S13: 0.9839857651 | T13: 0.9986048829 | U13: =K13/J13-1 -> 0.2779218189 | V13: -0.1989075302 | W13: -0.4753068381 | X13: -0.2056066091
B14: Income from government grants and incentives | D14: 31.1 | E14: 17187 | F14: 39068 | G14: 9440 | H14: 17504 | I14: 318 | J14: 305 | K14: 299 | L14: 218 | M14: 107 | N14: 98 | P14: 1.2731134 | Q14: -0.7583700215 | R14: 0.8542372881 | S14: -0.9818327239 | T14: -0.04088050314 | U14: =K14/J14-1 -> -0.01967213115 | V14: -0.27090301 | W14: -0.5091743119 | X14: -0.08411214953
B15: Impairment of non-current assets | E15: 0 | F15: 0 | G15: 0 | H15: 0 | I15: 0 | J15: 0 | K15: -20 | L15: -23589 | M15: - | N15: - | P15: n/a | Q15: n/a | R15: n/a | S15: n/a | T15: n/a | U15: n/a | V15: n/a | W15: n/a | X15: n/a
B16: Income from special VAT treatment | D16: 31.2 | E16: 0 | F16: 0 | G16: 12291 | H16: 21910 | I16: 38037 | J16: 46484 | K16: 55198 | L16: 36490 | M16: 25098 | N16: 5376 | P16: n/a | Q16: n/a | R16: 0.7826051582 | S16: 0.7360565952 | T16: 0.2220732445 | U16: =K16/J16-1 -> 0.1874623526 | V16: -0.3389253234 | W16: -0.312195122 | X16: -0.7857996653
B17: Other operating income /expenses | D17: 28 | E17: -2400 | F17: -6820 | G17: -3573 | H17: -4901 | I17: -7430 | J17: 1773 | K17: -1657 | L17: -18680 | M17: -116466 | N17: -17107 | P17: 1.841666667 | Q17: -0.4760997067 | R17: 0.3716764624 | S17: 0.5160171394 | T17: -1.238627187 | U17: =K17/J17-1 -> -1.934574168 | V17: 10.27338564 | W17: 5.234796574 | X17: -0.8531159308
B18: Waiver of amounts due to related parties | E18: 7798 | F18: 64 | G18: 22525 | H18: 869 | I18: 0 | J18: 0 | K18: 0 | L18: 0 | M18: 0 | N18: 0 | P18: -0.9917927674 | Q18: 350.953125 | R18: -0.9614206437 | S18: n/a | T18: n/a | U18: n/a | V18: n/a | W18: n/a | X18: n/a
B19: OPERATING PROFIT | E19: 33160 | F19: 101958 | G19: 139807 | H19: 180902 | I19: 231504 | J19: 264484 | K19: 278109 | L19: 84116 | M19: -87104 | N19: -14880 | P19: 2.074728589 | Q19: 0.3712214834 | R19: 0.2939409329 | S19: 0.2797205117 | T19: 0.1424597415 | U19: =K19/J19-1 -> 0.05151540358 | V19: -0.6975430497 | W19: -2.035522374 | X19: -0.8291697281
B20: Operating profit margin | E20: =E19/E7 -> 0.2594922841 | F20: =F19/F7 -> 0.3372831567 | G20: 0.4370949336 | H20: 0.4114186167 | I20: 0.4183983662 | J20: 0.4202788469 | K20: 0.4206112504 | L20: =L19/L7 -> 0.2004585123 | M20: =M19/M7 -> -0.3788382248 | N20: =N19/N7 -> -0.0777819596
B21: Finance income | D21: 30 | E21: 20868 | F21: 26897 | G21: 41180 | H21: 34058 | I21: 1492 | J21: 680 | K21: 124 | L21: 3176 | M21: 3978 | N21: 2825 | P21: 0.2889112517 | Q21: 0.531025765 | R21: -0.172948033 | S21: -0.9561923777 | T21: -0.5442359249 | U21: =K21/J21-1 -> -0.8176470588 | V21: 24.61290323 | W21: =M21/L21-1 -> 0.2525188917 | X21: -0.2898441428
B22: Finance cost | D22: 29 | E22: -22540 | F22: -52986 | G22: -46150 | H22: -29948 | I22: -33106 | J22: -36936 | K22: -38887 | L22: -44101 | M22: -32528 | N22: -31280 | P22: 1.350754215 | Q22: -0.1290152116 | R22: -0.3510725894 | S22: 0.1054494457 | T22: 0.115688999 | U22: =K22/J22-1 -> 0.05282109595 | V22: =L22/K22-1 -> 0.1340807982 | W22: -0.2624203533 | X22: -0.0383669454
B23: Income from purchase a subsidiary | E23: 0 | F23: 0 | G23: 0 | H23: 0 | I23: 191 | J23: 0 | K23: 0 | L23: 0 | M23: 0 | N23: 0 | P23: n/a | Q23: n/a | R23: n/a | S23: n/a | T23: n/a | U23: n/a | V23: n/a | W23: n/a | X23: n/a
B24: Losses on exchange | E24: 0 | F24: 0 | G24: 0 | H24: 0 | I24: 0 | J24: 0 | K24: -2359 | L24: -71284 | M24: -43616 | N24: -16622 | P24: n/a | Q24: n/a | R24: n/a | S24: n/a | T24: n/a | U24: n/a | V24: =L24/K24-1 -> 29.21788894 | W24: -0.3881375905 | X24: -0.6189013206
B25: PROFIT BEFORE TAX | E25: 31488 | F25: 75869 | G25: 134837 | H25: 185012 | I25: 200081 | J25: 228228 | K25: 236987 | L25: -28093 | M25: -159270 | N25: -59957 | P25: =F25/E25-1 -> 1.409457571 | Q25: 0.7772344436 | R25: 0.3721159622 | S25: 0.08144877089 | T25: 0.1406780254 | U25: 0.03837828838 | V25: =L25/K25-1 -> -1.118542367 | W25: 4.669383832 | X25: -0.6235512024
B26: Income tax credit/(expense) | D26: 19 | E26: -1254 | F26: 1414 | G26: -1168 | H26: -254 | I26: -3787 | J26: 5 | K26: 1096 | L26: 1175 | M26: 880 | N26: 3321 | P26: -2.127591707 | Q26: -1.82602546 | R26: -0.7825342466 | S26: 13.90944882 | T26: -1.001320306 | U26: =K26/J26-1 -> 218.2 | V26: 0.07208029197 | W26: -0.2510638298 | X26: 2.773863636
B27: PROFIT FOR THE YEAR | E27: 30234 | F27: 77283 | G27: 133669 | H27: 184758 | I27: 196294 | J27: 228233 | K27: 238083 | L27: -26918 | M27: -158390 | N27: -56636 | P27: 1.556161937 | Q27: 0.729604182 | R27: 0.3822052982 | S27: 0.06243843298 | T27: 0.1627100166 | U27: 0.0431576503 | V27: -1.113061411 | W27: 4.884166729 | X27: -0.6424269209
B28: Net profit margin | E28: =E27/E7 -> 0.2365949854 | F28: =F27/F7 -> 0.2556567822 | G28: 0.4179049882 | H28: 0.4201881725 | I28: 0.3547631527 | J28: 0.3626741204 | K28: 0.3600760433 | L28: -0.06414882107 | M28: -0.6888798038 | N28: -0.2960523565
B29: OTHER COMPREHENSIVE INCOME FOR THE YEAR
B30: Currency translation reserve | E30: 0 | F30: -59998 | G30: -7441 | H30: -450 | I30: -3174 | J30: -377 | K30: -60 | L30: -746465 | M30: -255410 | N30: -39609 | P30: n/a | Q30: -0.8759791993 | R30: =H30/G30-1 -> -0.9395242575 | S30: 6.053333333 | T30: -0.8812224323 | U30: -0.8408488064 | V30: =L30/K30-1 -> 12440.08333 | W30: =M30/L30-1 -> -0.6578406221 | X30: =N30/M30-1 -> -0.8449199327
B31: Effect from changes in ownership | E31: 0 | F31: 0 | G31: 0 | H31: 0 | I31: 0 | J31: 0 | K31: 41880 | L31: 1715 | M31: - | N31: 0 | P31: n/a | Q31: n/a | R31: n/a | S31: n/a | T31: n/a | U31: n/a | V31: -0.9590496657 | W31: n/a | X31: n/a
B32: TOTAL COMPREHENSIVE INCOME | E32: 30234 | F32: 17285 | G32: 126228 | H32: 184308 | I32: 193120 | J32: 227856 | K32: 279903 | L32: -771668 | M32: -413800 | N32: -96245 | P32: -0.4282926507 | Q32: =G32/F32-1 -> 6.302748047 | R32: 0.4601197832 | S32: 0.04781127244 | T32: 0.1798674399 | U32: 0.2284205814 | V32: -3.756912216 | W32: -0.4637590259 | X32: -0.7674117931
B33: PROFIT/LOSS FOR THE YEAR ATTRIBUTABLE TO:
B34: Owners of the parent | E34: 24026 | F34: 74748 | G34: 131956 | H34: 182221 | I34: 191943 | J34: 225448 | K34: 236032 | L34: -26103 | M34: -154640 | N34: -56978 | P34: 2.11112961 | Q34: 0.7653448922 | R34: 0.3809224287 | S34: 0.05335279688 | T34: 0.17455703 | U34: 0.04694652425 | V34: -1.110590937 | W34: 4.924223269 | X34: -0.6315442318
B35: Minority interest | E35: 6208 | F35: 2535 | G35: 1713 | H35: 2537 | I35: 4351 | J35: 2785 | K35: 2051 | L35: -815 | M35: -3750 | N35: 342 | P35: -0.5916559278 | Q35: -0.324260355 | R35: 0.4810274372 | S35: 0.7150177375 | T35: -0.3599172604 | U35: -0.2635547576 | V35: -1.397367138 | W35: 3.601226994 | X35: -1.0912
E36: 30234 | F36: 77283 | G36: 133669 | H36: 184758 | I36: 196294 | J36: 228233 | K36: 238083 | L36: -26918 | M36: -158390 | N36: -56636 | P36: 1.556161937 | Q36: 0.729604182 | R36: 0.3822052982 | S36: 0.06243843298 | T36: 0.1627100166 | U36: 0.0431576503 | V36: -1.113061411 | W36: 4.884166729 | X36: -0.6424269209
B37: TOTAL COMPREHENSIVE INCOME ATTRIBUTABLE TO:
B38: Owners of the parent | E38: 24026 | F38: 18050 | G38: 124517 | H38: 181771 | I38: 189424 | J38: 225074 | K38: 233387 | L38: -734313 | M38: -396321 | N38: -92816 | P38: -0.2487305419 | Q38: 5.898448753 | R38: 0.4598087008 | S38: 0.04210242558 | T38: 0.1882021286 | U38: 0.03693451931 | V38: -4.146332058 | W38: -0.4602832852 | X38: -0.7658060007
B39: Minority interest | E39: 6208 | F39: -765 | G39: 1711 | H39: 2537 | I39: 3696 | J39: 2782 | K39: 46516 | L39: -37355 | M39: -17479 | N39: -3428 | P39: -1.123228093 | Q39: -3.236601307 | R39: 0.4827586207 | S39: 0.456838786 | T39: -0.2472943723 | U39: 15.72034508 | V39: -1.803057013 | W39: -0.5320840584 | X39: -0.8038789404
E40: 30234 | F40: 17285 | G40: 126228 | H40: 184308 | I40: 193120 | J40: 227856 | K40: 279903 | L40: -771668 | M40: -413800 | N40: -96245 | P40: -0.4282926507 | Q40: 6.302748047 | R40: 0.4601197832 | S40: 0.04781127244 | T40: 0.1798674399 | U40: 0.2284205814 | V40: -3.756912216 | W40: -0.4637590259 | X40: -0.7674117931
B42: Average weighted number of shares, items | E42: 20000 | F42: 435000 | G42: 5000000 | H42: 5710695 | I42: 6387185 | J42: 6387185 | K42: 6387185 | L42: 6387185 | M42: 6387185 | N42: 6387185 | P42: =F42/E42-1 -> 20.75 | Q42: 10.49425287 | R42: 0.142139 | S42: =I42/H42-1 -> 0.1184601874 | T42: 0 | U42: 0 | V42: 0 | W42: 0 | X42: 0
B43: Earnings for the year per share, USD (basic and diluted) | D43: 35 | E43: 1511.7 | F43: 177.66 | G43: 26.73 | H43: 32 | I43: 30 | J43: 35 | K43: 37 | L43: -4 | M43: -24 | N43: -9 | P43: -0.8824766819 | Q43: -0.8495440729 | R43: 0.1971567527 | S43: -0.0625 | T43: 0.1666666667 | U43: =K43/J43-1 -> 0.05714285714 | V43: -1.108108108 | W43: 5 | X43: -0.625
B44: Total comprehensive income per one share, USD | E44: 1511.7 | F44: 39.74 | G44: 25.25 | H44: 33 | I44: 0 | J44: 0 | K44: 0 | L44: 0 | M44: 0 | N44: 0 | P44: -0.9737117153 | Q44: -0.3646200302 | R44: 0.3069306931 | S44: n/a | T44: n/a | U44: n/a | V44: n/a | W44: n/a | X44: n/a

Sheet Equity Change FY07-FY16
B2: Consolidated Statement of Changes in Equity for the Years Ended 31 December 2007, 2008, 2009, 2010, 2011, 2012, 2013, 2014, 2015 and 2016
B3: (in USD thousand, unless otherwise stated)
B4: >> Content
E6: Attributable to owners of parent
C7: Share capital | D7: Capital contribution reserve | E7: Share premium | F7: Retained earnings | G7: Currency translation reserve | H7: Minority interest | I7: Total
B8: As at 1 January 2007 | C8: 3 | D8: 0 | E8: 0 | F8: 26173 | G8: 0 | H8: 7284 | I8: 33460
B9: Effect of transactions under common control | C9: 0 | D9: 0 | E9: 0 | F9: 23910 | G9: 0 | H9: 4188 | I9: 28098
B10: Profit for the year | C10: 0 | D10: 0 | E10: 0 | F10: 24026 | G10: 0 | H10: 6208 | I10: 30234
B11: As at 31 December 2007/ 1 January 2008 | C11: 3 | D11: 0 | E11: 0 | F11: 74109 | G11: 0 | H11: 17680 | I11: 91792
B12: Increase in share capital – share issue (nominal value) | C12: 641 | D12: 0 | E12: 0 | F12: 0 | G12: 0 | H12: 0 | I12: 641
B13: Effect of transactions under common control | C13: 0 | D13: 0 | E13: 0 | F13: 19294 | G13: 0 | H13: -9945 | I13: 9349
B14: Effect of acquisitions of non-controlling interest | C14: 0 | D14: 0 | E14: 0 | F14: 0 | G14: 0 | H14: -564 | I14: -564
B15: Currency translation reserve | C15: 0 | D15: 0 | E15: 0 | F15: 0 | G15: -56698 | H15: -3300 | I15: -59998
B16: Profit for the year | C16: - | D16: - | E16: - | F16: 74748 | G16: - | H16: 2535 | I16: 77283
B17: As at 31 December 2008/ 1 January 2009 | C17: 644 | D17: 0 | E17: 0 | F17: 168151 | G17: -56698 | H17: 6406 | I17: 118503
B18: Additional capital contribution | C18: 0 | D18: 115858 | E18: 0 | F18: 0 | G18: 0 | H18: 0 | I18: 115858
B19: Effect of acquisitions of non-controlling interest | C19: 0 | D19: 0 | E19: 0 | F19: 0 | G19: 0 | H19: -34 | I19: -34
B20: Currency translation reserve | C20: 0 | D20: 0 | E20: 0 | F20: 0 | G20: -7439 | H20: -2 | I20: -7441
B21: Profit for the year | C21: 0 | D21: 0 | E21: 0 | F21: 131956 | G21: 0 | H21: 1713 | I21: 133669
B22: As at 31 December 2009/ 1 January 2010 | C22: 644 | D22: 115858 | E22: 0 | F22: 300107 | G22: -64137 | H22: 8083 | I22: 360555
B23: Issue of shares | C23: 192 | D23: 0 | E23: 201164 | F23: 0 | G23: 0 | H23: 0 | I23: 201356
B24: Currency translation reserve | C24: 0 | D24: 0 | E24: 0 | F24: 0 | G24: -450 | H24: 0 | I24: -450
B25: Profit for the year | C25: 0 | D25: 0 | E25: 0 | F25: 182221 | G25: 0 | H25: 2537 | I25: 184758
B26: As at 31 December 2010/ 1 January 2011 | C26: 836 | D26: 115858 | E26: 201164 | F26: 482328 | G26: (64 587) | H26: 10620 | I26: 746219
B27: Effect of acquisitions of non-controlling interest | C27: 0 | D27: 0 | E27: 0 | F27: -362 | G27: 0 | H27: 362 | I27: 0
B28: Currency translation reserve | C28: 0 | D28: 0 | E28: 0 | F28: 0 | G28: -3174 | H28: 0 | I28: -3174
B29: Profit for the year | C29: 0 | D29: 0 | E29: 0 | F29: 191943 | G29: 0 | H29: 4351 | I29: 196294
B30: As at 31 December 2011/ 1 January 2012 | C30: 836 | D30: 115858 | E30: 201164 | F30: 673909 | G30: -67761 | H30: 15333 | I30: 939339
B31: Currency translation reserve | C31: 0 | D31: 0 | E31: 0 | F31: 0 | G31: -374 | H31: -3 | I31: -377
B32: Profit for the year | C32: 0 | D32: 0 | E32: 0 | F32: 225448 | G32: 0 | H32: 2785 | I32: 228233
B33: As at 31 December 2012/ 1 January 2013 | C33: 836 | D33: 115858 | E33: 201164 | F33: 899357 | G33: -68135 | H33: 18115 | I33: 1167195
B34: Profit for the year | C34: 0 | D34: 0 | E34: 0 | F34: 236032 | G34: 0 | H34: 2051 | I34: 238083
B35: Currency translation reserve | C35: 0 | D35: 0 | E35: 0 | F35: 0 | G35: -59 | H35: -1 | I35: -60
B36: Effect from changes in ownership | C36: 0 | D36: 0 | E36: 0 | F36: -2586 | G36: 0 | H36: 44466 | I36: 41880
B37: As at 31 December 2013/ 1 January 2014 | C37: 836 | D37: 115858 | E37: 201164 | F37: 1132803 | G37: -68194 | H37: 64631 | I37: 1447098
B38: Profit for the year | C38: - | D38: - | E38: - | F38: -26103 | G38: - | H38: -815 | I38: -26918
B39: Currency translation reserve | C39: - | D39: - | E39: - | F39: - | G39: -708210 | H39: -38255 | I39: -746465
B40: Dividends payable | C40: - | D40: - | E40: - | F40: -29542 | G40: - | H40: - | I40: -29542
B41: Effect from changes in ownership | C41: - | D41: - | E41: - | F41: - | G41: - | H41: 1715 | I41: 1715
B42: As at 31 December 2014/ 1 January 2015 | C42: 836 | D42: 115858 | E42: 201164 | F42: 1077158 | G42: -776404 | H42: 27276 | I42: 645888
B44: Loss for the year | C44: - | D44: - | E44: - | F44: -154640 | G44: - | H44: -3750 | I44: -158390
B45: Currency translation reserve | C45: - | D45: - | E45: - | F45: - | G45: -241681 | H45: -13729 | I45: -255410
B46: Results of operations under common control | C46: - | D46: - | E46: - | F46: -1083 | G46: - | H46: 181 | I46: -902
B47: Effect from changes in ownership | C47: - | D47: - | E47: - | F47: - | G47: - | H47: 3869 | I47: 3869
B48: As at 31 December 2015/ 1 January 2016 | C48: 836 | D48: 115858 | E48: 201164 | F48: 921435 | G48: -1018085 | H48: 13847 | I48: 235055
B50: Loss for the year | C50: - | D50: - | E50: - | F50: -56978 | G50: - | H50: 342 | I50: -56636
B51: Currency translation reserve | C51: - | D51: - | E51: - | F51: - | G51: -35838 | H51: -3771 | I51: -39609
B52: As at 31 December 2016 | C52: 836 | D52: 115858 | E52: 201164 | F52: 864457 | G52: -1053923 | H52: 10418 | I52: 138810

Sheet CF FY07-FY16
B2: Consolidated Statement of Cash Flows for the Years Ended 31 December 2007, 2008, 2009, 2010, 2011, 2012 ,2013, 2014, 2015 and 2016
B4: >> Content | E4: >> List of Notes
D6: Note | E6: 2007 | F6: 2008 | G6: 2009 | H6: 2010 | I6: 2011 | J6: 2012 | K6: 2013 | L6: 2014 | M6: 2015 | N6: 2016
B7: CASH FLOWS FROM OPERATING ACTIVITIES
B8: Profit before income tax | E8: 31488 | F8: 75869 | G8: 134837 | H8: 185012 | I8: 200081 | J8: 228228 | K8: 236987 | L8: -28093 | M8: -159270 | N8: -59957
B9: Adjustments for:
B10: Depreciation of property, plant and equipment | D10: 5 | E10: 5592 | F10: 11780 | G10: 12285 | H10: 12637 | I10: 14330 | J10: 15284 | K10: 25487 | L10: 21792 | M10: 17628 | N10: 15657
B11: Change in allowance for irrecoverable amounts | E11: 499 | F11: 829 | G11: 69 | H11: 433 | I11: 814 | J11: 375 | K11: 683 | L11: 12921 | M11: 40156 | N11: 18582
B12: Other provisions | E12: 523 | F12: 282 | G12: 274 | H12: 30 | I12: 293 | J12: 134 | K12: 131 | L12: -357 | M12: - | N12: 0
B13: Profit/loss on disposal of current assets | D13: 28 | E13: 0 | F13: 0 | G13: 0 | H13: 0 | I13: 0 | J13: 527 | K13: 377 | L13: -44 | M13: 20 | N13: -14
B14: (Income)/loss on disposal of non curret assets | D14: 28 | E14: 242 | F14: 376 | G14: 90 | H14: 56 | I14: 233 | J14: 28 | K14: 365 | L14: 2168 | M14: 95 | N14: -150
B15: Impairment of current assets | D15: 28 | E15: 1425 | F15: 1630 | G15: 1571 | H15: 259 | I15: 1129 | J15: 846 | K15: 1123 | L15: 9140 | M15: 39869 | N15: 709
B16: Other income | E16: 0 | F16: 0 | G16: 0 | H16: 0 | I16: 0 | J16: -2054 | K16: 0 | L16: 0 | M16: 0 | N16: 0
B17: Effect of fair value adjustments on biological assets | D17: 6 | E17: -6467 | F17: -12690 | G17: -7695 | H17: -26187 | I17: -23697 | J17: -26191 | K17: -35158 | L17: -15364 | M17: -1391 | N17: 2232
B18: Gains realised from accounts payable written-off | D18: 28 | E18: -7798 | F18: -64 | G18: -22525 | H18: -869 | I18: -26 | J18: -861 | K18: -296 | L18: -3888 | M18: -178 | N18: -262
B19: Amortization of deferred income on government grants | D19: 31.1 | E19: 460 | F19: 469 | G19: 312 | H19: 306 | I19: -306 | J19: -302 | K19: -299 | L19: -218 | M19: -107 | N19: -98
B20: Discount bonds amortization | E20: 0 | F20: 0 | G20: 0 | H20: 0 | I20: 0 | J20: 0 | K20: 1352 | L20: 1504 | M20: 1974 | N20: 2096
B21: Impairments of funds | D21: 28 | E21: 0 | F21: 0 | G21: 0 | H21: 0 | I21: 0 | J21: 0 | K21: 0 | L21: 0 | M21: 28190 | N21: -
B22: Discount on VAT government bonds on initial recognition | E22: 0 | F22: 0 | G22: 0 | H22: 0 | I22: 0 | J22: 0 | K22: 0 | L22: 12679 | M22: - | N22: 0
B23: Discount on VAT government bonds amortization | E23: 0 | F23: 0 | G23: 0 | H23: 0 | I23: 0 | J23: 0 | K23: 0 | L23: -1459 | M23: -1979 | N23: -1449
B24: Loss from VAT government bonds sale | E24: 0 | F24: 0 | G24: 0 | H24: 0 | I24: 32 | J24: 0 | K24: 0 | L24: 0 | M24: 0 | N24: 0
B25: Impairment of non-current assets | E25: 0 | F25: 0 | G25: 0 | H25: 0 | I25: 0 | J25: 0 | K25: 0 | L25: 23589 | M25: - | N25: 0
B26: Effect of transactions under common control | E26: 28098 | F26: 9349 | G26: 0 | H26: 0 | I26: 0 | J26: 0 | K26: 0 | L26: 0 | M26: 0 | N26: 0
B27: Goodwill impairment | E27: 0 | F27: 0 | G27: 629 | H27: 0 | I27: 0 | J27: 0 | K27: 0 | L27: 0 | M27: 0 | N27: 0
B28: Discount on long-term bonds amortization | E28: 0 | F28: 0 | G28: 0 | H28: 0 | I28: 1092 | J28: 1216 | K28: 1352 | L28: 0 | M28: 0 | N28: 0
B29: Bargain purchase | E29: 0 | F29: 0 | G29: 0 | H29: 0 | I29: -191 | J29: 0 | K29: 0 | L29: 0 | M29: 0 | N29: 0
B30: Interest income | E30: -20868 | F30: -26898 | G30: -41180 | H30: -34058 | I30: -1492 | J30: -680 | K30: -124 | L30: -3176 | M30: -1999 | N30: -1376
B31: Interest payable on loans and bonds | E31: 22540 | F31: 48614 | G31: 42643 | H31: 25799 | I31: 30849 | J31: 32176 | K31: 28770 | L31: 28051 | M31: 27947 | N31: 29186
B32: Losses on exchange | E32: 0 | F32: 0 | G32: 0 | H32: 0 | I32: 0 | J32: 0 | K32: 0 | L32: 36822 | M32: 36021 | N32: 16622
B33: Operating profit before working capital changes | E33: 55734 | F33: 109546 | G33: 121310 | H33: 163418 | I33: 223141 | J33: 248726 | K33: 259398 | L33: 96067 | M33: 26976 | N33: 21778
B34: (Increase)/decrease in trade receivables | E34: -33335 | F34: 31530 | G34: -14517 | H34: -7200 | I34: 3282 | J34: -4082 | K34: -33272 | L34: -36919 | M34: -30086 | N34: -5802
B35: (Increase)/decrease in prepayments and other current assets | E35: -24949 | F35: -94317 | G35: 161386 | H35: -23208 | I35: 14061 | J35: 14573 | K35: -9785 | L35: -16816 | M35: -2627 | N35: 224
B36: (Increase)/decrease in taxes recoverable and prepaid | E36: -27263 | F36: -11073 | G36: 24957 | H36: -24376 | I36: -20291 | J36: -26269 | K36: -1872 | L36: -13074 | M36: 24493 | N36: 7134
B37: (Increase)/decrease in inventories | E37: -9312 | F37: -36016 | G37: -2130 | H37: -93127 | I37: -17120 | J37: 27210 | K37: -16030 | L37: -32159 | M37: -17472 | N37: -11945
B38: Increase/(decrease) in deferred income | E38: 1331 | F38: -4259 | G38: -847 | H38: -593 | I38: -20 | J38: -2 | K38: -5 | L38: 7 | M38: - | N38: -7
B39: (Increase)/decrease in other non-current assets | E39: -6 | F39: -360 | G39: 13 | H39: -1 | I39: 0 | J39: -34 | K39: 18 | L39: 214 | M39: 13 | N39: -
B40: Increase/(decrease) in trade payables | E40: 26004 | F40: -24066 | G40: 38058 | H40: -44828 | I40: -5297 | J40: 7402 | K40: -9055 | L40: 2909 | M40: -1259 | N40: 351
B41: (Increase)/decrease in biological assets | E41: -9731 | F41: -28596 | G41: -1641 | H41: -11140 | I41: 23401 | J41: 25121 | K41: 479 | L41: 40920 | M41: 5030 | N41: -196
B42: (Increase)/decrease in finance lease | E42: 0 | F42: 0 | G42: 0 | H42: 0 | I42: -802 | J42: -2553 | K42: -2552 | L42: -744 | M42: -16 | N42: -39
B43: Increase/(decrease) in other accounts payable | E43: 23491 | F43: 210930 | G43: -109100 | H43: (94 344) | I43: -15456 | J43: -2615 | K43: 7342 | L43: 9822 | M43: 1123 | N43: -10486
B44: Cash generated from operations | E44: 1964 | F44: 153319 | G44: 217489 | H44: (135 399) | I44: 204899 | J44: 287477 | K44: 194666 | L44: 50227 | M44: 6175 | N44: 1012
B45: Interest paid | E45: (25 909) | F45: (54 653) | G45: (51 781) | H45: -23526 | I45: -12256 | J45: -9946 | K45: -7136 | L45: -8983 | M45: -4897 | N45: -4224
B46: Income tax paid | E46: -65 | F46: -29 | G46: -48 | H46: -34 | I46: -6782 | J46: -81 | K46: -92 | L46: -73 | M46: -63 | N46: -43
B47: Net cash (used in)/generated from operating activities | E47: (24 010) | F47: 98637 | G47: 165660 | H47: -158959 | I47: 185861 | J47: 277450 | K47: 187438 | L47: 41171 | M47: 1215 | N47: -3255
B48: CASH FLOWS FROM INVESTING ACTIVITIES
B49: Purchases of property, plant and equipment | E49: -146372 | F49: -256411 | G49: -3370 | H49: -82157 | I49: -113021 | J49: -321635 | K49: -184808 | L49: -77030 | M49: -37446 | N49: -12981
B50: Proceeds from sale of non-current assets | E50: 165 | F50: 284 | G50: 0 | H50: 0 | I50: -32613 | J50: 0 | K50: 0 | L50: 0 | M50: 0 | N50: 779
B51: Effect from acquisition of subsidiaries net of an cash acquired | E51: 0 | F51: 0 | G51: 28 | H51: 0 | I51: - | J51: - | K51: 0 | L51: 0 | M51: 0 | N51: 0
B52: (Increase)/decrease in bank deposits | E52: -93924 | F52: -137632 | G52: 126200 | H52: 156421 | I52: 0 | J52: 0 | K52: 0 | L52: 0 | M52: 0 | N52: 0
B53: VAT government bonds sale | E53: 0 | F53: 0 | G53: 0 | H53: 0 | I53: 225 | J53: 0 | K53: 0 | L53: 0 | M53: 0 | N53: 0
B54: Acquisition of available for sale investments | E54: -29766 | F54: 0 | G54: 0 | H54: -255 | I54: - | J54: - | K54: 0 | L54: 0 | M54: 0 | N54: 0
B55: Disposal of available for sale investments | E55: 0 | F55: 28993 | G55: 0 | H55: 0 | I55: 0 | J55: 0 | K55: 0 | L55: 0 | M55: 0 | N55: 0
B56: Acquisitions of subsidiary | E56: 0 | F56: 0 | G56: 0 | H56: 0 | I56: -17722 | J56: 0 | K56: 0 | L56: 0 | M56: 5 | N56: 0
B57: Interest received | E57: 20868 | F57: 26848 | G57: 1769 | H57: 73459 | I57: 1502 | J57: 680 | K57: 124 | L57: 159 | M57: 2183 | N57: 2829
B58: Net cash generated from investing activities | E58: -249029 | F58: -337918 | G58: 124627 | H58: 147468 | I58: -161629 | J58: -320955 | K58: -184684 | L58: -76871 | M58: -35258 | N58: -9373
B59: CASH FLOWS FROM FINANCING ACTIVITIES
B60: New loans received | E60: 293775 | F60: 469157 | G60: 15511 | H60: 166646 | I60: 94976 | J60: 97048 | K60: 85334 | L60: 96144 | M60: 12 484 | N60: 50208
B61: Repayment of loans | E61: -16676 | F61: -256800 | G61: -308016 | H61: -364351 | I61: -38056 | J61: -61603 | K61: -88516 | L61: -62760 | M61: (13 729) | N61: -51952
B62: Interest paid for bonds issued | E62: 0 | F62: -89 | G62: -2166 | H62: -4267 | I62: -25183 | J62: -25335 | K62: -22043 | L62: -20000 | M62: (14 000) | N62: -5247
B63: Proceeds from short-term bonds issued | E63: 0 | F63: 25973 | G63: 0 | H63: 193471 | I63: - | J63: - | K63: - | L63: - | M63: - | N63: -
B64: Repayment of short-term bonds issued | E64: 0 | F64: -130 | G64: -798 | H64: 0 | I64: -19 | J64: 0 | K64: -25023 | L64: - | M64: - | N64: -
B65: Increase in share capital – share issue (nominal value) | E65: 0 | F65: 641 | G65: 0 | H65: 192 | I65: - | J65: - | K65: - | L65: - | M65: - | N65: -
B66: Increase in share capital – share premium | E66: 0 | F66: 0 | G66: 0 | H66: 201164 | I66: - | J66: - | K66: - | L66: - | M66: - | N66: -
B67: Blocked deposit | E67: 0 | F67: 0 | G67: 0 | H67: 0 | I67: -7174 | J67: 6380 | K67: 794 | L67: - | M67: - | N67: -
B68: Net cash generated from/(used in) financing activities | E68: 277099 | F68: 238752 | G68: -295469 | H68: 192855 | I68: 24544 | J68: 16490 | K68: -49454 | L68: 13384 | M68: -15245 | N68: -6991
B69: Impairments of funds | E69: 0 | F69: 0 | G69: 0 | H69: 0 | I69: 0 | J69: 0 | K69: 0 | L69: 0 | M69: -25639 | N69: -
B70: Currency translation reserve | E70: 0 | F70: 1856 | G70: 1097 | H70: 0 | I70: -1201 | J70: -121 | K70: - | L70: -16632 | M70: -11622 | N70: 882
B71: Net (decrease) / increase in cash | E71: 4060 | F71: 1327 | G71: -4085 | H71: 181364 | I71: 48776 | J71: -27015 | K71: -46700 | L71: -22316 | M71: -49288 | N71: -19619
B72: Cash at the beginning of the year | E72: 400 | F72: 4460 | G72: 5786 | H72: 1701 | I72: 183065 | J72: 230640 | K72: 203504 | L72: 156804 | M72: 117856 | N72: 31307
B73: Cash at the end of the year | D73: 12 | E73: 4460 | F73: 5787 | G73: 1701 | H73: 183065 | I73: 230640 | J73: 203504 | K73: 156804 | L73: 117856 | M73: 31307 | N73: 12570

Sheet EBITDA
B2: EBITDA Calculation for the Years Ended 31 December 2007-2016
B3: (in USD thousand, unless otherwise stated)
B4: >> Content | C4: >> List of Notes
C6: 2007 | D6: 2008 | E6: 2009 | F6: 2010 | G6: 2011 | H6: 2012 | I6: 2013 | J6: 2014 | K6: 2015 | L6: 2016
B7: Profit/(loss) for the period | C7: 30234 | D7: 77283 | E7: 133669 | F7: 184758 | G7: 196294 | H7: 228233 | I7: 238083 | J7: -26918 | K7: -158390 | L7: -56636
B8: Income tax credit | C8: 1254 | D8: -1414 | E8: 1168 | F8: 254 | G8: 3787 | H8: -5 | I8: -1096 | J8: -1175 | K8: -880 | L8: -3321
B9: Finance income | C9: -20868 | D9: -26897 | E9: -41180 | F9: -34058 | G9: -1492 | H9: -680 | I9: -124 | J9: -3176 | K9: (3 ,978) | L9: -2825
B10: Finance cost | C10: 22540 | D10: 52986 | E10: 46150 | F10: 29948 | G10: 33106 | H10: 36936 | I10: 38887 | J10: 44101 | K10: 32528 | L10: 31280
B11: Impairment of current assets | C11: 0 | D11: 0 | E11: 0 | F11: 0 | G11: 0 | H11: 0 | I11: 0 | J11: 0 | K11: 39869 | L11: 709
B12: Impairments of funds | C12: 0 | D12: 0 | E12: 0 | F12: 0 | G12: 0 | H12: 0 | I12: 0 | J12: 0 | K12: 28190 | L12: -
B13: Impairment of non-current assets* | C13: 0 | D13: 0 | E13: 0 | F13: 0 | G13: 0 | H13: 0 | I13: 20 | J13: 23589 | K13: - | L13: -
B14: Losses on exchange | C14: 0 | D14: 0 | E14: 0 | F14: 0 | G14: 0 | H14: 0 | I14: 2359 | J14: 71284 | K14: 43616 | L14: 16622
B15: Income from purchase a subsidiary | C15: 0 | D15: 0 | E15: 0 | F15: 0 | G15: -191 | H15: 0 | I15: 0 | J15: 0 | K15: 0 | L15: 0
B16: EBIT (earnings before interest and income tax) | C16: 33160 | D16: 101958 | E16: 139807 | F16: 180902 | G16: 231504 | H16: 264484 | I16: 278129 | J16: 107705 | K16: -19045 | L16: -14171
B17: Depreciation | C17: 5592 | D17: 11780 | E17: 12285 | F17: 12637 | G17: 14330 | H17: 15284 | I17: 25487 | J17: 21792 | K17: 17628 | L17: 15657
B18: EBITDA | C18: 38752 | D18: 113738 | E18: 152092 | F18: 193539 | G18: 245834 | H18: 279768 | I18: 303616 | J18: 129497 | K18: -1417 | L18: 1486
B19: EBITDA margin | C19: =C18/'PL FY07-FY16'!E7 -> 0.3032522616 | D19: =D18/'PL FY07-FY16'!F7 -> 0.3762521006 | E19: =E18/'PL FY07-FY16'!G7 -> 0.4755029623 | F19: =F18/'PL FY07-FY16'!H7 -> 0.4401584706 | G19: =G18/'PL FY07-FY16'!I7 -> 0.4442970487 | H19: =H18/'PL FY07-FY16'!J7 -> 0.4445659186 | I19: =I18/'PL FY07-FY16'!K7 -> 0.4591879637 | J19: =J18/'PL FY07-FY16'!L7 -> 0.3086068758 | K19: =K18/'PL FY07-FY16'!M7 -> -0.006162906004 | L19: =L18/'PL FY07-FY16'!N7 -> 0.007767741396
B20: Net debt | C20: 258371 | D20: 220937 | E20: 102571 | F20: 77766 | G20: 80284 | H20: 147934 | I20: 166024 | J20: 225901 | K20: 305047 | L20: 331 506
B21: Net debt / EBITDA | C21: =C20/C18 -> 6.667294591 | D21: 1.942508221 | E21: 0.6744010204 | F21: 0.4018104878 | G21: 0.3265780974 | H21: 0.5287738412 | I21: 0.5468223019 | J21: 1.74 | K21: -215.28 | L21: 223,09
B23: * In 2014, the Company suspended and impaired the following assets: LLC Yuzhnaya – Holding, SC Ptakhohospodarstvo Yuzhnaya Holding of LLC Yuzhnaya Holding, PPB LLC Ptytsecompleks due to the annexation of the Autonomous Republic of Crimea, as well as PJSC Ptakhohospodarstvo Chervonyi Prapor, SC Ptakhofabryka Chervonyi Prapor , PSPC Interbusiness, PJSC Vuhlehirskyi Eksperementalnyi Kombikormovyi Zavod due to the military conflict in Eastern Ukraine. The Group has lost an ability to control assets of those companies therefore those assets had been impaired and this was recognized as a loss in 3rd quarter of 2014.
B24: Note: EBITDA represents operating profit before finance costs, income taxes, depreciation and amortisation, foreign exchange (gains) losses and other (income) expense and is calculated as operating profit after adding back depreciation and amortisation.

Sheet DA
B2: Depreciation and Amortization for the Years Ended 31 December 2007-2016
B3: (in USD thousand, unless otherwise stated)
B4: >> Content | D4: >> List of Notes
D6: 2007 | E6: 2008 | F6: 2009 | G6: 2010 | H6: 2011 | I6: 2012 | J6: 2013 | K6: 2014 | L6: 2015 | M6: 2016
B7: D&A in the Cost of sales | D7: 5386 | E7: 11095 | F7: 11641 | G7: 12165 | H7: 13870 | I7: 14639 | J7: 24556 | K7: 21206 | L7: 17295 | M7: 15393
B8: D&A in the G&A expenses | D8: 14 | E8: 167 | F8: 144 | G8: 98 | H8: 91 | I8: 104 | J8: 132 | K8: 100 | L8: 97 | M8: 98
B9: D&A in the Distribution expenses | D9: 192 | E9: 518 | F9: 499 | G9: 373 | H9: 368 | I9: 541 | J9: 740 | K9: 478 | L9: 237 | M9: 165
B10: Total D&A | D10: 5592 | E10: 11780 | F10: 12285 | G10: 12637 | H10: 14330 | I10: 15284 | J10: 25487 | K10: 21792 | L10: 17628 | M10: 15657
B12: Note: the Group has no intangible assets and so no amortisation is charged in any of the years
B13: The Estimated Useful Lives for the Groups of Property, Plant and Equipment
B14: (years)
B15: Land | D15: Not depreciated
B16: Buildings and structures | D16: 10-70
B17: Мachinery and equipment | D17: 5-25
B18: Equipment for biological assets | D18: 5-30
B19: Vehicles | D19: 5-15
B20: Other equipment | D20: 3-10
B21: Construction in progress | D21: Not depreciated

Sheet CAPEX
B2: Capital Expenditures for the Years Ended 31 December 2007-2016
B3: (in USD thousand, unless otherwise stated)
B4: >> Content
D6: 2007 | E6: 2008 | F6: 2009 | G6: 2010 | H6: 2011 | I6: 2012 | J6: 2013 | K6: 2014 | L6: 2015 | M6: 2016
B7: EXPENDITURES FOR FIXED ASSETS
B8: Purchases of property, plant and equipment | D8: -146372 | E8: -256411 | F8: -3370 | G8: -82157 | H8: -113021 | I8: -321635 | J8: -184808 | K8: -77030 | L8: -37446 | M8: -12981
B9: Proceeds from disposals of property, plant and equipment | D9: 165 | E9: 284 | F9: 0 | G9: 0 | H9: 0 | I9: 0 | J9: 0 | K9: 0 | L9: 0 | M9: 0
D10: -146207 | E10: -256127 | F10: -3370 | G10: -82157 | H10: =H8 -> -113021 | I10: =I8 -> -321635 | J10: =J8 -> -184808 | K10: -77030 | L10: -37446 | M10: -12981
B12: EXPENDITURES FOR THIRD PART SECURITIES
B13: VAT government bonds sale | H13: 255 | I13: 0 | J13: 0 | K13: 0 | L13: 0 | M13: 0
B14: Acquisition of available for sale investments | D14: -29766 | E14: 0 | F14: 0 | G14: -255 | H14: 0 | I14: 0 | J14: 0 | K14: 0 | L14: 0 | M14: 0
B15: Disposal of available for sale investments | D15: 0 | E15: 28993 | F15: 0 | H15: 0 | I15: 0 | J15: 0 | K15: 0 | L15: 0 | M15: 0
B16: Net expenditures for third part securities | D16: -29766 | E16: 28993 | F16: 0 | G16: -255 | H16: =H14 -> 0 | I16: 0 | J16: 0 | K16: 0 | L16: 0 | M16: 0
B18: EFFECT FROM ACQUISITION OF SUBSIDIARIES NET OF CASH ACQUIRED | D18: 0 | E18: 0 | F18: 28 | G18: 0 | H18: -17722 | I18: 0 | J18: 0 | K18: 0 | L18: 0 | M18: 0

Sheet Debt
B2: Debt as at 31 December 2007-2016
B3: (in USD thousand, unless otherwise stated)
B4: >> Content | C4: >> List of Notes
C6: 2007 | D6: 2008 | E6: 2009 | F6: 2010 | G6: 2011 | H6: 2012 | I6: 2013 | J6: 2014 | K6: 2015 | L6: 2016
B7: SHORT-TERM DEBT
B8: Short-term loans in foreign currency | C8: 0 | D8: 771 | E8: 725 | F8: 724 | G8: 52850 | H8: 94336 | I8: 50000 | J8: 50000 | K8: 50000 | L8: 0
B9: Short-term loans in national currency | C9: 117709 | D9: 175181 | E9: 23741 | F9: 292 | G9: 32 | H9: 32 | I9: 0 | J9: 0 | K9: 0 | L9: 0
B10: Total short-term bank loans | C10: 117709 | D10: 175952 | E10: 24466 | F10: 1016 | G10: 52882 | H10: 94368 | I10: 50000 | J10: 50000 | K10: 50000 | L10: 0
B11: Interest free loans | C11: 96101 | D11: 104151 | E11: 8535 | F11: 20 | G11: 181 | H11: 0 | I11: 0 | J11: 0 | K11: 0 | L11: 0
B12: Overdrafts | C12: 57 | D12: 73 | E12: 0 | F12: 0 | G12: 0 | H12: 0 | I12: 0 | J12: 0 | K12: 0 | L12: 0
B13: TOTAL SHORT-TERM DEBT | C13: 213867 | D13: 280176 | E13: 33001 | F13: 1036 | G13: 53063 | H13: 94368 | I13: 50000 | J13: 50000 | K13: 50000 | L13: 0
B15: Short-term bank loans by maturity
B16: under 3 months | C16: 30231 | D16: 20995 | E16: 975 | F16: 1016 | G16: 668 | H16: 0 | I16: 0 | J16: 0 | K16: 0 | L16: 0
B17: from 3 to 6 months | C17: 32498 | D17: 5743 | E17: 11151 | F17: - | G17: 52182 | H17: 94336 | I17: 50000 | J17: 0 | K17: 0 | L17: 0
B18: from 6 to 12 months | C18: 54980 | D18: 149214 | E18: 12340 | F18: - | G18: 0 | H18: 0 | I18: 0 | J18: 50000 | K18: 50000 | L18: 0
C19: 117709 | D19: 175952 | E19: 24466 | F19: 1016 | G19: 52850 | H19: 94336 | I19: 50000 | J19: 50000 | K19: 50000 | L19: 0
B21: Short-term bank loans by currencies
B22: Short-term bank loans in UAH | C22: 117709 | D22: 175181 | E22: 23741 | F22: 292 | G22: 0 | H22: 0 | I22: 0 | J22: 0 | K22: 0 | L22: 0
B23: Short-term bank loans in USD | C23: - | D23: 725 | E23: 725 | F23: 724 | G23: 50669 | H23: 50004 | I23: 50000 | J23: 50000 | K23: 50000 | L23: 0
B24: Short-term bank loans in EURO | C24: - | D24: 46 | E24: - | F24: 0 | G24: 2181 | H24: 44332 | I24: 0 | J24: 0 | K24: 0 | L24: 0
C25: 117709 | D25: 175952 | E25: 24466 | F25: 1016 | G25: 52850 | H25: 94336 | I25: 50000 | J25: 50000 | K25: 50000 | L25: 0
B27: Interest rates for short-term bank loans and overdrafts
B28: Short-term bank loans denominated in UAH | C28: 14%-20% | D28: 14,5%-30,0% | E28: 10,25%-28,0% | F28: 25%-29% | G28: 0 | H28: 0 | I28: 0 | J28: 0 | K28: 0 | L28: 0
B29: Short-term bank loans denominated in USD | C29: - | D29: 13,0% | E29: 17,0% | F29: 17% | G29: 10%-17% | H29: 0.1025 | I29: 0.1025 | J29: 0.115 | K29: 0.115 | L29: 0
B30: Short-term bank loans denominated in EURO | C30: - | D30: 10,5% | E30: - | F30: - | G30: 2.5%+EURIBOR-10% | H30: 1.5%+EURIBOR-1.75%+EURIBOR | I30: 0 | J30: 0 | K30: 0 | L30: 0
B31: Overdrafts denominated in UAH | C31: 16% | D31: 22% | E31: - | F31: - | G31: - | H31: - | I31: - | J31: - | K31: - | L31: -
B33: CURRENT PORTION OF NON-CURRENT FINACIAL LIABILITIES
B34: Trade and other payables
B35: Deferred income (current portion) | C35: 468 | D35: 315 | E35: 304 | F35: 305 | G35: 304 | H35: 304 | I35: 304 | J35: 154 | K35: 94 | L35: 89
B36: Financial liabilities
B37: Current portion of finance lease liabilities | C37: 73 | D37: 1816 | E37: 1714 | F37: 678 | G37: 2128 | H37: 2123 | I37: 1065 | J37: 20 | K37: 13 | L37: 0
B38: VAT included in current portion of finance lease liabilities | C38: 15 | D38: 363 | E38: 343 | F38: 136 | G38: 426 | H38: 425 | I38: 213 | J38: 4 | K38: 3 | L38: 0
B39: Current portion of non-current liabilities for bank loans in national currency | C39: 8917 | D39: 116 | E39: 112652 | F39: 3200 | G39: 1320 | H39: 1430 | I39: 1430 | J39: 231 | K39: 456 | L39: 806
B40: Current portion of non-current liabilities for bank loans in foreign currency | C40: 1343 | D40: 805 | E40: 962 | F40: 0 | G40: 22387 | H40: 27832 | I40: 11492 | J40: 14959 | K40: 18559 | L40: 30329
B42: TOTAL CURRENT PORTION OF NON-CURRENT FINACIAL LIABILITIES | C42: 10816 | D42: 3415 | E42: 115975 | F42: 4319 | G42: 26565 | H42: 32114 | I42: 14504 | J42: 15368 | K42: 19125 | L42: 31224
B44: LONG-TERM DEBT
B45: Long-term bank loans in national currency | C45: 195535 | D45: 190142 | E45: 196634 | F45: 33086 | G45: 5613 | H45: 4290 | I45: 2860 | J45: 1389 | K45: 913 | L45: 47976
B46: Long-term bank loans in foreign currency | C46: 2310 | D46: 2146 | E46: 1845 | F46: 0 | G46: 29870 | H46: 27832 | I46: 70448 | J46: 93084 | K46: 82156 | L46: 79756
B47: Total long-term bank loans | C47: 197845 | D47: 192288 | E47: 198479 | F47: 33086 | G47: 35483 | H47: 32122 | I47: 73308 | J47: 94473 | K47: 83069 | L47: 124732
B48: Other long-term loans | C48: 0 | D48: 0 | E48: 0 | F48: 0 | G48: 2500 | H48: 0 | I48: 0 | J48: 0 | K48: 0 | L48: 0
B49: Commodity credit | C49: 1755 | D49: 1151 | E49: 1110 | F49: 1113 | G49: 1109 | H49: 1109 | I49: 1109 | J49: 561 | K49: 369 | L49: 327
B50: Total loans and commodity credit | C50: 199600 | D50: 193439 | E50: 199589 | F50: 34199 | G50: 39092 | H50: 33231 | I50: 74417 | J50: 95034 | K50: 83438 | L50: 125059
B51: Current portion of non-current liabilities for bank loans in national currency | C51: -8917 | D51: -116 | E51: -112652 | F51: -3200 | G51: -1321 | H51: -1430 | I51: -1430 | J51: -231 | K51: -456 | L51: -806
B52: Current portion of non-current liabilities for bank loans in foreign currency | C52: -1343 | D52: -805 | E52: -962 | F52: 0 | G52: -22387 | H52: -27832 | I52: -11492 | J52: -14959 | K52: -18559 | L52: -30329
B53: TOTAL LONG-TERM LOANS | C53: 189340 | D53: 192518 | E53: 85975 | F53: 30999 | G53: 15384 | H53: 3969 | I53: 61495 | J53: 79844 | K53: 64423 | L53: 93924
B55: Long-term bank loans by maturities
B56: Under a year (current portion) | C56: 10260 | D56: 921 | E56: 113614 | F56: 3200 | G56: 23708 | H56: 29262 | I56: 12922 | J56: 15190 | K56: 18308 | L56: 31134
B57: From 1 to 2 years | C57: 63801 | D57: 85775 | E57: 51278 | F57: 1550 | G57: 7483 | H57: 1430 | I57: 13165 | J57: 18680 | K57: 17675 | L57: 15998
B58: From 2 to 3 years | C58: 123763 | D58: 70762 | E58: 0 | F58: 28336 | G58: 4292 | H58: 1430 | I58: 12619 | J58: 16255 | K58: 13259 | L58: 17038
B59: From 3 to 4 years | C59: 0 | D59: 0 | E59: 33587 | F59: 0 | G59: 0 | H59: 0 | I59: 10133 | J59: 12473 | K59: 10817 | L59: 14507
B60: From 4 to 5 years | C60: - | D60: 34830 | E60: 0 | F60: 0 | G60: 0 | H60: 0 | I60: 6375 | J60: 9747 | K60: 8438 | L60: 14302
B61: Over 5 years | C61: 21 | D61: 0 | E61: 0 | F61: 0 | G61: 0 | H61: 0 | I61: 18094 | J61: 22128 | K61: 14572 | L61: 31753
C62: 197845 | D62: 192288 | E62: 198479 | F62: 33086 | G62: 35483 | H62: 32122 | I62: 73308 | J62: 94473 | K62: 83069 | L62: 124732
B65: Long-term bank loans by currencies
B66: Long-term bank loans in UAH | C66: 195535 | D66: 190142 | E66: 196634 | F66: 33086 | G66: 5613 | H66: 4290 | I66: 2860 | J66: 1389 | K66: 913 | L66: 47976
B67: Long-term bank loans in CHF | C67: 0 | D67: 2146 | E67: 1845 | F67: 0 | G67: 0 | H67: 0 | I67: 0 | J67: 0 | K67: 0 | L67: 0
B68: Long-term bank loans in USD | C68: 2144 | D68: 0 | E68: 0 | F68: 0 | G68: 29870 | H68: 27832 | I68: 0 | J68: 0 | K68: 0 | L68: 0
B69: Long-term bank loans in EUR | C69: 166 | D69: 0 | E69: 0 | F69: 0 | G69: 0 | H69: 0 | I69: 70448 | J69: 93084 | K69: 82156 | L69: 76756
C70: 197845 | D70: 192288 | E70: 198479 | F70: 33086 | G70: 35483 | H70: 32122 | I70: 32122 | J70: 94473 | K70: 83069 | L70: 124732
B72: Interest rates for long-term bank loans
B73: Long-term bank loans denominated in UAH | C73: 14%-18% | D73: 14%-23% | E73: 16%-23% | F73: 17%-23% | G73: 14-21% | H73: 14-21% | I73: 0.14 | J73: 0.18 | K73: 0.18 | L73: 12.5%-18%
B74: Long-term bank loans denominated in CHF | C74: - | D74: 9,0% | E74: 9,0% | F74: - | G74: - | H74: - | I74: - | J74: - | K74: - | L74: -
B75: Long-term bank loans denominated in USD | C75: 13,0% | D75: - | E75: - | F75: - | G75: 0.11 | H75: 0.11 | I75: - | J75: - | K75: - | L75: -
B76: Long-term bank loans denominated in EUR | C76: 10,5% | D76: - | E76: - | F76: - | G76: - | H76: - | I76: 1.5%+EURIBOR - 1.75%EURIBOR | J76: 1.5%+EURIBOR - 2.7%EURIBOR | K76: 1.5%+EURIBOR 2.7%EURIBOR | L76: 1.5%+EURIBOR 2.7%EURIBOR
B78: EUROBOND LIABILITIES
B79: Par value | C79: 0 | D79: 0 | E79: 0 | F79: 200000 | G79: 200000 | H79: 200000 | I79: 200000 | J79: 200000 | K79: 208687 | L79: 223667
B80: Discount on issued bonds | C80: 0 | D80: 0 | E80: 0 | F80: -6529 | G80: -5437 | H80: -4221 | I80: -2869 | J80: -1365 | K80: -5816 | L80: -4654
B81: EUROBOND LIABILITIES | C81: 0 | D81: 0 | E81: 0 | F81: 193471 | G81: 194563 | H81: 195779 | I81: 197131 | J81: 198635 | K81: 202871 | L81: 219014
B83: COUPON PAYABLE | C83: 0 | D83: 0 | E83: 0 | F83: 3461 | G83: 3462 | H83: 3462 | I83: 3462 | J83: 3462 | K83: 896 | L83: 1919
B85: SHORT-TERM BOND LIABILITIES
B86: Par value | C86: 0 | D86: 25844 | E86: 24249 | F86: 25120 | G86: 25032 | H86: 25023 | I86: 0 | J86: 0 | K86: 0 | L86: 0
B87: Bonds repurchased | G87: -19 | H87: 0 | I87: 0 | J87: 0 | K87: 0 | L87: 0
B88: Discount on issued bonds | C88: 0 | D88: -1 | E88: 0 | F88: - | G88: 0 | H88: 0 | I88: 0 | J88: 0 | K88: 0 | L88: 0
B89: TOTAL SHORT-TERM BOND LIABILITIES | C89: 0 | D89: 25843 | E89: 24249 | F89: 25120 | G89: 25013 | H89: 25023 | I89: 0 | J89: 0 | K89: 0 | L89: 0
J90: 0 | K90: 0 | L90: 0
B91: COUPON PAYABLE | C91: 0 | D91: 2039 | E91: 2055 | F91: 2266 | G91: 2456 | H91: 551 | I91: 0 | J91: 0 | K91: 0 | L91: 0

Sheet List of Fin Notes (FN)
B2: Notes to the Consolidated Financial Statements for the Years Ended 31 December 2007-2016
B4: >> Content
B7: >> AVANGARDCO Investment Public Limitited' Sibsidiaries Structure | C7: >> Current portion of non-current financial liabilities
B8: >> AVANGARDCO Investment Public Limitited' Ownership Structure | C8: >> Deferred tax assets and liabilities
B9: >> The Estimated Useful Lives for the Groups of Property, Plant and Equipment | C9: >> Trade payables
B10: >> Inventory storage period | C10: >> Accrued expenses
B11: >> Movement in PPE | C11: >> Other current liabilities and accrued expenses
B12: >> PPE as security for long-term and short-term loans | C12: >> Finance lease liabilities
B13: >> Held to maturity financial assets | C13: >> Short-term bond liabilities
B14: >> Biological assets | C14: >> Sales revenue
B15: >> Other non-current assets | C15: >> Cost of sales
B16: >> Taxes recoverable and prepaid | C16: >> Cost of sales by elements
B17: >> Inventories | C17: >> General administrative expenses
B18: >> Prepayments and other current assets | C18: >> Distribution expenses
B19: >> Trade receivable | C19: >> Other operating expenses
B20: >> Cash and cash equivalents | C20: >> Finance costs
B21: >> Long-term and short-term bank deposits | C21: >> Finance income
B22: >> Share capital, share premium, capital contribution reserve | C22: >> Income from government grants and incentives and from special VAT treatment
B23: >> Long-term loans | C23: >> Payroll and related taxes
B24: >> Long-term bond liabilities | C24: >> Related party balances and transactions
B25: >> Short-term loans | C25: >> Revenue from external customers
B26: >> Loans security | C26: >> Business segments
C27: >> Financial risk management

Sheet PL FN
B2: Notes to the Consolidated Statement of Comprehensive Income
B3: (in USD thousand, unless otherwise stated)
B4: >> Content | C4: >> List of Notes
C6: 2007 | D6: 2008 | E6: 2009 | F6: 2010 | G6: 2011 | H6: 2012 | I6: 2013 | J6: 2014 | K6: 2015 | L6: 2016
B7: SALES REVENUE
B8: Revenue from finished goods | C8: =126175-610 -> 125565 | D8: 299026 | E8: 318526 | F8: 427292 | G8: 552129 | H8: 627615 | I8: 659240 | J8: 418375 | K8: 229299 | L8: 140761
B9: Revenue from goods and services sold/rendered | C9: 2223 | D9: 3266 | E9: 1329 | F9: 12411 | G9: 1181 | H9: 1691 | I9: 1962 | J9: 1243 | K9: 625 | L9: 50543
C10: 127788 | D10: 302292 | E10: 319855 | F10: 439703 | G10: 553310 | H10: 629306 | I10: 661202 | J10: 419618 | K10: 229924 | L10: 191304
B12: COST OF SALES
B13: Cost of finished goods sold | C13: -109147 | D13: -229609 | E13: -215883 | F13: -293318 | G13: -351962 | H13: -395004 | I13: -428141 | J13: -312277 | K13: -208906 | L13: -127930
B14: Cost of goods and services sold/rendered | C14: -5542 | D14: -3366 | E14: -4524 | F14: -14826 | G14: -1270 | H14: -1956 | I14: -1554 | J14: -1724 | K14: -284 | L14: -47945
C15: -114689 | D15: -232975 | E15: -220407 | F15: -308144 | G15: -353232 | H15: -396960 | I15: -429695 | J15: -314001 | K15: -209190 | L15: -175875
B17: COST OF SALES BY ELEMENTS
B18: Raw materials | C18: -86471 | D18: -182548 | E18: -174827 | F18: -249235 | G18: -287362 | H18: -324260 | I18: -354379 | J18: -252139 | K18: -158819 | L18: -101568
B19: Payroll of production personnel and related taxes | C19: -11985 | D19: -21447 | E19: -14953 | F19: -16394 | G19: -20054 | H19: -23098 | I19: -20313 | J19: -14515 | K19: -5173 | L19: -3705
B20: Depreciation | C20: -5386 | D20: -11095 | E20: -11641 | F20: -12165 | G20: -13870 | H20: -14639 | I20: -24556 | J20: -21206 | K20: -17295 | L20: -15393
B21: Services provided by third parties* | C21: -5102 | D21: -14331 | E21: -14365 | F21: -14949 | G21: -30503 | H21: -32824 | I21: -28670 | J21: -24272 | K21: -27447 | L21: -7173
B22: Other expenses | C22: -203 | D22: -188 | E22: -97 | F22: -575 | G22: -173 | H22: -182 | I22: -223 | J22: -145 | K22: -172 | L22: -91
C23: -109147 | D23: -229609 | E23: -215883 | F23: -293318 | G23: -351962 | H23: -395003 | I23: -428141 | J23: -312277 | K23: -208906 | L23: -127930
B25: * - This item consists of expenses for electricity, gas, water, curren repairs of production premises, sanitary cleaning services, veterinary services and other.
B27: GENERAL ADMINISTRATIVE EXPENCES
B28: Salaries and wages of administrative personnel | C28: -2753 | D28: -4520 | E28: -2889 | F28: -3254 | G28: -5285 | H28: -8391 | I28: -8563 | J28: -5400 | K28: -3180 | L28: -3641
B29: Services provided by third parties | C29: -1035 | D29: -1534 | E29: -1216 | F29: -3122 | G29: -6078 | H29: -12538 | I29: -5957 | J29: -4261 | K29: -3126 | L29: -2936
B30: Depreciation | C30: -14 | D30: -167 | E30: -144 | F30: -98 | G30: -91 | H30: -104 | I30: -132 | J30: -100 | K30: -97 | L30: -98
B31: Repairs and maintenance costs | C31: -77 | D31: -145 | E31: -44 | F31: -43 | G31: -69 | H31: -81 | I31: -150 | J31: -69 | K31: -49 | L31: -264
B32: Tax expenses, except for income tax | C32: -76 | D32: -270 | E32: -252 | F32: -293 | G32: -854 | H32: -338 | I32: -444 | J32: -275 | K32: -196 | L32: -316
B33: Material usage | C33: -392 | D33: -498 | E33: -271 | F33: -267 | G33: -491 | H33: -605 | I33: -575 | J33: -395 | K33: -308 | L33: -236
B34: Other expenses | C34: -639 | D34: -798 | E34: -117 | F34: -91 | G34: -293 | H34: -502 | I34: -925 | J34: -272 | K34: -239 | L34: -395
C35: -4986 | D35: -7932 | E35: -4933 | F35: -7168 | G35: -13161 | H35: -22559 | I35: -16746 | J35: -10772 | K35: -7195 | L35: -7886
B37: DISTRIBUTION EXPENCES
B38: Salaries and wages of distribution personnel | C38: -1423 | D38: -1766 | E38: -1015 | F38: -1478 | G38: -2063 | H38: -2150 | I38: -758 | J38: -1054 | K38: -434 | L38: -439
B39: Transport expenses | C39: -489 | D39: -1032 | E39: -864 | F39: -2531 | G39: -5989 | H39: -9853 | I39: -11146 | J39: -9742 | K39: -4431 | L39: -4332
B40: Depreciation | C40: -192 | D40: -518 | E40: -499 | F40: -373 | G40: -368 | H40: -541 | I40: -740 | J40: -478 | K40: -237 | L40: -165
B41: Services provided by third parties | C41: -200 | D41: -215 | E41: -319 | F41: -126 | G41: -222 | H41: -4854 | I41: -11425 | J41: -8917 | K41: -5573 | L41: -3492
B42: Packing materials | C42: -744 | D42: -465 | E42: -128 | F42: -305 | G42: -914 | H42: -1939 | I42: -1002 | J42: -14 | K42: -28 | L42: -47
B43: Repairs and maintenance costs | C43: -52 | D43: -19 | E43: -27 | F43: -27 | G43: -59 | H43: -68 | I43: -61 | J43: -111 | K43: -13 | L43: -5
B44: Other expenses | C44: -905 | D44: -414 | E44: -234 | F44: -218 | G44: -420 | H44: -651 | I44: -498 | J44: -216 | K44: -57 | L44: -78
C45: -4005 | D45: -4429 | E45: -3086 | F45: -5058 | G45: -10035 | H45: -20056 | I45: -25630 | J45: -20532 | K45: -10773 | L45: -8558
B47: OTHER OPERATING EXPENCES
B48: Profit/(loss) from disposal of current assets | C48: -407 | D48: 0 | E48: -890 | F48: -126 | G48: -505 | H48: -527 | I48: -377 | J48: 44 | K48: -20 | L48: 14
B49: Income/(loss) from disposal of non-current assets | C49: -242 | D49: -376 | E49: -90 | F49: -56 | G49: -205 | H49: -28 | I49: -365 | J49: -2168 | K49: -95 | L49: 150
B50: Impairment of current assets | C50: -1425 | D50: -1630 | E50: -1571 | F50: -259 | G50: -1129 | H50: -846 | I50: -1123 | J50: -9140 | K50: -39869 | L50: -709
B51: Impairment of funds* | C51: 0 | D51: 0 | E51: 0 | F51: 0 | G51: 0 | H51: 0 | I51: 0 | J51: 0 | K51: -28190 | L51: 0
B52: Gain realised from writing-off of accounts payable | C52: 0 | D52: 0 | E52: 0 | F52: 0 | G52: 26 | H52: 861 | I52: 296 | J52: 3888 | K52: 178 | L52: 262
B53: Losses on exchange | C53: -28 | D53: -1744 | E53: -672 | F53: -163 | G53: -2041 | H53: -5932 | I53: 0 | J53: 0 | K53: 0 | L53: 0
B54: Foreign currency sale (loss)/ income | C54: 0 | D54: 0 | E54: 0 | F54: 0 | G54: 174 | H54: 11722 | I54: 3111 | J54: 1566 | K54: 22 | L54: -51
B55: Other expenses /provision for doubtful debts and amounts written off | C55: -553 | D55: -3190 | E55: -69 | F55: -433 | G55: -814 | H55: -375 | I55: -683 | J55: -12921 | K55: -40156 | L55: -18582
B56: Fines, penalties recognized | C56: 0 | D56: 0 | E56: -1049 | F56: -1188 | G56: -1426 | H56: -1114 | I56: -1366 | J56: -622 | K56: -901 | L56: -86
B57: Other income/(expenses) | C57: 0 | D57: 120 | E57: 768 | F57: -2676 | G57: -1511 | H57: -1988 | I57: -1170 | J57: 673 | K57: -7435 | L57: 1895
C58: -2655 | D58: -6820 | E58: -3573 | F58: -4901 | G58: -7430 | H58: 1773 | I58: -4036 | J58: -18680 | K58: -116466 | L58: -17107
B59: *The above amount was a result of the categorisation of Finansova Iniciatyva Bank by the National Bank of Ukraine as insolvent.
B61: FINANCE COST
B62: Interest payable on loans | C62: -25907 | D62: -56063 | E62: -60025 | F62: -34587 | G62: -10308 | H62: -9951 | I62: -7811 | J62: -8052 | K62: -7837 | L62: -7945
B63: Capitalised interest | C63: 3367 | D63: 7449 | E63: 17382 | F63: 16727 | G63: 4833 | H63: 3259 | I63: 533 | J63: 0 | K63: 0 | L63: 0
B64: Total financial expenses on loans | C64: -22540 | D64: -48614 | E64: -42643 | F64: -17860 | G64: -5475 | H64: -6692 | I64: -7278 | J64: -8052 | K64: -7837 | L64: -7945
B65: Finance expenses on finance lease | C65: - | D65: -1153 | E65: -1216 | F65: -4014 | G65: -651 | H65: -546 | I65: -328 | J65: -43 | K65: -19 | L65: -12
B66: Financial expenses for bonds (interest) | C66: - | D66: -3194 | E66: -2259 | F66: -7939 | G66: -25374 | H66: -25484 | I66: -22844 | J66: -21503 | K66: -20110 | L66: -21241
B67: Other financial expenses | C67: - | D67: -25 | E67: -32 | F67: -135 | G67: -1606 | H67: -4214 | I67: -8437 | J67: -14503 | K67: -4562 | L67: -2082
C68: -22540 | D68: -52986 | E68: -46150 | F68: -29948 | G68: -33106 | H68: -36936 | I68: -38887 | J68: -44101 | K68: -32528 | L68: -31280
B71: FINANCE INCOME
B72: Gain on sale of short-term bonds | C72: 0 | D72: 0 | E72: 0 | F72: 2266 | G72: 0 | H72: 0 | I72: 0 | J72: 0 | K72: 0 | L72: 0
B73: Interest income from VAT government bonds and placement of deposits | C73: 20868 | D73: 26897 | E73: 41180 | F73: 31615 | G73: 1492 | H73: 680 | I73: 124 | J73: 3176 | K73: 3978 | L73: 2825
B74: Other income | C74: 0 | D74: 0 | E74: 0 | F74: 177 | G74: 0 | H74: 0 | I74: 0 | J74: 0 | K74: 0 | L74: 0
C75: 20868 | D75: 26897 | E75: 41180 | F75: 34058 | G75: 1492 | H75: 680 | I75: 124 | J75: 3176 | K75: 3978 | L75: 2825
B77: INCOME FROM GOVERNMENT GRANTS AND INCENTIVES
B78: Partial compensation of interest for loans received by agro-industrial enterprises from financial institutions | C78: 12582 | D78: 30598 | E78: 6261 | F78: 16951 | G78: 2 | H78: 0 | I78: - | J78: - | K78: - | L78: -
B79: VAT for development of poultry keeping | C79: 3957 | D79: 7795 | E79: 2855 | F79: 233 | G79: - | H79: - | I79: - | J79: - | K79: - | L79: -
B80: Amortisation of deferred income on government grants | C80: 460 | D80: 469 | E80: 312 | F80: 306 | G80: 306 | H80: 302 | I80: 299 | J80: 218 | K80: 107 | L80: 98
B81: Other grants | C81: 188 | D81: 206 | E81: 12 | F81: 14 | G81: 10 | H81: 3 | I81: - | J81: - | K81: - | L81: -
C82: 17187 | D82: 39068 | E82: 9440 | F82: 17504 | G82: 318 | H82: 305 | I82: 299 | J82: 218 | K82: 107 | L82: 98
B84: INCOME FROM SPECIAL VAT TREATMENT
B85: Income from special VAT treatment | C85: 0 | D85: 0 | E85: 12291 | F85: 21910 | G85: 38037 | H85: 46484 | I85: 55198 | J85: 36490 | K85: 25098 | L85: 5376
B87: PAYROLL AND RELATED TAXES
B88: Salary | C88: -13631 | D88: -22404 | E88: -14461 | F88: -15423 | G88: -17184 | H88: -21095 | I88: -18583 | J88: -13150 | K88: -5510 | L88: -4882
B89: Contributions to pension fund | C89: -2110 | D89: -4645 | E89: -3912 | F89: -5197 | G89: -10218 | H89: -12544 | I89: -11051 | J89: -7819 | K89: -3277 | L89: -2903
B90: Other contributions | C90: -420 | D90: -684 | E90: -484 | F90: -506 | G90: 0 | H90: 0 | I90: 0 | J90: 0 | K90: 0 | L90: 0
C91: -16161 | D91: -27733 | E91: -18857 | F91: -21126 | G91: -27402 | H91: -33639 | I91: -29634 | J91: -20969 | K91: -8787 | L91: -7785
B94: Payroll of production personnel and related taxes | C94: -11985 | D94: -21447 | E94: -14953 | F94: -16394 | G94: -20054 | H94: -23098 | I94: -20313 | J94: -14515 | K94: -5173 | L94: -3705
B95: Salaries and wages of administrative personnel | C95: -2753 | D95: -4520 | E95: -2889 | F95: -3254 | G95: -5285 | H95: -8391 | I95: -8563 | J95: -5400 | K95: -3180 | L95: -3641
B96: Salaries and wages of distribution personnel | C96: -1423 | D96: -1766 | E96: -1015 | F96: -1478 | G96: -2063 | H96: -2150 | I96: -758 | J96: -1054 | K96: -434 | L96: -439
C97: -16161 | D97: -27733 | E97: -18857 | F97: -21126 | G97: -27402 | H97: -33639 | I97: -29634 | J97: -20969 | K97: -8787 | L97: -7785
B99: Average number of employees, persons | C99: 4721 | D99: 5366 | E99: 4978 | F99: 4855 | G99: 5287 | H99: 5575 | I99: 4549 | J99: 4477 | K99: 1787 | L99: 2036
B103: LOSS/ EARNINGS PER SHARE
B105: (Loss)/profit attributable to the owners of the Company | C105: 24026 | D105: 74748 | E105: 131956 | F105: 182221 | G105: 191943 | H105: 225448 | I105: 236032 | J105: -26103 | K105: -154640 | L105: -56978
B106: Weighted average number of ordinary shares at 31 December | C106: 20000 | D106: 435000 | E106: 5000000 | F106: 5710695 | G106: 6387185 | H106: 6387185 | I106: 6387185 | J106: 6387185 | K106: 6387185 | L106: 6387185
B107: (Loss)/earnings per share (USD) | C107: 1,511,70 | D107: 177,66 | E107: 26,73 | F107: 32 | G107: 30 | H107: 35 | I107: 37 | J107: -4 | K107: -24 | L107: -9
F110: =F105/F106 -> 0.03190872565

Sheet PPE FN
B2: Property, plant and equipment
B3: (in USD thousand, unless otherwise stated)
B4: >> Content | C4: >> List of Notes
B7: >> Movement in PPE
B8: >> PPE as security for loans
B10: Movement in PPE
B12: Initial value | C12: Land | D12: Buildings and structures | E12: Мachinery and equipment | F12: Equipment for biological assets | G12: Vehicles | H12: Other equipment | I12: Assets under construction in-progress and uninstalled equipment | J12: Total
B15: As at 1 January 2016 | C15: 1153 | D15: 259442 | E15: 55073 | F15: 80861 | G15: 2446 | H15: 1322 | I15: 57315 | J15: 457612
B16: Acquisitions | C16: 25 | D16: 196 | E16: 135 | F16: 769 | G16: 309 | H16: 44 | I16: 14181 | J16: 15659
B17: Disposals | C17: -4 | D17: -4 | E17: -319 | F17: -2 | G17: -24 | H17: -12 | I17: -648 | J17: -1013
B18: Internal transfers | C18: - | D18: 1032 | E18: -4420 | F18: 7556 | G18: - | H18: 1 | I18: -4169 | J18: -
B19: Foreign currency translation | C19: -137 | D19: -29289 | E19: -5828 | F19: -11508 | G19: -304 | H19: -157 | I19: -6131 | J19: -53354
B20: Reclassification | C20: - | D20: -20130 | E20: -5861 | F20: 25069 | G20: -5 | H20: - | I20: 927 | J20: -
B21: Balance at 31 December 2016 | C21: 1037 | D21: 211247 | E21: 38780 | F21: 102745 | G21: 2422 | H21: 1198 | I21: 61475 | J21: 418904
B23: Accumulated depreciation as at 1 January 2016 | C23: - | D23: 24802 | E23: 9489 | F23: 16051 | G23: 1455 | H23: 876 | I23: - | J23: 52673
B24: Depreciation charge | C24: - | D24: 6904 | E24: 2762 | F24: 5646 | G24: 207 | H24: 138 | I24: - | J24: 15657
B25: Depreciation eliminated on disposal | C25: - | D25: -1 | E25: -106 | F25: - | G25: -21 | H25: -11 | I25: - | J25: -139
B26: Foreign currency translation | C26: - | D26: -3190 | E26: -1042 | F26: -2582 | G26: -182 | H26: -112 | I26: - | J26: -7108
B27: Reclassification | C27: - | D27: -2148 | E27: -3816 | F27: 5964 | G27: - | H27: - | I27: - | J27: -
B28: As at 31 December 2016 | C28: - | D28: 26367 | E28: 7287 | F28: 25079 | G28: 1459 | H28: 891 | I28: - | J28: 61083
B29: Net book value as at 31 December 2016 | C29: 1037 | D29: 184880 | E29: 31493 | F29: 77666 | G29: 963 | H29: 307 | I29: 61475 | J29: 357821
B32: Initial value | C32: Land | D32: Buildings and structures | E32: Мachinery and equipment | F32: Equipment for biological assets | G32: Vehicles | H32: Other equipment | I32: Assets under construction in-progress and uninstalled equipment | J32: Total
B35: As at 1 January 2015 | C35: 1756 | D35: 360710 | E35: 85479 | F35: 84338 | G35: 3114 | H35: 1730 | I35: 98854 | J35: 635981
B36: Acquisitions of subsidiary | C36: - | D36: 4 000 | E36: 3 | F36: - | G36: 428 | H36: 121 | I36: - | J36: 4552
B37: Acquisitions | C37: - | D37: 1453 | E37: 1197 | F37: 122 | G37: 32 | H37: 93 | I37: 34167 | J37: 37064
B38: Disposals | C38: - | D38: -13 | E38: -162 | F38: -12 | G38: -42 | H38: -52 | I38: -19 | J38: -300
B39: Internal transfers | C39: - | D39: 18276 | E39: -2266 | F39: 28520 | G39: 22 | H39: 49 | I39: -44601 | J39: -
B40: Foreign currency translation | C40: -603 | D40: -125941 | E40: -29198 | F40: -31460 | G40: -1108 | H40: -613 | I40: -30756 | J40: -219679
B41: Reclassification | C41: - | D41: 957 | E41: 20 | F41: -647 | G41: - | H41: -6 | I41: -324 | J41: -
B42: Balance at 31 December 2015 | C42: 1153 | D42: 259442 | E42: 55073 | F42: 80861 | G42: 2446 | H42: 1322 | I42: 57321 | J42: 457618
B44: Accumulated depreciation as at 1 January 2015 | C44: - | D44: 24327 | E44: 9124 | F44: 19571 | G44: 1897 | H44: 1140 | I44: - | J44: 56059
B45: Depreciation charge | C45: - | D45: 9200 | E45: 4794 | F45: 3172 | G45: 268 | H45: 194 | I45: - | J45: 17628
B46: Depreciation eliminated on disposal | C46: - | D46: -4 | E46: -104 | F46: -2 | G46: -38 | H46: -46 | I46: - | J46: -194
B47: Foreign currency translation | C47: - | D47: -9223 | E47: -3478 | F47: -7031 | G47: -671 | H47: -402 | I47: - | J47: -20805
B48: Reclassification | C48: - | D48: 509 | E48: -845 | F48: 345 | G48: - | H48: -9 | I48: - | J48: -
B49: As at 31 December 2015 | C49: - | D49: 24809 | E49: 9491 | F49: 16055 | G49: 1456 | H49: 877 | I49: - | J49: 52688
B50: Net carrying value as at 31 December 2015 | C50: 1153 | D50: 234633 | E50: 45582 | F50: 64, 806 | G50: 990 | H50: 445 | I50: 57321 | J50: 404930
B53: Initial value | C53: Land | D53: Buildings and structures | E53: Мachinery and equipment | F53: Equipment for biological assets | G53: Vehicles | H53: Other equipment | I53: Assets under construction in-progress and uninstalled equipment | J53: Total
B56: As at 1 January 2014 | C56: 3463 | D56: 362997 | E56: 49091 | F56: 106411 | G56: 6652 | H56: 3227 | I56: 663077 | J56: 1194918
B57: Acquisitions | C57: - | D57: 70 | E57: 369 | F57: 15 | G57: 103 | H57: 31 | I57: 73928 | J57: 74516
B58: Disposals | C58: - | D58: -1453 | E58: -38 | F58: -883 | G58: -1 | H58: -12 | I58: -61 | J58: -2448
B59: Impairment | C59: - | D59: -16733 | E59: -1122 | F59: -10679 | G59: -631 | H59: -131 | I59: -2673 | J59: -31969
B60: Internal transfers | C60: - | D60: 252083 | E60: 77638 | F60: 55171 | G60: 189 | H60: 236 | I60: -385317 | J60: -
B61: Foreign currency translation | C61: -1707 | D61: -236254 | E61: -43834 | F61: -62322 | G61: -3198 | H61: -1621 | I61: -250100 | J61: -599036
B62: Reclassification | C62: - | D62: - | E62: 3375 | F62: -3375 | G62: - | H62: - | I62: - | J62: -
B63: Balance at 31 December 2014 | C63: 1756 | D63: 360710 | E63: 85479 | F63: 84338 | G63: 3114 | H63: 1730 | I63: 98854 | J63: 635981
B65: Accumulated depreciation as at 1 January 2014
C66: - | D66: 35314 | E66: 10690 | F66: 39810 | G66: 3611 | H66: 1863 | I66: - | J66: 91288
B67: Depreciation charge | C67: - | D67: 11262 | E67: 5460 | F67: 4186 | G67: 500 | H67: 384 | I67: - | J67: 21792
B68: Depreciation eliminated on disposal | C68: - | D68: -87 | E68: -24 | F68: -118 | G68: -1 | H68: -10 | I68: - | J68: -240
B69: Impairment | C69: - | D69: -2666 | E69: -528 | F69: -4873 | G69: -412 | H69: -118 | I69: - | J69: -8597
B70: Foreign currency translation | C70: - | D70: -19496 | E70: -6477 | F70: -19434 | G70: -1801 | H70: -976 | I70: - | J70: -48184
B71: Reclassification | C71: - | D71: - | E71: 3 | F71: - | G71: - | H71: -3 | I71: - | J71: -
B72: As at 31 December 2014 | C72: - | D72: 24327 | E72: 9124 | F72: 19571 | G72: 1897 | H72: 1140 | I72: - | J72: 56059
B73: Net carrying value as at 31 December 2014 | C73: 1756 | D73: 336383 | E73: 76355 | F73: 64767 | G73: 1217 | H73: 590 | I73: 98854 | J73: 579922
B76: Initial value | C76: Land | D76: Buildings and structures | E76: Мachinery and equipment | F76: Equipment for biological assets | G76: Vehicles | H76: Other equipment | I76: Assets under construction in-progress and uninstalled equipment | J76: Total
B77: As at 1 January 2013 | C77: 3464 | D77: 301995 | E77: 48381 | F77: 101353 | G77: 6340 | H77: 3100 | I77: 521381 | J77: 986014
B78: Acquisitions | C78: - | D78: 501 | E78: 557 | F78: 24 | G78: 30 | H78: 75 | I78: 208233 | J78: 209420
B79: Acquisitions of subsidiary | C79: - | D79: - | E79: - | F79: - | G79: - | H79: - | I79: - | J79: -
B80: Disposals | C80: - | D80: -223 | E80: -158 | F80: -2 | G80: -34 | H80: -37 | I80: -9 | J80: -463
B81: Foreign currency translation | C81: -1 | D81: -19 | E81: -3 | F81: -8 | G81: - | H81: - | I81: -22 | J81: -53
B82: Internal transfers | C82: - | D82: 60713 | E82: 203 | F82: 5044 | G82: 316 | H82: 119 | I82: -66395 | J82: -
B83: Reclassification | C83: - | D83: 30 | E83: 111 | F83: - | G83: - | H83: -30 | I83: -111 | J83: -
B84: As at 31 December 2013 | C84: 3463 | D84: 362997 | E84: 49091 | F84: 106411 | G84: 6652 | H84: 3227 | I84: 663077 | J84: 1194918
B85: Accumulated depreciation as at 1 January 2013 | C85: - | D85: 22612 | E85: 6441 | F85: 32658 | G85: 2851 | H85: 1380 | I85: - | J85: 65942
B86: Depreciation charge | C86: - | D86: 12719 | E86: 4308 | F86: 7154 | G86: 770 | H86: 536 | I86: - | J86: 25487
B87: Depreciation eliminated on disposal' | C87: - | D87: -37 | E87: -63 | F87: - | G87: -10 | H87: -27 | I87: - | J87: -137
B88: Foreign currency translation | C88: - | D88: -2 | E88: - | F88: -2 | G88: - | H88: - | I88: - | J88: -4
B89: Reclassification | C89: - | D89: 22 | E89: 4 | F89: - | G89: - | H89: -26 | I89: - | J89: -
B90: As at 31 December 2013 | C90: - | D90: 35314 | E90: 10690 | F90: 39810 | G90: 3611 | H90: 1863 | I90: - | J90: 91288
B91: Net carrying value as at 31 December 2013 | C91: 3463 | D91: 327683 | E91: 38401 | F91: 66601 | G91: 3041 | H91: 1364 | I91: 663077 | J91: 1103630
B93: Initial value | C93: Land | D93: Buildings and structures | E93: Мachinery and equipment | F93: Equipment for biological assets | G93: Vehicles | H93: Other equipment | I93: Assets under construction in-progress and uninstalled equipment | J93: Total
B94: As at 1 January 2012 | C94: 3465 | D94: 173848 | E94: 22042 | F94: 91371 | G94: 5306 | H94: 2460 | I94: 264936 | J94: 563428
B95: Acquisitions | C95: - | D95: 17383 | E95: 1071 | F95: 47 | G95: 854 | H95: 448 | I95: 406874 | J95: 426677
B96: Acquisitions of subsidiary | C96: - | D96: 0 | E96: 0 | F96: - | G96: - | H96: 0 | I96: - | J96: 0
B97: Disposals | C97: - | D97: -4 | E97: -52 | F97: 0 | G97: -33 | H97: -17 | I97: -3731 | J97: -3837
B98: Foreign currency translation | C98: -1 | D98: -86 | E98: -13 | F98: -33 | G98: -2 | H98: -1 | I98: -118 | J98: -254
B99: Internal transfers | C99: - | D99: 110854 | E99: 25915 | F99: 9423 | G99: 215 | H99: 173 | I99: -146580 | J99: 0
B100: Reclassification | C100: - | D100: 0 | E100: -582 | F100: 545 | G100: - | H100: 37 | I100: - | J100: 0
B101: As at 31 December 2012 | C101: 3464 | D101: 301995 | E101: 48381 | F101: 101353 | G101: 6340 | H101: 3100 | I101: 521381 | J101: 986014
B102: Accumulated depreciation as at 1 January 2012 | C102: - | D102: 17220 | E102: 4671 | F102: 25778 | G102: 2156 | H102: 909 | I102: - | J102: 50734
B103: Depreciation charge | C103: - | D103: 5399 | E103: 1959 | F103: 6727 | G103: 715 | H103: 484 | I103: - | J103: 15284
B104: Depreciation eliminated on disposal' | C104: - | D104: 0 | E104: -24 | F104: 0 | G104: -19 | H104: -13 | I104: - | J104: -56
B105: Foreign currency translation | C105: - | D105: -7 | E105: -2 | F105: -10 | G105: -1 | H105: 0 | I105: - | J105: -20
B106: Reclassification | C106: - | D106: - | E106: -163 | F106: 163 | G106: - | H106: 0 | I106: - | J106: 0
B107: As at 31 December 2012 | C107: - | D107: 22612 | E107: 6441 | F107: 32658 | G107: 2851 | H107: 1380 | I107: 0 | J107: 65942
B108: Net carrying value as at 31 December 2012 | C108: 3464 | D108: 279383 | E108: 41940 | F108: 68695 | G108: 3489 | H108: 1720 | I108: 521381 | J108: 920072
B111: Initial value | C111: Land | D111: Buildings and structures | E111: Мachinery and equipment | F111: Equipment for biological assets | G111: Vehicles | H111: Other equipment | I111: Assets under construction in-progress and uninstalled equipment | J111: Total
B112: As at 1 January 2011 | C112: 3477 | D112: 157864 | E112: 14801 | F112: 87435 | G112: 4355 | H112: 1412 | I112: 163570 | J112: 432914
B113: Acquisitions | C113: - | D113: 1071 | E113: 728 | F113: 99 | G113: 1021 | H113: 759 | I113: 119373 | J113: 123051
B114: Acquisitions of subsidiary | C114: - | D114: 8248 | E114: 6310 | F114: - | G114: - | H114: 319 | I114: - | J114: 14877
B115: Disposals | C115: - | D115: -56 | E115: -106 | F115: -69 | G115: -52 | H115: -23 | I115: -5230 | J115: -5536
B116: Foreign currency translation | C116: -12 | D116: -577 | E116: -89 | F116: -319 | G116: -18 | H116: -5 | I116: -858 | J116: -1878
B117: Internal transfers | C117: - | D117: 7317 | E117: 377 | F117: 4225 | G117: - | H117: - | I117: -11919 | J117: -
B118: Reclassification | C118: - | D118: -19 | E118: 21 | F118: - | G118: - | H118: -2 | I118: - | J118: -
B119: As at 31 December 2011 | C119: 3465 | D119: 173848 | E119: 22042 | F119: 91371 | G119: 5306 | H119: 2460 | I119: 264936 | J119: 563428
B120: Accumulated depreciation as at 1 January 2011 | C120: - | D120: 12181 | E120: 3236 | F120: 18933 | G120: 1632 | H120: 696 | I120: - | J120: 36678
B121: Depreciation charge | C121: - | D121: 5101 | E121: 1497 | F121: 6943 | G121: 557 | H121: 232 | I121: - | J121: 14330
B122: Depreciation eliminated on disposal' | C122: - | D122: -5 | E122: -48 | F122: -11 | G122: -26 | H122: -16 | I122: - | J122: -106
B123: Foreign currency translation | C123: - | D123: -57 | E123: -15 | F123: -86 | G123: -7 | H123: -6 | I123: - | J123: -171
B124: Reclassification | C124: - | D124: - | E124: - | F124: - | G124: - | H124: - | I124: - | J124: -
B125: As at 31 December 2011 | C125: - | D125: 17220 | E125: 4671 | F125: 25778 | G125: 2156 | H125: 906 | I125: - | J125: 50731
B126: Net carrying value as at 31 December 2011 | C126: 3465 | D126: 156628 | E126: 17371 | F126: 65593 | G126: 3150 | H126: 1554 | I126: 264936 | J126: 512697
B130: Initial value | C130: Land | D130: Buildings and structures | E130: Мachinery and equipment | F130: Equipment for biological assets | G130: Vehicles | H130: Other equipment | I130: Assets under construction in-progress and uninstalled equipment | J130: Total
B131: As at 1 January 2010 | C131: 3466 | D131: 121378 | E131: 24914 | F131: 66403 | G131: 3751 | H131: 6129 | I131: 173435 | J131: 399476
B132: Additions | C132: 0 | D132: 7291 | E132: 3440 | F132: 60 | G132: 107 | H132: 32 | I132: 21543 | J132: 32473
B133: Disposals | C133: 0 | D133: -23 | E133: -23 | F133: -17 | G133: -24 | H133: -10 | I133: 0 | J133: -97
B134: Foreign currency translation | C134: 11 | D134: 235 | E134: 106 | F134: 125 | G134: 9 | H134: 34 | I134: 542 | J134: 1062
B135: Internal transfers | C135: 0 | D135: 14664 | E135: 82 | F135: 17157 | G135: 10 | H135: 2 | I135: -31915 | J135: -
B136: Reclassification | C136: 0 | D136: 14319 | E136: -13718 | F136: 3707 | G136: 502 | H136: -4775 | I136: -35 | J136: -
B137: As at 31 December 2010 | C137: 3477 | D137: 157864 | E137: 14801 | F137: 87435 | G137: 4355 | H137: 1412 | I137: 163570 | J137: 432914
B138: Accumulated depreciation as at 1 January 2010 | C138: 0 | D138: 6428 | E138: 2492 | F138: 11815 | G138: 975 | H138: 2340 | I138: 0 | J138: 24050
B139: Depreciation charge | C139: 0 | D139: 4627 | E139: 983 | F139: 6253 | G139: 549 | H139: 225 | I139: 0 | J139: 12637
B140: Depreciation eliminated on disposal' | C140: 0 | D140: -1 | E140: -10 | F140: -10 | G140: -11 | H140: -6 | I140: 0 | J140: -38
B141: Foreign currency translation | C141: 0 | D141: 0 | E141: 5 | F141: 12 | G141: - | H141: 12 | I141: 0 | J141: 29
B142: Reclassification | C142: 0 | D142: 1127 | E142: -234 | F142: 863 | G142: 119 | H142: -1875 | I142: 0 | J142: -
B143: As at 31 December 2010 | C143: 0 | D143: 12181 | E143: 3237 | F143: 18932 | G143: 1632 | H143: 696 | I143: 0 | J143: 36678
B144: Net carrying value as at 31 December 2010 | C144: 3477 | D144: 145683 | E144: 11564 | F144: 68503 | G144: 2723 | H144: 717 | I144: 163569 | J144: 396236
B146: Initial value | C146: Land | D146: Buildings and structures | E146: Мachinery and equipment | F146: Equipment for biological assets | G146: Vehicles | H146: Other equipment | I146: Assets under construction in-progress and uninstalled equipment | J146: Total
B147: As at 1 January 2009 | C147: 3595 | D147: 110106 | E147: 21868 | F147: 65479 | G147: 3840 | H147: 6181 | I147: 169713 | J147: 380782
B148: Acquisitions | C148: 0 | D148: 5037 | E148: 2186 | F148: 132 | G148: 60 | H148: 62 | I148: 22063 | J148: 29540
B149: Replacement of components | C149: 0 | D149: 1766 | E149: 257 | F149: 102 | G149: 16 | H149: 24 | I149: 0 | J149: 2165
B150: Merger of entities under common control | C150: 0 | D150: 0 | E150: 1501 | F150: 0 | G150: 0 | H150: 18 | I150: 0 | J150: 1519
B151: Disposals | C151: 0 | D151: -64 | E151: -3 | F151: 0 | G151: -27 | H151: -6 | I151: 0 | J151: -100
B152: Foreign currency translation | C152: -129 | D152: -4274 | E152: -904 | F152: -2417 | G152: -138 | H152: -229 | I152: -6339 | J152: -14430
B153: Internal transfers | C153: 0 | D153: 8807 | E153: 9 | F153: 3107 | G153: - | H153: 79 | I153: -12002 | J153: -
B154: As at 31 December 2009 | C154: 3466 | D154: 121378 | E154: 24914 | F154: 66403 | G154: 3751 | H154: 6129 | I154: 173435 | J154: 399476
B155: Accumulated depreciation as at 1 January 2009 | C155: 0 | D155: 3189 | E155: 1014 | F155: 6285 | G155: 513 | H155: 1517 | I155: 0 | J155: 12518
B156: Depreciation charge for year | C156: 0 | D156: 3441 | E156: 1546 | F156: 5898 | G156: 499 | H156: 901 | I156: 0 | J156: 12285
B157: Merger of entities under common control | C157: 0 | D157: - | E157: 6 | F157: - | G157: - | H157: 1 | I157: 0 | J157: 7
B158: Depreciation eliminated on disposal' | C158: 0 | D158: -3 | E158: - | F158: - | G158: -7 | H158: -3 | I158: 0 | J158: -13
B159: Foreign currency translation | C159: 0 | D159: -199 | E159: -74 | F159: -368 | G159: -30 | H159: -76 | I159: 0 | J159: -747
B160: As at 31 December 2009 | C160: 0 | D160: 6428 | E160: 2492 | F160: 11815 | G160: 975 | H160: 2340 | I160: 0 | J160: 24050
B161: Net carrying value as at 31 December 2009 | C161: 3466 | D161: 114950 | E161: 22422 | F161: 54588 | G161: 2776 | H161: 3789 | I161: 173435 | J161: 375426
B163: Initial value | C163: Land | D163: Buildings and structures | E163: Мachinery and equipment | F163: Equipment for biological assets | G163: Vehicles | H163: Other equipment | I163: Assets under construction in-progress and uninstalled equipment | J163: Total
B164: As at 1 January 2008 | C164: 5481 | D164: 126847 | E164: 15017 | F164: 54818 | G164: 3969 | H164: 8516 | I164: 5957 | J164: 220605
B165: Acquisitions | C165: 0 | D165: 24320 | E165: 17315 | F165: 23662 | G165: 1477 | H165: 346 | I165: 247766 | J165: 314886
B166: Replacement of components | C166: 0 | D166: 6024 | E166: 208 | F166: 6941 | G166: 33 | H166: 27 | I166: 45 | J166: 13278
B167: Merger of entities under common control | C167: 0 | D167: 10331 | E167: 433 | F167: 5884 | G167: 397 | H167: 836 | I167: 6852 | J167: 24733
B168: Disposals | C168: 0 | D168: -147 | E168: -339 | F168: -139 | G168: -54 | H168: -35 | I168: 0 | J168: -714
B169: Foreign currency translation | C169: -1886 | D169: -57129 | E169: -11051 | F169: -33473 | G169: -1982 | H169: -3246 | I169: -83239 | J169: -192006
B170: Internal transfers | C170: 0 | D170: -140 | E170: 285 | F170: 7786 | G170: - | H170: -263 | I170: -7668 | J170: 0
B171: As at 31 December 2008 | C171: 3595 | D171: 110106 | E171: 21868 | F171: 65479 | G171: 3840 | H171: 6181 | I171: 169713 | J171: 380782
B172: Accumulated depreciation as at 1 January 2008 | C172: 0 | D172: 1684 | E172: 678 | F172: 3476 | G172: 260 | H172: 978 | I172: 0 | J172: 7076
B173: Depreciation charge for year | C173: 0 | D173: 3111 | E173: 873 | F173: 5973 | G173: 518 | H173: 1305 | I173: 0 | J173: 11780
B174: Depreciation eliminated on disposal' | C174: 0 | D174: -2 | E174: -22 | F174: -12 | G174: -8 | H174: -10 | I174: 0 | J174: -54
B175: Foreign currency translation | C175: 0 | D175: -1604 | E175: -515 | F175: -3152 | G175: -257 | H175: -756 | I175: 0 | J175: -6284
B176: As at 31 December 2008 | C176: 0 | D176: 3189 | E176: 1014 | F176: 6285 | G176: 513 | H176: 1517 | I176: 0 | J176: 12518
B177: Net carrying value as at 31 December 2008 | C177: 3595 | D177: 106917 | E177: 20854 | F177: 59194 | G177: 3327 | H177: 4664 | I177: 169713 | J177: 368264
B179: Initial value | C179: Land | D179: Buildings and structures | E179: Мachinery and equipment | F179: Equipment for biological assets | G179: Vehicles | H179: Other equipment | I179: Assets under construction in-progress and uninstalled equipment | J179: Total
B180: As at 1 January 2007 | C180: 1 | D180: 61552 | E180: 10303 | F180: 29045 | G180: 2040 | H180: 432 | I180: 182 | J180: 103555
B181: Acquisitions | C181: 28 | D181: 21689 | E181: 1916 | F181: 22061 | G181: 624 | H181: 679 | I181: 5022 | J181: 52019
B182: Replacement of components | C182: 1 | D182: 904 | E182: 85 | F182: 919 | G182: 26 | H182: 29 | I182: 209 | J182: 2173
B183: Merger of entities under common control | C183: 5451 | D183: 42950 | E183: 2770 | F183: 2864 | G183: 1313 | H183: 7393 | I183: 544 | J183: 63285
B184: Disposals | C184: 0 | D184: -248 | E184: -57 | F184: -71 | G184: -34 | H184: -17 | I184: 0 | J184: -427
B185: As at 31 December 2007 | C185: 5481 | D185: 126847 | E185: 15017 | F185: 54818 | G185: 3969 | H185: 8516 | I185: 5957 | J185: 220605
B186: Accumulated depreciation as at 1 January 2008 | C186: 0 | D186: 503 | E186: 216 | F186: 711 | G186: 61 | H186: 13 | I186: 0 | J186: 1504
B187: Depreciation charge for year | C187: 0 | D187: 1184 | E187: 462 | F187: 2768 | G187: 202 | H187: 976 | I187: 0 | J187: 5592
B188: Depreciation eliminated on disposal' | C188: 0 | D188: -3 | E188: - | F188: -3 | G188: -3 | H188: -11 | I188: 0 | J188: -20
B189: As at 31 December 2007 | C189: 0 | D189: 1684 | E189: 678 | F189: 3476 | G189: 260 | H189: 978 | I189: 0 | J189: 7076
B190: Net carrying value as at 31 December 2007 | C190: 5481 | D190: 125163 | E190: 14339 | F190: 51342 | G190: 3709 | H190: 7538 | I190: 5957 | J190: 213529
C193: up
B194: PPE as security for loans
C195: Carrying value of security as at 31 December 2007 | D195: Carrying value of security as at 31 December 2008 | E195: Carrying value of security as at 31 December 2009 | F195: Carrying value of security as at 31 December 2010 | G195: Carrying value of security as at 31 December 2011 | H195: Carrying value of security as at 31 December 2012 | I195: Carrying value of security as at 31 December 2013 | J195: Carrying value of security as at 31 December 2014 | K195: Carrying value of security as at 31 December 2015 | L195: Carrying value of security as at 31 December 2016
B196: Buildings and structures | C196: 125163 | D196: 106917 | E196: 114950 | F196: 49873 | G196: 87998 | H196: 66520 | I196: 81346 | J196: 39440 | K196: 25981 | L196: 35377
B197: Мachinery and equipment | C197: 14339 | D197: 20854 | E197: 22422 | F197: 1 | G197: 6406 | H197: 5914 | I197: 161 | J197: 15241 | K197: 9614 | L197: 1160
B198: Equipment for biological assets | C198: 51342 | D198: 59194 | E198: 54588 | F198: 933 | G198: 10724 | H198: 10054 | I198: 7123 | J198: 7546 | K198: 5268 | L198: 23784
B199: Land | C199: - | D199: - | E199: - | F199: - | G199: - | H199: - | I199: - | J199: - | K199: - | L199: 1025
B200: Vehicles | C200: 3709 | D200: 3327 | E200: 2776 | F200: 213 | G200: 407 | H200: 265 | I200: 221 | J200: 91 | K200: 46 | L200: -
B201: Other equipment | C201: 0 | D201: 0 | E201: 0 | F201: 0 | G201: 333 | H201: 293 | I201: 4 | J201: 1 | K201: 1 | L201: -
B202: Assets under construction in-progress and uninstalled equipment | C202: 0 | D202: 169713 | E202: 173435 | F202: 0 | G202: 46463 | H202: 46288 | I202: 41430 | J202: 1881 | K202: 282 | L202: -
C203: 194553 | D203: 360005 | E203: 368171 | F203: 51020 | G203: 152331 | H203: 129334 | I203: 130285 | J203: 64200 | K203: 41191 | L203: 61346

Sheet Financial Risk Management FN
B2: Financial Risk Management (Notes to Financials)
B3: (in USD thousand, unless otherwise stated)
B4: >> Content | C4: >> List of Notes
B6: >> Financial Assets
B7: >> Carrying value of trade accounts receivable
B8: >> Movement in provision for doubtful debts
B9: >> Expected maturity of components of working capital
B10: >> Exposure to foreign currency risk
B11: >> Sensitivity analysis (foreign currency risk)
B12: >> Structure of interest financial instruments
B13: >> Finacial leverage
B14: >> Net debt to EBITDA
B17: Financial Assets
C18: 31 December 2007 | D18: 31 December 2008 | E18: 31 December 2009 | F18: 31 December 2010 | G18: 31 December 2011 | H18: 31 December 2012 | I18: 31 December 2013 | J18: 31 December 2014 | K18: 31 December 2015 | L18: 31 December 2016
B19: Loans and accounts receivable
B20: Cash and cash equivalents | C20: 4460 | D20: 5878 | E20: 1727 | F20: 183065 | G20: 237814 | H20: 204298 | I20: 156804 | J20: 117812 | K20: 31301 | L20: 12570
B21: Long-term deposits | C21: 107627 | D21: 49351 | E21: 504 | F21: - | G21: 0 | H21: 0 | I21: 0 | J21: 0 | K21: 0 | L21: 0
B22: Short-term deposits | C22: 37363 | D22: 233271 | E22: 155917 | F22: - | G22: 0 | H22: 0 | I22: 0 | J22: 0 | K22: 0 | L22: 0
B23: Trade accounts receivable, net | C23: 47953 | D23: 15593 | E23: 47320 | F23: 54678 | G23: 51437 | H23: 55551 | I23: 88972 | J23: 79221 | K23: 56665 | L23: 40628
B24: Financial assistance issued | C24: 5733 | D24: 702 | E24: 4320 | F24: 180 | G24: 16 | H24: 0 | I24: 0 | J24: 0 | K24: 0 | L24: 0
B25: Accounts receivable under commission contract | C25: 19802 | D25: 12987 | E25: 0 | F25: 0 | G25: 0 | H25: 0 | I25: 0 | J25: 0 | K25: 0 | L25: 0
B26: Interest receivable for deposits | C26: 29 | D26: 79 | E26: 39411 | F26: 10 | G26: - | H26: - | I26: 0 | J26: 0 | K26: 0 | L26: 0
B27: Accounts receivable for bonds | C27: 0 | D27: 25496 | E27: 0 | F27: 0 | G27: 0 | H27: 0 | I27: 0 | J27: 0 | K27: 0 | L27: 0
B28: Held to maturity investments | C28: 0 | D28: 0 | E28: 0 | F28: 0 | G28: 0 | H28: 0 | I28: 0 | J28: 17959 | K28: 13599 | L28: 9532
B29: Nominal investment certificates | C29: 29703 | D29: 0 | E29: 0 | F29: 0 | G29: 0 | H29: 0 | I29: 0 | J29: 0 | K29: 0 | L29: 0
C30: 252670 | D30: 343357 | E30: 249199 | F30: 238228 | G30: 289267 | H30: 259849 | I30: =SUM(I20:I29) -> 245776 | J30: 214992 | K30: 101565 | L30: 62730
B31: Held to maturity financial assets
B32: VAT government bonds | C32: 0 | D32: 0 | E32: 0 | F32: 257 | G32: - | H32: - | I32: - | J32: 26433 | K32: 13025 | L32: 7664
B33: Discount VAT government bonds | C33: 0 | D33: 0 | E33: 0 | F33: 0 | G33: 0 | H33: 0 | I33: 0 | J33: -8474 | K33: -3768 | L33: -1964
B34: Other long-term financial assets to non-related parties | C34: 0 | D34: 41 | E34: 40 | F34: 38 | G34: - | H34: - | I34: - | J34: - | K34: - | L34: -
B36: Total | C36: 252670 | D36: 343398 | E36: 249239 | F36: 238523 | G36: 289267 | H36: 259849 | I36: =SUM(I25:I34) -> 245776 | J36: =SUM(J30:J35) -> 232951 | K36: =SUM(K30:K35) -> 110822 | L36: =SUM(L30:L35) -> 68430
D39: up
B40: Carrying value of trade accounts receivable
C41: 0-30 days | D41: 31-60 days | E41: 61-90 days | F41: 91-120 days | G41: 121-180 days | H41: 121-180 days | I41: Over one year | J41: TOTAL
B42: 31 December 2016 | C42: 12993 | D42: 14637 | E42: 8275 | F42: 3520 | G42: 687 | H42: 100 | I42: 416 | J42: 40628
B43: 31 December 2015 | C43: 15447 | D43: 13072 | E43: 10227 | F43: 5961 | G43: 6017 | H43: 5855 | I43: 86 | J43: 56665
B44: 31 December 2014 | C44: 30100 | D44: 22352 | E44: 11972 | F44: 6270 | G44: 6794 | H44: 1722 | I44: 11 | J44: 79221
B45: 31 December 2013 | C45: 31198 | D45: 22631 | E45: 18118 | F45: 6459 | G45: 2638 | H45: 7920 | I45: 8 | J45: 88972
B46: 31 December 2012 | C46: 52554 | D46: 2215 | E46: 590 | F46: 71 | G46: 84 | H46: 37 | I46: 0 | J46: 55551
B47: 31 December 2011 | C47: 50417 | D47: 212 | E47: 36 | F47: 84 | G47: 77 | H47: 77 | I47: 611 | J47: 51437
B48: 31 December 2010 | C48: 29190 | D48: 45 | E48: 670 | F48: 300 | G48: 5286 | H48: 5286 | I48: 218 | J48: 54678
B49: 31 December 2009 | C49: 10080 | D49: 11471 | E49: 1268 | F49: 1289 | G49: 5678 | H49: 5678 | I49: 914 | J49: 47320
B50: 31 December 2008 | C50: 7118 | D50: 1099 | E50: 946 | F50: 1667 | G50: 692 | H50: 692 | I50: 237 | J50: 15593
B51: 31 December 2007 | C51: 21707 | D51: 3405 | E51: 2929 | F51: 5163 | G51: 2143 | H51: 2143 | I51: 733 | J51: 47954
B53: Movement in provision for doubtful debts
C54: 31 December 2007 | D54: 31 December 2008 | E54: 31 December 2009 | F54: 31 December 2010 | G54: 31 December 2011 | H54: 31 December 2012 | I54: 31 December 2013 | J54: 31 December 2014 | K54: 31 December 2015 | L54: 31 December 2016
B56: As at 1 January | C56: 0 | D56: 0 | E56: 0 | F56: 0 | G56: 0 | H56: 0 | I56: -1281 | J56: -982 | K56: -9996 | L56: -42273
B57: Change in provisions | C57: 0 | D57: 0 | E57: 0 | F57: 0 | G57: 0 | H57: 0 | I57: -13781 | J57: -1226 | K57: -37402 | L57: -17279
B58: Write-offs | C58: 0 | D58: 0 | E58: 0 | F58: 0 | G58: 0 | H58: 0 | I58: 860 | J58: 927 | K58: 2754 | L58: -
B59: Currency translation reserve | C59: 0 | D59: 0 | E59: 0 | F59: 0 | G59: 0 | H59: 0 | I59: 4206 | J59: - | K59: 2371 | L59: 6149
B60: As at 31 December | I60: -9996 | J60: -1281 | K60: -42273 | L60: -53403
D66: up
B67: Expected maturity of components of working capital
B69: 31 December 2016
C70: Contractual cash flows | D70: Less than 3 months | E70: From 3 months to 1 year | F70: From 1 to 5 years | G70: Over 5 years
B72: Bank loans | C72: -167824 | D72: - | E72: -38288 | F72: -93338 | G72: -36199
B73: Finance lease (including VAT) | C73: -3 | D73: - | E73: - | F73: -3 | G73: -
B74: Long-term bond liabilities | C74: -267633 | D74: - | E74: -11226 | F74: -256407 | G74: -
B75: Trade accounts payable | C75: -3062 | D75: -3062 | E75: - | F75: - | G75: -
B76: Dividends payable | C76: -29542 | D76: - | E76: - | F76: -29542 | G76: -
C77: -468064 | D77: -3062 | E77: -49514 | F77: -379290 | G77: -36199
B78: 31 December 2015
C79: Contractual cash flows | D79: Less than 3 months | E79: From 3 months to 1 year | F79: From 1 to 5 years | G79: Over 5 years
B81: Bank loans | C81: -146010 | D81: - | E81: -75253 | F81: -55619 | G81: -15138
B82: Finance lease (including VAT) | C82: -44 | D82: - | E82: -16 | F82: -28 | G82: -
B83: Long-term bond liabilities | C83: -272880 | D83: - | E83: -5247 | F83: -267633 | G83: -
B84: Trade accounts payable | C84: -3375 | D84: -3375 | E84: - | F84: - | G84: -
B85: Dividends payable | C85: -29552 | D85: - | E85: - | F85: -29552 | G85: -
C86: -451861 | D86: -3375 | E86: -80516 | F86: -352832 | G86: -15138
B88: 31 December 2014
C89: Contractual cash flows | D89: Less than 3 months | E89: From 3 months to 1 year | F89: From 1 to 5 years | G89: Over 5 years
B91: Bank loans | C91: -172802 | D91: - | E91: -73624 | F91: -75758 | G91: -23420
B92: Finance lease (including VAT) | C92: -87 | D92: - | E92: -24 | F92: -63 | G92: -
B93: Current liabilities for bonds | C93: -3462 | D93: - | E93: -3462 | F93: - | G93: -
B94: Current liabilities for bonds | C94: -220000 | D94: - | E94: -220000 | F94: - | G94: -
B95: Trade accounts payable | C95: -6907 | D95: -6907 | E95: - | F95: - | G95: -
B96: Dividends payable | C96: -29542 | D96: - | E96: -29542 | F96: - | G96: -
C97: -432800 | D97: -6907 | E97: -326652 | F97: -75821 | G97: -23420
B99: 31 December 2013
C100: Contractual cash flows | D100: Less than 3 months | E100: From 3 months to 1 year | F100: From 1 to 5 years | G100: Over 5 years
B101: Bank loans | C101: -134371 | D101: - | E101: -67743 | F101: -47280 | G101: -19348
B102: Finance lease (including VAT) | C102: -1142 | D102: - | E102: -1141 | F102: -1 | G102: -
B103: Current liabilities for bonds | C103: -3462 | D103: - | E103: -3462 | F103: - | G103: -
B104: Long-term bond liabilities | C104: -240000 | D104: - | E104: -20000 | F104: -220000 | G104: -
B105: Trade accounts payable | C105: -15084 | D105: -15084 | E105: - | F105: - | G105: -
C106: -394059 | D106: -15084 | E106: -92346 | F106: -267281 | G106: (19, 348)
C108: Contractual cash flows | D108: Less than 3 months | E108: From 3 months to 1 year | F108: From 1 to 5 years | G108: Over 5 years
B109: 31 December 2012
B110: Bank loans | C110: -133877 | D110: 0 | E110: -130634 | F110: -3244 | G110: -
B111: Finance lease (including VAT) | C111: -4225 | D111: 0 | E111: -2869 | F111: -1356 | G111: -
B112: Current liabilities for bonds | C112: -27194 | D112: 0 | E112: -27194 | F112: - | G112: -
B113: Long-term bond liabilities | C113: -260000 | D113: 0 | E113: -20000 | F113: -240000 | G113: -
B114: Trade accounts payable | C114: -24435 | D114: -24435 | E114: - | F114: - | G114: -
C115: -450126 | D115: -24435 | E115: -181018 | F115: -244674 | G115: -
C118: Carrying value | D118: Less than 3 months | E118: From 3 months to 1 year | F118: From 1 to 5 years | G118: Over 5 years
B119: 31 December 2011
B120: Trade accounts receivable | C120: 51437 | D120: 51437 | E120: - | F120: - | G120: -
B121: Financial assistance issued | C121: 16 | D121: 16 | E121: - | F121: - | G121: -
B122: Cash and cash equivalents | C122: 237814 | D122: 237814 | E122: - | F122: - | G122: -
B123: Other non-trade accounts receivable | C123: 5395 | D123: 5395 | E123: - | F123: - | G123: -
B124: Interest receivable for deposits | C124: - | D124: - | E124: - | F124: - | G124: -
B125: Bank loans | C125: -88333 | D125: -668 | E125: -75890 | F125: -11775 | G125: -
B126: Other long-term loans | C126: -3609 | D126: - | E126: - | F126: -3609 | G126: -
B127: Short-term loans | C127: -213 | D127: - | E127: -213 | F127: - | G127: -
B128: Trade accounts payable | C128: -17894 | D128: -17894 | E128: - | F128: - | G128: -
B129: Interest free loans | C129: -181 | D129: - | E129: -181 | F129: - | G129: -
B130: Finance lease (including VAT) | C130: -6384 | D130: - | E130: -2554 | F130: -3830 | G130: -
B131: Current liabilities for bonds | C131: -25013 | D131: - | E131: -25013 | F131: - | G131: -
B132: Long-term bond liabilities | C132: -194563 | D132: - | E132: - | F132: -194563 | G132: -
B133: Accounts payable for property, plant and equipment | C133: -4687 | D133: - | E133: -4687 | F133: - | G133: -
B134: Interest payable | C134: -717 | D134: -717 | E134: - | F134: - | G134: -
B135: Accrued coupon on bonds | C135: -5918 | D135: -5918 | E135: - | F135: - | G135: -
B136: Other payables | C136: -6910 | D136: -6910 | E136: - | F136: - | G136: -
C137: -59760 | D137: 262555 | E137: -108538 | F137: -213777 | G137: -
B139: 31 December 2010
B140: Trade accounts receivable | C140: 54678 | D140: 54678 | E140: 0 | F140: 0 | G140: 0
B141: Financial assistance issued | C141: 180 | D141: 180 | E141: 0 | F141: 0 | G141: 0
B142: Cash and cash equivalents | C142: 183065 | D142: 183065 | E142: 0 | F142: 0 | G142: 0
B143: Other non-trade accounts receivable | C143: 16008 | D143: 16008 | E143: 0 | F143: 0 | G143: 0
B144: Interest receivable for deposits | C144: 10 | D144: 10 | E144: 0 | F144: 0 | G144: 0
B145: Bank loans | C145: -34071 | D145: -985 | E145: -3200 | F145: -29886 | G145: 0
B146: Other long-term loans | C146: -1113 | D146: 0 | E146: 0 | F146: -1113 | G146: 0
B147: Shor-term loans | C147: -51 | D147: 0 | E147: -51 | F147: 0 | G147: 0
B148: Trade accounts payable | C148: -23191 | D148: -23191 | E148: 0 | F148: 0 | G148: 0
B149: Loans from related parties | C149: -20 | D149: 0 | E149: -20 | F149: 0 | G149: 0
B150: Finance lease (including VAT) | C150: -7186 | D150: 0 | E150: -814 | F150: -6372 | G150: 0
B151: Current liabilities for bonds | C151: -25120 | D151: 0 | E151: -25120 | F151: - | G151: 0
B152: Long-term bond liabilities | C152: -193471 | D152: 0 | E152: 0 | F152: -193471 | G152: 0
B153: Accounts payable for property, plant and equipment | C153: -6728 | D153: 0 | E153: -6728 | F153: 0 | G153: 0
B154: Interest payable | C154: -2665 | D154: -2665 | E154: 0 | F154: 0 | G154: 0
B155: Accrued coupon on bonds | C155: -5727 | D155: -5727 | E155: 0 | F155: 0 | G155: 0
B156: Other payables | C156: -6337 | D156: -6337 | E156: 0 | F156: 0 | G156: 0
C157: -51739 | D157: 215036 | E157: -35933 | F157: -230842 | G157: 0
B159: 31 December 2009
B160: Bank deposits | C160: 156422 | D160: 0 | E160: 155917 | F160: 504 | G160: 0
B161: Trade accounts receivable | C161: 47320 | D161: 47320 | E161: 0 | F161: 0 | G161: 0
B162: Financial assistance issued | C162: 4320 | D162: 4320 | E162: 0 | F162: 0 | G162: 0
B163: Cash and cash equivalents | C163: 1727 | D163: 1727 | E163: 0 | F163: 0 | G163: 0
B164: Other non-trade accounts receivable | C164: 3311 | D164: 3311 | E164: 0 | F164: 0 | G164: 0
B165: Interest receivable for deposits | C165: 39411 | D165: 39411 | E165: 0 | F165: 0 | G165: 0
B166: Accounts receivable under commission contract | C166: 0 | D166: 0 | E166: 0 | F166: 0 | G166: 0
B167: Bank loans (including overdrafts) | C167: -222945 | D167: -974 | E167: -137106 | F167: -84864 | G167: 0
B168: Trade accounts payable | C168: -68019 | D168: -68019 | E168: 0 | F168: 0 | G168: 0
B169: Loans from related parties | C169: -8535 | D169: 0 | E169: -8535 | F169: - | G169: 0
B170: Finance lease (including VAT) | C170: -8199 | D170: 0 | E170: -2057 | F170: -6142 | G170: 0
B171: Current liabilities for bonds | C171: -24249 | D171: 0 | E171: -24249 | F171: 0 | G171: 0
B172: Accounts payable for property, plant and equipment | C172: -12847 | D172: 0 | E172: -12847 | F172: 0 | G172: 0
B173: Interest payable | C173: -8331 | D173: -8331 | E173: 0 | F173: 0 | G173: 0
B174: Accrued coupon on bonds | C174: -2055 | D174: -2055 | E174: 0 | F174: 0 | G174: 0
B175: Other payables | C175: -7421 | D175: -7421 | E175: 0 | F175: 0 | G175: 0
C176: -110091 | D176: 9289 | E176: -28877 | F176: -90502 | G176: 0
B178: 31 December 2008
B179: Bank deposits | C179: 282622 | D179: 510 | E179: 232761 | F179: 49351 | G179: 0
B180: Trade accounts receivable | C180: 15593 | D180: 15593 | E180: 0 | F180: 0 | G180: 0
B181: Financial assistance issued | C181: 702 | D181: 176 | E181: 526 | F181: - | G181: 0
B182: Accounts receivable for bonds | C182: 25496 | D182: 25496 | E182: 0 | F182: 0 | G182: 0
B183: Cash and cash equivalents | C183: 5877 | D183: 5877 | E183: 0 | F183: 0 | G183: 0
B184: Other non-trade accounts receivable | C184: 3144 | D184: 3144 | E184: 0 | F184: 0 | G184: 0
B185: Interest receivable for deposits | C185: 79 | D185: 79 | E185: 0 | F185: 0 | G185: 0
B186: Accounts receivable under commission contract | C186: 12987 | D186: 0 | E186: 12987 | F186: 0 | G186: 0
B187: Bank loans (including overdrafts) | C187: -368313 | D187: -21068 | E187: -155878 | F187: -191367 | G187: -21
B188: Trade accounts payable | C188: -20529 | D188: -20529 | E188: 0 | F188: 0 | G188: 0
B189: Loans from related parties | C189: -302520 | D189: -75630 | E189: -226890 | F189: 0 | G189: 0
B190: Finance lease (including VAT) | C190: -10681 | D190: -545 | E190: -1634 | F190: -8502 | G190: 0
B191: Current liabilities for bonds | C191: -25843 | D191: 0 | E191: -25843 | F191: 0 | G191: 0
B192: Accounts payable for property, plant and equipment | C192: -9112 | D192: -9112 | E192: 0 | F192: 0 | G192: 0
B193: Interest payable | C193: -291 | D193: -291 | E193: 0 | F193: 0 | G193: 0
B194: Accrued coupon on bonds | C194: -2039 | D194: -2039 | E194: 0 | F194: 0 | G194: 0
B195: Other payables | C195: -123947 | D195: -123947 | E195: 0 | F195: 0 | G195: 0
C196: -516775 | D196: -202286 | E196: -163971 | F196: -150518 | G196: -21
B198: 31 December 2007
B199: Bank deposits | C199: 144990 | D199: 2588 | E199: 34775 | F199: 107627 | G199: -
B200: Trade accounts receivable | C200: 47953 | D200: 47954 | E200: - | F200: - | G200: -
B201: Financial assistance issued | C201: 5733 | D201: 5733 | E201: - | F201: - | G201: -
B202: Cash and cash equivalents | C202: 4460 | D202: 4460 | E202: - | F202: - | G202: -
B203: Other non-trade accounts receivable | C203: 3055 | D203: 3055 | E203: - | F203: - | G203: -
B204: Interest receivable for deposits | C204: 29 | D204: 29 | E204: - | F204: - | G204: -
B205: Accounts receivable under commission contract | C205: 19802 | D205: - | E205: 19802 | F205: - | G205: -
B206: Bank loans (including overdrafts) | C206: -315611 | D206: -30288 | E206: -97738 | F206: -187564 | G206: -21
B207: Trade accounts payable | C207: -43134 | D207: -43134 | E207: - | F207: - | G207: -
B208: Loans from related parties | C208: -96101 | D208: -24025 | E208: -72076 | F208: - | G208: -
B209: Accounts payable for property, plant and equipment | C209: -1468 | D209: -1468 | E209: - | F209: - | G209: -
B210: Interest payable | C210: -38 | D210: -38 | E210: - | F210: - | G210: -
B211: Other payables | C211: -89364 | D211: -89364 | E211: - | F211: - | G211: -
C212: -319694 | D212: -124498 | E212: -115237 | F212: -79937 | G212: -21
D214: up
B215: Exposure to foreign currency risk
B216: Exposure to foreign currency risk and the amount in functional currency (UAH)
B217: As at 31 December 2016
B218: (in conversion to USD thousand) | C218: USD | D218: EUR | E218: CHF | F218: UAH | G218: TOTAL
B219: Trade accounts payable | C219: 263 | D219: 760 | E219: - | F219: - | G219: 1 023
B220: Cash and cash equivalents | C220: -768 | D220: - | E220: - | F220: - | G220: -768
B221: Trade accounts receivable | C221: -18683 | D221: - | E221: - | F221: - | G221: -18683
B222: Other payables | C222: 6 | D222: 55 | E222: - | F222: - | G222: 61
B223: Net exposure to foreign currency risk | C223: -19182 | D223: 815 | E223: - | F223: - | G223: -18367
B225: Exposure to foreign currency risk and the amount in functional currency (UAH)
B226: As at 31 December 2016
B227: (in conversion to USD thousand) | C227: USD
B228: Long-term bond liabilities | C228: 219014
B229: Accounts payable for property, plant and equipment | C229: 101
... 180 more rows

Sheet Business segments FN
B2: Business Segments (Notes to Financials)
B3: (in USD thousand, unless otherwise stated)
B4: >> Content | C4: >> List of Notes
B6: >> Business segment information for the year ended 31 December 2016
B7: >> Business segment information for the year ended 31 December 2015
B8: >> Business segment information for the year ended 31 December 2014
B9: >> Business segment information for the year ended 31 December 2013
B10: >> Business segment information for the year ended 31 December 2012
B11: >> Business segment information for the year ended 31 December 2011
B12: >> Business segment information for the year ended 31 December 2010
B13: >> Business segment information for the year ended 31 December 2009
B14: >> Business segment information for the year ended 31 December 2008
B15: >> Business segment information for the year ended 31 December 2007
B17: Business segment information for the year ended 31 December 2016
C18: Eggs | D18: Poultry | E18: Animal feed | F18: Egg products | G18: Other activities | H18: Adjustments and elimination | I18: Total
B19: SALES REVENUE | C19: 191954 | D19: 26145 | E19: 83361 | F19: 50291 | G19: 52063 | H19: - | I19: 403814
B20: Intra-group elimination | C20: -112172 | D20: -17443 | E20: -81614 | F20: - | G20: -1281 | H20: - | I20: -212510
B21: Revenue from external buyers | C21: 79782 | D21: 8702 | E21: 1747 | F21: 50291 | G21: 50783 | H21: - | I21: 191304
B22: Income from revaluation of biological assets at fair value | C22: -3567 | D22: 1335 | E22: - | F22: - | G22: - | H22: - | I22: -2232
B23: Other operating expenses | C23: -13905 | D23: -265 | E23: 1503 | F23: -4340 | G23: -100 | H23: - | I23: -17107
B24: Income from government grants and incentives | C24: 96 | D24: 2 | E24: - | F24: - | G24: - | H24: - | I24: 98
B25: OPERATING PROFIT/(LOSS) | C25: -12317 | D25: -403 | E25: 372 | F25: -1630 | G25: -902 | H25: - | I25: -14880
B26: Finance income | C26: 252 | D26: - | E26: - | F26: 2536 | G26: 37 | H26: - | I26: 2825
B27: Finance costs | C27: -148 | D27: - | E27: - | F27: -6148 | G27: -24984 | H27: - | I27: -31280
B28: including:
B29: Interest payable on loans | C29: -148 | D29: - | E29: - | F29: -6123 | G29: -1674 | H29: - | I29: -7945
B30: Income tax (expense)/credit | C30: - | D30: - | E30: -136 | F30: 3517 | G30: -60 | H30: - | I30: 3321
B31: NET (LOSS)/PROFIT FOR THE YEAR | C31: -12216 | D31: -477 | E31: 236 | F31: -3414 | G31: -40765 | H31: - | I31: -56636
B32: TOTAL ASSETS | C32: 2099459 | D32: 135865 | E32: 269895 | F32: 738659 | G32: 848109 | H32: -3562496 | I32: 529491
B33: Capitalised expenses | C33: 11631 | D33: 3 | E33: 86 | F33: 168 | G33: 3771 | H33: - | I33: 15659
B34: Depreciation | C34: 9975 | D34: 2335 | E34: 568 | F34: 462 | G34: 2317 | H34: - | I34: 15657
B35: TOTAL LIABILITIES | C35: 1575316 | D35: 78133 | E35: 301495 | F35: 544228 | G35: 350591 | H35: -2459082 | I35: 390681
B37: Business segment information for the year ended 31 December 2015
C38: Eggs | D38: Poultry | E38: Animal feed | F38: Egg products | G38: Other activities | H38: Adjustments and elimination | I38: Total
B39: SALES REVENUE | C39: 271453 | D39: 25137 | E39: 140890 | F39: 64735 | G39: 1346 | H39: - | I39: 503561
B40: Intra-group elimination | C40: -115664 | D40: -18340 | E40: -138977 | F40: - | G40: -656 | H40: - | I40: -273638
B41: Revenue from external buyers | C41: 155789 | D41: 6797 | E41: 1913 | F41: 64735 | G41: 689 | H41: - | I41: 229924
B42: Income from revaluation of biological assets at fair value | C42: 1154 | D42: 238 | E42: - | F42: - | G42: - | H42: - | I42: 1391
B43: Other operating income /expenses | C43: -40535 | D43: -507 | E43: -39201 | F43: -35140 | G43: -1084 | H43: - | I43: -116466
B44: Income from government grants and incentives | C44: 105 | D44: 2 | E44: - | F44: - | G44: - | H44: - | I44: 107
B45: OPERATING PROFIT/(LOSS) | C45: -10584 | D45: -5162 | E45: -40715 | F45: -25002 | G45: -5641 | H45: - | I45: -87104
B46: Finance income | C46: 358 | D46: 6 | E46: 1 | F46: 3612 | G46: - | H46: - | I46: 3977
B47: Finance costs, | C47: -176 | D47: - | E47: - | F47: -6029 | G47: -26322 | H47: - | I47: -32528
B48: including:
B49: Interest payable on loans | C49: -166 | D49: - | E49: - | F49: -6028 | G49: (1, 643) | H49: - | I49: -7837
B50: Income tax (expense)/credit | C50: - | D50: - | E50: -86 | F50: 1290 | G50: -325 | H50: - | I50: 880
B51: NET PROFIT/(LOSS) FOR THE PERIOD | C51: -10356 | D51: -5389 | E51: -40799 | F51: -36602 | G51: -65242 | H51: - | I51: -158390
B53: TOTAL ASSETS | C53: 2358633 | D53: 90089 | E53: 220, 732 | F53: 614039 | G53: -291735 | H53: -2367587 | I53: 624171
B54: Capitalised expenses | C54: 23009 | D54: 2325 | E54: -314 | F54: 230 | G54: 11814 | H54: - | I54: 37, 064
B55: Depreciation | C55: 13290 | D55: 2104 | E55: 392 | F55: 558 | G55: 1, 284 | H55: - | I55: 17628
B56: TOTAL LIABILITIES | C56: 1637704 | D56: 8, 836 | E56: 254411 | F56: 514586 | G56: 345006 | H56: -2371426 | I56: 389116
E58: up
B60: Business segment information for the year ended 31 December 2014
C61: Eggs | D61: Poultry | E61: Animal feed | F61: Egg products | G61: Other activities | H61: Adjustments and elimination | I61: Total
B62: SALES REVENUE | C62: 475589 | D62: 129971 | E62: 170700 | F62: 116993 | G62: 8176 | H62: - | I62: 901429
B63: Intra-group elimination | C63: -200004 | D63: -104580 | E63: -170688 | F63: - | G63: -6539 | H63: - | I63: -481811
B64: Revenue from external buyers | C64: 275585 | D64: 25392 | E64: 12 | F64: 116993 | G64: 1637 | H64: - | I64: 419619
B65: Income from revaluation of biological assets at fair value | C65: 13847 | D65: 1517 | E65: - | F65: - | G65: - | H65: - | I65: 15364
B66: Other operating income /expenses | C66: -17381 | D66: -787 | E66: -665 | F66: -1118 | G66: 1271 | H66: -, | I66: -18680
B67: Income from government grants and incentives | C67: 208 | D67: 10 | E67: - | F67: - | G67: - | H67: - | I67: 218
B68: OPERATING PROFIT/(LOSS) | C68: 69944 | D68: -9704 | E68: -7896 | F68: 35710 | G68: -3938 | H68: -, | I68: 84116
B69: Finance income | C69: 227 | D69: 12 | E69: 27 | F69: 2909 | G69: 1 | H69: - | I69: 3176
B70: Finance costs | C70: -1942 | D70: - | E70: - | F70: -17406 | G70: -24753 | H70: - | I70: -44101
B71: including: | I71: -
B72: Interest payable on loans | C72: -332 | D72: - | E72: - | F72: -5845 | G72: -1875 | H72: - | I72: -8052
B73: Income tax (expense)/credit | C73: - | D73: - | E73: -819 | F73: 2 014 | G73: -20 | H73: - | I73: 1 175
B74: NET PROFIT/(LOSS) FOR THE PERIOD | C74: 68561 | D74: -10088 | E74: -8688 | F74: 9588 | G74: -86291 | H74: - | I74: -26918
B76: TOTAL ASSETS | C76: 1544257 | D76: 93991 | E76: 285230 | F76: 423652 | G76: 450992 | H76: -1759795 | I76: 1038327
B77: Capitalised expenses | C77: 65164 | D77: 1217 | E77: 1912 | F77: 736 | G77: 5487 | H77: - | I77: 74516
B78: Depreciation | C78: 18066 | D78: 2010 | E78: 283 | F78: 399 | G78: 1034 | I78: 21792
B79: TOTAL LIABILITIES | C79: 518475 | D79: 9786 | E79: 253368 | F79: 114041 | G79: 340945 | H79: -844176 | I79: 392439
E81: up
B83: Business segment information for the year ended 31 December 2013
C84: Shell egg | D84: Poultry | E84: Animal feed | F84: Egg products | G84: Other activities | H84: Adjustments and elimination | I84: Total
B85: SALES REVENUE | C85: 681136 | D85: 135270 | E85: 279740 | F85: 153110 | G85: 7878 | H85: - | I85: 1257134
B86: Intra-group elimination | C86: -244322 | D86: -90210 | E86: -255522 | F86: - | G86: -5878 | H86: - | I86: -595932
B87: Revenue from external buyers | C87: 436814 | D87: 45060 | E87: 24218 | F87: 153110 | G87: 2000 | H87: - | I87: 661202
B88: Income from revaluation of biological assets at fair value | C88: 26296 | D88: 8862 | E88: - | F88: - | G88: - | H88: - | I88: 35158
B89: Other operating income/(expenses) | C89: -3032 | D89: -434 | E89: -616 | F89: 2187 | G89: -2141 | H89: - | I89: -4036
B90: Income from government grants and incentives | C90: 299 | D90: - | E90: - | F90: - | G90: - | H90: - | I90: 299
B92: OPERATING PROFIT/(LOSS) | C92: 223315 | D92: 10071 | E92: -7796 | F92: 60958 | G92: -10798 | H92: - | I92: 275750
B93: Finance income | C93: 85 | D93: 7 | E93: 9 | F93: 17 | G93: 6 | H93: - | I93: 124
B94: Finance cost, | C94: -4458 | D94: - | E94: - | F94: -5196 | G94: -29233 | H94: - | I94: -38887
B95: including: | I95: -
B96: Interest payable on loans | C96: -652 | D96: - | E96: - | F96: -5196 | G96: -1430 | H96: - | I96: -7278
B97: Income tax expense | C97: - | D97: - | E97: -261 | F97: 1 384 | G97: -27 | H97: - | I97: 1096
B98: NET PROFIT/(LOSS) FOR THE PERIOD | C98: 218942 | D98: 10078 | E98: -8048 | F98: 57163 | G98: -40052 | H98: - | I98: 238083
B100: TOTAL ASSETS | C100: 2689258 | D100: 100595 | E100: 526735 | F100: 716109 | G100: 591226 | H100: -2805008 | I100: 1818915
B101: Capitalised expenses | C101: 153472 | D101: 7651 | E101: 13103 | F101: 2513 | G101: 32682 | I101: 209420
B102: Depreciation | C102: 12826 | D102: 1075 | E102: 421 | F102: 10459 | G102: 706 | H102: - | I102: 25487
B104: TOTAL LIABILITIES | C104: 941016 | D104: 16431 | E104: 463284 | F104: 421590 | G104: 343449 | H104: -1813953 | I104: 371817
E106: up
B107: Business segment information for the year ended 31 December 2012
C108: Shell egg | D108: Poultry | E108: Animal feed | F108: Egg products | G108: Other activities | H108: Adjustments and elimination | I108: Total
B109: SALES REVENUE | C109: 608880 | D109: 65837 | E109: 219757 | F109: 106644 | G109: 6861 | H109: - | I109: 1007979
B110: Intra-group elimination | C110: -150572 | D110: -41105 | E110: -183221 | F110: 0 | G110: -3775 | H110: - | I110: -378673
B111: Revenue from external buyers | C111: 458308 | D111: 24732 | E111: 36536 | F111: 106644 | G111: 3086 | H111: 0 | I111: 629306
B112: Income from revaluation of biological assets at fair value | C112: 19633 | D112: 6558 | E112: - | F112: - | G112: - | H112: - | I112: =SUM(C112:H112) -> 26191
B113: Other operating income/(expenses) | C113: -1902 | D113: 563 | E113: -2580 | F113: 395 | G113: 5297 | H113: - | I113: =SUM(C113:H113) -> 1773
B114: Income from government grants and incentives | C114: 301 | D114: 4 | E114: - | F114: - | G114: - | H114: - | I114: =SUM(C114:H114) -> 305
I115: =SUM(C115:H115) -> 0
B116: OPERATING PROFIT/(LOSS) | C116: 229932 | D116: 2902 | E116: -4471 | F116: 49666 | G116: -13545 | H116: =SUM(H112:H115) -> 0 | I116: 264484
B117: Finance income | C117: 405 | D117: 37 | E117: 15 | F117: 0 | G117: 223 | H117: - | I117: =SUM(C117:H117) -> 680
B118: Finance cost, | C118: -7491 | D118: -24 | E118: 0 | F118: -5296 | G118: -24125 | H118: - | I118: =SUM(C118:H118) -> -36936
B119: including: | I119: =SUM(C119:H119) -> 0
B120: Interest payable on loans | C120: -771 | D120: -21 | E120: 0 | F120: -5296 | G120: -604 | H120: - | I120: =SUM(C120:H120) -> -6692
B121: Income tax expense | C121: - | D121: - | E121: -50 | F121: 23 | G121: 32 | H121: - | I121: =SUM(C121:H121) -> 5
B122: NET PROFIT/(LOSS) FOR THE PERIOD | C122: 222848 | D122: 2915 | E122: -4507 | F122: 44393 | G122: -37416 | H122: - | I122: 228233
B124: TOTAL ASSETS | C124: 1970074 | D124: 86004 | E124: 466936 | F124: 302426 | G124: 49631 | H124: -1296746 | I124: 1578328
B125: Capitalised expenses | C125: 299071 | D125: 743 | E125: 510 | F125: 791 | G125: 170 | H125: - | I125: 301285
B126: Depreciation | C126: 12654 | D126: 1032 | E126: 344 | F126: 600 | G126: 654 | H126: - | I126: 15284
B128: TOTAL LIABILITIES | C128: 665873 | D128: 17505 | E128: 416310 | F128: 329885 | G128: 310365 | H128: -1328805 | I128: 411133
E130: up
B131: Business segment information for the year ended 31 December 2011
C132: Shell egg | D132: Poultry | E132: Animal feed | F132: Egg products | G132: Other activities | H132: Adjustments and elimination | I132: Total
B133: SALES REVENUE | C133: 482325 | D133: 83319 | E133: 162042 | F133: 99013 | G133: 7358 | H133: - | I133: 834057
B134: Intra-group elimination | C134: -93060 | D134: -56484 | E134: -126733 | F134: -514 | G134: -3956 | H134: - | I134: -280747
B135: Revenue from external buyers | C135: 389265 | D135: 26835 | E135: 35309 | F135: 98499 | G135: 3402 | H135: - | I135: 553310
B136: Income from revaluation of biological assets at fair value | C136: 12445 | D136: 11253 | E136: - | F136: - | G136: - | H136: - | I136: 23698
B137: Other operating income/(expenses) | C137: -4167 | D137: -493 | E137: -750 | F137: -1042 | G137: -979 | H137: - | I137: -7431
B138: Income from government grants and incentives | C138: 312 | D138: 7 | E138: - | F138: - | G138: - | H138: - | I138: 319
B140: OPERATING PROFIT/(LOSS) | C140: 235593 | D140: -11092 | E140: 20270 | F140: -7187 | G140: -6081 | H140: - | I140: 231503
B141: Finance income | C141: 684 | D141: 17 | E141: 13 | F141: 24 | G141: 754 | H141: - | I141: 1492
B142: Finance cost, | C142: -6706 | D142: -177 | E142: -2179 | F142: -2606 | G142: -21437 | H142: - | I142: -33105
B143: including: | I143: -
B144: Interest payable on loans | C144: -533 | D144: -176 | E144: -2179 | F144: -2580 | G144: -7 | H144: - | I144: -5475
B145: Income tax expense | C145: - | D145: - | E145: -4164 | F145: 345 | G145: 32 | H145: - | I145: -3787
B146: NET PROFIT/(LOSS) FOR THE PERIOD | C146: 229571 | D146: -11252 | E146: 13940 | F146: -9424 | G146: -27191 | H146: - | I146: 195294
B148: TOTAL ASSETS | C148: 1252500 | D148: 71802 | E148: 258128 | F148: 285455 | G148: 225349 | H148: -787581 | I148: 1305654
B149: Capitalised expenses | C149: 120555 | D149: 61 | E149: 2153 | F149: 36 | G149: 247 | H149: - | I149: 123052
B150: Depreciation | C150: 12371 | D150: 1026 | E150: 172 | F150: 595 | G150: 166 | H150: - | I150: 14330
B152: TOTAL LIABILITIES | C152: 567779 | D152: 11383 | E152: 249465 | F152: 114047 | G152: 304583 | H152: -880943 | I152: 366314
B154: Business segment information for the year ended 31 December 2010 | E154: up
C155: Shell egg | D155: Poultry | E155: Animal feed | F155: Egg products | G155: Other activities | H155: Unallocated group balances | I155: Adjustments and elimination | J155: Total
B156: SALES REVENUE | C156: 304057 | D156: 66037 | E156: 40601 | F156: 91253 | G156: 16243 | H156: 0 | I156: 0 | J156: 518191
B157: Intra-group elimination | C157: -23766 | D157: -17278 | E157: -35344 | F157: -262 | G157: -1838 | H157: 0 | I157: 0 | J157: -78488
B158: Revenue from external buyers | C158: 280291 | D158: 48759 | E158: 5257 | F158: 90991 | G158: 14405 | H158: 0 | I158: 0 | J158: 439703
B159: Income from revaluation of biological assets at fair value | C159: 13113 | D159: 13074 | E159: 0 | F159: 0 | G159: 0 | H159: 0 | I159: 0 | J159: 26187
B160: Other operating income /expenses | C160: -4213 | D160: -753 | E160: -270 | F160: -174 | G160: 509 | H160: 0 | I160: 0 | J160: -4901
B161: Income from government grants and incentives | C161: 17499 | D161: 5 | E161: 0 | F161: 0 | G161: 0 | H161: 0 | I161: 0 | J161: 17504
B162: OPERATING PROFIT/(LOSS) | C162: 196705 | D162: 4934 | E162: -2855 | F162: -14680 | G162: -3202 | H162: 0 | I162: 0 | J162: 180902
B163: Finance income | C163: 27560 | D163: 6 | E163: 3973 | F163: 77 | G163: 2442 | H163: 0 | I163: 0 | J163: 34058
B164: Finance cost, | C164: -26073 | D164: -192 | E164: -23 | F164: - | G164: -3660 | H164: 0 | I164: 0 | J164: -29948
B165: including: | H165: 0 | I165: 0
B166: Interest payable on loans | C166: -17645 | D166: -192 | E166: -23 | F166: - | G166: - | H166: 0 | I166: 0 | J166: -17860
B167: Income tax expense | C167: - | D167: - | E167: 287 | F167: -541 | G167: - | H167: 0 | I167: 0 | J167: -254
B168: NET PROFIT/(LOSS) FOR THE PERIOD | C168: 198192 | D168: 4748 | E168: 1382 | F168: -15144 | G168: -4420 | H168: 0 | I168: 0 | J168: 184758
B169: TOTAL ASSETS | C169: 881078 | D169: 54369 | E169: 166181 | F169: 87602 | G169: 398487 | H169: - | I169: -508688 | J169: 1 079 029
B170: Capitalised expenses | C170: 23373 | D170: 128 | E170: 9 | F170: 8963 | G170: 0 | H170: 0 | I170: 0 | J170: 32473
B171: Depreciation | C171: 11379 | D171: 1024 | E171: 174 | F171: 60 | G171: 0 | H171: 0 | I171: 0 | J171: 12637
B172: TOTAL LIABILITIES | C172: 384135 | D172: 5011 | E172: 169503 | F172: 73051 | G172: 204075 | H172: 0 | I172: -502965 | J172: 332810
E174: up
B175: Business segment information for the year ended 31 December 2009
C176: Shell egg | D176: Poultry | E176: Animal feed | F176: Egg products | G176: Other activities | H176: Unallocated group balances | I176: Adjustments and elimination | J176: Total
B177: SALES REVENUE | C177: 255819 | D177: 42891 | E177: 68658 | F177: 26758 | G177: 4044 | H177: 0 | I177: 0 | J177: 398170
B178: Intra-group elimination | C178: -15233 | D178: -5145 | E178: -53143 | F178: -4794 | G178: - | H178: 0 | I178: 0 | J178: -78315
B179: Revenue from external buyers | C179: 240586 | D179: 37746 | E179: 15515 | F179: 21964 | G179: 4044 | H179: 0 | I179: 0 | J179: 319855
B180: Income from revaluation of biological assets at fair value | C180: 678 | D180: 7017 | E180: 0 | F180: 0 | G180: - | H180: 0 | I180: 0 | J180: 7695
B181: Other operating income /expenses | C181: -2695 | D181: -667 | E181: -343 | F181: 0 | G181: 132 | H181: 0 | I181: 0 | J181: -3573
B182: Income from government grants and incentives | C182: 7346 | D182: 721 | E182: 1373 | F182: 0 | G182: - | H182: 0 | I182: 0 | J182: 9440
B183: OPERATING PROFIT/(LOSS) | C183: 98900 | D183: 17515 | E183: 3378 | F183: 17351 | G183: 3250 | H183: - | I183: -587 | J183: 139807
B184: Finance income | C184: 35661 | D184: 2010 | E184: 3503 | F184: 6 | G184: 0 | H184: 0 | I184: 0 | J184: 41180
B185: Finance cost, | C185: -32368 | D185: -3050 | E185: -10732 | F185: 0 | G185: 0 | H185: 0 | I185: 0 | J185: -46150
B186: including: | F186: 0 | G186: 0 | H186: 0 | I186: 0
B187: Interest payable on loans | C187: -28863 | D187: -3048 | E187: -10731 | F187: 0 | G187: 0 | H187: 0 | I187: 0 | J187: -42642
B188: Income tax expense | C188: 0 | D188: 0 | E188: -1225 | F188: 57 | G188: 0 | H188: 0 | I188: 0 | J188: -1168
B189: NET PROFIT/(LOSS) FOR THE PERIOD | C189: 102193 | D189: 16475 | E189: -5076 | F189: 17414 | G189: 3250 | H189: - | I189: -587 | J189: 133669
B190: TOTAL ASSETS | C190: 739771 | D190: 59970 | E190: 52052 | F190: 18493 | G190: 2451 | H190: 40 | I190: -28631 | J190: 844146
B191: Capitalised expenses | C191: 29498 | D191: 25 | E191: 17 | F191: 0 | G191: 0 | H191: 0 | I191: 0 | J191: 29540
B192: Depreciation | C192: 11011 | D192: 1095 | E192: 175 | F192: 4 | G192: 0 | H192: 0 | I192: 0 | J192: 12285
B193: TOTAL LIABILITIES | C193: 417346 | D193: 29906 | E193: 58337 | F193: 5610 | G193: 709 | H193: 0 | I193: -28317 | J193: 483591
E195: up
B196: Business segment information for the year ended 31 December 2008
C197: Shell egg | D197: Poultry | E197: Animal feed | F197: Egg products | G197: Other activities | H197: Unallocated group balances | I197: Adjustments and elimination | J197: Total
B198: SALES REVENUE | C198: 236964 | D198: 60664 | E198: 75351 | F198: 2200 | G198: 11881 | H198: 0 | I198: 0 | J198: 387060
B199: Intra-group elimination | C199: -11266 | D199: -300 | E199: -73202 | H199: 0 | I199: 0 | J199: -84768
B200: Revenue from external buyers | C200: 225698 | D200: 60364 | E200: 2149 | F200: 2200 | G200: 11881 | H200: 0 | I200: 0 | J200: 302292
B201: Income from revaluation of biological assets at fair value | C201: 8730 | D201: 3960 | E201: 0 | F201: 0 | G201: 0 | H201: 0 | I201: 0 | J201: 12690
B202: Other operating income /expenses | C202: -2770 | D202: -3788 | E202: -89 | F202: 0 | G202: -167 | H202: 0 | I202: -6 | J202: (6 820)
B203: Income from government grants and incentives | C203: 36543 | D203: 1477 | E203: 1048 | F203: 0 | G203: 0 | H203: 0 | I203: - | J203: 39068
B204: OPERATING PROFIT/(LOSS) | C204: 95459 | D204: 3348 | E204: 364 | F204: -2684 | G204: 5477 | H204: - | I204: -6 | J204: 101958
B205: Finance income | C205: 26831 | D205: 43 | E205: 23 | F205: 0 | G205: 0 | H205: 0 | I205: 0 | J205: 26897
B206: Finance cost, | C206: -45971 | D206: -1868 | E206: -5147 | F206: 0 | G206: 0 | H206: 0 | I206: 0 | J206: -52986
B207: including: | F207: 0 | G207: 0 | H207: 0 | I207: 0
B208: Interest payable on loans | C208: -41618 | D208: -1854 | E208: -5142 | F208: 0 | G208: 0 | H208: 0 | I208: 0 | J208: -48614
B209: Financial expenses for bonds (interest) | C209: -3194 | D209: 0 | E209: - | F209: 0 | G209: 0 | H209: 0 | I209: 0 | J209: -3194
B210: Income tax expense | C210: 0 | D210: 0 | E210: 1414 | F210: 0 | G210: 0 | H210: 0 | I210: 0 | J210: 1414
B211: NET PROFIT/(LOSS) FOR THE PERIOD | C211: 76319 | D211: 1523 | E211: -3346 | F211: -2684 | G211: 5477 | H211: 0 | I211: -6 | J211: 77283
B212: TOTAL ASSETS | C212: 855964 | D212: 67729 | E212: 111219 | F212: - | G212: 3319 | H212: 41 | I212: -18306 | J212: 1019966
B213: Capitalised expenses | C213: 300367 | D213: 13971 | E213: 548 | F213: 0 | G213: 0 | H213: 0 | I213: 0 | J213: 314886
B214: Depreciation | C214: 11216 | D214: 370 | E214: 194 | F214: 0 | G214: 0 | H214: 0 | I214: 0 | J214: 11780
B215: TOTAL LIABILITIES | C215: 644941 | D215: 44715 | E215: 108342 | F215: 0 | G215: 923 | H215: 120642 | I215: -18100 | J215: 901463
E217: up
B218: Business segment information for the year ended 31 December 2007
C219: Shell egg | D219: Poultry | E219: Animal feed | F219: Egg products | G219: Other activities | H219: Unallocated group balances | I219: Adjustments and elimination | J219: Total
B220: SALES REVENUE | C220: 88043 | D220: 27544 | E220: 17001 | F220: 1321 | G220: 4610 | H220: 0 | I220: 0 | J220: 138519
B221: Intra-group elimination | C221: -597 | D221: -648 | E221: -9486 | F221: 0 | G221: 0 | H221: 0 | I221: 0 | J221: -10731
B222: Revenue from external buyers | C222: 87446 | D222: 26896 | E222: 7515 | F222: 1321 | G222: 4610 | H222: 0 | I222: 0 | J222: 127788
B223: Income from revaluation of biological assets at fair value | C223: 5565 | D223: 902 | E223: 0 | F223: 0 | G223: 0 | H223: 0 | I223: 0 | J223: 6467
B224: Cost of sales | C224: -79615 | D224: -15929 | E224: -7083 | F224: -1993 | G224: -10069 | H224: 0 | I224: 0 | J224: -114689
... 12 more rows

Sheet Revenue From External Customers
B2: Revenue From External Customers
B3: (in USD thousand, unless otherwise stated)
B4: >> Content | C4: >> List of Notes
B7: Revenue From External Customers
C8: 2007 | D8: 2008 | E8: 2009 | F8: 2010 | G8: 2011 | H8: 2012 | I8: 2013 | J8: 2014 | K8: 2015 | L8: 2016
B9: Ukraine | C9: 0 | D9: 0 | E9: 0 | F9: 358107 | G9: 447717 | H9: 501540 | I9: 470483 | J9: 262869 | K9: 135110 | L9: 79439
B10: Middle East and North Africa | C10: 0 | D10: 0 | E10: 0 | F10: 72685 | G10: 58303 | H10: 86543 | I10: 124898 | J10: 94079 | K10: 47354 | L10: 33835
B11: Far East | C11: 0 | D11: 0 | E11: 0 | F11: 7249 | G11: 46031 | H11: 17626 | I11: 41989 | J11: 25167 | K11: 23196 | L11: 37144
B12: Central and West Africa | C12: 0 | D12: 0 | E12: 0 | F12: 0 | G12: 0 | H12: 21276 | I12: 21199 | J12: 33384 | K12: - | L12: 165
B13: Europe | C13: 0 | D13: 0 | E13: 0 | F13: 0 | G13: 0 | H13: 0 | I13: 0 | J13: 0 | K13: 24264 | L13: 34716
B14: South Asia | C14: 0 | D14: 0 | E14: 0 | F14: 0 | G14: 0 | H14: 0 | I14: 0 | J14: 0 | K14: 0 | L14: 6005
B15: Rest of the world | C15: 0 | D15: 0 | E15: 0 | F15: 1662 | G15: 1259 | H15: 2321 | I15: 2633 | J15: 4119 | K15: 0 | L15: 0
C16: 0 | D16: 0 | E16: 0 | F16: 439703 | G16: 553310 | H16: 629306 | I16: 661202 | J16: 419618 | K16: 229924 | L16: 191304

Sheet Related Party Transactions FN
B2: Related Party Balances and Transactions (Notes to Financials)
B3: (in USD thousand, unless otherwise stated)
B4: >> Content | C4: >> List of Notes
B6: >> Salary costs of key management
B7: >> Number of top management personnel
B8: >> Outstanding balances with related parties
B12: Salary costs of key management
C13: 2007 | D13: 2008 | E13: 2009 | F13: 2010 | G13: 2011 | H13: 2012 | I13: 2013 | J13: 2014 | K13: 2015 | L13: 2016
B14: Salary | C14: 730 | D14: 1346 | E14: 932 | F14: 1952 | G14: 1322 | H14: 1951 | I14: 2430 | J14: 1743 | K14: 808 | L14: 919
B15: Contributions to pension fund | C15: 106 | D15: 278 | E15: 244 | F15: 576 | G15: 444 | H15: 564 | I15: 720 | J15: 418 | K15: 205 | L15: 118
B16: Other contributions | C16: 20 | D16: 43 | E16: 31 | F16: 62 | G16: 0 | H16: 0 | I16: 0 | J16: 0 | K16: 0 | L16: 0
C17: 856 | D17: 1667 | E17: 1207 | F17: 2590 | G17: 1766 | H17: 2515 | I17: 3150 | J17: 2171 | K17: 1013 | L17: 1037
B20: Number of top management personnel, persons
C21: 102 | D21: 129 | E21: 122 | F21: 182 | G21: 151 | H21: 151 | I21: n/a | J21: n/a | K21: n/a | L21: n/a
C23: up
B24: Outstanding balances with related parties
C25: 31 December 2007 | D25: 31 December 2008 | E25: 31 December 2009 | F25: 31 December 2010 | G25: 31 December 2011 | H25: 31 December 2012 | I25: 31 December 2013 | J25: 31 December 2014 | K25: 31 December 2015 | L25: 31 December 2016
B26: Other non-current assets
B27: B. Companies having the same top management; | C27: 3 | D27: 0 | E27: 0 | F27: 0 | G27: 0 | H27: 0 | I27: 0 | J27: 0 | K27: 0 | L27: 0
B28: D. Companies which activities are significantly influenced by the Group's owners. | C28: 6054 | D28: 30834 | E28: 1286 | F28: 0 | G28: 0 | H28: 0 | I28: 0 | J28: 0 | K28: 0 | L28: 0
C29: 6057 | D29: 30834 | E29: 1286 | F29: 0 | G29: 0 | H29: 0 | I29: 0 | J29: 0 | K29: 0 | L29: 0
B30: Prepayments and other current assets
B31: B. Companies having the same top management; | C31: 19820 | D31: 12990 | E31: 2 | F31: 0 | G31: 0 | H31: 0 | I31: 0 | J31: 0 | K31: 0 | L31: 0
B32: C. Companies in which the Group's owners have an equity interest; | C32: 1 | D32: 370 | E32: 1957 | F32: 279 | G32: 0 | H32: 1 | I32: 59 | J32: 2 | K32: 1 | L32: 0
B33: D. Companies which activities are significantly influenced by the Group's owners. | C33: 10875 | D33: 110184 | E33: 46475 | F33: 341 | G33: 242 | H33: 47 | I33: 10386 | J33: 5516 | K33: 11136 | L33: 5499
C34: 30696 | D34: 123544 | E34: 48434 | F34: 620 | G34: 242 | H34: 48 | I34: 10445 | J34: 5518 | K34: 11137 | L34: 5499
B35: Trade accounts receivable
B36: C. Companies in which the Group's owners have an equity interest; | C36: 1439 | D36: 7581 | E36: 8181 | F36: 200 | G36: 0 | H36: 2 | I36: 76 | J36: 4 | K36: 0 | L36: 0
B37: D. Companies which activities are significantly influenced by the Group's owners. | C37: 16748 | D37: 6362 | E37: 33319 | F37: 23 | G37: 722 | H37: 10 | I37: 186 | J37: 156 | K37: 2151 | L37: 154
C38: 18187 | D38: 13943 | E38: 41500 | F38: 223 | G38: 722 | H38: 12 | I38: 260 | J38: 160 | K38: 2151 | L38: 154
B40: Dividends payable
B41: D. Companies which activities are significantly influenced by the Group's owners. | C41: 0 | D41: 0 | E41: 0 | F41: 0 | G41: 0 | H41: 0 | I41: 0 | J41: 0 | K41: 22892 | L41: 22892
C42: 0 | D42: 0 | E42: 0 | F42: 0 | G42: 0 | H42: 0 | I42: 0 | J42: 0 | K42: 22892 | L42: 22892
B43: Cash and cash equivalents
B44: D. Companies which activities are significantly influenced by the Group's owners. | C44: 3359 | D44: 5472 | E44: 1413 | F44: 4312 | G44: 11557 | H44: 12103 | I44: 9913 | J44: 14550 | K44: 0 | L44: 0
C45: 3359 | D45: 5472 | E45: 1413 | F45: 4312 | G45: 11557 | H45: 12103 | I45: 9913 | J45: 14550 | K45: 0 | L45: 0
B46: Deposits
B47: D. Companies which activities are significantly influenced by the Group's owners. | C47: 110340 | D47: 272991 | E47: 155917 | F47: 0 | G47: 0 | H47: 0 | I47: 0 | J47: 0 | K47: 0 | L47: 0
C48: 110340 | D48: 272991 | E48: 155917 | F48: 0 | G48: 0 | H48: 0 | I48: 0 | J48: 0 | K48: 0 | L48: 0
B49: Long-term loans
B50: D. Companies which activities are significantly influenced by the Group's owners. | C50: 191263 | D50: 155042 | E50: 162884 | F50: 0 | G50: 2500 | H50: 0 | I50: 0 | J50: 0 | K50: 0 | L50: 0
C51: 191263 | D51: 155042 | E51: 162884 | F51: 0 | G51: 2500 | H51: 0 | I51: 0 | J51: 0 | K51: 0 | L51: 0
B52: Long-term finance lease
B53: D. Companies which activities are significantly influenced by the Group's owners. | C53: 0 | D53: 0 | E53: 0 | F53: 0 | G53: 0 | H53: 0 | I53: 0 | J53: 53 | K53: 28 | L53: 3
C54: 0 | D54: 0 | E54: 0 | F54: 0 | G54: 0 | H54: 0 | I54: 0 | J54: 53 | K54: 28 | L54: 3
B55: Current portion of non-current financial liabilities
B56: D. Companies which activities are significantly influenced by the Group's owners. | C56: 0 | D56: 0 | E56: 0 | F56: 0 | G56: 0 | H56: 0 | I56: 0 | J56: 23 | K56: 16 | L56: 0
C57: 0 | D57: 0 | E57: 0 | F57: 0 | G57: 0 | H57: 0 | I57: 0 | J57: 23 | K57: 16 | L57: 0
B59: Short-term loans
B60: B. Companies having the same top management; | C60: 5 | D60: 0 | E60: 0 | F60: 0 | G60: 0 | H60: 0 | I60: 0 | J60: 0 | K60: 0 | L60: 0
B61: C. Companies in which the Group's owners have an equity interest; | C61: 0 | D61: 43851 | E61: 346 | F61: 0 | G61: 0 | H61: 0 | I61: 0 | J61: 0 | K61: 0 | L61: 0
B62: D. Companies which activities are significantly influenced by the Group's owners. | C62: 74388 | D62: 205432 | E62: 26437 | F62: 0 | G62: 65 | H62: 32 | I62: 0 | J62: 0 | K62: 0 | L62: 0
C63: 74393 | D63: 249283 | E63: 26783 | F63: 0 | G63: 65 | H63: 32 | I63: 0 | J63: 0 | K63: 0 | L63: 0
B64: Trade accounts payable
B65: B. Companies having the same top management; | C65: 179 | D65: 0 | E65: 7 | F65: 0 | G65: 0 | H65: 0 | I65: 0 | J65: 0 | K65: 0 | L65: 0
B66: C. Companies in which the Group's owners have an equity interest; | C66: 0 | D66: 1161 | E66: 3725 | F66: 1162 | G66: 0 | H66: 2 | I66: 12 | J66: 0 | K66: 0 | L66: 0
B67: D. Companies which activities are significantly influenced by the Group's owners. | C67: 13323 | D67: 4446 | E67: 16548 | F67: 985 | G67: 1293 | H67: 12 | I67: 198 | J67: 33 | K67: 2 | L67: 0
C68: 13502 | D68: 5607 | E68: 20280 | F68: 2147 | G68: 1293 | H68: 14 | I68: 210 | J68: 33 | K68: 2 | L68: 0
B69: Other current liabilities
B70: B. Companies having the same top management; | C70: 70 | D70: 29 | E70: 23 | F70: 0 | G70: 0 | H70: 0 | I70: 0 | J70: 0 | K70: 0 | L70: 0
B71: C. Companies in which the Group's owners have an equity interest; | C71: 12 | D71: 1424 | E71: 10404 | F71: 1290 | G71: 0 | H71: 5 | I71: 45 | J71: 8719 | K71: 48 | L71: 0
B72: D. Companies which activities are significantly influenced by the Group's owners. | C72: 23811 | D72: 226643 | E72: 98785 | F72: 105 | G72: 293 | H72: 16 | I72: 717 | J72: 14424 | K72: 5 | L72: 2
C73: 23893 | D73: 228096 | E73: 109212 | F73: 1395 | G73: 293 | H73: 21 | I73: 762 | J73: 23143 | K73: 53 | L73: 2
B74: Sales revenue
B75: B. Companies having the same top management; | C75: 0 | D75: 2 | E75: 0 | F75: 0 | G75: 0 | H75: 0 | I75: 0 | J75: 0 | K75: 0 | L75: 0
B76: C. Companies in which the Group's owners have an equity interest; | C76: 1925 | D76: 84454 | E76: 14413 | F76: 30420 | G76: 364 | H76: 14 | I76: 16 | J76: 0 | K76: 0 | L76: 0
B77: D. Companies which activities are significantly influenced by the Group's owners. | C77: 1639 | D77: 81974 | E77: 83507 | F77: 66895 | G77: 2099 | H77: 254 | I77: 1046 | J77: 1372 | K77: 2641 | L77: 52820
C78: 3564 | D78: 166430 | E78: 97920 | F78: 97315 | G78: 2463 | H78: 268 | I78: 1062 | J78: 1372 | K78: 2641 | L78: 52820
B79: General administrative expenses
B80: B. Companies having the same top management; | C80: -1 | D80: -217 | E80: -66 | F80: 0 | G80: 0 | H80: 0 | I80: 0 | J80: 0 | K80: 0 | L80: 0
B81: C. Companies in which the Group's owners have an equity interest; | C81: -2 | D81: -54 | E81: 0 | F81: -4 | G81: -73 | H81: -88 | I81: -67 | J81: 0 | K81: 0 | L81: 0
B82: D. Companies which activities are significantly influenced by the Group's owners. | D82: 0 | F82: -64 | G82: -60 | H82: -228 | I82: -126 | J82: -77 | K82: -49 | L82: -12
C83: -3 | D83: -271 | E83: -66 | F83: -68 | G83: -133 | H83: -316 | I83: -193 | J83: -77 | K83: -49 | L83: -12
B84: Distribution expenses
B85: C. Companies in which the Group's owners have an equity interest; | C85: 0 | D85: 0 | E85: 0 | F85: -12 | G85: -23 | H85: -19 | I85: -455 | J85: 0 | K85: 0 | L85: 0
B86: D. Companies which activities are significantly influenced by the Group's owners. | C86: 0 | D86: 0 | E86: 0 | F86: -872 | G86: -90 | H86: -198 | I86: -395 | J86: -5471 | K86: -4425 | L86: -4870
C87: 0 | D87: 0 | E87: 0 | F87: -884 | G87: -113 | H87: -217 | I87: -850 | J87: -5471 | K87: -4425 | L87: -4870
B88: Other operating income/(expenses), net
B89: B. Companies having the same top management; | C89: 0 | D89: 0 | E89: -18 | F89: 0 | G89: 0 | H89: 0 | I89: 0 | J89: 0 | K89: 0 | L89: 0
B90: C. Companies in which the Group's owners have an equity interest; | C90: 0 | D90: 1239 | E90: 80 | F90: 39 | G90: 6 | H90: -63 | I90: 117 | J90: -1 | K90: -1 | L90: 0
B91: D. Companies which activities are significantly influenced by the Group's owners. | C91: 4 | D91: -594 | E91: -30 | F91: 72 | G91: -11 | H91: -47 | I91: -11 | J91: -320 | K91: -27905 | L91: 938
C92: 4 | D92: 645 | E92: 32 | F92: 111 | G92: -5 | H92: -110 | I92: 106 | J92: -321 | K92: -27905 | L92: 938
B94: Waiver of amounts due to related parties | C94: 0 | D94: 0 | E94: 22525 | F94: 869 | G94: 0 | H94: 0 | I94: 0 | J94: 0 | K94: 0 | L94: 0
B95: D. Companies which activities are significantly influenced by the Group's owners. | C95: 0 | D95: 0 | E95: 0 | F95: 0 | G95: 0 | H95: 0 | I95: 0 | J95: 0 | K95: 0 | L95: 0
C96: 0 | D96: 0 | E96: 22525 | F96: 869 | G96: 0 | H96: 0 | I96: 0 | J96: 0 | K96: 0 | L96: 0
B97: Finance income
B98: D. Companies which activities are significantly influenced by the Group's owners. | C98: 507 | D98: 24625 | E98: 40472 | F98: 31345 | G98: 1 | H98: 289 | I98: 118 | J98: 54 | K98: 29 | L98: 0
C99: 507 | D99: 24625 | E99: 40472 | F99: 31356 | G99: 1 | H99: 289 | I99: 118 | J99: 54 | K99: 29 | L99: 0
B100: Finance cost
B101: D. Companies which activities are significantly influenced by the Group's owners. | C101: -1524 | D101: -41036 | E101: -41510 | F101: -27095 | G101: -283 | H101: 0 | I101: 0 | J101: -59 | K101: -15 | L101: 0
C102: -1524 | D102: -41036 | E102: -41510 | F102: -27095 | G102: -283 | H102: 0 | I102: 0 | J102: -59 | K102: -15 | L102: 0
C104: up

Sheet Other FN
B2: Other Notes to Financials
B3: (in USD thousand, unless otherwise stated)
B5: >> Content | C5: >> List of Notes
B7: >> Inventory storage period
B8: >> Held to maturity financial assets
B9: >> Biological assets
B10: >> Other non-current assets
B11: >> Taxes recoverable and prepaid
B12: >> Inventories
B13: >> Prepayments and other current assets
B14: >> Trade receivable
B15: >> Cash and cash equivalents
B16: >> Long-term and short-term bank deposits
B17: >> Share capital, share premium, capital contribution reserve
B18: >> Loans security
B19: >> Deferred tax assets and liabilities
B20: >> Trade payables
B21: >> Accrued expenses
B22: >> Other current liabilities and accrued expenses
B23: >> Finance lease liabilities
B26: Inventory storage period
B28: Type of inventories | C28: Storage period, months | D28: Turnover index | E28: % of reserve
B30: 1 | C30: under 3 | D30: above 1 | E30: 0
B31: 2 | C31: from 3 to 6 | D31: from 0,5 to 1 | E31: 30
B32: 3 | C32: from 6 to 9 | D32: from 0,33 to 0,5 | E32: 50
B33: 4 | C33: above 12 | D33: under 0,33 | E33: 100
C35: up
B36: Held to maturity financial assets
C37: 31 December 2007 | D37: 31 December 2008 | E37: 31 December 2009 | F37: 31 December 2010 | G37: 31 December 2011 | H37: 31 December 2012 | I37: 31 December 2013 | J37: 31 December 2014 | K37: 31 December 2015 | L37: 31 December 2016
B39: VAT government bonds | C39: 0 | D39: 0 | E39: 0 | F39: 257 | G39: 0 | H39: 0 | I39: 0 | J39: 26433 | K39: 13025 | L39: 7664
B40: Discount VAT government bonds | C40: 0 | D40: 0 | E40: 0 | F40: 0 | G40: 0 | H40: 0 | I40: 0 | J40: -8474 | K40: -3768 | L40: -1964
B41: Other long-term financial assets to non-related parties | C41: 0 | D41: 41 | E41: 40 | F41: 38 | G41: 0 | H41: 0 | I41: 0 | J41: - | K41: - | L41: -
B42: Total | C42: 0 | D42: =D41 -> 41 | E42: =E41 -> 40 | F42: =F41+F39 -> 295 | G42: 0 | H42: 0 | I42: 0 | J42: =J39+J40 -> 17959 | K42: 9257 | L42: 5700
B44: Coupon receivable | C44: 0 | D44: 0 | E44: 0 | F44: 0 | G44: 0 | H44: 0 | I44: 0 | J44: 1177 | K44: 604 | L44: 409
B46: Biological assets | C46: up
C48: 31 December 2007 | D48: 31 December 2008 | E48: 31 December 2009 | F48: 31 December 2010 | G48: 31 December 2011 | H48: 31 December 2012 | I48: 31 December 2013 | J48: 31 December 2014 | K48: 31 December 2015 | L48: 31 December 2016
B49: Non-current biological assets
B50: Replacement poultry | C50: 21343 | D50: 9185 | E50: 21546 | F50: 59078 | G50: 44304 | H50: 46724 | I50: 76678 | J50: 21637 | K50: 13403 | L50: 14273
C51: 21343 | D51: 9185 | E51: 21546 | F51: 59078 | G51: 44304 | H51: 46724 | I51: 76678 | J51: 21637 | K51: 13403 | L51: 14273
B52: Current biological assets
B53: Commercial poultry | C53: 17592 | D53: 47386 | E53: 44850 | F53: 44700 | G53: 58913 | H53: 56886 | I53: 60648 | J53: 28228 | K53: 13736 | L53: 7755
B54: Other biological assets | C54: 483 | D54: 549 | E54: 60 | F54: 5 | G54: 3 | H54: 3 | I54: 2 | J54: 0 | K54: 0 | L54: 0
C55: 18075 | D55: 47935 | E55: 44910 | F55: 44705 | G55: 58916 | H55: 56889 | I55: 60650 | J55: 49865 | K55: 27139 | L55: 22028
B57: Commercial poultry and replacement poultry | C57: up
C59: 31 December 2007 | E59: 31 December 2008 | G59: 31 December 2009 | I59: 31 December 2010 | K59: 31 December 2011 | M59: 31 December 2012 | O59: 31 December 2013 | Q59: 31 December 2014 | S59: 31 December 2015 | U59: 31 December 2016
C60: Number, thousand head | D60: Fair value | E60: Number, thousand head | F60: Fair value | G60: Number, thousand head | H60: Fair value | I60: Number, thousand head | J60: Fair value | K60: Number, thousand head | L60: Fair value | M60: Number, thousand head | N60: Fair value | O60: Number, thousand head | P60: Fair value | Q60: Number, thousand head | R60: Fair value | S60: Number, thousand head | T60: Fair value | U60: Number, thousand head | V60: Fair value
B61: Decalb | C61: 1592 | D61: 7714 | E61: 1427 | F61: 2615 | G61: 0 | H61: 0 | I61: 0 | J61: 0 | K61: 0 | L61: 0 | M61: 0 | N61: 0 | O61: 0 | P61: 0 | Q61: 123 | R61: 372 | S61: 202 | T61: 463 | U61: 125 | V61: 94
B62: Isa Brown | C62: 709 | D62: 1937 | E62: 917 | F62: 3079 | G62: 0 | H62: 0 | I62: 0 | J62: 0 | K62: 0 | L62: 0 | M62: 0 | N62: 0 | O62: 0 | P62: 0 | Q62: 0 | R62: 0 | S62: 0 | T62: 0 | U62: 0 | V62: 0
B63: Loman | C63: 1391 | D63: 5560 | E63: 823 | F63: 2335 | G63: 331 | H63: 1947 | I63: 3092 | J63: 16515 | K63: 2303 | L63: 6152 | M63: 0 | N63: 0 | O63: 2370 | P63: 13833 | Q63: 6880 | R63: 17492 | S63: 11041 | T63: 22576 | U63: 13356 | V63: 21879
B64: Hy-Line | C64: 746 | D64: 3013 | E64: 7114 | F64: 36183 | G64: 14795 | H64: 61572 | I64: 20834 | J64: 86551 | K64: 22833 | L64: 97065 | M64: 27020 | N64: 100843 | O64: 28244 | P64: 117673 | Q64: 15665 | R64: 30762 | S64: 1094 | T64: 1374 | U64: 0 | V64: 0
B65: Hisex | C65: 2436 | D65: 8926 | E65: 876 | F65: 1536 | G65: 350 | H65: 2115 | I65: 297 | J65: 570 | K65: - | L65: - | M65: 499 | N65: 2767 | O65: 1288 | P65: 3288 | Q65: 68 | R65: 87 | S65: 73 | T65: 9 | U65: 0 | V65: 0
B66: Other | C66: 2682 | D66: 11785 | E66: 2828 | F66: 10823 | G66: 645 | H66: 762 | I66: 30 | J66: 143 | K66: - | L66: - | M66: - | N66: - | O66: 630 | P66: 2530 | Q66: 606 | R66: 1152 | S66: 1197 | T66: 2717 | U66: 77 | V66: 55
C67: 9556 | D67: 38935 | E67: 13985 | F67: 56571 | G67: 16121 | H67: 66396 | I67: 24253 | J67: 103779 | K67: 25136 | L67: 103217 | M67: 27519 | N67: 103610 | O67: 32532 | P67: 137324 | Q67: 23342 | R67: 49865 | S67: 13607 | T67: 27139 | U67: 13558 | V67: 22028
B69: Reconciliation of commercial and replacement poultry fair value | C69: up
B71: As at 1 January 2007 | C71: 12345
B72: Merger of entities under common control | C72: 10747
B73: Acquisitions | C73: 7894
B74: Increase in value as a result of changes in weight/number | C74: 1482
B75: Income from revaluation of biological assets at fair value | C75: 12604
B76: Changes in value of biological assets as a result of agricultural produce harvesting | C76: -6137
B77: Net change in fair value | C77: 6467
B78: As at 31 December 2007/As at 1 January 2008 | C78: 38935
B79: Merger of entities under common control | C79: 5128
B80: Acquisitions | C80: 49509
B81: Increase in value as a result of changes in weight/number | C81: 42202
B82: Income from revaluation of biological assets at fair value | C82: 14729
B83: Changes in value of biological assets as a result of agricultural produce harvesting | C83: -2039
B84: Net change in fair value | C84: 12690
B85: Decrease in value resulting from assets disposal | C85: -56927
B86: Currency translation reserve | C86: -28712
B87: Other changes | C87: -6254
B88: As at 31 December 2008/ As at 1 January 2009 | C88: 56571
B89: Acquisitions | C89: 38065
B90: Increase in value as a result of changes in weight/number | C90: 30082
B91: Income from revaluation of biological assets at fair value | C91: 12386
B92: Changes in value of biological assets as a result of agricultural produce harvesting | C92: -4691
B93: Net change in fair value | C93: 7695
B94: Decrease in value resulting from assets disposal | C94: -44590
B95: Currency translation reserve | C95: -4822
B96: Other changes | C96: -16605
B97: As at 31 December 2009/ As at 1 January 2010 | C97: 66396
B98: Acquisitions | C98: 55638
B99: Increase in value as a result of changes in weight/number | C99: 38404
B100: Net change in fair value | C100: 26187
B101: Decrease in value resulting from assets disposal | C101: -54885
B102: Currency translation reserve | C102: 70
B103: Decrease in value resulting from hens slaughtering | C103: -27975
B104: Other changes | C104: -56
B105: As at 31 December 2010/ As at 1 January 2011 | C105: 103779
B106: Acquisitions | C106: 60120
B107: Increase in value as a result of changes in weight/number | C107: 41374
B108: Net change in fair value | C108: 23697
B109: Decrease in value resulting from assets disposal | C109: -83829
B110: Currency translation reserve | C110: -364
B111: Decrease in value resulting from hens slaughtering | C111: -41488
B112: Other changes (1) | C112: -72
B113: As at 31 December 2011/ As at 1 January 2012 | C113: 103217
B114: Acquisitions | C114: 50051
B115: Increase in value as a result of changes in weight/number | C115: 60292
B116: Net change in fair value | C116: 26191
B117: Decrease in value resulting from assets disposal | C117: -47124
B118: Currency translation reserve | C118: -35
B119: Decrease in value resulting from hens slaughtering | C119: -88815
B120: Other changes (1) | C120: -167
B121: As at 31 December 2012/ As at 1 January 2013 | C121: 103610
B122: Acquisitions | C122: 114401
B123: Increase in value as a result of changes in weight/number | C123: 132523
B124: Net change in fair value | C124: 35158
B125: Decrease in value resulting from assets disposal | C125: -97157
B126: Currency translation reserve | C126: 0
B127: Decrease in value resulting from hens slaughtering | C127: -150903
B128: Other changes | C128: -308
B130: As at 31 December 2013/as at 1 January 2014 | C130: 137324
B131: Acquisitions | C131: 2129
B132: Increase in value as a result of increase in weight/number | C132: 133392
B133: Net change in fair value | C133: 15364
B134: Decrease in value resulting from assets disposal | C134: -26473
B135: Currency translation reserve | C135: -61317
B136: Decrease in value resulting from hens slaughtering | C136: -150253
B137: Other changes | C137: -301
B139: As at 31 December 2014/as at 1 January 2015 | C139: 49865
B140: Acquisitions | C140: 5068
B141: Increase in value as a result of increase in weight/number | C141: 54941
B142: Net change in fair value | C142: 1391
B143: Decrease in value resulting from assets disposal | C143: -6490
B144: Currency translation reserve | C144: -16544
B145: Decrease in value resulting from hens slaughtering | C145: -60969
B146: Other changes | C146: -122
B147: As at 31 December 2015 | C147: 27139
B149: As at 31 December 2015/ as at 1 January 2016 | C149: 27139
B150: Acquisitions | C150: 4090
B151: Increase in value as a result of increase in weight/number | C151: 45398
B152: Net change in fair value | C152: -2232
B153: Decrease in value resulting from assets disposal | C153: -2997
B154: Currency translation reserve | C154: -3060
B155: Decrease in value resulting from hens slaughtering | C155: -46217
B156: Other changes | C156: -93
B157: As at 31 December 2016 | C157: 22028
B159: Other non-current assets | C159: up
C160: 31 December 2007 | D160: 31 December 2008 | E160: 31 December 2009 | F160: 31 December 2010 | G160: 31 December 2011 | H160: 31 December 2012 | I160: 31 December 2013 | J160: 31 December 2014 | K160: 31 December 2015 | L160: 31 December 2016
B161: Prepayments for property, plant and equipment | C161: 110278 | D161: 54998 | E161: 16273 | F161: 60071 | G161: 92684 | H161: 0 | I161: 0 | J161: 0 | K161: 0 | L161: 0
B162: Other non-current assets | C162: 10 | D162: 370 | E162: 357 | F162: 357 | G162: 357 | H162: 391 | I162: 373 | J162: 28 | K162: 6 | L162: 5
C163: 110288 | D163: 55368 | E163: 16630 | F163: 60428 | G163: 93041 | H163: 391 | I163: 373 | J163: 28 | K163: 6 | L163: 5
B165: Taxes recoverable and prepaid | C165: up
B167: VAT settlements | C167: 41106 | D167: 54010 | E167: 28625 | F167: 52924 | G167: 76181 | H167: 102455 | I167: 104346 | J167: 45891 | K167: 11782 | L167: 8403
B168: Other taxes prepaid | C168: 120 | D168: 48 | E168: 83 | F168: 160 | G168: 117 | H168: 112 | I168: 93 | J168: 58 | K168: 1076 | L168: 76
C169: 41226 | D169: 54058 | E169: 28708 | F169: 53084 | G169: 76298 | H169: 102567 | I169: 104439 | J169: 45949 | K169: 12858 | L169: 8479
B171: Inventories | C171: up
B173: Raw and basic materials | C173: 8141 | D173: 39468 | E173: 72877 | F173: 165826 | G173: 181504 | H173: 144752 | I173: 132264 | J173: 87116 | K173: 38733 | L173: 20103
B174: Work-in-progress | C174: 201 | D174: 206 | E174: 1935 | F174: 1192 | G174: 1117 | H174: 1153 | I174: 606 | J174: 276 | K174: 51 | L174: 281
B175: Agricultural produce | C175: 1857 | D175: 4639 | E175: 884 | F175: 5915 | G175: 4623 | H175: 2417 | I175: 2150 | J175: 1382 | K175: 356 | L175: 1685
B176: Finished goods | C176: 428 | D176: 67 | E176: 9958 | F176: 5681 | G176: 1672 | H176: 11487 | I176: 33939 | J176: 16771 | K176: 8357 | L176: 22475
B177: Package and packing materials | C177: 829 | D177: 1450 | E177: 3262 | F177: 4329 | G177: 5834 | H177: 6168 | I177: 13997 | J177: 8313 | K177: 7904 | L177: 5546
B178: Goods for resale | C178: 39 | D178: 167 | E178: 2640 | F178: 1012 | G178: 3632 | H178: 8707 | I178: 6350 | J178: 290 | K178: 1562 | L178: 10070
B179: Other inventories | C179: 1193 | D179: 1079 | E179: 1201 | F179: 1669 | G179: 3897 | H179: 3202 | I179: 4076 | J179: 1748 | K179: 1186 | L179: 1984
C180: 12688 | D180: 47076 | E180: 92757 | F180: 185624 | G180: 202279 | H180: 177886 | I180: 193382 | J180: 115896 | K180: 58149 | L180: 62144
B182: Prepayments and other current assets | C182: up
B184: Prepayments | C184: 10125 | D184: 91311 | E184: 12006 | F184: 26357 | G184: 22166 | H184: 9823 | I184: 18144 | J184: 16250 | K184: 12738 | L184: 9590
B185: Provision for doubtful debts | C185: 0 | D185: -608 | E185: -422 | F185: -726 | G185: -631 | H185: -765 | I185: -1213 | J185: -1522 | K185: -4643 | L185: -4139
B186: Financial assistance issued /loans to related parties | C186: 5733 | D186: 702 | E186: 4320 | F186: 180 | G186: 16 | H186: 0 | I186: 0 | J186: 0 | K186: 0 | L186: 0
B187: Commission receivable for acquisition of corporate rights | C187: 19802 | D187: 12987 | E187: 0 | F187: 0 | G187: 0 | H187: 0 | I187: 0 | J187: 0 | K187: 0 | L187: 0
B188: Interest receivable for deposits | C188: 29 | D188: 79 | E188: 39411 | F188: 10 | G188: 0 | H188: 0 | I188: 0 | J188: 0 | K188: 0 | L188: 0
B189: Accounts receivable for bonds | C189: 0 | D189: 25496 | E189: 0 | F189: 0 | G189: 0 | H189: 0 | I189: 0 | J189: 0 | K189: 0 | L189: 0
B190: Other non-trade accounts receivable | C190: 3055 | D190: 3144 | E190: 3311 | F190: 16008 | G190: 5395 | H190: 2908 | I190: 13914 | J190: 7758 | K190: 8590 | L190: 5129
B191: Current portion of VAT bonds | J191: 6608 | K191: 4342 | L191: 3832
C192: 38744 | D192: 133111 | E192: 58626 | F192: 41829 | G192: 26946 | H192: 11966 | I192: 30845 | J192: 29094 | K192: 21027 | L192: 14412
B194: Trade accounts receivable | C194: up
B196: Trade accounts receivable | C196: 47331 | D196: 15866 | E196: 47600 | F196: 54801 | G196: 51686 | H196: 55768 | I196: 89040 | J196: 87695 | K196: 94295 | L196: 91115
B197: Provision for doubtful debts | C197: 622 | D197: -273 | E197: -280 | F197: -123 | G197: -249 | H197: -217 | I197: -68 | J197: -8474 | K197: -37630 | L197: -50487
B198: Trade receivable - net | C198: 47953 | D198: 15593 | E198: 47320 | F198: 54678 | G198: 51437 | H198: 55551 | I198: 88972 | J198: 79221 | K198: 56665 | L198: 40628
B200: Cash and cash equivalents | C200: up
B202: Cash in banks | C202: 3957 | D202: 5701 | E202: 1493 | F202: 182949 | G202: 231164 | H202: 202249 | I202: 154771 | J202: 117812 | K202: 31301 | L202: 12570
B203: Cash in hand | C203: 211 | D203: 44 | E203: 103 | F203: 77 | G203: 116 | H203: 49 | I203: 33 | J203: 44 | K203: 6 | L203: 0
B204: Cash in transit | C204: 292 | D204: 42 | E204: 105 | F204: 39 | G204: 21 | H204: 0 | J204: 0 | K204: 0 | L204: 0
B205: Letter of credit in national currency | C205: 0 | D205: 91 | E205: 26 | F205: 0 | G205: 0 | H205: 0 | J205: 0 | K205: 0 | L205: 0
B206: Cash equivalents (notes, deposits - repayment on demand) | C206: 0 | D206: 0 | E206: 0 | F206: 0 | G206: 6000 | H206: 0 | J206: 0 | K206: 0 | L206: 0
B207: Other bank accounts in foreign currency | C207: 0 | D207: 0 | E207: 0 | F207: 0 | G207: 513 | H207: 2000 | I207: 2000 | J207: 0 | K207: 0 | L207: 0
C208: 4460 | D208: 5878 | E208: 1727 | F208: 183065 | G208: 237814 | H208: 204298 | I208: 156804 | J208: 117856 | K208: 31307 | L208: 12570
B209: Less restricted cash
B210: Letter of credit in national currency | C210: 0 | D210: -91 | E210: -26 | F210: 0 | G210: 0 | H210: 0 | I210: 0 | J210: 0 | K210: 0 | L210: 0
B211: Other bank accounts in foreign currency | C211: 0 | D211: 0 | E211: 0 | F211: 0 | G211: -7174 | H211: -794 | I211: 0 | J211: 0 | K211: 0 | L211: 0
B212: Cash to be represented in statement of cash flows | C212: 4460 | D212: 5787 | E212: 1701 | F212: 183 065 | G212: 230640 | H212: 203504 | I212: 156804 | J212: 117856 | K212: 31307 | L212: 12570
B214: Long-term and short-term bank deposits | C214: up
B216: Bank deposits (with maturity under 3 months) | C216: 2588 | D216: 510 | E216: 0 | F216: 0 | G216: 0 | H216: 0 | I216: 0 | J216: 0 | K216: 0 | L216: 0
B217: Bank deposits (with maturity from 3 to 12 months) | C217: 34775 | D217: 232761 | E217: 155917 | F217: 0 | G217: 0 | H217: 0 | I217: 0 | J217: 0 | K217: 0 | L217: 0
B218: Bank deposits (with maturity above 12 months) | C218: 107627 | D218: 49351 | E218: 504 | F218: 0 | G218: 0 | H218: 0 | I218: 0 | J218: 0 | K218: 0 | L218: 0
C219: 144990 | D219: 282622 | E219: 156421 | F219: 0 | G219: 0 | H219: 0 | I219: 0 | J219: 0 | K219: 0 | L219: 0
B221: Deposit interest rates
B223: Bank deposits (with maturity under 3 months) | C223: 10,5%-16,0% | D223: 0 | E223: 0.125 | F223: 0 | G223: 0 | H223: 0 | I223: 0 | J223: 0 | K223: 0 | L223: 0
B224: Bank deposits (with maturity from 3 to 12 months) | C224: 12,9%-17,0% | D224: 0.16 | E224: 8,0%-16,0% | F224: 0 | G224: 0 | H224: 0 | I224: 0 | J224: 0 | K224: 0 | L224: 0
B225: Bank deposits (with maturity above 12 months) | C225: 8,0%-16,0% | D225: 0.12 | E225: 12,0%-16,0% | F225: 0 | G225: 0 | H225: 0 | I225: 0 | J225: 0 | K225: 0 | L225: 0
B227: Share capital, share premium, capital contribution reserve | C227: up
B230: 2016 | C230: Number of shares | D230: Share capital, USD ths | E230: Share premium | F230: Capital contribution reserve
B231: Authorised ordinary shares | C231: 6500000 | D231: 908 | E231: 0 | F231: 0
B232: Issued and fully paid on 1 January 2016 | C232: 6387185 | D232: 836 | E232: 201164 | F232: 115858
B233: Balance at 31 December 2016 | C233: 6387185 | D233: 836 | E233: 201164 | F233: 115858
B235: 2015 | C235: Number of shares | D235: Share capital, USD ths | E235: Share premium | F235: Capital contribution reserve
B236: Authorised ordinary shares | C236: 6500000 | D236: 908 | E236: 0 | F236: 0
B237: Issued and fully paid on 1 January 2015 | C237: 6387185 | D237: 836 | E237: 201164 | F237: 115858
B238: Balance at 31 December 2015 | C238: 6387185 | D238: 836 | E238: 201164 | F238: 115858
... 223 more rows

Sheet Exchange Rates (Interim)
B2: Exchange Rates as at 30 June 2009-2017
B4: >> Content | C4: >> List of Notes
B7: The exchange rates used for the preparation of the consolidated financial statements
B11: As at 6 months ended 30 June 2017
B12: Currency | C12: 30 June 2017 | D12: Weighted average for the 6 months ended 30 June 2017
B13: USD to UAH | C13: 26.0909 | D13: 26.7602
B14: EURO | C14: 0.8762 | D14: 0.9248
B17: As at 6 months ended 30 June 2016
B18: Currency | C18: 30 June 2016 | D18: Weighted average for the 6 months ended 30 June 2016
B19: USD to UAH | C19: 24.8544 | D19: 25.4578
B20: EURO | C20: 0.9017 | D20: 0.8959
B23: As at 6 months ended 30 June 2015
B24: Currency | C24: 30 June 2015 | D24: Weighted average for the 6 months ended 30 June 2015
B25: USD to UAH | C25: 21.0154 | D25: 21.3649
B26: EURO | C26: 0.8927 | D26: 0.8965
B29: As at 6 months ended 30 June 2014
B30: Currency | C30: 30 June 2014 | D30: Weighted average for the 6 months ended 30 June 2014
B31: USD to UAH | C31: 10.2873 | D31: 11.8233
B32: EURO | C32: 0.7293 | D32: 0.735
B36: As at 6 months ended 30 June 2013
B37: Currency | C37: 30 June 2013 | D37: Weighted average for the 6 months ended 30 June 2013
B38: USD to UAH | C38: 7.993 | D38: 7.993
B39: EURO | C39: - | D39: -
B43: As at 6 months ended 30 June 2012
B44: Currency | C44: 30 June 2012 | D44: Weighted average for the 6 months ended 30 June 2012
B45: USD to UAH | C45: 7.9925 | D45: 7.9891
B46: EURO | C46: - | D46: -
B49: As at 6 months ended 30 June 2011
B50: Currency | C50: 30 June 2011 | D50: Weighted average for the 6 months ended 30 June 2011
B51: USD to UAH | C51: 7.972 | D51: 7.958
B52: EURO | C52: - | D52: -
B55: As at 6 months ended 30 June 2010
B56: Currency | C56: 30 June 2010 | D56: Weighted average for the 6 months ended 30 June 2010
B57: USD to UAH | C57: 7.907 | D57: 7.955
B58: EURO | C58: - | D58: -
B61: As at 6 months ended 30 June 2009
B62: Currency | C62: 30 June 2009 | D62: Weighted average for the 6 months ended 30 June 2009
B63: USD to UAH | C63: 7.63 | D63: 7.678
B64: EURO | C64: - | D64: -

Sheet BS (Interim)
B2: Consolidated Statement of Financial Position as at 30 June 2009-2017
B3: (in USD thousand, unless otherwise stated)
B4: >> Content
D6: 30 June 2009 | E6: 30 June 2010 | F6: 30 June 2011 | G6: 30 June 2012 | H6: 30 June 2013 | I6: 30 June 2014 | J6: 30 June 2015 | K6: 30 June 2016 | L6: 30 June 2017 | N6: 1H'09 Structure, % | O6: 1H'10 Structure, % | P6: 1H'11 Structure, % | Q6: 1H'12 Structure, % | R6: 1H'13 Structure, % | S6: 1H'14 Structure, % | T6: 1H'15 Structure, % | U6: 1H'16 Structure, % | V6: 1H'17 Structure, %
B7: ASSETS
B8: Non-current assets
B9: Property, plant and equipment | D9: 385135 | E9: 384315 | F9: 512697 | G9: 574880 | H9: 983556 | I9: 761469 | J9: 440065 | K9: 397105 | L9: 366591 | N9: =D9/$D$27 -> 0.3536739351 | O9: =E9/$E$27 -> 0.3423165276 | P9: =F9/$F$27 -> 0.3926744758 | Q9: =G9/$G$27 -> 0.4055587968 | R9: =H9/$H$27 -> 0.6039391662 | S9: =I9/$I$27 -> 0.554081744 | T9: =J9/$J$27 -> 0.6391704212 | U9: =K9/$K$27 -> 0.6894411448 | V9: =L9/$L$27 -> 0.6855384489
B10: Available for sale financial assets | D10: 41 | E10: 40 | F10: 0 | G10: 0 | H10: 0 | I10: 0 | J10: 0 | K10: 0 | L10: 0 | N10: =D10/$D$27 -> 3.765077528e-05 | O10: =E10/$E$27 -> 3.562874492e-05 | P10: =F10/$F$27 -> 0 | Q10: =G10/$G$27 -> 0 | R10: =H10/$H$27 -> 0 | S10: =I10/$I$27 -> 0 | T10: 0 | U10: =K10/$K$27 -> 0 | V10: =L10/$L$27 -> 0
B11: Non-current biological assets | D11: 40289 | E11: 42538 | F11: 44304 | G11: 45557 | H11: 43746 | I11: 44139 | J11: 10782 | K11: 6153 | L11: 13940 | N11: 0.03699785574 | O11: 0.03788938878 | P11: 0.03393242007 | Q11: 0.0321389544 | R11: 0.0268616355 | S11: 0.03211767531 | T11: 0.01566026719 | U11: 0.01068264405 | V11: 0.02606830494
B12: Long-term bank deposits | D12: 4229 | E12: 28 | F12: 0 | G12: 0 | H12: 0 | I12: 0 | J12: 0 | K12: 0 | L12: 0 | N12: 0.003883539724 | O12: 2.494012144e-05 | P12: 0 | Q12: 0 | R12: 0 | S12: 0 | T12: 0 | U12: 0 | V12: 0
B13: Deferred income tax assets | D13: 479 | E13: 6 | F13: 1922 | G13: 1912 | H13: 2466 | I13: 2652 | J13: 4440 | K13: 5668 | L13: 7720 | N13: 0.0004398712527 | O13: 5.344311737e-06 | P13: 0.001472059213 | Q13: 0.001348852664 | R13: 0.001514213714 | S13: 0.001929723712 | T13: 0.006448857942 | U13: 0.009840602381 | V13: 0.01443667964
B14: Held to maturity investments | D14: 0 | E14: 0 | F14: 0 | G14: 0 | H14: 0 | I14: 0 | J14: 12048 | K14: 7619 | L14: 4535 | T14: 0.01749906317 | U14: 0.01322786689 | V14: 0.008480614269
B15: Other non-current assets | D15: 36220 | E15: 20106 | F15: 93041 | G15: 73217 | H15: 367 | I15: 253 | J15: 21 | K15: 6 | L15: 5 | N15: 0.03326124587 | O15: 0.01790878863 | P15: 0.0712600735 | Q15: 0.05165216815 | R15: 0.0002253513516 | S15: 0.00018409506 | T15: 3.050135513e-05 | U15: 1.041701028e-05 | V15: 9.350181113e-06
B16: Total non-current assets | D16: 466393 | E16: 447033 | F16: 651964 | G16: 695566 | H16: 1030135 | I16: 808513 | J16: 467356 | K16: 416551 | L16: 392791 | N16: 0.4282940985 | O16: 0.3981806181 | P16: 0.4993390286 | Q16: 0.490698772 | R16: 0.6325403668 | S16: 0.5883132381 | T16: 0.6788091109 | U16: 0.7232026751 | V16: 0.7345333979
B17: Currents assets
B18: Inventories | D18: 70381 | E18: 99216 | F18: 202279 | G18: 165595 | H18: 146774 | I18: 122583 | J18: 64030 | K18: 65141 | L18: 54941 | N18: 0.06463168818 | O18: 0.08837353889 | P18: 0.1549254243 | Q18: 0.1168217871 | R18: =H18/$H$27 -> 0.0901245757 | S18: =I18/$I$27 -> 0.08919733099 | T18: =J18/$J$27 -> 0.09300008424 | U18: =K18/$K$27 -> 0.1130957445 | V18: =L18/$L$27 -> 0.1027416601
B19: Prepaid income tax | D19: 7 | E19: 10 | F19: 0 | G19: 7 | H19: 39 | I19: 36 | J19: 64 | K19: 39 | L19: 41 | N19: 6.428181146e-06 | O19: 8.907186229e-06 | P19: 0 | Q19: 4.938268121e-06 | R19: =H19/$H$27 -> 2.394741884e-05 | S19: =I19/$I$27 -> 2.619534451e-05 | T19: =J19/$J$27 -> 9.295651088e-05 | U19: 6.771056684e-05 | V19: =L19/$L$27 -> 7.667148513e-05
B20: Taxes recoverable and prepaid | D20: 26681 | E20: 24341 | F20: 76298 | G20: 67876 | H20: 89247 | I20: 87201 | J20: 17974 | K20: 18168 | L20: 11670 | N20: 0.02450147159 | O20: 0.021680982 | P20: 0.05843661491 | Q20: 0.04788426957 | R20: 0.05480090484 | S20: 0.06345167323 | T20: 0.0261062551 | U20: 0.03154270714 | V20: 0.02182332272
B21: Current biological assets | D21: 30678 | E21: 34785 | F21: 58916 | G21: 46590 | H21: 59922 | I21: 44585 | J21: 22590 | K21: 13610 | L21: 19774 | N21: 0.02817196303 | O21: 0.0309836473 | P21: 0.04512374641 | Q21: 0.03286770168 | R21: 0.03679428799 | S21: 0.03244220652 | T21: 0.03281074345 | U21: 0.02362925166 | V21: 0.03697809627
B22: Prepayments and other current assets | D22: 170559 | E22: 25588 | F22: 26946 | G22: 79258 | H22: 82272 | I22: 11034 | J22: 9133 | K22: 13846 | L22: 13764 | N22: 0.1566263069 | O22: 0.02279170812 | P22: 0.02063793317 | Q22: 0.05591389354 | R22: 0.05051800109 | S22: 0.008028873091 | T22: 0.01326518459 | U22: 0.0240389874 | V22: 0.02573917857
B23: Trade accounts receivable | D23: 84721 | E23: 88868 | F23: 51437 | G23: 29992 | H23: 61019 | I23: 64258 | J23: 55172 | K23: 31448 | L23: 29160 | N23: 0.07780027641 | O23: 0.07915638258 | P23: 0.0393955826 | Q23: 0.0211583625 | R23: 0.0374678859 | S23: 0.04675723464 | T23: 0.08013432216 | U23: 0.05459902323 | V23: 0.05453025625
B24: Short-term bank deposits | D24: 238089 | E24: 297223 | F24: 0 | G24: 0 | H24: 0 | I24: 0 | J24: 0 | K24: 0 | L24: 0 | N24: 0.2186398887 | O24: 0.2647420612 | P24: 0 | Q24: 0 | R24: 0 | S24: 0 | T24: 0 | U24: 0 | V24: 0
B25: Cash and cash equivalents | D25: 1446 | E25: 105625 | F25: 237814 | G25: 332617 | H25: 159160 | I25: 236080 | J25: 52175 | K25: 17178 | L25: 12608 | N25: 0.001327878562 | O25: 0.09408215454 | P25: 0.18214167 | Q25: 0.2346502754 | R25: 0.09773003031 | S25: 0.1717832481 | T25: =J25/$J$27 -> 0.07578134305 | U25: 0.02982390044 | V25: 0.02357741669
B26: Total current assets | D26: 622562 | E26: 675656 | F26: 653690 | G26: 721935 | H26: 598433 | I26: 565777 | J26: 221138 | K26: 159430 | L26: 141958 | N26: 0.5717059015 | O26: 0.6018193819 | P26: 0.5006609714 | Q26: 0.509301228 | R26: 0.3674596332 | S26: 0.4116867619 | T26: =J26/$J$27 -> 0.3211908891 | U26: 0.2767973249 | V26: 0.2654666021
B27: TOTAL ASSETS | D27: 1088955 | E27: 1122689 | F27: 1305654 | G27: 1417501 | H27: 1628568 | I27: 1374290 | J27: 688494 | K27: 575981 | L27: 534749 | N27: 1 | O27: 1 | P27: 1 | Q27: 1 | R27: =H27/$H$27 -> 1 | S27: 1 | T27: =J27/$J$27 -> 1 | U27: 1 | V27: 1
B29: EQUITY AND LIABILITIES
B30: EQUITY
B31: Share capital | D31: 644 | E31: 835 | F31: 836 | G31: 836 | H31: 836 | I31: 836 | J31: 836 | K31: 836 | L31: 836 | N31: 0.0005913926654 | O31: 0.0007437500501 | P31: =F31/$F$27 -> 0.0006402921448 | Q31: 0.000589770307 | R31: =H31/$H$27 -> 0.000513334414 | S31: =I31/$I$27 -> 0.0006083141113 | T31: =J31/$J$27 -> 0.001214244423 | U31: =K31/$K$27 -> 0.001451436766 | V31: =L31/$L$27 -> 0.001563350282
B32: Share premium | D32: 0 | E32: 317021 | F32: 201164 | G32: 201164 | H32: 201164 | I32: 201164 | J32: 201164 | K32: 201164 | L32: 201164 | N32: 0 | O32: 0.2823765085 | P32: 0.1540714462 | Q32: 0.1419145383 | R32: =H32/$H$27 -> 0.1235220144 | S32: =I32/$I$27 -> 0.1463766745 | T32: =J32/$J$27 -> 0.292179743 | U32: =K32/$K$27 -> 0.3492545761 | V32: =L32/$L$27 -> 0.3761839667
B33: Capital contribution reserve | D33: n/a | E33: n/a | F33: 115858 | G33: 115858 | H33: 115858 | I33: 115858 | J33: 115858 | K33: 115858 | L33: 115858 | R33: 0.07114102696 | S33: 0.0843038951 | T33: 0.1682774287 | U33: 0.2011489962 | V33: 0.2166586567
B34: Retained earnings | D34: 201098 | E34: 360688 | F34: 673909 | G34: 769427 | H34: 1003324 | I34: 1184421 | J34: 929103 | K34: 888948 | L34: 853587 | N34: 0.1846706246 | O34: 0.3212715186 | P34: 0.5161466974 | Q34: 0.5428052608 | R34: 0.6160774374 | S34: 0.8618421148 | T34: 1.349471455 | U34: 1.54336341 | V34: 1.596238609
B35: Currency translation reserve | D35: -55343 | E35: -60199 | F35: -67761 | G35: -68114 | H35: -68194 | I35: -530151 | J35: -958151 | K35: -1035301 | L35: -1062901 | N35: =D35/$D$27 -> -0.05082211845 | O35: -0.05362037038 | P35: -0.05189812921 | Q35: -0.04805217069 | R35: -0.04187359693 | S35: -0.3857635579 | T35: -1.391662091 | U35: -1.797456861 | V35: -1.987663371
B36: Total equity attributable to: equity holders of the parent | D36: 146399 | E36: 618345 | F36: 924006 | G36: 1019171 | H36: 1252988 | I36: 972128 | J36: 288810 | K36: 171505 | L36: 108544 | N36: 0.1344398988 | O36: 0.5507714069 | P36: 0.7076959133 | Q36: 0.7189913799 | R36: 0.7693802162 | S36: 0.7073674406 | T36: 0.4194807798 | U36: 0.2977615581 | V36: 0.2029812117
B37: Minority interest | D37: 6817 | E37: 9446 | F37: 15333 | G37: 17409 | H37: 19707 | I37: 27464 | J37: 12010 | K37: 12677 | L37: 11920 | N37: 0.006260130125 | O37: 0.008413728112 | P37: 0.01174354002 | Q37: 0.01228147282 | R37: 0.01210081495 | S37: 0.01998413726 | T37: 0.01744387024 | U37: 0.02200940656 | V37: 0.02229083177
B38: TOTAL EQUITY | D38: 153216 | E38: 627791 | F38: 939339 | G38: 1036580 | H38: 1272695 | I38: 999592 | J38: 300820 | K38: 184182 | L38: 120464 | N38: 0.1407000289 | O38: 0.559185135 | P38: 0.7194394533 | Q38: 0.7312728527 | R38: 0.7814810312 | S38: 0.7273515779 | T38: 0.43692465 | U38: =K38/$K$27 -> 0.3197709647 | V38: 0.2252720435
B40: LIABILITIES
B41: Non-current liabilities
B42: Long-term loans | D42: 235650 | E42: 80653 | F42: 15384 | G42: 4684 | H42: 52953 | I42: 82400 | J42: 72759 | K42: 56871 | L42: 49484 | N42: 0.2164001267 | O42: 0.07183912909 | P42: =G42/$F$27 -> 0.00358747417 | Q42: 0.00330440684 | R42: =H42/$H$27 -> 0.03251506845 | S42: =I42/$I$27 -> 0.05995823298 | T42: =J42/$J$27 -> 0.1056784809 | U42: =K42/$K$27 -> 0.09873763197 | V42: =L42/$L$27 -> 0.09253687244
B43: Long-term bond liabilities | D43: 0 | E43: 0 | F43: 194563 | G43: 195152 | H43: 196434 | I43: 197859 | J43: 0 | K43: 210728 | L43: 225679 | P43: 0.1494668572 | Q43: 0.1376732715 | R43: 0.1206176224 | S43: 0.1439717963 | T43: =J43/$J$27 -> 0 | U43: =K43/$K$27 -> 0.3658592905 | V43: =L43/$L$27 -> 0.4220279047
B44: Deferred income tax liabilities | D44: 623 | E44: 1271 | F44: 86 | G44: 55 | H44: 48 | I44: 28 | J44: 14 | K44: 384 | L44: 360 | N44: 0.000572108122 | O44: 0.00113210337 | P44: 4.212448321e-05 | Q44: 3.880067809e-05 | R44: 2.947374626e-05 | S44: 2.037415684e-05 | T44: 2.033423675e-05 | U44: 0.0006666886581 | V44: 0.0006732130401
B45: Deferred income (non-current portion) | D45: 6558 | E45: 6022 | F45: 5351 | G45: 5205 | H45: 4894 | I45: 3097 | J45: 1635 | K45: 1278 | L45: 1124 | N45: 0.006022287422 | O45: 0.005363907547 | P45: 0.003986507911 | Q45: 0.003671955082 | R45: 0.003005094046 | S45: 0.002253527276 | T45: 0.002374748364 | U45: 0.00221882319 | V45: 0.002101920714
B46: Dividends payable | D46: 0 | E46: 0 | F46: 0 | G46: 0 | H46: 0 | I46: 0 | J46: 0 | K46: 29542 | L46: 29542 | N46: =D46/$K$27 -> 0 | O46: 0 | P46: 0 | Q46: 0 | R46: 0 | S46: 0 | T46: 0 | U46: 0.0512898863 | V46: 0.05524461009
B47: Long-term finance leases | D47: 7503 | E47: 5167 | F47: 3830 | G47: 2554 | H47: 5 | I47: 79 | J47: 46 | K47: 21 | L47: 0 | N47: 0.006890091877 | O47: 0.004602343124 | P47: 0.00195610782 | Q47: 0.001801762397 | R47: 3.070181902e-06 | S47: 5.748422822e-05 | T47: 6.681249219e-05 | U47: 3.645953599e-05 | V47: 0
B48: Total non-current liabilities | D48: 250334 | E48: 93113 | F48: 219214 | G48: 207650 | H48: 254334 | I48: 283463 | J48: 74454 | K48: 298824 | L48: 306189 | N48: 0.2298846141 | O48: 0.08293748313 | P48: 0.1590390716 | Q48: 0.1464901965 | R48: 0.1561703288 | S48: 0.206261415 | T48: 0.108140376 | U48: 0.5188087802 | V48: 0.572584521
B49: Current liabilities
B50: Current liabilities for bonds | D50: 25376 | E50: 24488 | F50: 25013 | G50: 25023 | H50: 0 | I50: 0 | J50: 199443 | K50: 0 | L50: 0 | N50: 0.02330307497 | O50: 0.02181191764 | P50: =F50/$F$27 -> 0.01915744906 | Q50: 0.0176528976 | R50: =H50/$H$27 -> 0 | S50: =I50/$I$27 -> 0 | T50: =J50/$J$27 -> 0.2896800844 | U50: 0 | V50: =L50/$L$27 -> 0
B51: Current portion of non-current financial liabilities | D51: 17184 | E51: 119476 | F51: 26565 | G51: 34169 | H51: 15666 | I51: 12044 | J51: 18115 | K51: 25912 | L51: 84737 | N51: 0.0157802664 | O51: 0.1064194982 | P51: 0.02034612539 | Q51: 0.02410509763 | R51: =H51/$H$27 -> 0.009619493936 | S51: =I51/$I$27 -> 0.008763798034 | T51: =J51/$J$27 -> 0.02631104991 | U51: 0.04498759508 | V51: =L51/$L$27 -> 0.1584612594
B52: Short-term loans | D52: 463233 | E52: 43425 | F52: 53063 | G52: 66967 | H52: 50000 | I52: 50000 | J52: 50000 | K52: 50000 | L52: 0 | N52: 0.4253922338 | O52: 0.0386794562 | P52: 0.0406409355 | Q52: 0.04724300018 | R52: 0.03070181902 | S52: 0.03638242292 | T52: 0.07262227412 | U52: 0.08680841903 | V52: 0
B53: Trade accounts payable | D53: 76958 | E53: 86016 | F53: 17894 | G53: 19809 | H53: 14528 | I53: 13277 | J53: 4599 | K53: 2538 | L53: 3053 | N53: 0.07067142352 | O53: 0.07661605307 | P53: 0.01370500914 | Q53: 0.01397459332 | R53: 0.008920720535 | S53: 0.009660988583 | T53: 0.006679796774 | U53: 0.00440639535 | V53: 0.005709220588
B54: Current income tax liabilities | D54: 6 | E54: 6 | F54: 0 | G54: 0 | H54: 0 | I54: 0 | J54: 0 | K54: 0 | L54: 0 | N54: =D54/$D$27 -> 5.509869554e-06 | O54: 5.344311737e-06 | P54: 0 | Q54: 0 | R54: 0 | S54: 0 | T54: 0 | U54: 0 | V54: 0
B55: Accrued expenses | D55: 556 | E55: 958 | F55: 1601 | G55: 1900 | H55: 0 | I55: 0 | J55: 0 | K55: 0 | L55: 0 | N55: 0.0005105812453 | O55: 0.0008533084407 | P55: 0.001226205411 | Q55: 0.001340387061 | R55: 0 | S55: 0 | T55: 0 | U55: 0 | V55: 0
B56: Other current liabilities and accrued expenses | D56: 102092 | E56: 127416 | F56: 22965 | G56: 25403 | H56: 21345 | I56: 15914 | J56: 41063 | K56: 14525 | L56: 20306 | N56: 0.09375226708 | O56: 0.1134918041 | P56: 0.01758888649 | Q56: 0.01792097501 | R56: 0.01310660654 | S56: 0.01157979757 | T56: =J56/$J$27 -> 0.05964176885 | U56: 0.02521784573 | V56: 0.03797295554
B57: Total current liabilities | D57: 685405 | E57: 401785 | F57: 147101 | G57: 173271 | H57: 101539 | I57: 91235 | J57: 313220 | K57: 92975 | L57: 108096 | N57: 0.6294153569 | O57: 0.3578773819 | P57: 0.112664611 | Q57: 0.1222369508 | R57: 0.06234864003 | S57: 0.06638700711 | T57: =J57/$J$27 -> 0.454934974 | U57: =K57/$K$27 -> 0.1614202552 | V57: 0.2021434355
B58: TOTAL LIABILITIES | D58: 935739 | E58: 494898 | F58: 366315 | G58: 380921 | H58: 355873 | I58: 374698 | J58: 387674 | K58: 391799 | L58: 414285 | N58: 0.8592999711 | O58: 0.440814865 | P58: 0.2805605467 | Q58: 0.2687271473 | R58: 0.2185189688 | S58: 0.2726484221 | T58: =J58/$J$27 -> 0.56307535 | U58: 0.6802290353 | V58: 0.7747279565
B59: TOTAL LIABILITIES AND EQUITY | D59: 1088955 | E59: 1122689 | F59: 1305654 | G59: 1417501 | H59: 1628568 | I59: 1374290 | J59: 688494 | K59: 575981 | L59: 534749 | N59: 1 | O59: 1 | P59: 1 | Q59: 1 | R59: =H59/$H$27 -> 1 | S59: =I59/$I$27 -> 1 | T59: =J59/$J$27 -> 1 | U59: 1 | V59: =L59/$L$27 -> 1

Sheet PL (Interim)
B2: Consolidated Statement of Comprehensive Income for the Six Months Ended 30 June 2009-2017
B3: (in USD thousand, unless otherwise stated)
B4: >> Content
D6: 1H09 | E6: 1H10 | F6: 1H11 | G6: 1H12 | H6: 1H13 | I6: 1H14 | J6: 1H15 | K6: 1H16 | L6: 1H17 | N6: 1H10 to 1H09, % | O6: 1H11 to 1H10, % | P6: 1H12 to 1H11, % | Q6: 1H13 to 1H12, % | R6: 1H14 to 1H13, % | S6: 1H15 to 1H14, % | T6: 1H16 to 1H15, % | U6: 1H16 to 1H15, %
B7: REVENUE | D7: 98567 | E7: 165901 | F7: 223940 | G7: 283562 | H7: 304288 | I7: 262680 | J7: 121397 | K7: 64777 | L7: 54706 | N7: =E7/D7-1 -> 0.683129242 | O7: =F7/E7-1 -> 0.3498411703 | P7: 0.2662409574 | Q7: 0.07309159902 | R7: -0.136738879 | S7: -0.5378521395 | T7: =K7/J7-1 -> -0.4664036179 | U7: =L7/K7-1 -> -0.1554718496
B8: Income from revaluation of biological assets at fair value | D8: 14729 | E8: 14735 | F8: 15561 | G8: 19684 | H8: 20717 | I8: 9049 | J8: 2068 | K8: -3023 | L8: -4551 | N8: =E8/D8-1 -> 0.0004073596307 | O8: 0.05605700713 | P8: =G8/F8-1 -> 0.264957265 | Q8: 0.0524791709 | R8: =I8/H8-1 -> -0.5632089588 | S8: =J8/I8-1 -> -0.7714664604 | T8: =K8/J8-1 -> -2.461798839 | U8: 0.5054581542
B9: Cost of sales | D9: -72981 | E9: -125275 | F9: -155238 | G9: -189308 | H9: -206400 | I9: -190932 | J9: -115953 | K9: -59078 | L9: -62228 | N9: 0.7165426618 | O9: 0.2391778088 | P9: 0.2194694598 | Q9: 0.09028672851 | R9: -0.07494186047 | S9: -0.3927000189 | T9: -0.4905004614 | U9: 0.05331934053
B10: GROSS PROFIT/(LOSS) | D10: 40315 | E10: 55361 | F10: 84263 | G10: 113938 | H10: 118605 | I10: 80797 | J10: 7512 | K10: 2676 | L10: -12073 | N10: 0.3732109637 | O10: 0.5220642691 | P10: 0.3521711783 | Q10: 0.04096087346 | R10: -0.3187723958 | S10: -0.907026251 | T10: -0.6437699681 | U10: -5.511584454
B11: Gross profit margin | D11: =D10/D7 -> 0.4090111295 | E11: =E10/E7 -> 0.3336990133 | F11: 0.3762748951 | G11: 0.4018098335 | H11: 0.3897787622 | I11: 0.3075871783 | J11: 0.06187961811 | K11: =K10/K7 -> 0.04131095914 | L11: =L10/L7 -> -0.2206887727
B12: General administrative expenses | D12: -2596 | E12: -2505 | F12: -5011 | G12: -12258 | H12: -8614 | I12: -6907 | J12: -3188 | K12: -3876 | L12: -3739 | N12: =E12/D12-1 -> -0.03505392912 | O12: 1.000399202 | P12: 1.44621832 | Q12: -0.2972752488 | R12: -0.1981657766 | S12: -0.5384392645 | T12: 0.2158092848 | U12: -0.03534571723
B13: Distribution expenses | D13: -1433 | E13: -2436 | F13: -3553 | G13: -7958 | H13: -10510 | I13: -10798 | J13: -7187 | K13: -2974 | L13: -3246 | N13: 0.6999302163 | O13: 0.4585385878 | P13: 1.239797354 | Q13: 0.3206835888 | R13: 0.02740247383 | S13: -0.3344137803 | T13: -0.5861973007 | U13: 0.09145931406
B14: Income from government grants and incentives | D14: 6786 | E14: 466 | F14: 159 | G14: 153 | H14: 157 | I14: 118 | J14: 48 | K14: 48 | L14: 1266 | N14: -0.9313292072 | O14: -0.6587982833 | P14: -0.03773584906 | Q14: 0.02614379085 | R14: -0.2484076433 | S14: -0.593220339 | T14: 0 | U14: 25.375
B15: Income from special VAT treatment | D15: -603 | E15: 9060 | F15: 11231 | G15: 18935 | H15: 21099 | I15: 33341 | J15: 4575 | K15: 3982 | L15: - | N15: - | O15: =F15/E15-1 -> 0.2396247241 | P15: =G15/F15-1 -> 0.6859585077 | Q15: =H15/G15-1 -> 0.1142857143 | R15: 0.5802170719 | S15: -0.8627815602 | T15: -0.1296174863 | U15: -
B16: Other operating income /expenses | D16: -5612 | E16: -2743 | F16: -2992 | G16: 1673 | H16: 1220 | I16: 425 | J16: -112206 | K16: -20829 | L16: -15 | N16: =E16/D16-1 -> -0.5112259444 | O16: =F16/E16-1 -> 0.09077652206 | P16: -1.559157754 | Q16: -0.2707710699 | R16: =I16/H16-1 -> -0.6516393443 | S16: - | T16: -0.8143682156 | U16: -0.9992798502
B17: OPERATING PROFIT / (LOSS) | D17: 36857 | E17: 57203 | F17: 84097 | G17: 114483 | H17: 121957 | I17: 96976 | J17: -110446 | K17: -20973 | L17: -17807 | N17: =E17/D17-1 -> 0.5520253954 | O17: =F17/E17-1 -> 0.4701501669 | P17: 0.3613208557 | Q17: 0.06528480211 | R17: -0.2048344908 | S17: - | T17: - | U17: -0.150955991
B18: Operating profit margin | D18: =D17/D7 -> 0.3739283939 | E18: =E17/E7 -> 0.3448020205 | F18: 0.3755336251 | G18: 0.4037318117 | H18: 0.4007946419 | I18: 0.3691792295 | J18: - | K18: - | L18: -
B19: Finance income | D19: 19643 | E19: 15590 | F19: 829 | G19: 420 | H19: 67 | I19: 83 | J19: 2121 | K19: 1512 | L19: 1063 | N19: =E19/D19-1 -> -0.2063330449 | O19: =F19/E19-1 -> -0.9468248877 | P19: -0.4933655006 | Q19: -0.8404761905 | R19: 0.2388059701 | S19: =J19/I19-1 -> 24.55421687 | T19: -0.2871287129 | U19: -0.296957672
B20: Finance cost | D20: -22792 | E20: -10511 | F20: -15766 | G20: -17298 | H20: -16962 | I20: -16651 | J20: -14908 | K20: -15307 | L20: -15957 | N20: =E20/D20-1 -> -0.5388294138 | O20: =F20/E20-1 -> 0.4999524308 | P20: 0.09717112774 | Q20: -0.01942421089 | R20: -0.01833510199 | S20: =J20/I20-1 -> -0.1046783977 | T20: 0.02676415347 | U20: 0.04246423205
B21: Losses on exchange | D21: 0 | E21: 0 | F21: 0 | G21: 0 | H21: 0 | I21: -29027 | J21: -31717 | K21: -708 | L21: 19226
B22: NET FINANCE COSTS | D22: -3149 | E22: 5079 | F22: -14937 | G22: -16878 | H22: -16895 | I22: -45595 | J22: -44504 | K22: -14503 | L22: 4332
B23: PROFIT/ LOSS BEFORE TAX | D23: 33708 | E23: 62282 | F23: 69160 | G23: 97605 | H23: 105062 | I23: 51381 | J23: -154950 | K23: -35476 | L23: -13475 | N23: =E23/D23-1 -> 0.8476919426 | O23: 0.110433191 | P23: 0.4112926547 | Q23: 0.0763997746 | R23: -0.5109459176 | S23: -4.015706195 | T23: -0.7710487254 | U23: -0.6201657459
B24: Income tax credit/(expense) | D24: -341 | E24: -339 | F24: -2124 | G24: -5 | H24: 499 | I24: 610 | J24: 2518 | K24: 2869 | L24: 1757 | N24: -0.005865102639 | O24: 5.265486726 | P24: -0.997645951 | Q24: -100.8 | R24: 0.2224448898 | S24: 3.127868852 | T24: 0.1393963463 | U24: -0.3875914953
B25: NET PROFIT/(LOSS) FOR THE PERIOD | D25: 33367 | E25: 61943 | F25: 67036 | G25: 97600 | H25: 105561 | I25: 51991 | J25: -152432 | K25: -32607 | L25: -11718 | N25: 0.8564150208 | O25: 0.08222075134 | P25: 0.4559341249 | Q25: 0.08156762295 | R25: -0.5074790879 | S25: -3.931892058 | T25: -0.7860882229 | U25: -0.6406293127
B26: Net income margin | D26: =D25/D7 -> 0.338521006 | E26: =E25/E7 -> 0.3733732768 | F26: 0.2993480397 | G26: 0.3441928044 | H26: 0.3469114786 | I26: 0.1979252322 | J26: -1.255648822 | K26: -0.5033731108 | L26: -0.2141995394
B27: OTHER COMPREHENSIVE INCOME FOR THE PERIOD
B28: Currency translation reserve | D28: 1351 | E28: 3935 | F28: -1113 | G28: -359 | H28: -61 | I28: -499497 | J28: -192636 | K28: -18266 | L28: -6629 | N28: =E28/D28-1 -> 1.912657291 | O28: - | P28: -0.6774483378 | Q28: -0.8300835655 | R28: - | S28: =J28/I28-1 -> -0.6143400261 | T28: -0.905178679 | U28: =L28/K28-1 -> -0.6370852951
B29: TOTAL COMPREHENSIVE INCOME/ (LOSS) | D29: 34718 | E29: 65878 | F29: 65923 | G29: 97241 | H29: 105500 | I29: -447506 | J29: -345068 | K29: -50873 | L29: -18347 | N29: =E29/D29-1 -> 0.8975171381 | O29: =F29/E29-1 -> 0.0006830808464 | P29: 0.4750693991 | Q29: 0.08493331002 | R29: - | S29: =J29/I29-1 -> -0.2289086627 | T29: -0.8525710874 | U29: -0.6393568298
B30: PROFIT /(LOSS) FOR THE PERIOD ATTRIBUTABLE TO
B31: Owners of the parent | D31: 32949 | E31: 60580 | F31: 64774 | G31: 95518 | H31: 103967 | I31: 51602 | J31: -148055 | K31: -32487 | L31: -10870 | N31: =E31/D31-1 -> 0.838599047 | O31: 0.06923076923 | P31: 0.4746348844 | Q31: 0.08845453213 | R31: -0.5036694336 | S31: =J31/I31-1 -> -3.869171738 | T31: -0.7805747864 | U31: -0.6654046234
B32: Minority interest | D32: 418 | E32: 1363 | F32: 2262 | G32: 2082 | H32: 1594 | I32: 389 | J32: -4377 | K32: -120 | L32: -848 | N32: 2.26076555 | O32: 0.6595744681 | P32: -0.07957559682 | Q32: -0.2343900096 | R32: -0.7559598494 | S32: -12.25192802 | T32: -0.9725839616 | U32: 6.066666667
D33: 33367 | E33: 61943 | F33: 67036 | G33: 97600 | H33: 105561 | I33: 51991 | J33: -152432 | K33: -32607 | L33: -11718 | N33: 0.8564150208 | O33: 0.08222075134 | P33: 0.4559341249 | Q33: 0.08156762295 | R33: -0.5074790879 | S33: -3.931892058 | T33: -0.7860882229 | U33: -0.6406293127
B34: TOTAL COMPREHENSIVE INCOME / (LOSS) ATTRIBUTABLE TO
B35: Owners of the parent | D35: 34302 | E35: 64515 | F35: 63661 | G35: 95165 | H35: 103908 | I35: -410355 | J35: -329802 | K35: -49823 | L35: -19848 | N35: =E35/D35-1 -> 0.8807941228 | O35: -0.01323723165 | P35: 0.4948712713 | Q35: 0.09187201177 | R35: =I35/H35-1 -> -4.94921469 | S35: -0.196300764 | T35: -0.8489305705 | U35: -0.6016297694
B36: Minority interest | D36: 416 | E36: 1363 | F36: 2262 | G36: 2076 | H36: 1592 | I36: -37151 | J36: -15266 | K36: -1050 | L36: 1502 | N36: 2.276442308 | O36: 0.6595744681 | P36: -0.08222811671 | Q36: -0.2331406551 | R36: =I36/H36-1 -> -24.33605528 | S36: -0.5890823935 | T36: -0.9312197039 | U36: -2.43047619
D37: 34718 | E37: 65878 | F37: 65923 | G37: 97241 | H37: 105500 | I37: -447506 | J37: -345058 | K37: -50873 | L37: -18347 | N37: 0.8975171381 | O37: 0.0006830808464 | P37: 0.4750693991 | Q37: 0.08493331002 | R37: -5.241763033 | S37: -0.2289310087 | T37: -0.8525668149 | U37: -0.6393568298
B39: Average weighted number of shares, items | D39: 5000000 | E39: 5022992 | F39: 6387185 | G39: 6387185 | H39: 6387185 | I39: 6387185 | J39: 6387185 | K39: 6387185 | L39: 6387185 | N39: =E39/D39-1 -> 0.0045984 | O39: 0.2715897218 | P39: 0 | Q39: =H39/G39-1 -> 0 | R39: 0 | S39: 0 | T39: 0 | U39: 0
B40: Earnings/(loss) for the period per share, USD (basic and diluted) | D40: 7 | E40: 12 | F40: 10 | G40: 15 | H40: 16 | I40: 8 | J40: -23 | K40: -5 | L40: -2 | N40: 0.7142857143 | O40: -0.1666666667 | P40: 0.5 | Q40: 0.06666666667 | R40: -0.5 | S40: -3.875 | T40: -0.7826086957 | U40: -0.6
B41: Total comprehensive income/(loss) per one share, USD | D41: 7 | E41: 13 | F41: 10 | G41: 15 | H41: 16 | I41: 8 | J41: -23 | K41: -5 | L41: -2 | N41: 0.8571428571 | O41: -0.2307692308 | P41: 0.5 | Q41: 0.06666666667 | R41: -0.5 | S41: -3.875 | T41: -0.7826086957 | U41: -0.6

Sheet Equity Change (Interim)
B2: Consolidated Statement of Changes in Equity for the Six Months Ended 30 June 2009-2017
B3: (in USD thousand, unless otherwise stated)
B4: >> Content
E6: Attributable to owners of parent
C7: Share capital | D7: Capital contribution reserve | E7: Share premium | F7: Retained earnings | G7: Currency translation reserve | H7: Minority interest | I7: Total
B8: 1 January 2009 | C8: 644 | D8: 0 | E8: 0 | F8: 168151 | G8: -56698 | H8: 6406 | I8: 118503
B9: Effect of acquisitions of non-controlling interest | C9: 0 | D9: 0 | E9: 0 | F9: 0 | G9: 0 | H9: -5 | I9: -5
B10: Currency translation reserve | C10: 0 | D10: 0 | E10: 0 | F10: 0 | G10: 1353 | H10: -2 | I10: 1351
B11: Profit for the period | C11: 0 | D11: 0 | E11: 0 | F11: 32949 | G11: 0 | H11: 418 | I11: 33367
B12: As at 30 June 2009 | C12: 644 | D12: 0 | E12: 0 | F12: 201100 | G12: -55345 | H12: 6817 | I12: 153216
B13: 1 January 2010 | C13: 644 | D13: 115858 | E13: 0 | F13: 300107 | G13: -64137 | H13: 8083 | I13: 360555
B14: Issue of shares | C14: 192 | D14: 0 | E14: 201164 | F14: 0 | G14: 0 | H14: 0 | I14: 201356
B15: Currency translation reserve | C15: 0 | D15: 0 | E15: 0 | F15: 0 | G15: 3935 | H15: 0 | I15: 3935
B16: Profit for the period | C16: 0 | D16: 0 | E16: 0 | F16: 60581 | G16: 0 | H16: 1363 | I16: 61944
B17: As at 30 June 2010 | C17: 836 | D17: 115858 | E17: 201164 | F17: 360688 | G17: -60202 | H17: 9446 | I17: 627789
B18: As at 1 January 2011 | C18: 836 | D18: 115858 | E18: 201164 | F18: 482328 | G18: -64587 | H18: 10620 | I18: 746219
B19: Effect of acquisitions of non-controlling interest | C19: 0 | D19: 0 | E19: 0 | F19: -360 | G19: 0 | H19: 360 | I19: 0
B20: Currency translation reserve | C20: 0 | D20: 0 | E20: 0 | F20: 0 | G20: -1113 | H20: 0 | I20: -1113
B21: Profit for the period | C21: 0 | D21: 0 | E21: 0 | F21: 64774 | G21: 0 | H21: 2262 | I21: 67036
B22: As at 30 June 2011 | C22: 836 | D22: 115858 | E22: 201164 | F22: 546742 | G22: -65700 | H22: 13242 | I22: 812142
B23: As at 1 January 2012 | C23: 836 | D23: 115858 | E23: 201164 | F23: 673909 | G23: -67761 | H23: 15333 | I23: 939339
B24: Effect of acquisitions of non-controlling interest | C24: - | D24: - | E24: - | F24: - | G24: -353 | H24: -6 | I24: -359
B25: Profit for the period | C25: - | D25: - | E25: - | F25: 95518 | G25: - | H25: 2082 | I25: 97600
B26: As at 30 June 2012 | C26: 836 | D26: 115858 | E26: 201164 | F26: 769427 | G26: -68114 | H26: 17409 | I26: 1036580
B27: As at 1 January 2013 | C27: 836 | D27: 115858 | E27: 201164 | F27: 899357 | G27: -68135 | H27: 18115 | I27: 1167195
B28: Profit for the period | C28: - | D28: - | E28: - | F28: 103967 | G28: - | H28: 1594 | I28: 105561
B29: Currency translation reserve | C29: - | D29: - | E29: - | F29: - | G29: -59 | H29: -2 | I29: -61
B30: As at 30 June 2013 | C30: 836 | D30: 115858 | E30: 201164 | F30: 1003324 | G30: -68194 | H30: 19707 | I30: 1272695
B31: As at 1 January 2014 | C31: 836 | D31: 115858 | E31: 201164 | F31: 1132803 | G31: -68194 | H31: 64631 | I31: 1447098
B32: Profit for the period | C32: - | D32: - | E32: - | F32: 51602 | G32: - | H32: 389 | I32: 51991
B33: Currency translation reserve | C33: - | D33: - | E33: - | F33: - | G33: -461957 | H33: -37540 | I33: -499497
B34: Effect from changes in ownership | C34: - | D34: - | E34: - | F34: 16 | G34: 0 | H34: -16 | I34: 0
B35: As at 30 June 2014 | C35: 836 | D35: 115858 | E35: 201164 | F35: 1184421 | G35: -530151 | H35: 27464 | I35: 999592
B36: As at 1 January 2015 | C36: 836 | D36: 115858 | E36: 201164 | F36: 1077158 | G36: -776404 | H36: 27276 | I36: 645888
B37: Loss for the period | C37: - | D37: - | E37: - | F37: -148055 | G37: - | H37: -4377 | I37: -152432
B38: Currency translation reserve | C38: - | D38: - | E38: - | F38: - | G38: -181747 | H38: -10889 | I38: -192636
B39: As at 30 June 2015 | C39: 836 | D39: 115858 | E39: 201164 | F39: 929103 | G39: -958151 | H39: 12010 | I39: 300820
B40: As at 1 January 2016 | C40: 836 | D40: 115858 | E40: 201164 | F40: 921435 | G40: -1018085 | H40: 13847 | I40: 235055
B41: Loss for the period | C41: - | D41: - | E41: - | F41: -32487 | G41: - | H41: -120 | I41: -32607
B42: Currency translation reserve | C42: - | D42: - | E42: - | F42: - | G42: -17216 | H42: -1050 | I42: -18266
B43: As at 30 June 2016 | C43: 836 | D43: 115858 | E43: 201164 | F43: 888948 | G43: -1035301 | H43: 12677 | I43: 184182
B44: As at 1 January 2017 | C44: 836 | D44: 115858 | E44: 201164 | F44: 864457 | G44: -1053923 | H44: 10418 | I44: 138810
B45: Loss for the period | C45: - | D45: - | E45: - | F45: -10870 | G45: - | H45: -848 | I45: -11718
B46: Currency translation reserve | C46: - | D46: - | E46: - | F46: - | G46: -8975 | H46: 2347 | I46: -6628
B47: As at 30 June 2017 | C47: 836 | D47: 115858 | E47: 201164 | F47: 853587 | G47: -1062898 | H47: 11917 | I47: 120464

Sheet CF (Interim)
B2: Consolidated Statement of Cash Flows for the Six Months Ended 30 June 2009-2017
B3: (in USD thousand, unless otherwise stated)
B4: >> Content
D6: 1H09 | E6: 1H10 | F6: 1H11 | G6: 1H12 | H6: 1H13 | I6: 1H14 | J6: 1H15 | K6: 1H16 | L6: 1H17
B7: CASH FLOWS FROM OPERATING ACTIVITIES
B8: Profit before income tax | D8: 33708 | E8: 62282 | F8: 69160 | G8: 97605 | H8: 105062 | I8: 51381 | J8: -154950 | K8: -35476 | L8: -13475
B9: Adjustments for:
B10: Depreciation of property, plant and equipment | D10: 6218 | E10: 6295 | F10: 7097 | G10: 7644 | H10: 12697 | I10: 11002 | J10: 12255 | K10: 7738 | L10: 7656
B11: Change in allowance for irrecoverable amounts | D11: -304 | E11: 114 | F11: 366 | G11: 894 | H11: 283 | I11: 115 | J11: 46108 | K11: 21180 | L11: -1532
B12: Other provisions | D12: -448 | E12: -317 | F12: 882 | G12: 299 | H12: -143 | I12: -489 | J12: - | K12: - | L12: -
B13: Profit/(Loss) on disposal of current assets | D13: 0 | E13: 0 | F13: 0 | G13: 0 | H13: 55 | I13: -9 | J13: 4 | K13: 255 | L13: -17
B14: Profit/(Loss) on disposal of non-current assets | D14: 26 | E14: 19 | F14: 115 | G14: 371 | H14: 281 | I14: 2346 | J14: 6 | K14: -169 | L14: 23
B15: Impairment of current assets | D15: 181 | E15: 258 | F15: 15 | G15: 658 | H15: 468 | I15: 845 | J15: 37503 | K15: 627 | L15: 1167
B16: Other income | D16: - | E16: - | F16: 0 | G16: -2824 | H16: - | I16: - | J16: - | K16: - | L16: -
B17: Effect of fair value adjustments on biological assets | D17: -14729 | E17: -14735 | F17: -15561 | G17: -19684 | H17: -20717 | I17: -9049 | J17: -2068 | K17: 3023 | L17: 4551
B18: Gains realised from accounts payable written-off | D18: -136 | E18: -18 | F18: -6 | G18: -136 | H18: -165 | I18: -3071 | J18: -90 | K18: -32 | L18: -15
B19: Amortisation of deferred income on government grants | D19: -158 | E19: -79 | F19: -197 | G19: -153 | H19: -157 | I19: -118 | J19: -48 | K19: -48 | L19: -46
B20: Loss from VAT government bonds sale | D20: 0 | E20: 0 | F20: 32 | G20: - | H20: - | I20: - | J20: - | K20: - | L20: -
B21: Discount on long-term bonds amortization | D21: 0 | E21: 0 | F21: 530 | G21: 589 | H21: 655 | I21: 728 | J21: 808 | K21: 1002 | L21: 1123
B22: Impairments of funds | D22: 0 | E22: 0 | F22: 0 | G22: 0 | H22: 0 | I22: 0 | J22: 28863 | K22: - | L22: -
B23: Discount on VAT government bonds amortization | D23: 0 | E23: 0 | F23: 0 | G23: 0 | H23: 0 | I23: 0 | J23: -1034 | K23: -758 | L23: -578
B24: Interest income | D24: -19643 | E24: -15590 | F24: 0 | G24: -420 | H24: -67 | I24: -83 | J24: -1087 | K24: -754 | L24: -485
B25: Interest payable on loans | D25: 22792 | E25: 10511 | F25: 15089 | G25: 15691 | H25: 16327 | I25: 14702 | J25: 14081 | K25: 14295 | L25: 14800
B26: Income from received government grants VAT | L26: -1220
B27: Loss on exchange | D27: 0 | E27: 0 | F27: 0 | G27: 0 | H27: 0 | I27: 23274 | J27: 36685 | K27: 708 | L27: -13830
B28: Operating profit before working capital changes | D28: 27507 | E28: 48740 | F28: 77522 | G28: 100534 | H28: 114579 | I28: 91574 | J28: 17036 | K28: 11591 | L28: -1878
B29: (Increase)/decrease in trade receivables | D29: -69027 | E29: -41362 | F29: -15134 | G29: 21131 | H29: -5471 | I29: -4877 | J29: -24452 | K29: 2312 | L29: 12091
B30: (Increase)/decrease in prepayments and other current assets | D30: -18132 | E30: 8894 | F30: -24815 | G30: -52489 | H30: -70586 | I30: 10887 | J30: 2206 | K30: 3196 | L30: 3015
B31: (Increase)/decrease in taxes recoverable and prepaid | D31: 27209 | E31: 4208 | F31: -2727 | G31: 8422 | H31: 13320 | I31: -19074 | J31: 18672 | K31: -3569 | L31: -819
B32: (Increase)/decrease in inventories | D32: -23486 | E32: -6717 | F32: 570 | G32: 36026 | H32: 30990 | I32: 9368 | J32: -14892 | K32: -9062 | L32: 8422
B33: Increase/(decrease) in deferred income | D33: 61 | E33: -13 | F33: 38 | G33: 7 | H33: 4 | I33: -126 | J33: - | K33: -9 | L33: -1
B34: (Increase)/decrease in other non-current assets | D34: 148 | E34: -13 | F34: 0 | G34: 0 | H34: 24 | I34: 120 | J34: - | K34: - | L34: -
B35: Increase/(decrease) in trade payables | D35: 56565 | E35: 18016 | F35: -4305 | G35: 2051 | H35: -9742 | I35: 3539 | J35: -484 | K35: -672 | L35: -119
B36: (Increase)/decrease in biological assets | D36: 1467 | E36: 4585 | F36: 9650 | G36: 30757 | H36: 20261 | I36: 13559 | J36: 5986 | K36: 3260 | L36: -15049
B37: (Decrease)/increase in finance leases | D37: - | E37: - | F37: 0 | G37: -1279 | H37: -1278 | I37: -886 | J37: -1 | K37: - | L37: -3
B38: Increase/(decrease) in advances received and other current liabilities | D38: -36230 | E38: -8575 | F38: -10778 | G38: 7195 | H38: -7731 | I38: -3749 | J38: 1207 | K38: -5239 | L38: -4199
B39: Cash generated from operations | D39: -33918 | E39: 27763 | F39: 30021 | G39: 152355 | H39: 84370 | I39: 100335 | J39: 5278 | K39: 1808 | L39: 1460
B40: Interest paid | D40: -18113 | E40: -9831 | F40: -4046 | G40: -5099 | H40: -4998 | I40: -5005 | J40: -1884 | K40: -2543 | L40: -1917
B41: Income tax paid | D41: -11 | E41: -1 | F41: -3 | G41: -37 | H41: -46 | I41: -41 | J41: -45 | K41: -17 | L41: -19
B42: Net cash (used in)/generated from operating activities | D42: -52042 | E42: 17932 | F42: 25972 | G42: 147219 | H42: 79326 | I42: 95289 | J42: 3349 | K42: -752 | L42: -476
B43: CASH FLOWS FROM INVESTING ACTIVITIES
B44: Purchases of property, plant and equipment | D44: -948 | E44: -20819 | F44: -50916 | G44: -50994 | H44: -75978 | I44: -33686 | J44: -16092 | K44: -11091 | L44: -961
B45: (Increase)/decrease in bank deposits | D45: 40304 | E45: -101418 | F45: 0 | G45: 0 | H45: 0 | I45: 0 | J45: 0 | K45: 0 | L45: -
B46: Proceeds from sale of non-current assets | D46: 0 | E46: 0 | F46: 0 | G46: 0 | H46: 0 | I46: 0 | J46: 0 | K46: 343 | L46: 0
B47: Interest received | D47: 532 | E47: - | F47: 0 | G47: 420 | H47: 67 | I47: 83 | J47: 1187 | K47: 1532 | L47: 563
B48: VAT government bonds sale | D48: 0 | E48: 0 | F48: 230 | G48: 0 | H48: 0 | I48: 0 | J48: 0 | K48: 0 | L48: 0
B49: Net cash generated from investing activities | D49: 39888 | E49: -122237 | F49: -50686 | G49: -50574 | H49: -75911 | I49: -33603 | J49: -14905 | K49: -9217
B50: CASH FLOWS FROM FINANCING ACTIVITIES
B51: New loans received | D51: 10341 | E51: 9150 | F51: 38540 | G51: 30742 | H51: 61198 | I51: 78726 | J51: 9419 | K51: 0 | L51: 0
B52: Repayment of loans | D52: -1379 | E52: -412 | F52: -37757 | G52: -19941 | H52: -73030 | I52: -56595 | J52: -5647 | K52: -1968 | L52: 0
B53: Interest paid for bonds issued | D53: -61 | E53: -1621 | F53: -12538 | G53: -12648 | H53: -11686 | I53: 10000 | J53: -10000 | K53: -2575 | L53: 0
B54: Proceeds from short-term bonds issued | D54: 0 | E54: 0 | F54: -19 | G54: - | H54: 0 | I54: 0 | J54: 0 | K54: 0 | L54: 0
B55: Repayment of short-term bonds issued | D55: -467 | E55: - | F55: 0 | G55: - | H55: -25023 | I55: 0 | J55: 0 | K55: 0 | L55: 0
B56: Blocked deposit | D56: 0 | E56: 0 | F56: 0 | G56: 0 | H56: 602 | I56: 0 | J56: 0 | K56: 0 | L56: 0
B57: Increase in share capital – share issue (nominal value) | D57: - | E57: 191 | F57: 0 | G57: - | H57: 0 | I57: 0 | J57: 0 | K57: 0 | L57: 0
B58: Increase in share capital – share premium | D58: - | E58: 201164 | F58: 0 | G58: - | H58: 0 | I58: 0 | J58: 0 | K58: 0 | L58: 0
B59: Net cash generated from/(used in) financing activities | D59: 8434 | E59: 208472 | F59: -11774 | G59: -1847 | H59: -47939 | I59: 12131 | J59: -6228 | K59: -4543 | L59: 0
B60: Currency translation reserve | D60: -647 | E60: -270 | F60: 1 | G60: 5 | H60: 0 | I60: 0 | J60: 0 | K60: 0
B61: Net (decrease) / increase in cash | D61: -4367 | E61: 103897 | F61: -46366 | G61: 96003 | H61: -44524 | I61: 84735 | J61: -17784 | K61: -14512 | L61: -874
B62: Cash at the beginning of the period | D62: 5786 | E62: 1701 | F62: 183065 | G62: 230640 | H62: 203504 | I62: 156804 | J62: 117856 | K62: 31307 | L62: 12570
B63: Impairments of funds | D63: 0 | E63: 0 | F63: 0 | G63: 0 | H63: 0 | I63: 0 | J63: -29344 | K63: 0 | L63: 0
B64: Currency translation reserve | H64: -12 | I64: 5459 | J64: -18553 | K64: 383 | L64: 912
B65: Cash at the end of the period | D65: 1419 | E65: 105598 | F65: 136699 | G65: 326643 | H65: 158968 | I65: 236080 | J65: 52175 | K65: 17178 | L65: 12608

Sheet Operational Results
B2: Operational Results and Cost of Sales
B3: (in USD thousand, unless otherwise stated)
B4: >> Content
C7: 2007 | D7: 2008 | E7: 2009 | F7: 2010 | G7: 2011 | H7: 2012 | I7: 2013 | J7: 2014 | K7: 2015 | L7: 2016
B8: Production
B9: Laying hens, mln. heads (capacity) | C9: 12.2 | D9: 15.7 | E9: 18.9 | F9: 18.9 | G9: 24.9 | H9: 25.1 | I9: 30.1 | J9: 30.1* | K9: 30.1* | L9: 30.1*
B10: Total flock, mln. heads (actual) | C10: 9.556 | D10: 13.985 | E10: 16.121 | F10: 24.3 | G10: 25.1 | H10: 27.5 | I10: 32.5 | J10: 23.3 | K10: 13.6 | L10: 13.6
B11: Laying flock, mln. heads (actual) | C11: 7.8 | D11: 12.2 | E11: 14 | F11: 18.7 | G11: 20.5 | H11: 22.8 | I11: 27 | J11: 18.6 | K11: 10.7 | L11: 10.3
B12: Shell eggs production, bln. pieces | C12: 1.769 | D12: 2.422 | E12: 3.634 | F12: 4.42 | G12: 5.955 | H12: 6.287 | I12: 7.019 | J12: 6.306 | K12: 3.434 | L12: 2.496
B13: Dry egg product production, thousand tonnes | C13: 0.443 | D13: 0.481 | E13: 0.741 | F13: 10.2 | G13: 12.256 | H13: 14.067 | I13: 22.915 | J13: 21.323 | K13: 9.057 | L13: 12.219
B15: * Since 2014, AvangardCo's total available laying hens capacity has been 21.7 million. The decline was a result of the closure of poultry farms in the Donetsk and Luhansk regions and in the Autonomous Republic of Crimea with a total capacity of around 3.7 million laying hens as well as limited use of the capacities of other poultry farms in the areas close to and in the conflict zone.
B16: Sales
B17: Shell egg sales , bln. pieces | C17: 1.7 | D17: 2.4 | E17: 3.334 | F17: 3.888 | G17: 4.862 | H17: 5.223 | I17: 5.093 | J17: 4.288 | K17: 2.798 | L17: 1.515
B18: - retail (Ovoline) | E18: =140668391/1000000000 -> 0.140668391 | F18: =37231631/1000000000 -> 0.037231631 | G18: 0 | H18: 0 | I18: 0 | J18: 0 | K18: 0 | L18: 0
B19: - wholesale | E19: =2828026355/1000000000 -> 2.828026355 | F19: =3106379462/1000000000 -> 3.106379462 | G19: =G17-G20-G21 -> 3.1084 | H19: 2.886 | I19: 2.925 | J19: 2.207 | K19: 1.149 | L19: 0.354
B20: - supermarkets | E20: =72105253/1000000000 -> 0.072105253 | F20: =575332583/1000000000 -> 0.575332583 | G20: =G17*0.3 -> 1.4586 | H20: 1.821 | I20: 1.669 | J20: 1.514 | K20: 1.228 | L20: 0.909
B21: - export | E21: =306197279/1000000000 -> 0.306197279 | F21: =169527987/1000000000 -> 0.169527987 | G21: 0.295 | H21: 0.516 | I21: 0.499 | J21: 0.567 | K21: 0.421 | L21: 0.252
B22: Egg product sale, thousand tonnes | E22: 3.2 | F22: 11.1 | G22: 12.227 | H22: 13.154 | I22: 20.052 | J22: 18.592 | K22: 11.445 | L22: 9.028
B23: - Ukraine | E23: 1.9586 | F23: 3.434 | G23: 4.602 | H23: =H22-H24 -> 5.35 | I23: 3.096 | J23: 3.14 | K23: 2.517 | L23: 0.779
B24: - export | E24: 1.2885 | F24: 7.655 | G24: 7.625 | H24: 7.804 | I24: 16.956 | J24: 15.453 | K24: 8.929 | L24: 8.249
B26: Prices
B27: Shell eggs, UAH per piece (excl. VAT) | C27: 0.25 | D27: 0.48 | E27: 0.56 | F27: 0.57 | G27: 0.64 | H27: 0.7 | I27: 0.69 | J27: 0.77 | K27: 1.22 | L27: 1.35
B28: Growth, % | D28: 0.92 | E28: 0.1666666667 | F28: 0.01785714286 | G28: 0.1228070175 | H28: 0.09375 | I28: =I27/H27-1 -> -0.01428571429 | J28: =J27/I27-1 -> 0.115942029 | K28: =K27/J27-1 -> 0.5844155844 | L28: =L27/K27-1 -> 0.106557377
B29: - wholesalers | E29: 0.55 | F29: 0.56 | G29: 0.59 | H29: 0.64 | I29: 0.63 | J29: 0.66 | K29: 0.97 | L29: 1.09
B30: - supermarkets | E30: 0.59 | F30: 0.6 | G30: 0.65 | H30: 0.74 | I30: 0.7 | J30: 0.75 | K30: 1.2 | L30: 1.29
B31: - export | E31: 0.67 | F31: 0.68 | G31: 1.07 | H31: 0.92 | I31: 0.97 | J31: 1.23 | K31: 1.92 | L31: 1.91
B32: Dry egg products, USD per kg | E32: 6.76 | F32: 8.21 | G32: 8.05 | H32: 8.11 | I32: 7.64 | J32: 6.29 | K32: 5.66 | L32: 5.57
B33: Growth, % | F33: =F32/E32-1 -> 0.2144970414 | G33: -0.01948842875 | H33: 0.007453416149 | I33: -0.05795314427 | J33: -0.1767015707 | K33: -0.1001589825 | L33: -0.01590106007
B34: - Ukraine | E34: 5.95 | F34: 6.97 | G34: 7.01 | H34: 7.11 | I34: 7.41 | J34: 5.92 | K34: 2.77 | L34: 3.08
B35: - export | E35: 8.01 | F35: 8.76 | G35: 8.68 | H35: 8.79 | I35: 7.68 | J35: 6.37 | K35: 6.47 | L35: 5.81
B37: Breakdown of shell egg cost of sales*
B38: Feed | E38: 0.72 | F38: 0.73 | G38: 0.65 | H38: 0.66 | I38: 0.66 | J38: 0.65 | K38: 0.68 | L38: 0.69
B39: -grain | E39: 0.33 | F39: 0.33 | G39: 0.33 | H39: 0.33 | I39: 0.35 | J39: 0.25 | K39: 0.19 | L39: 0.21
B40: -oil cake | E40: 0.52 | F40: 0.52 | G40: 0.52 | H40: 0.52 | I40: 0.53 | J40: 0.58 | K40: 0.59 | L40: 0.57
B41: -other ingredients | E41: 0.15 | F41: 0.15 | G41: 0.15 | H41: 0.15 | I41: 0.12 | J41: 0.17 | K41: 0.22 | L41: 0.22
B42: Salary | E42: 0.07 | F42: 0.05 | G42: 0.06 | H42: 0.05 | I42: 0.04 | J42: 0.04 | K42: 0.04 | L42: 0.05
B43: Other | E43: 0.21 | F43: 0.22 | G43: 0.29 | H43: 0.29 | I43: 0.3 | J43: 0.31 | K43: 0.28 | L43: 0.26
B45: Breakdown of dry egg product cost of sales
B46: Eggs | E46: 0.9 | F46: 0.9 | G46: 0.9 | H46: 0.9 | I46: 0.94 | J46: 0.92 | K46: 0.92 | L46: 0.91
B47: Other | E47: 0.1 | F47: 0.1 | G47: 0.1 | H47: 0.1 | I47: 0.06 | J47: 0.08 | K47: 0.08 | L47: 0.09
B49: *Note: in value terms
B51: Poultry farming parameters
D52: 2010 | E52: 2011 | F52: 2012 | G52: 2013 | H52: 2014 | I52: 2015 | J52: 2016
B53: Feed needed to grow one laying hen | C53: kg | D53: 5.2 | E53: 5.2 | F53: 5.2 | G53: 5.2 | H53: 5.2 | I53: 5.2 | J53: 5.2
B54: Time needed to grow one laying hen | C54: days | D54: 120 | E54: 120 | F54: 120 | G54: 120 | H54: 120 | I54: 120 | J54: 120
B55: Feed needed for one laying hen's productive cycle | C55: kg/month | D55: 46 | E55: 46 | F55: 40-49 | G55: 40-49 | H55: 40-49 | I55: 40-49 | J55: 40-49
B56: Feed needed to get 10 eggs | C56: kg | D56: 1.37 | E56: 1.13 | F56: 1.18 | G56: 1.24 | H56: 1.25 | I56: 1.25 | J56: 1.3
B58: TECHNOLOGY LOHMANN CLASSIC
C59: Week | D59: Days | E59: Eggs, pcs
B60: LSL-CLASSIC
B61: Percent peak
B62: to 72 weeks of age | C62: 72 | D62: =C62*7 -> 504 | E62: 323 | F62: 328
B63: to 80 weeks of age | C63: 80 | D63: =C63*7 -> 560 | E63: 365 | F63: 370
B64: to 95 weeks of age | C64: 95 | D64: =C64*7 -> 665 | E64: 435 | F64: 440
B66: BROWN-CLASSIC
B67: Percent peak
B68: to 72 weeks of age | C68: 72 | D68: =C68*7 -> 504 | E68: 318 | F68: 323
B69: to 80 weeks of age | C69: 80 | D69: =C69*7 -> 560 | E69: 358 | F69: 363
B70: to 95 weeks of age | C70: 95 | D70: =C70*7 -> 665 | E70: 428 | F70: 433
B72: TECHNOLOGY Hy-Line 2009-2011
C73: Week | D73: Days | E73: Eggs, pcs
B74: White W36 2009-2011
B75: Percent peak
B76: up to 60 weeks | C76: 60 | D76: =C76*7 -> 420 | E76: 240 | F76: 250
B77: up to 80 weeks | C77: 80 | D77: =C77*7 -> 560 | E77: 345 | F77: 361
B78: up to 110 weeks | C78: 110 | D78: =C78*7 -> 770 | E78: 472 | F78: 482
B80: Brown 2009-2011
B81: Percent peak
B82: up to 60 weeks | C82: 60 | D82: =C82*7 -> 420 | E82: 249 | F82: 257
B83: up to 80 weeks | C83: 80 | D83: =C83*7 -> 560 | E83: 358 | F83: 368
B84: up to 110 weeks | C84: 110 | D84: =C84*7 -> 770 | E84: 487 | F84: 497
B86: TECHNOLOGY Hy-Line 2008-2010
C87: Week | D87: Days | E87: Eggs, pcs
B88: White W36 2008-2010
B89: Percent peak
B90: up to 60 weeks | C90: 60 | D90: =C90*7 -> 420 | E90: 239 | F90: 245
B91: up to 80 weeks | C91: 80 | D91: =C91*7 -> 560 | E91: 346 | F91: 354
B92: up to 110 weeks | C92: 110 | D92: =C92*7 -> 770 | E92: 472 | F92: 482
B94: Brown 2008-2010
B95: Percent peak
B96: up to 60 weeks | C96: 60 | D96: =C96*7 -> 420 | E96: 253
B97: up to 74 weeks | C97: 74 | D97: =C97*7 -> 518 | E97: 331
B98: up to 80 weeks | C98: 80 | D98: =C98*7 -> 560 | E98: 362

Sheet Subsidiaries Structure
B2: AVANGARDCO Investment Public Limitited' Subsidiaries Structure
B3: (all below listed companies are registered in Ukraine)
B4: >> Content | C4: >> List of Notes
D6: Ownership interest
B7: Company name | C7: As at 31 December 2007 | D7: As at 31 December 2008 | E7: As at 31 December 2009 | F7: As at 31 December 2010 | G7: As at 31 December 2011 | H7: As at 31 December 2012 | I7: As at 31 December 2013 | J7: As at 31 December 2014 | K7: As at 31 December 2015 | L7: As at 31 December 2016
B8: I. Keeping of technical laying hen, production and selling of eggs
B9: PJSC Avangard | C9: 0.64 | D9: 0.99 | E9: 0.99 | F9: 0.99 | G9: 0.99 | H9: 0.99 | I9: 0.99 | J9: 0.99 | K9: * | L9: *
B10: PJSC Chornobaivske | C10: 0.6 | D10: 0.97 | E10: 0.97 | F10: 0.97 | G10: 0.97 | H10: 0.97 | I10: 0.97 | J10: 0.97 | K10: * | L10: *
B11: PJSC Agrofirma «Avis» | C11: 0.9 | D11: 1 | E11: 1 | F11: 1 | G11: 1 | H11: 1 | I11: 1 | J11: 1 | K11: * | L11: *
B12: PJSC Kirovskiy | C12: 0.87 | D12: 1 | E12: 1 | F12: 1 | G12: 1 | H12: 1 | I12: 1 | J12: 1 | K12: * | L12: *
B13: PJSC Agroholding Avangard (PJSC Ptakhohospodarstvo Chervonyi Prapor) | C13: 0.86 | D13: 0.98 | E13: 0.98 | F13: 0.98 | G13: 0.98 | H13: 0.98 | I13: 0.98 | J13: 0.98 | K13: 0.98 | L13: 0.98
B14: SC Ptakhofabryka Lozuvatska of Avangardco Investments Public Limited | C14: 1 | D14: 1 | E14: 1 | F14: 1 | G14: 1 | H14: 1 | I14: 1 | J14: 1 | K14: * | L14: *
B15: LLC Yuzhnaya - Holding | C15: 1 | D15: 1 | E15: 1 | F15: 1 | G15: 1 | H15: 1 | I15: 1 | J15: 1 | K15: 1 | L15: 1
B16: LLC Makarivska Ptakhofabryka | C16: 1 | D16: 1 | E16: 1 | F16: 1 | G16: 1 | H16: 1 | I16: 1 | J16: 1 | K16: * | L16: *
B17: LLC PF Volnovaska | C17: 1 | D17: 1 | E17: 1 | F17: 1 | G17: 1 | H17: 1 | I17: 1 | J17: 1 | K17: * | L17: *
B18: PJSC Cross-PF Zorya | C18: 0.89 | D18: 0.89 | E18: 0.89 | F18: 0.89 | G18: 0.89 | H18: 0.89 | I18: 0.89 | J18: 0.89 | K18: * | L18: *
B19: PJSC Ptakhofabryka Pershe Travnya | C19: 0.93 | D19: 0.93 | E19: 0.93 | F19: 0.93 | G19: 0.93 | H19: 0.93 | I19: 0.93 | J19: 0.93 | K19: * | L19: *
B20: PJSC Chernivetska Ptakhofabryka | C20: 0.6 | D20: 0.98 | E20: 0.98 | F20: 0.98 | G20: 0.98 | H20: 0.98 | I20: 0.98 | J20: 0.98 | K20: * | L20: *
B21: ALLC Donetska Ptakhofabryka | C21: 1 | D21: 1 | E21: 1 | F21: 1 | G21: 1 | H21: 1 | I21: 1 | J21: 1 | K21: * | L21: *
B22: LLC Areal-Snigurivka | C22: - | D22: 1 | E22: 1 | F22: 1 | G22: 1 | H22: 1 | I22: 1 | J22: 1 | K22: * | L22: *
B23: LLC Torgivenlniy Budynok Bohodukhivska Ptakhofabryka | C23: - | D23: 1 | E23: 1 | F23: 1 | G23: 1 | H23: 1 | I23: 1 | J23: 1 | K23: * | L23: *
B24: PPB LLC Ptytsecomplex | C24: - | D24: 1 | E24: 1 | F24: 1 | G24: 1 | H24: 1 | I24: 1 | J24: 1 | K24: 1 | L24: 1
B25: PSPC Interbusiness | C25: - | D25: 1 | E25: 1 | F25: 1 | G25: 1 | H25: 1 | I25: 1 | J25: 1 | K25: 1 | L25: 1
B26: II. Incubation (production and sale of day-old chick), farming of young poultry for sale
B27: SC Avangard-Agro of PJSC Avangard | C27: 0.64 | D27: 0.99 | E27: 0.99 | F27: 0.99 | G27: 0.99 | H27: 0.99 | I27: 0.99 | J27: 0.99 | K27: 0.98 | L27: 0.98
B28: SC Gorodenkivska Ptakhofabryka of PJSC Avangard | C28: 0.64 | D28: 0.99 | E28: 0.99 | F28: 0.99 | G28: 0.99 | H28: 0.99 | I28: 0.99 | J28: 0.99 | K28: *
B29: SC Rogatynska Ptakhofabryka of PJSC Avangard | C29: 0.64 | D29: 0.99 | E29: 0.99 | F29: 0.99 | G29: 0.99 | H29: 0.99 | I29: 0.99 | J29: 0.99 | K29: *
B30: SC Ptakhohospodarstvo Donetske of PSPC Interbusiness | C30: 1 | D30: 1 | E30: 1 | F30: 1 | G30: 1 | H30: 1 | I30: 1 | J30: 1 | K30: 1 | L30: 1
B31: LLC Slovyany | C31: 0.9 | D31: 0.9 | E31: 0.9 | F31: 0.9 | G31: 0.9 | H31: 0.9 | I31: 0.9 | J31: 0.9 | K31: 0.9 | L31: 0.9
B32: SC Ptakhohospodarstvo Lozuvatske of Avangardco Investments Public Limited | C32: 1 | D32: 1 | E32: 1 | F32: 1 | G32: 1 | H32: 1 | I32: 1 | J32: 1 | K32: 1 | L32: 1
B33: SC Zorya of PJSC Agroholding Avangard | C33: 0.89 | D33: 0.89 | E33: 0.89 | F33: 0.89 | G33: 0.89 | H33: 0.89 | I33: 0.89 | J33: 0.89 | K33: 0.98 | L33: 0.98
B34: SC Ptakhofabryka Chervonyi Prapor Poultry, of PJSC Ptakhohospodarstvo Chervoniy Prapor | C34: 0.86 | D34: 0.98 | E34: 0.98 | F34: 0.98 | G34: 0.98 | H34: 0.98 | I34: 0.98 | J34: 0.98 | K34: 0.98 | L34: 0.98
B35: SC Ptakhohospodarstvo Yuzhnaya Holding of LLC Yuzhnaya Holding | C35: 1 | D35: 1 | E35: 1 | F35: 1 | G35: 1 | H35: 1 | I35: 1 | J35: 1 | K35: 1 | L35: 1
B36: SC Ptakhogopodarstvo Volnovaske of PSPC Interbusiness | C36: 1 | D36: 1 | E36: 1 | F36: 1 | G36: 1 | H36: 1 | I36: 1 | J36: 1 | K36: 1 | L36: 1
B37: SC Ptakhohospodarstvo Chornobaivske of PJSC Agroholding Avangard | C37: 0.6 | D37: 0.97 | E37: 0.97 | F37: 0.97 | G37: 0.97 | H37: 0.97 | I37: 0.97 | J37: 0.97 | K37: 0.98 | L37: 0.98
B38: III. Production and selling of animal feed
B39: LLC Rohatyn-Korm | C39: 0.64 | D39: 0.99 | E39: 0.99 | F39: 0.99 | G39: 0.99 | H39: 0.99 | I39: 0.99 | J39: 0.99 | K39: 1 | L39: 1
B40: PJSC Vuhlehirskyi Eksperementalnyi Kombikormovyi Zavod | C40: 0.8 | D40: 0.8 | E40: 0.8 | F40: 0.8 | G40: 0.8 | H40: 0.8 | I40: 1 | J40: 1 | K40: 1 | L40: 1
B41: PJSC Volnovaskyi Kombinat Khliboproduktiv | C41: 0.72 | D41: 0.72 | E41: 0.72 | F41: 0.72 | G41: 0.72 | H41: 0.72 | I41: 0.99 | J41: 0.99 | K41: 0.99 | L41: 0.99
B42: LLC Kamyanets-Podilsky Kombikormoviy Zavod | C42: 0.9 | D42: 1 | E42: 1 | F42: 1 | G42: 1 | H42: 1 | I42: 1 | J42: 1 | K42: 0.98 | L42: 0.98
B43: LLC Pershe Travnya Kombikormoviy Zavod | C43: - | D43: - | E43: 0.93 | F43: 0.93 | G43: 0.93 | H43: 0.93 | I43: 0.93 | J43: 0.93 | K43: 0.98 | L43: 0.98
B44: IV. Processing of eggs and selling of egg products
B45: LLC Imperovo Foods | C45: - | D45: - | E45: 1 | F45: 1 | G45: 0.99 | H45: 0.99 | I45: 0.94 | J45: 0.96 | K45: 0.96 | L45: 0.96
B46: V. Rental Services
B47: LLC Torgivelniy Dim Avangard (LLC Imperovo Ltd) | C47: - | D47: - | E47: - | F47: - | G47: 0.99 | H47: 0.99 | I47: 0.94 | J47: 0.96 | K47: 0.99 | L47: 0.99
B48: VI. Rendering services under guarantee agreements
B49: LLC Agrarian Holding Avangard | C49: 1 | D49: 1 | E49: 1 | F49: 1 | G49: 1 | H49: 1 | I49: 1 | J49: 1 | K49: 1 | L49: 1
B50: VII. Assets holding companies
B51: LLC "GENERAL KONSTRAKSHYN" | C51: - | D51: - | E51: - | F51: - | G51: - | H51: - | I51: - | J51: - | K51: 0.98 | L51: 0.98
B52: LLC "LOHISTYK AGROTRADE" | C52: - | D52: - | E52: - | F52: - | G52: - | H52: - | I52: - | J52: - | K52: 1 | L52: 1
B53: LLC "REMTREYDSTANDART" | C53: - | D53: - | E53: - | F53: - | G53: - | H53: - | I53: - | J53: - | K53: 0.98 | L53: 0.98
B54: LLC "COMPANY NEW REGION" | C54: - | D54: - | E54: - | F54: - | G54: - | H54: - | I54: - | J54: - | K54: 0.98 | L54: 0.98
B55: LLC "PRIME LEADER" | C55: - | D55: - | E55: - | F55: - | G55: - | H55: - | I55: - | J55: - | K55: 0.98 | L55: 0.98
B56: LLC "CITY REGION" | C56: - | D56: - | E56: - | F56: - | G56: - | H56: - | I56: - | J56: - | K56: 0.98 | L56: 0.98
B57: LLC "FORVARDTRANS" | C57: - | D57: - | E57: - | F57: - | G57: - | H57: - | I57: - | J57: - | K57: 0.98 | L57: 0.98
B58: LLC "UNITED LOHISTYK" | C58: - | D58: - | E58: - | F58: - | G58: - | H58: - | I58: - | J58: - | K58: 0.98 | L58: 0.98
B59: LLC "AGROTRADE BUSINESS" | C59: - | D59: - | E59: - | F59: - | G59: - | H59: - | I59: - | J59: - | K59: 0.98 | L59: 0.98
B60: LLC "KOMERTSBUDPLAST" | C60: - | D60: - | E60: - | F60: - | G60: - | H60: - | I60: - | J60: - | K60: 0.98 | L60: 0.98
B61: LLC "AGROMASH-ZAHID" | C61: - | D61: - | E61: - | F61: - | G61: - | H61: - | I61: - | J61: - | K61: 0.98 | L61: 0.98
B62: LLC "STC-INVESTMENTS" | C62: - | D62: - | E62: - | F62: - | G62: - | H62: - | I62: - | J62: - | K62: 0.98 | L62: 0.98
B63: LLC "TRANSMAGISTRAL" | C63: - | D63: - | E63: - | F63: - | G63: - | H63: - | I63: - | J63: - | K63: 0.92 | L63: 0.93
B64: VIII. Dormant
B65: PJSC Avangard* | C65: - | D65: - | E65: - | F65: - | G65: - | H65: - | I65: - | J65: 0.99 | K65: 0.99 | L65: 0
B66: PJSC Chornobaivske* | C66: - | D66: - | E66: - | F66: - | G66: - | H66: - | I66: - | J66: 0.97 | K66: 0.97 | L66: 0
B67: PJSC Agrofirma Avis* | C67: - | D67: - | E67: - | F67: - | G67: - | H67: - | I67: - | J67: 1 | K67: 1 | L67: 0
B68: PJSC Kirovskiy* | C68: - | D68: - | E68: - | F68: - | G68: - | H68: - | I68: - | J68: 1 | K68: 1 | L68: 0
B69: SC Ptakhofabryka Lozuvatska of Avangardco Investments Public Limited* | C69: - | D69: - | E69: - | F69: - | G69: - | H69: - | I69: - | J69: 1 | K69: 1 | L69: 0
B70: LLC Makarivska Ptakhofabryka* | C70: - | D70: - | E70: - | F70: - | G70: - | H70: - | I70: - | J70: 1 | K70: 1 | L70: 0
B71: LLC PF Volnovaska* | C71: - | D71: - | E71: - | F71: - | G71: - | H71: - | I71: - | J71: 1 | K71: 1 | L71: 0
B72: PJSC Cross-PF Zorya* | C72: - | D72: - | E72: - | F72: - | G72: - | H72: - | I72: - | J72: 0.89 | K72: 0.89 | L72: 0
B73: PJSC Ptakhofabryka Pershe Travnya* | C73: - | D73: - | E73: - | F73: - | G73: - | H73: - | I73: - | J73: 0.93 | K73: 0.93 | L73: 0
B74: PJSC Chernivetska Ptakhofabryka* | C74: - | D74: - | E74: - | F74: - | G74: - | H74: - | I74: - | J74: 0.98 | K74: 0.98 | L74: 0
B75: ALLC Donetska Ptakhofabryka* | C75: - | D75: - | E75: - | F75: - | G75: - | H75: - | I75: - | J75: 1 | K75: 1 | L75: 0
B76: LLC Areal-Snigurivka* | C76: - | D76: - | E76: - | F76: - | G76: - | H76: - | I76: - | J76: 1 | K76: 0 | L76: 0
B77: LLC Torgivenlniy Budynok Bohodukhivska Ptakhofabryka* | C77: - | D77: - | E77: - | F77: - | G77: - | H77: - | I77: - | J77: 1 | K77: 1 | L77: 1
B78: SC Gorodenkivska Ptakhofabryka of PJSC Avangard* | C78: - | D78: - | E78: - | F78: - | G78: - | H78: - | I78: - | J78: 0.99 | K78: 0 | L78: 0
B79: SC Rogatynska Ptakhofabryka of PJSC Avangard* | C79: - | D79: - | E79: - | F79: - | G79: - | H79: - | I79: - | J79: 0.99 | K79: 0 | L79: 0
B82: *As at 31 December 2015 the Group completed the process of restructuring through transfer of assets and liabilities. The following companies’ assets and liabilities were transferred to PJSC Agroholding Avangard (PJSC Ptakhohospodarstvo Chervonyi Prapor): PJSC Avangard, PJSC Chornobaivske, PJSC Agrofirma Avis, PJSC Kirovskiy, PJSC Cross-PF Zorya, PJSC Ptakhofabryka Pershe Travnya, PJSC Chernivetska Ptakhofabryka. Additionaly, the assets and liabilities of: SC Ptakhofabryka Lozuvatska of Avangardco Investments Public Limited, LLC Makarivska Ptakhofabryka, LLC PF Volnovaska, ALLC Donetska Ptakhofabryka, LLC Areal-Snigurivka, LLC Torgivenlniy Budynok Bohodukhivska Ptakhofabryka, SC Rogatynska Ptakhofabryka of PJSC Avangard, SC Gorodenkivska Ptakhofabryka of PJSC Avangard were transferred to PSPC Interbusiness. Currently the company LLC Torgivenlniy Budynok Bohodukhivska is in the process of liquidation as legal entity. Companies: PJSC Avangard, PJSC Chornobaivske, PJSC Agrofirma Avis, PJSC Kirovskiy, PJSC Cross-PF Zorya, PJSC Ptakhofabryka Pershe Travnya, PJSC Chernivetska Ptakhofabryka, SC Ptakhofabryka Lozuvatska of Avangardco Investments Public Limited, LLC Makarivska Ptakhofabryka, LLC PF Volnovaska, ALLC Donetska Ptakhofabryka are liquidated as legal entities.

Sheet Charter Capital Structure
B2: AVANGARDCO Investment Public Limitited' Ownership Structure
B3: >> Content | D3: >> List of Notes
C5: 31 December 2007 | E5: 31 December 2008 | G5: 31 December 2009 | I5: 31 December 2010 | K5: 31 December 2011 | M5: 31 December 2012 | O5: 31 December 2013 | Q5: 31 December 2014 | S5: 31 December 2015 | U5: 31 December 2016
B6: Shareholder | C6: Number of shares | D6: Ownership interest, % | E6: Number of shares | F6: Ownership interest, % | G6: Number of shares | H6: Ownership interest, % | I6: Number of shares | J6: Ownership interest, % | K6: Number of shares | L6: Ownership interest, % | M6: Number of shares | N6: Ownership interest, % | O6: Number of shares | P6: Ownership interest, % | Q6: Number of shares | R6: Ownership interest, % | S6: Number of shares | T6: Ownership interest, % | U6: Number of shares | V6: Ownership interest, %
B7: Oleg Bakhmatyuk | C7: 2000 | D7: 1 | E7: 20000 | F7: 0.004 | G7: 20000 | H7: 0.004 | I7: 20000 | J7: 0.003 | K7: 0 | L7: 0 | M7: 0 | N7: 0 | O7: 0 | P7: 0 | Q7: 0 | R7: 0 | S7: 0 | T7: 0 | U7: 0 | V7: 0
B8: Quickcom Limited | C8: - | D8: - | E8: 1074684 | F8: 0.215 | G8: 1074684 | H8: 0.215 | I8: 1074684 | J8: 0.168 | K8: 1 | L8: 0 | M8: 1 | N8: 0 | O8: 1 | P8: 0 | Q8: 0 | R8: 0 | S8: 0 | T8: 0 | U8: 0 | V8: 0
B9: Omtron Limited | C9: - | D9: - | E9: 1848575 | F9: 0.37 | G9: 1848575 | H9: 0.37 | I9: 1848575 | J9: 0.289 | K9: 1848575 | L9: 0.289 | M9: 1848575 | N9: 0.289 | O9: 1848575 | P9: 0.289 | Q9: 1848575 | R9: 0.289 | S9: 1848575 | T9: 0.289 | U9: 1848575 | V9: 0.289
B10: Tanchem Limited | C10: - | D10: - | E10: 926280 | F10: 0.185 | G10: 926280 | H10: 0.185 | I10: 926280 | J10: 0.145 | K10: 926280 | L10: 0.145 | M10: 926280 | N10: 0.145 | O10: 926280 | P10: 0.145 | Q10: 926280 | R10: 0.145 | S10: 926280 | T10: 0.145 | U10: 926280 | V10: 0.145
B11: Mobco Limited | C11: - | D11: - | E11: 1130458 | F11: 0.226 | G11: 1130458 | H11: 0.226 | I11: 1080143 | J11: 0.17 | K11: 1 | L11: 0 | M11: 1 | N11: 0 | O11: 1 | P11: 0 | Q11: 1 | R11: 0 | S11: 1 | T11: - | U11: 1 | V11: -
B12: BNY (Nominees) Limited (IPO shareholders) | C12: - | D12: - | E12: - | F12: - | G12: - | H12: - | I12: 1437500 | J12: 0.225 | K12: 1437500 | L12: 0.225 | M12: 1437500 | N12: 0.225 | O12: 1437500 | P12: 0.225 | Q12: 1437500 | R12: 0.225 | S12: 1437500 | T12: 0.225 | U12: 1437500 | V12: 0.225
B13: Ukrlandfarming PLC | C13: - | D13: - | E13: - | F13: - | G13: - | H13: - | I13: - | J13: - | K13: 2174825 | L13: 0.341 | M13: 2174825 | N13: 0.341 | O13: 2174825 | P13: 0.341 | Q13: 2174825 | R13: 0.341 | S13: 2174825 | T13: 0.341 | U13: 2174825 | V13: 0.341
B14: Other | C14: - | D14: - | E14: 3 | F14: =E14/E15 -> 6e-07 | G14: 3 | H14: =G14/G15 -> 6e-07 | I14: 3 | J14: =I14/I15 -> 4.696904818e-07 | K14: 3 | L14: 0 | M14: 3 | N14: 0 | O14: 3 | P14: 0 | Q14: 4 | R14: 0 | S14: 4 | T14: - | U14: 4 | V14: -
B15: TOTAL | C15: 2000 | D15: 1 | E15: 5000000 | F15: 1 | G15: 5000000 | H15: 1 | I15: 6387185 | J15: 1 | K15: 6387185 | L15: 1 | M15: 6387185 | N15: 1 | O15: 6387185 | P15: 1 | Q15: 6387185 | R15: 1 | S15: 6387185 | T15: 1 | U15: 6387185 | V15: 1
B17: Note 1: As at 31 December 2016, 100% of interest in Omtron Limited and Tanchem Limited owned by Ukrlandfarming PLC.
B18: Note 2: As at 31 December 2016, 100% of interest in Mobco Limited and 95% of interest in Ukrlandfarming PLC beneficially owned by Oleg Bakhmatyuk.

Sheet Taxes related
B2: Taxes related
B3: >> Content
B5: Taxes related
B6: Corporate Income Tax (CIT) and Fixed Agricultural Tax (FAT)
B7: In accordance with the Tax Code of Ukraine, which entered into force 1 January 2011, Ukrainian agricultural companies engaged in the production, processing and sale of agricultural products and that generate 75% of revenues from agricultural operations can choose between CIT (corporate income tax) and FAT (fixed agricultural tax).
B8: In 2016 all of Avangard’s subsidiaries (other than LLC “Rohatyn-Korm”, OJSC “Vuhlelhirskyi Eksperrementalnyi Kombikrmovyi Zavod”, OJSC “Volhovatskiy Kombinat Khliboproduktiv”, LLC“Kamyanets-Podilsky Kombikormovyi Zavod”, LLC “Pershe Travnya Kombikormovyi Zavod”, LLC “Imperovo Foods”, LLC “Agrarnyi Holding Avangard”, AvangardCo Investments Public Limited and LLC “Imperovo LTD”) were exempt from Ukrainian CIT and paid FAT in accordance with legislation.
B9: Rates:
B10: FAT is paid in lieu of CIT, land tax, duties for special use of water resources, and duty for certain types of entrepreneurial activity. The amount of FAT is calculated as a percentage of the deemed value of all land plots (determined as of 1 July 1995) leased or owned by a taxpayer that are used for agricultural production. FAT expenses are recorded under general administrative expenses and were not material for the Group in any of the periods under review.
B11: CIT is paid at the standard rate:
B12: 1) 25% in each of 2008, 2009 and 2010
B13: 2) From 1 April 2011, the CIT rate for 2011 is 23%
B14: 3) 21% starting from 2012
B15: 4) 19% starting from 2013
B16: 5) 18% starting from 2014
B18: Value Added Tax (VAT)
B19: Special VAT treatment
B20: There are two rates of value added taxes: 20% – on import and sales of goods and services in the territory of Ukraine and 0% - on export of goods and rendering of services and works outside Ukraine. The VAT liability is equal to the total amount of VAT accrued during the reporting period and arises at the earlier of goods shipment to the customer or at the date of receipt of payment from the client. VAT credit is the amount by which a taxpayer is entitled to reduce his/her VAT liabilities in the reporting period. The right to VAT credit arises on the earlier of the date of payment to supplier or the date of receipt of goods by the company. Avangard’s entities apply the special VAT taxation treatment prescribed by the Tax Code of Ukraine, which entered into force on 1 January 2011, regarding the agricultural activities, which provides preferential VAT treatment to support agricultural producers.
B21: According to the Tax Code of Ukraine agricultural enterprises (those with a relative value of agricultural products in total sales not less than 75% for the previous 12 months) have a tax benefit for VAT on agriculture transactions. Positive VAT balance (positive difference between tax liability and tax credit) from agricultural transactions shall be recognized as government grants on special VAT treatment and transferred to special current account in a financial institution and negative balance (negative difference between tax liability and tax credit) is not subject to budgetary refund and credited to the tax credit for the next reporting (tax) period.
B22: In 2016 all of Avangard’s subsidiaries met the criteria for the use of these VAT benefits (except for LLC Rohatyn-Korm, LLC Kamyanets-Podilsky Kombikormoviy Zavod, OJSC Vuhlehirskyi Eksperementalnyi Kombikormovyi Zavod, OJSC Volnovaskyi Kombinat Khliboprodiktiv, LLC Pershe Travnya Kombikormoviy Zavod, LLC Imperovo Foods, LLC Imperovo LTD, LLC Agrarnyi Holding Avangard, AvangardCo Investments Public Limited).
B23: Changes in special VAT regime
B24: On 24 December 2015, the Parliament of Ukraine approved the Law “On amendments to the Tax Code of Ukraine and some other legislation of Ukraine in regard to securing balanced budget revenues in 2016" which, among others, reduced the VAT subsidy for agricultural producers for 2016 and completelly cancelled the subsidy from 2017.
B25: In 2016 the VAT subsidy was lower depending on the agricultural specialisation and as follows:
B26: Specialisation | C26: VAT subsidy at the disposal of payer
B27: Crop and industrial crop farming | C27: 0.15
B28: Milk and cattle farming | C28: 0.8
B29: Poultry | C29: 0.5
B30: From 1 January 2017 the special VAT regime for agricultural producers was completely cancelled. Thus all subjects of special VAT regime have switched to standard VAT terms.
B32: VAT government grants
B33: Since 1 January 2017, the procedure of distributing the government grants has been introduced for Ukrainian agricultural producers instead of the special VAT taxation treatment which was in force until 2016. The main point of Government support is that a part of the VAT paid by agricultural producers to the budget will return to the current account. The distribution of the government grants will be implemented by State Treasury Service under a separate program of the Ministry of Agrarian Policy and Food.

Sheet Industry Indicators
B2: Industry Indicators
B3: >> Content
B6: For rough calculations: 1 mln. eggs ≈ 57,75 th. tonnes
C7: Unit | D7: 2007 | E7: 2008 | F7: 2009 | G7: 2010 | H7: 2011 | I7: 2012 | J7: 2013 | K7: 2013* | L7: 2014* | M7: 2015* | N7: 2016E* | O7: 2017F*
B8: Poultry Flock in Ukraine
B9: Industrial Enterprises | C9: mln. hens | D9: n/a | E9: n/a | F9: 100.3 | G9: 110.6 | H9: 105.7 | I9: 117.6 | J9: 131.5 | K9: 127.2 | L9: 122.1 | M9: 112 | N9: 109.8 | O9: n/a
B10: Laying hens | C10: % | D10: n/a | E10: n/a | F10: 0.32 | G10: 0.32 | H10: 0.38 | I10: 0.34 | J10: 0.32 | K10: 0.32 | L10: 0.33 | M10: 0.28 | N10: 0.3 | O10: n/a
B11: Share of Industrial Enterprises | C11: % | D11: n/a | E11: n/a | F11: =F9/F14 -> 0.5240334378 | G11: 0.5426889107 | H11: 0.5266567015 | I11: 0.5497896213 | J11: 0.5727351916 | K11: 0.5766092475 | L11: 0.5724331927 | M11: 0.5490196078 | N11: =N9/N14 -> 0.5443728309 | O11: n/a
B12: Private Production | C12: mln. hens | D12: n/a | E12: n/a | F12: 91.1 | G12: 93.3 | H12: 95 | I12: 96.2 | J12: 98.1 | K12: 93.4 | L12: 91.3 | M12: 92 | N12: 91.8 | O12: n/a
B13: Share of Private Production | C13: % | D13: n/a | E13: n/a | F13: =F12/F14 -> 0.4759665622 | G13: 0.4578017664 | H13: 0.4733432985 | I13: 0.4497428705 | J13: 0.4272648084 | K13: 0.4233907525 | L13: 0.4280356306 | M13: 0.4509803922 | N13: 0.4551313832 | O13: n/a
B14: Total Poultry Flock | C14: mln. hens | D14: n/a | E14: n/a | F14: 191.4 | G14: 203.8 | H14: 200.7 | I14: 213.9 | J14: 229.6 | K14: 220.6 | L14: 213.3 | M14: 204 | N14: 201.7 | O14: n/a
B15: Growth | C15: % | D15: n/a | E15: n/a | F15: n/a | G15: =G14/F14-1 -> 0.06478578892 | H15: =H14/G14-1 -> -0.01521099117 | I15: =I14/H14-1 -> 0.06576980568 | J15: =J14/I14-1 -> 0.07339878448 | K15: n/a | L15: =L14/K14-1 -> -0.03309156845 | M15: =M14/L14-1 -> -0.04360056259 | N15: =N14/M14-1 -> -0.0112745098 | O15: n/a
B17: Egg Production in Ukraine
B18: Private Production | C18: mln. eggs | D18: 6458 | E18: 6486 | F18: 6650 | G18: 6803 | H18: 6952 | I18: 7133 | J18: 7369 | K18: 7000 | L18: 7051 | M18: 7021 | N18: 7033 | O18: 7127
B19: Share of Private Production | C19: % | D19: 0.459 | E19: 0.434 | F19: 0.4180286648 | G19: 0.3989561342 | H19: 0.3719300123 | I19: 0.373 | J19: 0.366 | K19: =K18/K22 -> 0.3666073112 | L19: 0.357 | M19: =M18/M22 -> 0.4183399869 | N19: =N18/N22 -> 0.4657615894 | O19: =O18/O22 -> 0.4704911539
B20: Industrial Production | C20: mln. eggs | D20: 7605 | E20: 8470 | F20: 9258 | G20: 10250 | H20: 11738 | I20: 11984 | J20: 12222 | K20: 12094 | L20: 12536 | M20: 9762 | N20: 8068 | O20: 8020
B21: Share of Industrial Production | C21: % | D21: 0.541 | E21: 0.566 | F21: 0.5819713352 | G21: 0.6009265775 | H21: 0.6280699877 | I21: 0.627 | J21: =J20/J22 -> 0.6238578939 | K21: =K20/K22 -> 0.6333926888 | L21: 0.643 | M21: =M20/M22 -> 0.5816600131 | N21: =N20/N22 -> 0.5343046358 | O21: =O20/O22 -> 0.5294428307
B22: Total Egg Production | C22: mln. eggs | D22: 14063 | E22: =E18+E20 -> 14956 | F22: 15908 | G22: =G18+G20 -> 17053 | H22: 18689 | I22: 19117 | J22: =J18+J20 -> 19591 | K22: =K18+K20 -> 19094 | L22: =L18+L20 -> 19587 | M22: 16783 | N22: 15100 | O22: 15148
B23: Growth | C23: % | D23: -0.012 | E23: 0.064 | F23: 0.06358226917 | G23: 0.07191350264 | H23: 0.09600046915 | I23: 0.023 | J23: =J22/I22-1 -> 0.02479468536 | K23: n/a | L23: =L22/J22-1 -> -0.0002041753867 | M23: =M22/L22-1 -> -0.143156175 | N23: =N22/M22-1 -> -0.1002800453 | O23: =O22/N22-1 -> 0.003178807947
B26: Egg Balance in Ukraine
B27: Export | C27: USD mln. | D27: 14.9 | E27: 12.3 | F27: 36.1 | G27: 27.8 | H27: 65 | I27: 73.1 | J27: 77.945 | K27: n/a | L27: 112.08 | M27: 77.417 | N27: 49.7 | O27: n/a
B28: Import | C28: USD mln. | D28: 0 | E28: 0 | F28: 0 | G28: 0 | H28: 0 | I28: 0 | J28: 0 | K28: n/a | L28: n/a | M28: n/a | N28: n/a | O28: n/a
B30: Egg products
B31: Dry Egg Products Production | C31: tonnes | D31: 3107 | E31: 5437 | F31: 4222 | G31: 12889 | H31: 14085 | I31: 15971 | J31: 25215 | K31: n/a | L31: 23485 | M31: 11392 | N31: 14082 | O31: 11287
B32: Liquid Egg Products Production | C32: tonnes | D32: 2676 | E32: 3783 | F32: 2097 | G32: 3807 | H32: 4363 | I32: 6088 | J32: 8019 | K32: n/a | L32: 7688 | M32: 7341 | N32: 9119 | O32: 10889
B33: Total Egg Products Production | C33: tonnes | D33: 5783 | E33: 9221 | F33: 6319 | G33: 16696 | H33: 18448 | I33: 22059 | J33: =J31+J32 -> 33234 | K33: n/a | L33: 31172 | M33: 18733 | N33: 23201 | O33: 22176
B34: Growth | C34: % | D34: 0.813 | E34: 0.594501124 | F34: -0.3147164082 | G34: 1.64219022 | H34: 0.1049353138 | I34: 0.196 | J34: =(J33/I33)-1 -> 0.5065959472 | K34: n/a | L34: =(L33/J33)-1 -> -0.06204489378 | M34: =(M33/L33)-1 -> -0.3990440139 | N34: =(N33/M33)-1 -> 0.238509582 | O34: =(O33/N33)-1 -> -0.04417913021
B35: Eggs Proccesed | C35: mln. eggs | D35: 259 | E35: 439 | F35: 327 | G35: 1207 | H35: 1336 | I35: n/a | J35: n/a | K35: n/a | L35: n/a | M35: n/a | N35: n/a | O35: n/a
B37: Total Import of Egg Products | C37: USD mln. | D37: 2.286 | E37: 4.498 | F37: 2.21 | G37: 5.554 | H37: 4.795 | I37: 5.464 | J37: 6.559 | K37: n/a | L37: 3.638 | M37: 3.001 | N37: n/a | O37: n/a
B38: Total Export of Egg Products | C38: USD mln. | D38: 0,668 | E38: 5.213 | F38: 11.962 | G38: 68.921 | H38: 68.607 | I38: 70.615 | J38: 133.575 | K38: n/a | L38: 104.24 | M38: 62.852 | N38: 53.221 | O38: n/a
B40: Shell Egg Consumption Per Capita in Ukraine | C40: eggs/year | D40: 252 | E40: 260 | F40: 272 | G40: 290 | H40: 310 | I40: 307 | J40: 309 | K40: 310 | L40: 310 | M40: 280 | N40: 267 | O40: n/a
B43: Ukranian Largest Shell Egg Producers
B44: Avangardco IPL | C44: % | D44: 0.125791083 | E44: 0.1619308685 | F44: 0.39 | G44: 0.43 | H44: 0.51 | I44: 0.52 | J44: 0.57 | K44: n/a | L44: 0.49 | M44: 0.35 | N44: 0.31 | O44: n/a
B45: Inter-Agrosystemy | C45: % | D45: 0.04593614449 | E45: 0.04258875443 | F45: 0.08 | G45: 0.09 | H45: 0.1 | I45: 0.1 | J45: 0.1 | K45: n/a | L45: 0.12 | M45: 0.13 | N45: 0.14 | O45: n/a
B46: Ovostar Group | C46: % | D46: 0 | E46: 0 | F46: 0.06 | G46: 0.05 | H46: 0.05 | I46: 0.06 | J46: 0.07 | K46: n/a | L46: 0.08 | M46: 0.12 | N46: 0.18 | O46: n/a
B47: PF «Podol'e» | C47: % | D47: n/a | E47: n/a | F47: n/a | G47: n/a | H47: n/a | I47: n/a | J47: 0.01 | K47: n/a | L47: 0.01 | M47: 0.02 | N47: 0.03 | O47: n/a
B48: PF «Kyivska» | C48: % | D48: 0.02403470099 | E48: 0.01758374005 | F48: 0.03 | G48: 0.04 | H48: 0.03 | I48: 0.03 | J48: 0.02 | K48: n/a | L48: 0.02 | M48: 0.02 | N48: n/a | O48: n/a
B49: «Agrofirma Berezanska PF» | C49: % | D49: 0.01607053971 | E49: 0.01738316507 | F49: 0.03 | G49: 0.04 | H49: 0.05 | I49: 0.02 | J49: 0.02 | K49: n/a | L49: 0.02 | M49: 0.03 | N49: 0.03 | O49: n/a
B50: Other producers | C50: % | D50: 0.7881675318 | E50: 0.760513472 | F50: 0.4 | G50: 0.34 | H50: 0.26 | I50: 0.26 | J50: 0.21 | K50: n/a | L50: 0.26 | M50: 0.34 | N50: 0.32 | O50: n/a
B52: Egg Sales in Ukraine
B53: Retail chains, wholesale | C53: % | D53: 0.746 | E53: 0.765 | F53: 0.776 | G53: 0.792 | H53: 0.793 | I53: 0.822 | J53: 0.826 | K53: n/a | L53: 0.818 | M53: 0.928 | N53: 0.925 | O53: n/a
B54: Direct sales (to end-customers) | C54: % | D54: 0.245 | E54: 0.227 | F54: 0.215 | G54: 0.2 | H54: 0.19 | I54: 0.155 | J54: 0.151 | K54: n/a | L54: 0.145 | M54: 0.048 | N54: 0.05 | O54: n/a
B55: Other | C55: % | D55: 0.009 | E55: 0.008 | F55: 0.009 | G55: 0.008 | H55: 0.017 | I55: 0.023 | J55: 0.023 | K55: n/a | L55: 0.037 | M55: 0.024 | N55: 0.025 | O55: n/a
B58: *Excluding the Autonomous Republic of Crimea, the city of Sevastopol and military conflict zone.

Sheet Macro Indicators
B2: Macro Indicators of Ukraine
B3: >> Content
C5: Unit | D5: 2007 | E5: 2008 | F5: 2009 | G5: 2010 | H5: 2011 | I5: 2012 | J5: 2013 | K5: 2014 | L5: 2015 | M5: 2016 | N5: 2017F | O5: Source
B6: GDP Indicators
B7: GDP, Constant prices* | C7: % | D7: 0.08216 | E7: 0.02243 | F7: -0.15136 | G7: 0.00261 | H7: 0.05466 | I7: 0.00239 | J7: -0.00027 | K7: -0.06553 | L7: -0.09773 | M7: 0.02308 | N7: 0.02016 | O7: IMF
B8: GDP, Current Prices* | C8: UAH bln. | D8: 751.106 | E8: 990.819 | F8: 947.042 | G8: 1079.346 | H8: 1301.157 | I8: 1404.669 | J8: 1465.198 | K8: 1586.915 | L8: 1988.54 | M8: 2383.18 | N8: 2734.05 | O8: IMF
B9: GDP, Current Prices* | C9: USD bln. | D9: 148.734 | E9: 188.24 | F9: 121.552 | G9: 136.011 | H9: 163.307 | I9: 175.707 | J9: 179.572 | K9: 132.343 | L9: 90.939 | M9: 93.263 | N9: 95.934 | O9: IMF
B10: GDP Based on Purchasing-power-parity (PPP) Per Capita | C10: USD international | D10: 8415.153 | E10: 8816.413 | F10: 7568.509 | G10: 7712.059 | H10: 8327.929 | I10: 8516.684 | J10: 8676.16 | K10: 8732.65 | L10: 7995.54 | M10: 8305.08 | N10: 8677.85 | O10: IMF
B12: Industrial and Agriculture Output
B13: Industrial Growth | C13: % | D13: 0.076 | E13: -0.052 | F13: -0.219 | G13: 0.112 | H13: 0.08 | I13: -0.007 | J13: -0.043 | K13: -0.101 | L13: -0.134 | M13: 0.024 | N13: n/a | O13: State Statistic Service of Ukraine
B14: Agriculture Growth | C14: % | D14: -0.056 | E14: 0.175 | F14: 0.001 | G14: -0.01 | H14: 0.175 | I14: -0.045 | J14: 0.136 | K14: 0.022 | L14: -0.048 | M14: 0.061 | N14: n/a | O14: State Statistic Service of Ukraine
B16: Exchange Rates
B17: USD/UAH at the end of year | D17: 5.05 | E17: 7.7 | F17: 7.99 | G17: 7.94 | H17: 7.9898 | I17: 7.993 | J17: 7.99 | K17: 15.768 | L17: 24 | M17: 27.19 | N17: n/a | O17: National Bank of Ukraine
B18: USD/UAH average | D18: 5.05 | E18: 5.17 | F18: 7.79 | G18: 7.96 | H18: 7.967562782 | I18: 7.991 | J18: 7.99 | K18: 11.88 | L18: 21.84 | M18: 25.55 | N18: n/a | O18: National Bank of Ukraine
B19: 10 RUB/UAH at the end of year | D19: 2.0579 | E19: 2.6208 | F19: 2.4685 | G19: 2.61 | H19: 2.4953 | I19: 2.6316 | J19: 2.449 | K19: 3.03 | L19: 3.29 | M19: 4.5113 | N19: n/a | O19: National Bank of Ukraine
B20: 10 RUB/UAH average | D20: 1.9774 | E20: 2.1162 | F20: 2.6402 | G20: 2.61 | H20: 2.717204785 | I20: 2.574341257 | J20: 2.51 | K20: 3.11 | L20: 3.62 | M20: 3.831390132 | N20: n/a | O20: National Bank of Ukraine
B21: EUR/UAH at the end of year | D21: 7.42 | E21: 10.86 | F21: 11.45 | G21: 10.57 | H21: 10.298053 | I21: 10.537172 | J21: 11.04 | K21: 19.23 | L21: 26.22 | M21: 28.42 | N21: n/a | O21: National Bank of Ukraine
B22: EUR/UAH average | D22: 6.93 | E22: 7.72 | F22: 10.89 | G22: 10.52 | H22: 11.09175158 | I22: 10.2707 | J22: 10.61 | K22: 15.715 | L22: 24.23 | M22: 28.29 | N22: n/a | O22: National Bank of Ukraine
B23: GBP/UAH at the end of year | D23: 10.097251 | E23: 11.142948 | F23: 12.664705 | G23: 12.291488 | H23: 12.318245 | I23: 12.898185 | J23: 13.19 | K23: 24.525 | L23: 35.53 | M23: 33.32 | N23: n/a | O23: National Bank of Ukraine
B24: GBP/UAH average | D24: 10.11 | E24: 9.66 | F24: 12.23 | G24: 12.26 | H24: 12.77709062 | I24: 12.663832 | J24: 12.5 | K24: 19.537 | L24: 33.4 | M24: 34.7 | N24: n/a | O24: National Bank of Ukraine
B25: PLN/UAH at the end of year | D25: 2.060103 | E25: 2.617981 | F25: 2.775556 | G25: 2.666617 | H25: 2.318807 | I25: 2.582071 | J25: 2.659 | K25: 4.47 | L25: 6.18 | M25: 6.44 | N25: n/a | O25: National Bank of Ukraine
B26: PLN/UAH average | D26: 1.83 | E26: 2.19 | F26: 2.53 | G26: 2.64 | H26: 2.702065951 | I26: 2.4552357 | J26: 2.53 | K26: 3.755 | L26: 5.78 | M26: 6.49 | N26: n/a | O26: National Bank of Ukraine
B28: Long Term Foreign Currency Ukranian Sovereign Credit Rating, as at 29.06.2017
B29: S&P | D29: BB- | E29: B | F29: CCC+ | G29: B+ | H29: B+ | I29: B | J29: B | K29: CCC- | L29: B- | M29: B- | N29: n/a | O29: S&P
B30: Moody's | D30: Ba3 | E30: Ba3 | F30: B2 | G30: B2 | H30: B2 | I30: B2 | J30: Caa2 | K30: Caa2 | L30: Caa3 | M30: Caa3 | N30: n/a | O30: Moody's
B31: Fitch | D31: BB- | E31: B+ | F31: B- | G31: B | H31: B | I31: B | J31: B | K31: CCC | L31: CCC | M31: B- | N31: n/a | O31: Fitch
B33: Finances, Budget and Population
B34: Discount Rate of the National Bank of Ukraine (NBU), at the end of year | C34: % | D34: 0.08 | E34: 0.12 | F34: 0.1025 | G34: 0.0775 | H34: 0.0775 | I34: 0.075 | J34: 0.065 | K34: 0.14 | L34: 0.22 | M34: 0.14 | N34: n/a | O34: National Bank of Ukraine
B35: Inflation, average consumer prices | C35: % | D35: 0.12843 | E35: 0.25201 | F35: 0.159 | G35: 0.09365 | H35: 0.07958 | I35: 0.00565 | J35: -0.00261 | K35: 0.121 | L35: 0.487 | M35: 0.139 | N35: 0.115 | O35: IMF
B36: State Budget Proficit/ (Deficit)** | C36: % of GDP | D36: -0.01895 | E36: -0.0303 | F36: -0.06033 | G36: -0.05772 | H36: -0.02759 | I36: -0.04307 | J36: -0.04785 | K36: -0.0446 | L36: -0.01159 | M36: -0.02224 | N36: 0.02992 | O36: IMF
B37: Current Account Proficit/ (Deficit)*** | C37: % of GDP | D37: -0.03545 | E37: -0.0678 | F37: -0.01425 | G37: -0.02219 | H37: -0.06273 | I37: -0.08147 | J37: -0.09176 | K37: -0.04001 | L37: -0.00287 | M37: -0.0361 | N37: 0.03603 | O37: IMF
B38: Country Population**** | C38: mln. persons | D38: 46.192 | E38: 45.963 | F38: 45.783 | G38: 45.598 | H38: 45.453 | I38: 45.373 | J38: 45.246 | K38: 42.76 | L38: 42.591 | M38: 42.501 | N38: 42.412 | O38: IMF
B39: Disposable Income Per Capita***** | C39: UAH/month | D39: 843.8 | E39: 1143 | F39: 1217.2 | G39: 1528.9 | H39: 1770.8 | I39: 1994.3 | J39: 2180.6 | K39: 2231.8 | L39: 2587 | M39: 2967.5 | N39: n/a | O39: State Statistic Service of Ukraine
B42: *Data excludes Crimea and Sevastopol from 2010.
B43: **Starting in 2014, the data excludes Crimea and Sevastopol.
B44: ***Starting in 2014Q2, the data excludes Crimea and Sevastopol.
B45: **** Starting in 2014, data excludes Crimea and Sevastopol. 2013 data excludes Crimea and Sevastopol for comparison purposes with 2014 data.
B46: *****Starting in 2014, data excludes Crimea, Sevastopol and anti-terrorist operation zone.

Sheet Share price
B1: Avangardco GDRs Information for Last Six Months | J1: Price, USD
B2: (in USD, unless otherwise stated)
B3: (Source: LSE, powered by RUSTOCKS.com)
B4: >> Content | D4: >> History Lookup | F4: >> LSE Site
K8: LAST PRICE | L8: =VLOOKUP(TODAY(),Table_0[[date]:[price]],5) -> 0.505
B9: Date | D9: Bid | E9: Ask | F9: High | G9: Low | H9: Price | I9: Volume, items | J9: Volume, USD
B10: date | C10: name | D10: bid | E10: ask | F10: high | G10: low | H10: price | I10: volume | J10: volume money | K10: Column1
B11: 2017-03-06 | C11: AVGRG | D11: 0.68 | E11: 0 | F11: 0.68 | G11: 0.68 | H11: 0.68 | I11: 0 | J11: 0
B12: 2017-03-07 | C12: AVGRG | D12: 0.68 | E12: 0 | F12: 0.68 | G12: 0.68 | H12: 0.68 | I12: 0 | J12: 0
B13: 2017-03-08 | C13: AVGRG | D13: 0.67 | E13: 0.68 | F13: 0.68 | G13: 0.68 | H13: 0.68 | I13: 3834 | J13: 2607.12
B14: 2017-03-09 | C14: AVGRG | D14: 0.67 | E14: 0.68 | F14: 0.68 | G14: 0.68 | H14: 0.68 | I14: 0 | J14: 0
B15: 2017-03-10 | C15: AVGRG | D15: 0.67 | E15: 0.68 | F15: 0.68 | G15: 0.68 | H15: 0.68 | I15: 0 | J15: 0
B16: 2017-03-13 | C16: AVGRG | D16: 0.67 | E16: 0.68 | F16: 0.68 | G16: 0.68 | H16: 0.68 | I16: 0 | J16: 0
B17: 2017-03-14 | C17: AVGRG | D17: 0.67 | E17: 0.68 | F17: 0.68 | G17: 0.68 | H17: 0.68 | I17: 0 | J17: 0
B18: 2017-03-15 | C18: AVGRG | D18: 0.7 | E18: 0.75 | F18: 0.68 | G18: 0.67 | H18: 0.68 | I18: 1085 | J18: 736.8
B19: 2017-03-16 | C19: AVGRG | D19: 0.7 | E19: 0.75 | F19: 0.68 | G19: 0.68 | H19: 0.68 | I19: 0 | J19: 0
B20: 2017-03-17 | C20: AVGRG | D20: 0.7 | E20: 0.75 | F20: 0.68 | G20: 0.68 | H20: 0.68 | I20: 0 | J20: 0
B21: 2017-03-20 | C21: AVGRG | D21: 0.7 | E21: 0.75 | F21: 0.68 | G21: 0.68 | H21: 0.68 | I21: 0 | J21: 0
B22: 2017-03-21 | C22: AVGRG | D22: 0.7 | E22: 0.75 | F22: 0.68 | G22: 0.68 | H22: 0.68 | I22: 0 | J22: 0
B23: 2017-03-22 | C23: AVGRG | D23: 0.72 | E23: 0.75 | F23: 0.68 | G23: 0.68 | H23: 0.68 | I23: 0 | J23: 0
B24: 2017-03-23 | C24: AVGRG | D24: 0.7 | E24: 0.71 | F24: 0.72 | G24: 0.71 | H24: 0.71 | I24: 8915 | J24: 6368.8
B25: 2017-03-24 | C25: AVGRG | D25: 0.69 | E25: 0.75 | F25: 0.7 | G25: 0.7 | H25: 0.7 | I25: 5000 | J25: 3500
B26: 2017-03-27 | C26: AVGRG | D26: 0.69 | E26: 0.7 | F26: 0.7 | G26: 0.7 | H26: 0.7 | I26: 5000 | J26: 3500
B27: 2017-03-28 | C27: AVGRG | D27: 0.69 | E27: 0.75 | F27: 0.7 | G27: 0.7 | H27: 0.7 | I27: 0 | J27: 0
B28: 2017-03-29 | C28: AVGRG | D28: 0.69 | E28: 0.75 | F28: 0.7 | G28: 0.7 | H28: 0.7 | I28: 0 | J28: 0
B29: 2017-03-30 | C29: AVGRG | D29: 0.69 | E29: 0 | F29: 0.7 | G29: 0.7 | H29: 0.7 | I29: 0 | J29: 0
B30: 2017-03-31 | C30: AVGRG | D30: 0.69 | E30: 0.75 | F30: 0.7 | G30: 0.7 | H30: 0.7 | I30: 0 | J30: 0
B31: 2017-04-03 | C31: AVGRG | D31: 0.7 | E31: 0.72 | F31: 0.72 | G31: 0.72 | H31: 0.72 | I31: 6183 | J31: 4451.76
B32: 2017-04-04 | C32: AVGRG | D32: 0.725 | E32: 0.75 | F32: 0.72 | G32: 0.72 | H32: 0.72 | I32: 1848 | J32: 1330.56
B33: 2017-04-05 | C33: AVGRG | D33: 0.75 | E33: 0.8 | F33: 0.75 | G33: 0.75 | H33: 0.75 | I33: 2000 | J33: 1500
B34: 2017-04-06 | C34: AVGRG | D34: 0.85 | E34: 0.95 | F34: 0.85 | G34: 0.75 | H34: 0.85 | I34: 9000 | J34: 6950
B35: 2017-04-07 | C35: AVGRG | D35: 0.75 | E35: 0.828 | F35: 0.85 | G35: 0.85 | H35: 0.85 | I35: 0 | J35: 0
B36: 2017-04-10 | C36: AVGRG | D36: 0.75 | E36: 0.95 | F36: 0.85 | G36: 0.85 | H36: 0.85 | I36: 0 | J36: 0
B37: 2017-04-11 | C37: AVGRG | D37: 0.75 | E37: 0.95 | F37: 0.85 | G37: 0.85 | H37: 0.85 | I37: 0 | J37: 0
B38: 2017-04-12 | C38: AVGRG | D38: 0.75 | E38: 0.85 | F38: 0.85 | G38: 0.85 | H38: 0.85 | I38: 0 | J38: 0
B39: 2017-04-13 | C39: AVGRG | D39: 0.75 | E39: 0.828 | F39: 0.85 | G39: 0.85 | H39: 0.85 | I39: 0 | J39: 0
B40: 2017-04-18 | C40: AVGRG | D40: 0.8 | E40: 0.828 | F40: 0.85 | G40: 0.85 | H40: 0.85 | I40: 0 | J40: 0
B41: 2017-04-19 | C41: AVGRG | D41: 0.8 | E41: 0.88 | F41: 0.88 | G41: 0.828 | H41: 0.88 | I41: 16000 | J41: 13672.79
B42: 2017-04-20 | C42: AVGRG | D42: 0.87 | E42: 0.945 | F42: 0.88 | G42: 0.88 | H42: 0.88 | I42: 0 | J42: 0
B43: 2017-04-21 | C43: AVGRG | D43: 0.9 | E43: 0.95 | F43: 0.88 | G43: 0.88 | H43: 0.88 | I43: 0 | J43: 0
B44: 2017-04-24 | C44: AVGRG | D44: 0.9 | E44: 0.95 | F44: 0.88 | G44: 0.88 | H44: 0.88 | I44: 0 | J44: 0
B45: 2017-04-25 | C45: AVGRG | D45: 0.9 | E45: 0.949 | F45: 0.88 | G45: 0.88 | H45: 0.88 | I45: 0 | J45: 0
B46: 2017-04-26 | C46: AVGRG | D46: 0.9 | E46: 0.949 | F46: 0.88 | G46: 0.88 | H46: 0.88 | I46: 0 | J46: 0
B47: 2017-04-27 | C47: AVGRG | D47: 0.95 | E47: 0 | F47: 1 | G47: 0.997 | H47: 1 | I47: 5360 | J47: 5352.5
B48: 2017-04-28 | C48: AVGRG | D48: 0.95 | E48: 1 | F48: 1 | G48: 1 | H48: 1 | I48: 0 | J48: 0
B49: 2017-05-02 | C49: AVGRG | D49: 1 | E49: 0 | F49: 1 | G49: 0.95 | H49: 1 | I49: 5240 | J49: 5115
B50: 2017-05-03 | C50: AVGRG | D50: 0.72 | E50: 1 | F50: 1 | G50: 1 | H50: 1 | I50: 2260 | J50: 2260
B51: 2017-05-04 | C51: AVGRG | D51: 0.72 | E51: 0.975 | F51: 1 | G51: 1 | H51: 1 | I51: 0 | J51: 0
B52: 2017-05-05 | C52: AVGRG | D52: 0.72 | E52: 0 | F52: 1 | G52: 1 | H52: 1 | I52: 0 | J52: 0
B53: 2017-05-08 | C53: AVGRG | D53: 0.72 | E53: 1 | F53: 1 | G53: 1 | H53: 1 | I53: 0 | J53: 0
B54: 2017-05-09 | C54: AVGRG | D54: 0.72 | E54: 1 | F54: 1 | G54: 1 | H54: 1 | I54: 0 | J54: 0
B55: 2017-05-10 | C55: AVGRG | D55: 0.72 | E55: 0.989 | F55: 1 | G55: 1 | H55: 1 | I55: 0 | J55: 0
B56: 2017-05-11 | C56: AVGRG | D56: 0.72 | E56: 0.987 | F56: 1 | G56: 1 | H56: 1 | I56: 0 | J56: 0
B57: 2017-05-12 | C57: AVGRG | D57: 0.72 | E57: 0.987 | F57: 1 | G57: 1 | H57: 1 | I57: 0 | J57: 0
B58: 2017-05-15 | C58: AVGRG | D58: 0.72 | E58: 0.987 | F58: 1 | G58: 1 | H58: 1 | I58: 0 | J58: 0
B59: 2017-05-16 | C59: AVGRG | D59: 0.72 | E59: 0.987 | F59: 1 | G59: 1 | H59: 1 | I59: 0 | J59: 0
B60: 2017-05-17 | C60: AVGRG | D60: 0.72 | E60: 0.987 | F60: 1 | G60: 1 | H60: 1 | I60: 0 | J60: 0
B61: 2017-05-18 | C61: AVGRG | D61: 0.72 | E61: 0.987 | F61: 1 | G61: 1 | H61: 1 | I61: 0 | J61: 0
B62: 2017-05-19 | C62: AVGRG | D62: 0.72 | E62: 0.987 | F62: 1 | G62: 1 | H62: 1 | I62: 0 | J62: 0
B63: 2017-05-22 | C63: AVGRG | D63: 0.72 | E63: 0.987 | F63: 0.73 | G63: 0.73 | H63: 0.73 | I63: 1250 | J63: 912.5
B64: 2017-05-23 | C64: AVGRG | D64: 0.72 | E64: 0.987 | F64: 0.73 | G64: 0.73 | H64: 0.73 | I64: 0 | J64: 0
B65: 2017-05-24 | C65: AVGRG | D65: 0.72 | E65: 0.95 | F65: 0.73 | G65: 0.73 | H65: 0.73 | I65: 0 | J65: 0
B66: 2017-05-25 | C66: AVGRG | D66: 0.72 | E66: 0.95 | F66: 0.73 | G66: 0.73 | H66: 0.73 | I66: 0 | J66: 0
B67: 2017-05-26 | C67: AVGRG | D67: 0.72 | E67: 0.85 | F67: 0.73 | G67: 0.73 | H67: 0.73 | I67: 0 | J67: 0
B68: 2017-05-30 | C68: AVGRG | D68: 0.72 | E68: 0.987 | F68: 0.73 | G68: 0.73 | H68: 0.73 | I68: 0 | J68: 0
B69: 2017-05-31 | C69: AVGRG | D69: 0.72 | E69: 0.85 | F69: 0.73 | G69: 0.73 | H69: 0.73 | I69: 0 | J69: 0
B70: 2017-06-01 | C70: AVGRG | D70: 0.72 | E70: 0.987 | F70: 0.73 | G70: 0.73 | H70: 0.73 | I70: 0 | J70: 0
B71: 2017-06-02 | C71: AVGRG | D71: 0.72 | E71: 0.987 | F71: 0.72 | G71: 0.72 | H71: 0.72 | I71: 2693 | J71: 1938.96
B72: 2017-06-05 | C72: AVGRG | D72: 0.4 | E72: 0.72 | F72: 0.72 | G72: 0.72 | H72: 0.72 | I72: 3152 | J72: 2269.44
B73: 2017-06-06 | C73: AVGRG | D73: 0.5 | E73: 0.72 | F73: 0.4 | G73: 0.4 | H73: 0.4 | I73: 89 | J73: 35.6
B74: 2017-06-07 | C74: AVGRG | D74: 0.6 | E74: 0.72 | F74: 0.4 | G74: 0.4 | H74: 0.4 | I74: 0 | J74: 0
B75: 2017-06-08 | C75: AVGRG | D75: 0.5 | E75: 0.72 | F75: 0.4 | G75: 0.4 | H75: 0.4 | I75: 0 | J75: 0
B76: 2017-06-09 | C76: AVGRG | D76: 0.6 | E76: 0.702 | F76: 0.72 | G76: 0.72 | H76: 0.72 | I76: 4520 | J76: 3283.78
B77: 2017-06-12 | C77: AVGRG | D77: 0.65 | E77: 0.72 | F77: 0.72 | G77: 0.72 | H77: 0.72 | I77: 0 | J77: 0
B78: 2017-06-13 | C78: AVGRG | D78: 0.65 | E78: 0.72 | F78: 0.72 | G78: 0.72 | H78: 0.72 | I78: 0 | J78: 0
B79: 2017-06-14 | C79: AVGRG | D79: 0.45 | E79: 0.65 | F79: 0.65 | G79: 0.65 | H79: 0.65 | I79: 10000 | J79: 6500
B80: 2017-06-15 | C80: AVGRG | D80: 0.65 | E80: 0.75 | F80: 0.65 | G80: 0.45 | H80: 0.65 | I80: 32588 | J80: 20732.2
B81: 2017-06-16 | C81: AVGRG | D81: 0.6 | E81: 0.9 | F81: 0.65 | G81: 0.65 | H81: 0.65 | I81: 0 | J81: 0
B82: 2017-06-19 | C82: AVGRG | D82: 0.57 | E82: 0.633 | F82: 0.65 | G82: 0.65 | H82: 0.65 | I82: 0 | J82: 0
B83: 2017-06-20 | C83: AVGRG | D83: 0.45 | E83: 0.633 | F83: 0.65 | G83: 0.65 | H83: 0.65 | I83: 0 | J83: 0
B84: 2017-06-21 | C84: AVGRG | D84: 0.45 | E84: 0.6 | F84: 0.65 | G84: 0.65 | H84: 0.65 | I84: 0 | J84: 0
B85: 2017-06-22 | C85: AVGRG | D85: 0.45 | E85: 0.6 | F85: 0.65 | G85: 0.65 | H85: 0.65 | I85: 0 | J85: 0
B86: 2017-06-23 | C86: AVGRG | D86: 0.45 | E86: 0.6 | F86: 0.65 | G86: 0.65 | H86: 0.65 | I86: 0 | J86: 0
B87: 2017-06-26 | C87: AVGRG | D87: 0.45 | E87: 0.6 | F87: 0.65 | G87: 0.65 | H87: 0.65 | I87: 0 | J87: 0
B88: 2017-06-27 | C88: AVGRG | D88: 0.45 | E88: 0.6 | F88: 0.65 | G88: 0.65 | H88: 0.65 | I88: 0 | J88: 0
B89: 2017-06-28 | C89: AVGRG | D89: 0.451 | E89: 0.6 | F89: 0.65 | G89: 0.65 | H89: 0.65 | I89: 0 | J89: 0
B90: 2017-06-29 | C90: AVGRG | D90: 0.45 | E90: 0.59 | F90: 0.65 | G90: 0.65 | H90: 0.65 | I90: 0 | J90: 0
B91: 2017-06-30 | C91: AVGRG | D91: 0.45 | E91: 0.6 | F91: 0.65 | G91: 0.65 | H91: 0.65 | I91: 0 | J91: 0
B92: 2017-07-03 | C92: AVGRG | D92: 0.47 | E92: 0.6 | F92: 0.65 | G92: 0.65 | H92: 0.65 | I92: 0 | J92: 0
B93: 2017-07-04 | C93: AVGRG | D93: 0.47 | E93: 0.6 | F93: 0.65 | G93: 0.65 | H93: 0.65 | I93: 0 | J93: 0
B94: 2017-07-05 | C94: AVGRG | D94: 0.451 | E94: 0.6 | F94: 0.451 | G94: 0.451 | H94: 0.451 | I94: 737 | J94: 332.02
B95: 2017-07-06 | C95: AVGRG | D95: 0.5 | E95: 0.6 | F95: 0.451 | G95: 0.451 | H95: 0.451 | I95: 0 | J95: 0
B96: 2017-07-07 | C96: AVGRG | D96: 0.5 | E96: 0.6 | F96: 0.451 | G96: 0.451 | H96: 0.451 | I96: 0 | J96: 0
B97: 2017-07-10 | C97: AVGRG | D97: 0.5 | E97: 0.75 | F97: 0.45 | G97: 0.45 | H97: 0.45 | I97: 529 | J97: 238.05
B98: 2017-07-11 | C98: AVGRG | D98: 0.5 | E98: 0.75 | F98: 0.45 | G98: 0.45 | H98: 0.45 | I98: 0 | J98: 0
B99: 2017-07-12 | C99: AVGRG | D99: 0.6 | E99: 0.75 | F99: 0.6 | G99: 0.6 | H99: 0.6 | I99: 200 | J99: 120
B100: 2017-07-13 | C100: AVGRG | D100: 0.6 | E100: 0.75 | F100: 0.6 | G100: 0.6 | H100: 0.6 | I100: 0 | J100: 0
B101: 2017-07-14 | C101: AVGRG | D101: 0.6 | E101: 0.987 | F101: 0.6 | G101: 0.6 | H101: 0.6 | I101: 0 | J101: 0
B102: 2017-07-17 | C102: AVGRG | D102: 0.7 | E102: 0.75 | F102: 0.6 | G102: 0.6 | H102: 0.6 | I102: 0 | J102: 0
B103: 2017-07-18 | C103: AVGRG | D103: 0.7 | E103: 0.75 | F103: 0.6 | G103: 0.6 | H103: 0.6 | I103: 0 | J103: 0
B104: 2017-07-19 | C104: AVGRG | D104: 0.7 | E104: 0.75 | F104: 0.6 | G104: 0.6 | H104: 0.6 | I104: 0 | J104: 0
B105: 2017-07-20 | C105: AVGRG | D105: 0.7 | E105: 0.75 | F105: 0.6 | G105: 0.6 | H105: 0.6 | I105: 0 | J105: 0
B106: 2017-07-21 | C106: AVGRG | D106: 0.7 | E106: 0.75 | F106: 0.6 | G106: 0.6 | H106: 0.6 | I106: 0 | J106: 0
B107: 2017-07-24 | C107: AVGRG | D107: 0.6 | E107: 0.75 | F107: 0.7 | G107: 0.7 | H107: 0.7 | I107: 1000 | J107: 700
B108: 2017-07-25 | C108: AVGRG | D108: 0.6 | E108: 0.7 | F108: 0.6 | G108: 0.6 | H108: 0.6 | I108: 5000 | J108: 3000
B109: 2017-07-26 | C109: AVGRG | D109: 0.6 | E109: 0.7 | F109: 0.6 | G109: 0.6 | H109: 0.6 | I109: 0 | J109: 0
B110: 2017-07-27 | C110: AVGRG | D110: 0.6 | E110: 0.7 | F110: 0.6 | G110: 0.6 | H110: 0.6 | I110: 0 | J110: 0
B111: 2017-07-28 | C111: AVGRG | D111: 0.6 | E111: 0.7 | F111: 0.6 | G111: 0.6 | H111: 0.6 | I111: 0 | J111: 0
B112: 2017-07-31 | C112: AVGRG | D112: 0.6 | E112: 0.7 | F112: 0.6 | G112: 0.6 | H112: 0.6 | I112: 5789 | J112: 3473.4
B113: 2017-08-01 | C113: AVGRG | D113: 0.6 | E113: 0.9 | F113: 0.6 | G113: 0.6 | H113: 0.6 | I113: 10 | J113: 6
B114: 2017-08-02 | C114: AVGRG | D114: 0.6 | E114: 0.7 | F114: 0.6 | G114: 0.6 | H114: 0.6 | I114: 0 | J114: 0
B115: 2017-08-03 | C115: AVGRG | D115: 0.6 | E115: 0.75 | F115: 0.6 | G115: 0.6 | H115: 0.6 | I115: 990 | J115: 594
B116: 2017-08-04 | C116: AVGRG | D116: 0.6 | E116: 0.75 | F116: 0.6 | G116: 0.6 | H116: 0.6 | I116: 0 | J116: 0
B117: 2017-08-07 | C117: AVGRG | D117: 0.6 | E117: 0.75 | F117: 0.6 | G117: 0.6 | H117: 0.6 | I117: 2000 | J117: 1200
B118: 2017-08-08 | C118: AVGRG | D118: 0.45 | E118: 0.6 | F118: 0.6 | G118: 0.6 | H118: 0.6 | I118: 0 | J118: 0
B119: 2017-08-09 | C119: AVGRG | D119: 0.45 | E119: 0.6 | F119: 0.6 | G119: 0.6 | H119: 0.6 | I119: 0 | J119: 0
B120: 2017-08-10 | C120: AVGRG | D120: 0.45 | E120: 0.75 | F120: 0.6 | G120: 0.6 | H120: 0.6 | I120: 0 | J120: 0
B121: 2017-08-11 | C121: AVGRG | D121: 0.45 | E121: 0 | F121: 0.6 | G121: 0.6 | H121: 0.6 | I121: 0 | J121: 0
B122: 2017-08-14 | C122: AVGRG | D122: 0.45 | E122: 0.585 | F122: 0.6 | G122: 0.6 | H122: 0.6 | I122: 0 | J122: 0
B123: 2017-08-15 | C123: AVGRG | D123: 0.45 | E123: 0.585 | F123: 0.6 | G123: 0.6 | H123: 0.6 | I123: 0 | J123: 0
B124: 2017-08-16 | C124: AVGRG | D124: 0.45 | E124: 0.585 | F124: 0.6 | G124: 0.6 | H124: 0.6 | I124: 0 | J124: 0
B125: 2017-08-17 | C125: AVGRG | D125: 0.45 | E125: 0.585 | F125: 0.6 | G125: 0.6 | H125: 0.6 | I125: 0 | J125: 0
B126: 2017-08-18 | C126: AVGRG | D126: 0.45 | E126: 0.5 | F126: 0.45 | G126: 0.45 | H126: 0.45 | I126: 90 | J126: 40.5
B127: 2017-08-21 | C127: AVGRG | D127: 0.46 | E127: 0 | F127: 0.5 | G127: 0.5 | H127: 0.5 | I127: 5000 | J127: 2500
B128: 2017-08-22 | C128: AVGRG | D128: 0.52 | E128: 0 | F128: 0.5 | G128: 0.5 | H128: 0.5 | I128: 0 | J128: 0
B129: 2017-08-23 | C129: AVGRG | D129: 0.5 | E129: 0 | F129: 0.5 | G129: 0.5 | H129: 0.5 | I129: 0 | J129: 0
B130: 2017-08-24 | C130: AVGRG | D130: 0.45 | E130: 0 | F130: 0.505 | G130: 0.505 | H130: 0.505 | I130: 20000 | J130: 11078.7
B131: 2017-08-25 | C131: AVGRG | D131: 0.55 | E131: 0 | F131: 0.505 | G131: 0.505 | H131: 0.505 | I131: 0 | J131: 0
B132: 2017-08-29 | C132: AVGRG | D132: 0.505 | E132: 0 | F132: 0.505 | G132: 0.505 | H132: 0.505 | I132: 97 | J132: 48.99
B133: 2017-08-30 | C133: AVGRG | D133: 0.505 | E133: 0 | F133: 0.505 | G133: 0.505 | H133: 0.505 | I133: 0 | J133: 0
B134: 2017-08-31 | C134: AVGRG | D134: 0.505 | E134: 0 | F134: 0.505 | G134: 0.505 | H134: 0.505 | I134: 352 | J134: 177.76
B135: 2017-09-01 | C135: AVGRG | D135: 0.505 | E135: 0 | F135: 0.505 | G135: 0.505 | H135: 0.505 | I135: 0 | J135: 0
B136: 2017-09-04 | C136: AVGRG | D136: 0.505 | E136: 0 | F136: 0.505 | G136: 0.505 | H136: 0.505 | I136: 0 | J136: 0
B137: 2017-09-05 | C137: AVGRG | D137: 0.55 | E137: 0.6 | F137: 0.505 | G137: 0.505 | H137: 0.505 | I137: 0 | J137: 0

Sheet Notes price
B2: Eurobond Price and Yield to Maturity for Last Six Months
B3: (Source: FINRA TRACE, powered by RUSTOCKS.com)
B4: >> Content | C4: >> Notes Information | E4: >> History Lookup
B8: Date | D8: Price, % | E8: YTM, %
B9: date | C9: name | D9: price | E9: ytm
B10: 2017-03-06 | C10: AVINPU15 | D10: 32.499 | E10: 101.545
B11: 2017-03-07 | C11: AVINPU15 | D11: 32.503 | E11: 101.725
B12: 2017-03-08 | C12: AVINPU15 | D12: 31.496 | E12: 104.992
B13: 2017-03-09 | C13: AVINPU15 | D13: 31.496 | E13: 105.596
B14: 2017-03-10 | C14: AVINPU15 | D14: 31.171 | E14: 106.83
B15: 2017-03-13 | C15: AVINPU15 | D15: 31.495 | E15: 106.008
B16: 2017-03-14 | C16: AVINPU15 | D16: 31.238 | E16: 107.03
B17: 2017-03-15 | C17: AVINPU15 | D17: 31.242 | E17: 107.226
B18: 2017-03-16 | C18: AVINPU15 | D18: 31.245 | E18: 107.847
B19: 2017-03-17 | C19: AVINPU15 | D19: 30.996 | E19: 108.869
B20: 2017-03-20 | C20: AVINPU15 | D20: 31.001 | E20: 109.068
B21: 2017-03-21 | C21: AVINPU15 | D21: 31 | E21: 109.287
B22: 2017-03-22 | C22: AVINPU15 | D22: 31.036 | E22: 109.386
B23: 2017-03-23 | C23: AVINPU15 | D23: 31.036 | E23: 109.386
B24: 2017-03-24 | C24: AVINPU15 | D24: 31.036 | E24: 109.386
B25: 2017-03-27 | C25: AVINPU15 | D25: 31.036 | E25: 109.386
B26: 2017-03-28 | C26: AVINPU15 | D26: 31.036 | E26: 109.386
B27: 2017-03-29 | C27: AVINPU15 | D27: 28.529 | E27: 119.563
B28: 2017-03-30 | C28: AVINPU15 | D28: 28.529 | E28: 120.308
B29: 2017-03-31 | C29: AVINPU15 | D29: 28.529 | E29: 120.308
B30: 2017-04-03 | C30: AVINPU15 | D30: 29.752 | E30: 116.309
B31: 2017-04-04 | C31: AVINPU15 | D31: 29.752 | E31: 116.309
B32: 2017-04-05 | C32: AVINPU15 | D32: 29.752 | E32: 116.309
B33: 2017-04-06 | C33: AVINPU15 | D33: 29.752 | E33: 116.309
B34: 2017-04-07 | C34: AVINPU15 | D34: 29.752 | E34: 116.309
B35: 2017-04-10 | C35: AVINPU15 | D35: 29.752 | E35: 116.309
B36: 2017-04-11 | C36: AVINPU15 | D36: 29.752 | E36: 116.309
B37: 2017-04-12 | C37: AVINPU15 | D37: 28.502 | E37: 124.044
B38: 2017-04-13 | C38: AVINPU15 | D38: 28.75 | E38: 123.346
B39: 2017-04-14 | C39: AVINPU15 | D39: 28.75 | E39: 123.346
B40: 2017-04-17 | C40: AVINPU15 | D40: 28.75 | E40: 123.346
B41: 2017-04-18 | C41: AVINPU15 | D41: 29.003 | E41: 122.904
B42: 2017-04-19 | C42: AVINPU15 | D42: 29 | E42: 123.185
B43: 2017-04-20 | C43: AVINPU15 | D43: 29.003 | E43: 123.989
B44: 2017-04-21 | C44: AVINPU15 | D44: 29.001 | E44: 124.271
B45: 2017-04-24 | C45: AVINPU15 | D45: 27.499 | E45: 130.651
B46: 2017-04-25 | C46: AVINPU15 | D46: 26.992 | E46: 133.117
B47: 2017-04-26 | C47: AVINPU15 | D47: 28.499 | E47: 127.106
B48: 2017-04-27 | C48: AVINPU15 | D48: 26.996 | E48: 131.348
B49: 2017-04-28 | C49: AVINPU15 | D49: 28.121 | E49: 126.859
B50: 2017-05-01 | C50: AVINPU15 | D50: 28.121 | E50: 126.859
B51: 2017-05-02 | C51: AVINPU15 | D51: 25.001 | E51: 141.356
B52: 2017-05-03 | C52: AVINPU15 | D52: 24.993 | E52: 141.69
B53: 2017-05-04 | C53: AVINPU15 | D53: 24.997 | E53: 142.566
B54: 2017-05-05 | C54: AVINPU15 | D54: 24.998 | E54: 142.862
B55: 2017-05-08 | C55: AVINPU15 | D55: 24.998 | E55: 143.165
B56: 2017-05-09 | C56: AVINPU15 | D56: 24.996 | E56: 143.48
B57: 2017-05-10 | C57: AVINPU15 | D57: 24.994 | E57: 143.796
B58: 2017-05-11 | C58: AVINPU15 | D58: 24.999 | E58: 144.698
B59: 2017-05-12 | C59: AVINPU15 | D59: 25.002 | E59: 144.996
B60: 2017-05-15 | C60: AVINPU15 | D60: 24.995 | E60: 145.345
B61: 2017-05-16 | C61: AVINPU15 | D61: 24.996 | E61: 145.655
B62: 2017-05-17 | C62: AVINPU15 | D62: 24.998 | E62: 145.963
B63: 2017-05-18 | C63: AVINPU15 | D63: 24.993 | E63: 146.95
B64: 2017-05-19 | C64: AVINPU15 | D64: 24.501 | E64: 149.817
B65: 2017-05-22 | C65: AVINPU15 | D65: 25.496 | E65: 145.065
B66: 2017-05-23 | C66: AVINPU15 | D66: 25.489 | E66: 145.421
B67: 2017-05-24 | C67: AVINPU15 | D67: 25.004 | E67: 148.2
B68: 2017-05-25 | C68: AVINPU15 | D68: 25.004 | E68: 148.2
B69: 2017-05-26 | C69: AVINPU15 | D69: 25.004 | E69: 148.2
B70: 2017-05-29 | C70: AVINPU15 | D70: 25.004 | E70: 148.2
B71: 2017-05-30 | C71: AVINPU15 | D71: 25.496 | E71: 147.348
B72: 2017-05-31 | C72: AVINPU15 | D72: 24.002 | E72: 155.588
B73: 2017-06-01 | C73: AVINPU15 | D73: 23.498 | E73: 159.507
B74: 2017-06-02 | C74: AVINPU15 | D74: 24 | E74: 157.034
B75: 2017-06-05 | C75: AVINPU15 | D75: 24.499 | E75: 157.559
B76: 2017-06-06 | C76: AVINPU15 | D76: 24.499 | E76: 158.004
B77: 2017-06-07 | C77: AVINPU15 | D77: 24.499 | E77: 158.451
B78: 2017-06-08 | C78: AVINPU15 | D78: 24.505 | E78: 159.772
B79: 2017-06-09 | C79: AVINPU15 | D79: 24.501 | E79: 160.252
B80: 2017-06-12 | C80: AVINPU15 | D80: 24.499 | E80: 160.724
B81: 2017-06-13 | C81: AVINPU15 | D81: 23.997 | E81: 164.124
B82: 2017-06-14 | C82: AVINPU15 | D82: 24.496 | E82: 161.669
B83: 2017-06-15 | C83: AVINPU15 | D83: 24.5 | E83: 163.057
B84: 2017-06-16 | C84: AVINPU15 | D84: 24.5 | E84: 163.533
B85: 2017-06-19 | C85: AVINPU15 | D85: 23.996 | E85: 167.027
B86: 2017-06-20 | C86: AVINPU15 | D86: 24.501 | E86: 164.488
B87: 2017-06-21 | C87: AVINPU15 | D87: 23.998 | E87: 168.003
B88: 2017-06-22 | C88: AVINPU15 | D88: 23.999 | E88: 169.502
B89: 2017-06-23 | C89: AVINPU15 | D89: 24.5 | E89: 166.946
B90: 2017-06-26 | C90: AVINPU15 | D90: 24 | E90: 170.515
B91: 2017-06-27 | C91: AVINPU15 | D91: 24.5 | E91: 167.947
B92: 2017-06-28 | C92: AVINPU15 | D92: 23.999 | E92: 171.552
B93: 2017-06-29 | C93: AVINPU15 | D93: 24.499 | E93: 169.993
B94: 2017-06-30 | C94: AVINPU15 | D94: 24.499 | E94: 171.031
B95: 2017-07-03 | C95: AVINPU15 | D95: 24.5 | E95: 171.549
B96: 2017-07-04 | C96: AVINPU15 | D96: 23.998 | E96: 174.727
B97: 2017-07-05 | C97: AVINPU15 | D97: 24.501 | E97: 172.07
B98: 2017-07-06 | C98: AVINPU15 | D98: 24.502 | E98: 173.665
B99: 2017-07-07 | C99: AVINPU15 | D99: 24.5 | E99: 174.219
B100: 2017-07-10 | C100: AVINPU15 | D100: 24.499 | E100: 174.769
B101: 2017-07-11 | C101: AVINPU15 | D101: 24.499 | E101: 175.316
B102: 2017-07-12 | C102: AVINPU15 | D102: 24.5 | E102: 175.861
B103: 2017-07-13 | C103: AVINPU15 | D103: 24.001 | E103: 180.833
B104: 2017-07-14 | C104: AVINPU15 | D104: 24.748 | E104: 176.489
B105: 2017-07-17 | C105: AVINPU15 | D105: 24.499 | E105: 178.674
B106: 2017-07-18 | C106: AVINPU15 | D106: 24.748 | E106: 177.617
B107: 2017-07-19 | C107: AVINPU15 | D107: 24.498 | E107: 179.829
B108: 2017-07-20 | C108: AVINPU15 | D108: 24.499 | E108: 181.573
B109: 2017-07-21 | C109: AVINPU15 | D109: 24.498 | E109: 182.171
B110: 2017-07-24 | C110: AVINPU15 | D110: 24.499 | E110: 182.759
B111: 2017-07-25 | C111: AVINPU15 | D111: 25.998 | E111: 173.628
B112: 2017-07-26 | C112: AVINPU15 | D112: 25.998 | E112: 173.628
B113: 2017-07-27 | C113: AVINPU15 | D113: 25.998 | E113: 173.628
B114: 2017-07-28 | C114: AVINPU15 | D114: 25.998 | E114: 173.628
B115: 2017-07-31 | C115: AVINPU15 | D115: 26.502 | E115: 173.327
B116: 2017-08-01 | C116: AVINPU15 | D116: 26.502 | E116: 173.327
B117: 2017-08-02 | C117: AVINPU15 | D117: 26.502 | E117: 173.327
B118: 2017-08-03 | C118: AVINPU15 | D118: 26.502 | E118: 173.327
B119: 2017-08-04 | C119: AVINPU15 | D119: 25.503 | E119: 183.289
B120: 2017-08-07 | C120: AVINPU15 | D120: 25.503 | E120: 183.289
B121: 2017-08-08 | C121: AVINPU15 | D121: 25.503 | E121: 183.289
B122: 2017-08-09 | C122: AVINPU15 | D122: 25.503 | E122: 183.289
B123: 2017-08-10 | C123: AVINPU15 | D123: 25.503 | E123: 183.289
B124: 2017-08-11 | C124: AVINPU15 | D124: 25.503 | E124: 183.289
B125: 2017-08-14 | C125: AVINPU15 | D125: 25.503 | E125: 183.289
B126: 2017-08-15 | C126: AVINPU15 | D126: 26.004 | E126: 185.579
B127: 2017-08-16 | C127: AVINPU15 | D127: 26.005 | E127: 186.216
B128: 2017-08-17 | C128: AVINPU15 | D128: 26.005 | E128: 186.216
B129: 2017-08-18 | C129: AVINPU15 | D129: 26.004 | E129: 188.842
B130: 2017-08-21 | C130: AVINPU15 | D130: 26.004 | E130: 188.842
B131: 2017-08-22 | C131: AVINPU15 | D131: 26.004 | E131: 188.842
B132: 2017-08-23 | C132: AVINPU15 | D132: 26.004 | E132: 188.842
B133: 2017-08-24 | C133: AVINPU15 | D133: 26.004 | E133: 188.842
B134: 2017-08-25 | C134: AVINPU15 | D134: 26.004 | E134: 188.842
B135: 2017-08-28 | C135: AVINPU15 | D135: 26.004 | E135: 188.842
B136: 2017-08-29 | C136: AVINPU15 | D136: 26.004 | E136: 188.842
B137: 2017-08-30 | C137: AVINPU15 | D137: 26.004 | E137: 188.842
B138: 2017-08-31 | C138: AVINPU15 | D138: 26.004 | E138: 188.842
B139: 2017-09-01 | C139: AVINPU15 | D139: 26.004 | E139: 188.842
B140: 2017-09-04 | C140: AVINPU15 | D140: 26.004 | E140: 188.842
B141: 2017-09-05 | C141: AVINPU15 | D141: 26.004 | E141: 188.842

Sheet Share Price Archive
B2: AVANGARDCO GDRs and Comparable Stocks - Prices Archive as at 05 September, 2017
B3: (Source: Bloomberg)
B4: >> Content | C4: >> LSE's GDR Page | D4: >> Company's GDR Page
B6: In April 2010, Avangardco Investments Public Limited completed the Initial Public Offering (IPO) of its new ordinary shares in the form of Global Depositary Receipts (GDRs) on the London Stock Exchange.
B8: Format | D8: Reg S | F8: Share Price since AVANGARDCO IPL IPO (29.04.10 - 100%) till 05.09.2017
B9: Issuer | D9: Avangardco Investments Public Limited, Cyprus
B10: Issue Volume (newly issued ordinary shares in form of GDRs after the exercise of the over-allotment option) | D10: 1,437,500
B11: Conversion Ratio | D11: 10 GDRs = 1 share 10 ADRs* = 1 share
D12: *Over-the-Counter (OTC) traded American Depositary Receipt (ADR) program, with BNY Mellon acting as the depositary bank, was established back in September 2010. Conversion ratio: 1 GDR=1 ADR | F12: AVANGARDCO IPL Market Capitalization since IPO Date till 05.09.2017, USD mln.
B13: Listing | D13: Main Market (International Order Book), London Stock Exchange
B14: Ticker | D14: LSE: AVGR
B15: Offer Price | D15: USD15 per GDR
B16: Free Float | D16: 22.5% unchanged since IPO
B17: Proceeds | D17: USD208 million
B18: Use of Proceeds | D18: Finalization of the new capacity expansion programs currently underway in Avis and Chornobaivske farm complexes
B19: Syndicate | D19: Troika Dialog, Sole Global Coordinator and Bookrunner, NCB, Co-leader Manager
B20: Avangardco IPO Prospectus, April 2010 | D20: download
B22: Peer Companies' Multiples
B24: Company | C24: Bloomberg Tickers | D24: Currency | E24: EV/T12M EBITDA* | F24: Date | G24: EV/12M SALES* | H24: Date | I24: P/E* | J24: Date
B25: Avangardco | C25: AVGR LI | D25: USD | E25: 265.3162 | F25: 01.09.2017 | G25: 2.1108 | H25: 01.09.2017 | I25: - | J25: 01.09.2017
B26: MHP S.A. | C26: MHP US | D26: USD | E26: 4.7024 | F26: 01.09.2017 | G26: 1.7693 | H26: 01.09.2017 | I26: 6.9858 | J26: 01.09.2017
B27: Cherkizovo | C27: CHE LI | D27: USD | E27: 6.7783 | F27: 01.09.2017 | G27: 1.1906 | H27: 01.09.2017 | I27: - | J27: 01.09.2017
B28: Cal-Maine | C28: CALM US | D28: USD | E28: 42.8624 | F28: 01.09.2017 | G28: 1.6094 | H28: 01.09.2017 | I28: - | J28: 01.09.2017
B29: Mriya | C29: MAYA GR | D29: EUR | E29: - | F29: 01.09.2017 | G29: - | H29: 01.09.2017 | I29: - | J29: 01.09.2017
B30: Agroton | C30: AGT PW | D30: PLN | E30: 1.4405 | F30: 01.09.2017 | G30: 0.7182 | H30: 01.09.2017 | I30: 1.5526 | J30: 01.09.2017
B31: Ovostar | C31: OVO PW | D31: PLN | E31: 5.4263 | F31: 01.09.2017 | G31: 1.6567 | H31: 01.09.2017 | I31: 8.4001 | J31: 01.09.2017
B32: Kernel | C32: KER PW | D32: PLN | E32: 6.0548 | F32: 01.09.2017 | G32: 0.9822 | H32: 01.09.2017 | I32: 6.7963 | J32: 01.09.2017
B33: Astarta | C33: AST PW | D33: PLN | E33: 4.0835 | F33: 01.09.2017 | G33: 1.2153 | H33: 01.09.2017 | I33: 4.2294 | J33: 01.09.2017
B34: Milkiland | C34: MLK PW | D34: PLN | E34: 18.3872 | F34: 01.09.2017 | G34: 0.7941 | H34: 01.09.2017 | I34: - | J34: 01.09.2017
B35: KSG Agro | C35: KSG PW | D35: PLN | E35: 2.9945 | F35: 01.09.2017 | G35: 2.0915 | H35: 01.09.2017 | I35: 3.7288 | J35: 01.09.2017
B37: * Bloomberg data
B39: Prices Archive | E39: up
B41: Date | C41: AVGR Price, USD | D41: AVGR Market Capitalization, USD | E41: AVGR Price, % | F41: AVGR Volume, items | G41: MHP S.A. Price, USD | H41: MHP S.A. Price, % | I41: MHP S.A. Volume, items | J41: Cherkizovo Price, USD | K41: Cherkizovo Price, % | L41: Cherkizovo Volume, items | M41: Cal-Maine Price, USD | N41: Cal-Maine Price, % | O41: Cal-Maine Volume, items | P41: Mriya Price, EUR | Q41: Mriya Price, % | R41: Mriya Volume, items | S41: Agroton Price, PLN | T41: Agroton Price, % | U41: Agroton Volume, items | V41: Ovostar Price, PLN | W41: Ovostar Price, % | X41: Ovostar Volume, items | Y41: Kernel Price, PLN | Z41: Kernel Price, % | AA41: Kernel Volume, items | AB41: Astarta Price, PLN | AC41: Astarta Price, % | AD41: Astarta Volume, items | AE41: Milkiland Price, PLN | AF41: Milkiland Price, % | AG41: Milkiland Volume, items | AH41: KSG Agro Price, PLN | AI41: KSG Agro Price, % | AJ41: KSG Agro Volume, items
B42: 2010-04-29 | C42: 15 | D42: =C42*63871850 -> 958077750 | E42: =C42/$C$42 -> 1 | F42: 0 | G42: 15.5 | H42: =G42/$G$42 -> 1 | I42: 75293 | J42: 20.15 | K42: =J42/$J$42 -> 1 | L42: 10200 | M42: 34.62 | N42: =M42/$M$42 -> 1 | O42: 119525 | P42: 4.6 | Q42: =P42/$P$42 -> 1 | R42: 0 | S42: 0 | T42: 0 | U42: 0 | V42: 0 | W42: 0 | X42: 0 | Y42: 60.5 | Z42: =Y42/$Y$42 -> 1 | AA42: 138739 | AB42: 58.5 | AC42: =AB42/$AB$42 -> 1 | AD42: 1556 | AE42: 0 | AF42: 0 | AG42: 0 | AH42: 0 | AI42: 0 | AJ42: 0
B43: 2010-04-30 | C43: 15.15 | D43: =C43*63871850 -> 967658527.5 | E43: =C43/$C$42 -> 1.01 | F43: 446333 | G43: 15.26 | H43: =G43/$G$42 -> 0.984516129 | I43: 37504 | J43: 19.5 | K43: =J43/$J$42 -> 0.9677419355 | L43: 6600 | M43: 33.38 | N43: 0.9641825534 | O43: 96447 | P43: 4.6 | Q43: =P43/$P$42 -> 1 | R43: 0 | S43: 0 | T43: 0 | U43: 0 | V43: 0 | W43: 0 | X43: 0 | Y43: 61.35 | Z43: =Y43/$Y$42 -> 1.014049587 | AA43: 158011 | AB43: 60 | AC43: =AB43/$AB$42 -> 1.025641026 | AD43: 1574 | AE43: 0 | AF43: 0 | AG43: 0 | AH43: 0 | AI43: 0 | AJ43: 0
B44: 2010-05-03 | C44: 15.15 | D44: =C44*63871850 -> 967658527.5 | E44: 1.01 | F44: 0 | G44: 15.26 | H44: 0.984516129 | I44: 0 | J44: 19.5 | K44: 0.9677419355 | L44: 0 | M44: 33.52 | N44: 0.9682264587 | O44: 164130 | P44: 4.6 | Q44: 1 | R44: 0 | S44: 0 | T44: 0 | U44: 0 | V44: 0 | W44: 0 | X44: 0 | Y44: 61.35 | Z44: =Y44/$Y$42 -> 1.014049587 | AA44: 0 | AB44: 60 | AC44: 1.025641026 | AD44: 0 | AE44: 0 | AF44: 0 | AG44: 0 | AH44: 0 | AI44: 0 | AJ44: 0
B45: 2010-05-04 | C45: 14.95 | D45: =C45*63871850 -> 954884157.5 | E45: 0.9966666667 | F45: 3114 | G45: 15 | H45: 0.9677419355 | I45: 122366 | J45: 18.9 | K45: 0.9379652605 | L45: 11207 | M45: 32.34 | N45: 0.9341421144 | O45: 133697 | P45: 4.6 | Q45: 1 | R45: 0 | S45: 0 | T45: 0 | U45: 0 | V45: 0 | W45: 0 | X45: 0 | Y45: 61.5 | Z45: 1.016528926 | AA45: 110065 | AB45: 58.7 | AC45: 1.003418803 | AD45: 2553 | AE45: 0 | AF45: 0 | AG45: 0 | AH45: 0 | AI45: 0 | AJ45: 0
B46: 2010-05-05 | C46: 14.95 | D46: =C46*63871850 -> 954884157.5 | E46: 0.9966666667 | F46: 0 | G46: 14.2 | H46: 0.9161290323 | I46: 87408 | J46: 17.5 | K46: 0.8684863524 | L46: 9400 | M46: 33.15 | N46: 0.9575389948 | O46: 94014 | P46: 4.56 | Q46: 0.9913043478 | R46: 50000 | S46: 0 | T46: 0 | U46: 0 | V46: 0 | W46: 0 | X46: 0 | Y46: 60 | Z46: 0.9917355372 | AA46: 180469 | AB46: 57.2 | AC46: 0.9777777778 | AD46: 3290 | AE46: 0 | AF46: 0 | AG46: 0 | AH46: 0 | AI46: 0 | AJ46: 0
B47: 2010-05-06 | C47: 14 | D47: 894205900 | E47: 0.9333333333 | F47: 419266 | G47: 14.4 | H47: 0.9290322581 | I47: 112704 | J47: 17.72 | K47: 0.8794044665 | L47: 1000 | M47: 32.57 | N47: 0.940785673 | O47: 113319 | P47: 4.56 | Q47: 0.9913043478 | R47: 0 | S47: 0 | T47: 0 | U47: 0 | V47: 0 | W47: 0 | X47: 0 | Y47: 59 | Z47: 0.9752066116 | AA47: 9440 | AB47: 55.6 | AC47: 0.9504273504 | AD47: 891 | AE47: 0 | AF47: 0 | AG47: 0 | AH47: 0 | AI47: 0 | AJ47: 0
B48: 2010-05-07 | C48: 14 | D48: 894205900 | E48: 0.9333333333 | F48: 0 | G48: 13 | H48: 0.8387096774 | I48: 100342 | J48: 16.95 | K48: 0.841191067 | L48: 24360 | M48: 31.81 | N48: 0.9188330445 | O48: 188959 | P48: 4 | Q48: 0.8695652174 | R48: 7500 | S48: 0 | T48: 0 | U48: 0 | V48: 0 | W48: 0 | X48: 0 | Y48: 56.5 | Z48: 0.9338842975 | AA48: 67611 | AB48: 55 | AC48: 0.9401709402 | AD48: 6179 | AE48: 0 | AF48: 0 | AG48: 0 | AH48: 0 | AI48: 0 | AJ48: 0
B49: 2010-05-10 | C49: 14 | D49: 894205900 | E49: 0.9333333333 | F49: 206173 | G49: 13 | H49: 0.8387096774 | I49: 0 | J49: 17.79 | K49: 0.8828784119 | L49: 4173 | M49: 32.88 | N49: =M49/$M$42 -> 0.9497400347 | O49: 120514 | P49: 4 | Q49: 0.8695652174 | R49: 0 | S49: 0 | T49: 0 | U49: 0 | V49: 0 | W49: 0 | X49: 0 | Y49: 57 | Z49: 0.9421487603 | AA49: 156835 | AB49: 57.5 | AC49: 0.9829059829 | AD49: 1486 | AE49: 0 | AF49: 0 | AG49: 0 | AH49: 0 | AI49: 0 | AJ49: 0
B50: 2010-05-11 | C50: 14 | D50: 894205900 | E50: 0.9333333333 | F50: 8000 | G50: 12.7 | H50: 0.8193548387 | I50: 58600 | J50: 17.79 | K50: 0.8828784119 | L50: 0 | M50: 32.35 | N50: 0.9344309648 | O50: 135143 | P50: 4 | Q50: 0.8695652174 | R50: 15000 | S50: 0 | T50: 0 | U50: 0 | V50: 0 | W50: 0 | X50: 0 | Y50: 57 | Z50: 0.9421487603 | AA50: 179058 | AB50: 54.7 | AC50: 0.935042735 | AD50: 3364 | AE50: 0 | AF50: 0 | AG50: 0 | AH50: 0 | AI50: 0 | AJ50: 0
B51: 2010-05-12 | C51: 14 | D51: 894205900 | E51: 0.9333333333 | F51: 59740 | G51: 12.75 | H51: 0.8225806452 | I51: 339382 | J51: 18.4 | K51: 0.9131513648 | L51: 23150 | M51: 33.36 | N51: 0.9636048527 | O51: 55894 | P51: 4.2 | Q51: 0.9130434783 | R51: 50000 | S51: 0 | T51: 0 | U51: 0 | V51: 0 | W51: 0 | X51: 0 | Y51: 62.45 | Z51: 1.032231405 | AA51: 845234 | AB51: 55 | AC51: 0.9401709402 | AD51: 679 | AE51: 0 | AF51: 0 | AG51: 0 | AH51: 0 | AI51: 0 | AJ51: 0
B52: 2010-05-13 | C52: 14 | D52: 894205900 | E52: 0.9333333333 | F52: 0 | G52: 12.71 | H52: 0.82 | I52: 118306 | J52: 18.2 | K52: 0.9032258065 | L52: 10644 | M52: 33.46 | N52: 0.9664933564 | O52: 93038 | P52: 4.2 | Q52: 0.9130434783 | R52: 0 | S52: 0 | T52: 0 | U52: 0 | V52: 0 | W52: 0 | X52: 0 | Y52: 62.5 | Z52: 1.033057851 | AA52: 65613 | AB52: 56 | AC52: 0.9572649573 | AD52: 199 | AE52: 0 | AF52: 0 | AG52: 0 | AH52: 0 | AI52: 0 | AJ52: 0
B53: 2010-05-14 | C53: 14 | D53: 894205900 | E53: 0.9333333333 | F53: 0 | G53: 12.8 | H53: 0.8258064516 | I53: 46134 | J53: 17.75 | K53: 0.8808933002 | L53: 10200 | M53: 33.44 | N53: 0.9659156557 | O53: 94616 | P53: 4.2 | Q53: 0.9130434783 | R53: 0 | S53: 0 | T53: 0 | U53: 0 | V53: 0 | W53: 0 | X53: 0 | Y53: 62.35 | Z53: 1.030578512 | AA53: 128258 | AB53: 58 | AC53: 0.9914529915 | AD53: 187885 | AE53: 0 | AF53: 0 | AG53: 0 | AH53: 0 | AI53: 0 | AJ53: 0
B54: 2010-05-17 | C54: 14 | D54: 894205900 | E54: 0.9333333333 | F54: 0 | G54: 12.8 | H54: 0.8258064516 | I54: 5946 | J54: 17.75 | K54: 0.8808933002 | L54: 5000 | M54: 33.16 | N54: 0.9578278452 | O54: 115369 | P54: 4 | Q54: 0.8695652174 | R54: 0 | S54: 0 | T54: 0 | U54: 0 | V54: 0 | W54: 0 | X54: 0 | Y54: 60.6 | Z54: 1.001652893 | AA54: 5504 | AB54: 57.3 | AC54: 0.9794871795 | AD54: 101599 | AE54: 0 | AF54: 0 | AG54: 0 | AH54: 0 | AI54: 0 | AJ54: 0
B55: 2010-05-18 | C55: 14 | D55: 894205900 | E55: 0.9333333333 | F55: 0 | G55: 12.75 | H55: 0.8225806452 | I55: 1304 | J55: 18 | K55: 0.8933002481 | L55: 32960 | M55: 32.83 | N55: 0.9482957828 | O55: 56998 | P55: 4.2 | Q55: 0.9130434783 | R55: 0 | S55: 0 | T55: 0 | U55: 0 | V55: 0 | W55: 0 | X55: 0 | Y55: 62.2 | Z55: 1.028099174 | AA55: 263232 | AB55: 57.8 | AC55: 0.988034188 | AD55: 2602 | AE55: 0 | AF55: 0 | AG55: 0 | AH55: 0 | AI55: 0 | AJ55: 0
B56: 2010-05-19 | C56: 14 | D56: =C56*63871850 -> 894205900 | E56: 0.9333333333 | F56: 0 | G56: 13.4 | H56: 0.864516129 | I56: 36941 | J56: 18 | K56: 0.8933002481 | L56: 0 | M56: 32.63 | N56: 0.9425187753 | O56: 58400 | P56: 4.42 | Q56: 0.9608695652 | R56: 110500 | S56: 0 | T56: 0 | U56: 0 | V56: 0 | W56: 0 | X56: 0 | Y56: 61.85 | Z56: 1.02231405 | AA56: 86688 | AB56: 56.55 | AC56: 0.9666666667 | AD56: 2372 | AE56: 0 | AF56: 0 | AG56: 0 | AH56: 0 | AI56: 0 | AJ56: 0
B57: 2010-05-20 | C57: 13 | D57: =C57*63871850 -> 830334050 | E57: 0.8666666667 | F57: 10000 | G57: 12.45 | H57: 0.8032258065 | I57: 182990 | J57: 17.5 | K57: 0.8684863524 | L57: 39494 | M57: 32.03 | N57: 0.9251877527 | O57: 100327 | P57: 4.3 | Q57: 0.9347826087 | R57: 10250 | S57: 0 | T57: 0 | U57: 0 | V57: 0 | W57: 0 | X57: 0 | Y57: 60 | Z57: 0.9917355372 | AA57: 31528 | AB57: 57 | AC57: 0.9743589744 | AD57: 2352 | AE57: 0 | AF57: 0 | AG57: 0 | AH57: 0 | AI57: 0 | AJ57: 0
B58: 2010-05-21 | C58: 12 | D58: 766462200 | E58: 0.8 | F58: 99600 | G58: 12.35 | H58: 0.7967741935 | I58: 173536 | J58: 17.75 | K58: 0.8808933002 | L58: 800 | M58: 32.24 | N58: 0.9312536106 | O58: 136008 | P58: 4.3 | Q58: 0.9347826087 | R58: 0 | S58: 0 | T58: 0 | U58: 0 | V58: 0 | W58: 0 | X58: 0 | Y58: 62.25 | Z58: 1.02892562 | AA58: 67823 | AB58: 56.45 | AC58: 0.964957265 | AD58: 1094 | AE58: 0 | AF58: 0 | AG58: 0 | AH58: 0 | AI58: 0 | AJ58: 0
B59: 2010-05-24 | C59: 12 | D59: 766462200 | E59: 0.8 | F59: 0 | G59: 12.26 | H59: 0.7909677419 | I59: 700 | J59: 16.01 | K59: 0.7945409429 | L59: 50 | M59: 31.58 | N59: 0.9121894858 | O59: 62135 | P59: 4.3 | Q59: 0.9347826087 | R59: 0 | S59: 0 | T59: 0 | U59: 0 | V59: 0 | W59: 0 | X59: 0 | Y59: 62 | Z59: 1.024793388 | AA59: 195232 | AB59: 56.5 | AC59: 0.9658119658 | AD59: 247 | AE59: 0 | AF59: 0 | AG59: 0 | AH59: 0 | AI59: 0 | AJ59: 0
B60: 2010-05-25 | C60: 12 | D60: 766462200 | E60: 0.8 | F60: 5000 | G60: 12 | H60: 0.7741935484 | I60: 134202 | J60: 16.27 | K60: 0.8074441687 | L60: 14740 | M60: 31.4 | N60: 0.9069901791 | O60: 90493 | P60: 4.3 | Q60: 0.9347826087 | R60: 0 | S60: 0 | T60: 0 | U60: 0 | V60: 0 | W60: 0 | X60: 0 | Y60: 61.45 | Z60: 1.015702479 | AA60: 204485 | AB60: 56.5 | AC60: 0.9658119658 | AD60: 2307 | AE60: 0 | AF60: 0 | AG60: 0 | AH60: 0 | AI60: 0 | AJ60: 0
B61: 2010-05-26 | C61: 12.95 | D61: 827140457.5 | E61: 0.8633333333 | F61: 24578 | G61: 12.11 | H61: 0.7812903226 | I61: 215584 | J61: 17.5 | K61: 0.8684863524 | L61: 2550 | M61: 31.65 | N61: 0.9142114385 | O61: 171298 | P61: 4.3 | Q61: 0.9347826087 | R61: 0 | S61: 0 | T61: 0 | U61: 0 | V61: 0 | W61: 0 | X61: 0 | Y61: 65 | Z61: 1.074380165 | AA61: 2322620 | AB61: 56.5 | AC61: 0.9658119658 | AD61: 504 | AE61: 0 | AF61: 0 | AG61: 0 | AH61: 0 | AI61: 0 | AJ61: 0
B62: 2010-05-27 | C62: 12 | D62: =C62*63871850 -> 766462200 | E62: =C62/$C$42 -> 0.8 | F62: 3211 | G62: 13 | H62: 0.8387096774 | I62: 84000 | J62: 17.4 | K62: 0.8635235732 | L62: 101585 | M62: 32.69 | N62: 0.9442518775 | O62: 90975 | P62: 4.05 | Q62: 0.8804347826 | R62: 0 | S62: 0 | T62: 0 | U62: 0 | V62: 0 | W62: 0 | X62: 0 | Y62: 63.3 | Z62: 1.046280992 | AA62: 193821 | AB62: 55.4 | AC62: 0.947008547 | AD62: 4415 | AE62: 0 | AF62: 0 | AG62: 0 | AH62: 0 | AI62: 0 | AJ62: 0
B63: 2010-05-28 | C63: 14 | D63: 894205900 | E63: 0.9333333333 | F63: 193789 | G63: 12.65 | H63: 0.8161290323 | I63: 34300 | J63: 18 | K63: 0.8933002481 | L63: 92 | M63: 32.37 | N63: 0.9350086655 | O63: 129200 | P63: 4.05 | Q63: 0.8804347826 | R63: 0 | S63: 0 | T63: 0 | U63: 0 | V63: 0 | W63: 0 | X63: 0 | Y63: 63.6 | Z63: 1.051239669 | AA63: 251966 | AB63: 57.3 | AC63: 0.9794871795 | AD63: 16948 | AE63: 0 | AF63: 0 | AG63: 0 | AH63: 0 | AI63: 0 | AJ63: 0
B64: 2010-05-31 | C64: 14 | D64: 894205900 | E64: 0.9333333333 | F64: 0 | G64: 12.65 | H64: 0.8161290323 | I64: 0 | J64: 18 | K64: 0.8933002481 | L64: 0 | M64: 32.37 | N64: 0.9350086655 | O64: 0 | P64: 4.05 | Q64: 0.8804347826 | R64: 0 | S64: 0 | T64: 0 | U64: 0 | V64: 0 | W64: 0 | X64: 0 | Y64: 62.95 | Z64: 1.040495868 | AA64: 32231 | AB64: 57.75 | AC64: 0.9871794872 | AD64: 863 | AE64: 0 | AF64: 0 | AG64: 0 | AH64: 0 | AI64: 0 | AJ64: 0
B65: 2010-06-01 | C65: 14 | D65: 894205900 | E65: =C65/$C$42 -> 0.9333333333 | F65: 8000 | G65: 12.65 | H65: =G65/$G$42 -> 0.8161290323 | I65: 15000 | J65: 18 | K65: 0.8933002481 | L65: 0 | M65: 33.27 | N65: 0.9610051993 | O65: 211778 | P65: 4.05 | Q65: 0.8804347826 | R65: 0 | S65: 0 | T65: 0 | U65: 0 | V65: 0 | W65: 0 | X65: 0 | Y65: 60.65 | Z65: 1.002479339 | AA65: 78012 | AB65: 58.3 | AC65: 0.9965811966 | AD65: 3796 | AE65: 0 | AF65: 0 | AG65: 0 | AH65: 0 | AI65: 0 | AJ65: 0
B66: 2010-06-02 | C66: 14 | D66: 894205900 | E66: 0.9333333333 | F66: 0 | G66: 12.9 | H66: 0.8322580645 | I66: 1463 | J66: 18 | K66: 0.8933002481 | L66: 3507 | M66: 34.21 | N66: 0.9881571346 | O66: 287823 | P66: 4.05 | Q66: 0.8804347826 | R66: 0 | S66: 0 | T66: 0 | U66: 0 | V66: 0 | W66: 0 | X66: 0 | Y66: 63.1 | Z66: 1.042975207 | AA66: 90175 | AB66: 58.7 | AC66: 1.003418803 | AD66: 558 | AE66: 0 | AF66: 0 | AG66: 0 | AH66: 0 | AI66: 0 | AJ66: 0
B67: 2010-06-03 | C67: 13 | D67: 830334050 | E67: 0.8666666667 | F67: 1000 | G67: 12.9 | H67: 0.8322580645 | I67: 0 | J67: 18 | K67: 0.8933002481 | L67: 1000 | M67: 34.04 | N67: 0.9832466782 | O67: 107559 | P67: 4.05 | Q67: 0.8804347826 | R67: 0 | S67: 0 | T67: 0 | U67: 0 | V67: 0 | W67: 0 | X67: 0 | Y67: 63.1 | Z67: 1.042975207 | AA67: 0 | AB67: 58.7 | AC67: 1.003418803 | AD67: 0 | AE67: 0 | AF67: 0 | AG67: 0 | AH67: 0 | AI67: 0 | AJ67: 0
B68: 2010-06-04 | C68: 13 | D68: 830334050 | E68: 0.8666666667 | F68: 0 | G68: 12.6 | H68: 0.8129032258 | I68: 114215 | J68: 18 | K68: 0.8933002481 | L68: 20700 | M68: 33.19 | N68: 0.9586943963 | O68: 126967 | P68: 4.1 | Q68: 0.8913043478 | R68: 0 | S68: 0 | T68: 0 | U68: 0 | V68: 0 | W68: 0 | X68: 0 | Y68: 63.85 | Z68: 1.055371901 | AA68: 69949 | AB68: 58.9 | AC68: 1.006837607 | AD68: 3454 | AE68: 0 | AF68: 0 | AG68: 0 | AH68: 0 | AI68: 0 | AJ68: 0
B69: 2010-06-07 | C69: 13 | D69: 830334050 | E69: 0.8666666667 | F69: 0 | G69: 12.7 | H69: 0.8193548387 | I69: 292255 | J69: 18 | K69: 0.8933002481 | L69: 0 | M69: 32.66 | N69: 0.9433853264 | O69: 91329 | P69: 4.1 | Q69: 0.8913043478 | R69: 250 | S69: 0 | T69: 0 | U69: 0 | V69: 0 | W69: 0 | X69: 0 | Y69: 63.8 | Z69: 1.054545455 | AA69: 41497 | AB69: 58.5 | AC69: 1 | AD69: 1852 | AE69: 0 | AF69: 0 | AG69: 0 | AH69: 0 | AI69: 0 | AJ69: 0
B70: 2010-06-08 | C70: 13 | D70: 830334050 | E70: 0.8666666667 | F70: 0 | G70: 12.25 | H70: 0.7903225806 | I70: 178955 | J70: 17.3 | K70: 0.858560794 | L70: 19340 | M70: 32.75 | N70: 0.9459849798 | O70: 68351 | P70: 4.1 | Q70: 0.8913043478 | R70: 0 | S70: 0 | T70: 0 | U70: 0 | V70: 0 | W70: 0 | X70: 0 | Y70: 63 | Z70: 1.041322314 | AA70: 21901 | AB70: 58.5 | AC70: 1 | AD70: 3632 | AE70: 0 | AF70: 0 | AG70: 0 | AH70: 0 | AI70: 0 | AJ70: 0
B71: 2010-06-09 | C71: 13 | D71: 830334050 | E71: 0.8666666667 | F71: 0 | G71: 12.2 | H71: 0.7870967742 | I71: 24070 | J71: 17.3 | K71: 0.858560794 | L71: 655800 | M71: 32.59 | N71: 0.9413633738 | O71: 82703 | P71: 4.15 | Q71: 0.902173913 | R71: 0 | S71: 0 | T71: 0 | U71: 0 | V71: 0 | W71: 0 | X71: 0 | Y71: 62.2 | Z71: 1.028099174 | AA71: 59451 | AB71: 58.4 | AC71: 0.9982905983 | AD71: 1574 | AE71: 0 | AF71: 0 | AG71: 0 | AH71: 0 | AI71: 0 | AJ71: 0
B72: 2010-06-10 | C72: 13 | D72: 830334050 | E72: 0.8666666667 | F72: 0 | G72: 12.54 | H72: 0.8090322581 | I72: 711437 | J72: 17.3 | K72: 0.858560794 | L72: 13000 | M72: 33.51 | N72: 0.9679376083 | O72: 103274 | P72: 4.15 | Q72: 0.902173913 | R72: 0 | S72: 0 | T72: 0 | U72: 0 | V72: 0 | W72: 0 | X72: 0 | Y72: 63.05 | Z72: 1.04214876 | AA72: 13242 | AB72: 58.8 | AC72: 1.005128205 | AD72: 26616 | AE72: 0 | AF72: 0 | AG72: 0 | AH72: 0 | AI72: 0 | AJ72: 0
B73: 2010-06-11 | C73: 13 | D73: 830334050 | E73: 0.8666666667 | F73: 0 | G73: 12.6 | H73: 0.8129032258 | I73: 470600 | J73: 17.5 | K73: 0.8684863524 | L73: 6100 | M73: 33.7 | N73: 0.9734257655 | O73: 56670 | P73: 4.15 | Q73: 0.902173913 | R73: 0 | S73: 0 | T73: 0 | U73: 0 | V73: 0 | W73: 0 | X73: 0 | Y73: 63.05 | Z73: 1.04214876 | AA73: 86274 | AB73: 60 | AC73: 1.025641026 | AD73: 715 | AE73: 0 | AF73: 0 | AG73: 0 | AH73: 0 | AI73: 0 | AJ73: 0
B74: 2010-06-14 | C74: 13 | D74: 830334050 | E74: 0.8666666667 | F74: 0 | G74: 13.45 | H74: 0.8677419355 | I74: 402700 | J74: 17.5 | K74: 0.8684863524 | L74: 0 | M74: 33.1 | N74: 0.9560947429 | O74: 175338 | P74: 4.15 | Q74: 0.902173913 | R74: 0 | S74: 0 | T74: 0 | U74: 0 | V74: 0 | W74: 0 | X74: 0 | Y74: 63 | Z74: 1.041322314 | AA74: 98341 | AB74: 60.6 | AC74: 1.035897436 | AD74: 1218 | AE74: 0 | AF74: 0 | AG74: 0 | AH74: 0 | AI74: 0 | AJ74: 0
B75: 2010-06-15 | C75: 13 | D75: 830334050 | E75: 0.8666666667 | F75: 1000 | G75: 13.26 | H75: 0.855483871 | I75: 425338 | J75: 17.5 | K75: 0.8684863524 | L75: 0 | M75: 33.9 | N75: 0.979202773 | O75: 109515 | P75: 4.15 | Q75: 0.902173913 | R75: 0 | S75: 0 | T75: 0 | U75: 0 | V75: 0 | W75: 0 | X75: 0 | Y75: 62.95 | Z75: 1.040495868 | AA75: 29108 | AB75: 60.9 | AC75: 1.041025641 | AD75: 1807 | AE75: 0 | AF75: 0 | AG75: 0 | AH75: 0 | AI75: 0 | AJ75: 0
B76: 2010-06-16 | C76: 13 | D76: 830334050 | E76: 0.8666666667 | F76: 54000 | G76: 13.27 | H76: 0.8561290323 | I76: 136850 | J76: 17.4 | K76: 0.8635235732 | L76: 1101 | M76: 33.96 | N76: 0.9809358752 | O76: 58921 | P76: 4.25 | Q76: 0.9239130435 | R76: 0 | S76: 0 | T76: 0 | U76: 0 | V76: 0 | W76: 0 | X76: 0 | Y76: 61.15 | Z76: 1.010743802 | AA76: 72047 | AB76: 60.35 | AC76: 1.031623932 | AD76: 1423 | AE76: 0 | AF76: 0 | AG76: 0 | AH76: 0 | AI76: 0 | AJ76: 0
B77: 2010-06-17 | C77: 13 | D77: 830334050 | E77: 0.8666666667 | F77: 0 | G77: 13.25 | H77: 0.8548387097 | I77: 104200 | J77: 17.4 | K77: 0.8635235732 | L77: 0 | M77: 34.09 | N77: 0.9846909301 | O77: 59799 | P77: 4.25 | Q77: 0.9239130435 | R77: 0 | S77: 0 | T77: 0 | U77: 0 | V77: 0 | W77: 0 | X77: 0 | Y77: 63 | Z77: 1.041322314 | AA77: 280901 | AB77: 58.3 | AC77: 0.9965811966 | AD77: 717 | AE77: 0 | AF77: 0 | AG77: 0 | AH77: 0 | AI77: 0 | AJ77: 0
B78: 2010-06-18 | C78: 13 | D78: 830334050 | E78: 0.8666666667 | F78: 12040 | G78: 13.4 | H78: 0.864516129 | I78: 182870 | J78: 17.99 | K78: 0.8928039702 | L78: 6743 | M78: 34.15 | N78: 0.9864240324 | O78: 81430 | P78: 4.4 | Q78: 0.9565217391 | R78: 0 | S78: 0 | T78: 0 | U78: 0 | V78: 0 | W78: 0 | X78: 0 | Y78: 63 | Z78: 1.041322314 | AA78: 65208 | AB78: 58 | AC78: 0.9914529915 | AD78: 3141 | AE78: 0 | AF78: 0 | AG78: 0 | AH78: 0 | AI78: 0 | AJ78: 0
B79: 2010-06-21 | C79: 13.5 | D79: 862269975 | E79: 0.9 | F79: 3750 | G79: 14.02 | H79: 0.904516129 | I79: 230670 | J79: 17.64 | K79: 0.8754342432 | L79: 4968 | M79: 33.92 | N79: 0.9797804737 | O79: 77089 | P79: 4.4 | Q79: 0.9565217391 | R79: 0 | S79: 0 | T79: 0 | U79: 0 | V79: 0 | W79: 0 | X79: 0 | Y79: 63 | Z79: 1.041322314 | AA79: 101679 | AB79: 59.15 | AC79: 1.011111111 | AD79: 240 | AE79: 0 | AF79: 0 | AG79: 0 | AH79: 0 | AI79: 0 | AJ79: 0
B80: 2010-06-22 | C80: 13 | D80: 830334050 | E80: 0.8666666667 | F80: 3020 | G80: 13.8 | H80: 0.8903225806 | I80: 190800 | J80: 17 | K80: 0.8436724566 | L80: 9400 | M80: 33.83 | N80: 0.9771808203 | O80: 101186 | P80: 4.7 | Q80: 1.02173913 | R80: 150 | S80: 0 | T80: 0 | U80: 0 | V80: 0 | W80: 0 | X80: 0 | Y80: 63 | Z80: 1.041322314 | AA80: 95134 | AB80: 58.85 | AC80: 1.005982906 | AD80: 6 | AE80: 0 | AF80: 0 | AG80: 0 | AH80: 0 | AI80: 0 | AJ80: 0
B81: 2010-06-23 | C81: 13.5 | D81: 862269975 | E81: 0.9 | F81: 40251 | G81: 13.91 | H81: 0.8974193548 | I81: 570707 | J81: 16.6 | K81: 0.82382134 | L81: 1477 | M81: 33.45 | N81: 0.9662045061 | O81: 70292 | P81: 4.75 | Q81: 1.032608696 | R81: 0 | S81: 0 | T81: 0 | U81: 0 | V81: 0 | W81: 0 | X81: 0 | Y81: 62.95 | Z81: 1.040495868 | AA81: 15604 | AB81: 58.75 | AC81: 1.004273504 | AD81: 26236 | AE81: 0 | AF81: 0 | AG81: 0 | AH81: 0 | AI81: 0 | AJ81: 0
B82: 2010-06-24 | C82: 13.48 | D82: 860992538 | E82: 0.8986666667 | F82: 2000 | G82: 14.28 | H82: 0.9212903226 | I82: 295100 | J82: 16.16 | K82: 0.8019851117 | L82: 163122 | M82: 33.09 | N82: 0.9558058925 | O82: 71165 | P82: 4.75 | Q82: 1.032608696 | R82: 0 | S82: 0 | T82: 0 | U82: 0 | V82: 0 | W82: 0 | X82: 0 | Y82: 62.6 | Z82: 1.034710744 | AA82: 5652 | AB82: 58.6 | AC82: 1.001709402 | AD82: 1705 | AE82: 0 | AF82: 0 | AG82: 0 | AH82: 0 | AI82: 0 | AJ82: 0
B83: 2010-06-25 | C83: 13.48 | D83: 860992538 | E83: 0.8986666667 | F83: 0 | G83: 14.2 | H83: 0.9161290323 | I83: 132200 | J83: 16.44 | K83: 0.8158808933 | L83: 114 | M83: 33.46 | N83: 0.9664933564 | O83: 177920 | P83: 4.75 | Q83: 1.032608696 | R83: 0 | S83: 0 | T83: 0 | U83: 0 | V83: 0 | W83: 0 | X83: 0 | Y83: 62.3 | Z83: 1.029752066 | AA83: 141305 | AB83: 58.5 | AC83: 1 | AD83: 13577 | AE83: 0 | AF83: 0 | AG83: 0 | AH83: 0 | AI83: 0 | AJ83: 0
B84: 2010-06-28 | C84: 13.48 | D84: 860992538 | E84: 0.8986666667 | F84: 0 | G84: 14.15 | H84: 0.9129032258 | I84: 20200 | J84: 16.3 | K84: 0.8089330025 | L84: 13015 | M84: 33.76 | N84: 0.9751588677 | O84: 79520 | P84: 4.75 | Q84: 1.032608696 | R84: 0 | S84: 0 | T84: 0 | U84: 0 | V84: 0 | W84: 0 | X84: 0 | Y84: 63 | Z84: 1.041322314 | AA84: 100878 | AB84: 57.8 | AC84: 0.988034188 | AD84: 60 | AE84: 0 | AF84: 0 | AG84: 0 | AH84: 0 | AI84: 0 | AJ84: 0
B85: 2010-06-29 | C85: 13.48 | D85: 860992538 | E85: 0.8986666667 | F85: 0 | G85: 14.06 | H85: 0.9070967742 | I85: 205920 | J85: 13.76 | K85: 0.6828784119 | L85: 19551 | M85: 32.55 | N85: 0.9402079723 | O85: 116663 | P85: 4.9 | Q85: 1.065217391 | R85: 0 | S85: 0 | T85: 0 | U85: 0 | V85: 0 | W85: 0 | X85: 0 | Y85: 61 | Z85: 1.008264463 | AA85: 4390 | AB85: 58 | AC85: 0.9914529915 | AD85: 35393 | AE85: 0 | AF85: 0 | AG85: 0 | AH85: 0 | AI85: 0 | AJ85: 0
B86: 2010-06-30 | C86: 13.48 | D86: 860992538 | E86: 0.8986666667 | F86: 0 | G86: 13 | H86: 0.8387096774 | I86: 145672 | J86: 14.36 | K86: 0.7126550868 | L86: 18249 | M86: 31.93 | N86: 0.922299249 | O86: 175787 | P86: 4.89 | Q86: 1.063043478 | R86: 0 | S86: 0 | T86: 0 | U86: 0 | V86: 0 | W86: 0 | X86: 0 | Y86: 60.5 | Z86: 1 | AA86: 23683 | AB86: 58 | AC86: 0.9914529915 | AD86: 1135 | AE86: 0 | AF86: 0 | AG86: 0 | AH86: 0 | AI86: 0 | AJ86: 0
B87: 2010-07-01 | C87: 13.48 | D87: 860992538 | E87: 0.8986666667 | F87: 0 | G87: 14 | H87: 0.9032258065 | I87: 5300 | J87: 14.5 | K87: 0.7196029777 | L87: 24142 | M87: 31.84 | N87: 0.9196995956 | O87: 86447 | P87: 4.89 | Q87: 1.063043478 | R87: 0 | S87: 0 | T87: 0 | U87: 0 | V87: 0 | W87: 0 | X87: 0 | Y87: 62.5 | Z87: 1.033057851 | AA87: 4635 | AB87: 58.8 | AC87: 1.005128205 | AD87: 929 | AE87: 0 | AF87: 0 | AG87: 0 | AH87: 0 | AI87: 0 | AJ87: 0
B88: 2010-07-02 | C88: 12.5 | D88: 798398125 | E88: 0.8333333333 | F88: 74500 | G88: 14 | H88: 0.9032258065 | I88: 211818 | J88: 15.25 | K88: 0.7568238213 | L88: 3586 | M88: 31.24 | N88: 0.9023685731 | O88: 73007 | P88: 4.89 | Q88: 1.063043478 | R88: 0 | S88: 0 | T88: 0 | U88: 0 | V88: 0 | W88: 0 | X88: 0 | Y88: 62.6 | Z88: 1.034710744 | AA88: 66045 | AB88: 58 | AC88: 0.9914529915 | AD88: 36096 | AE88: 0 | AF88: 0 | AG88: 0 | AH88: 0 | AI88: 0 | AJ88: 0
